Workbook

Sheet AVOID NEW
B1: AVOIDED COST CALCULATION MODEL | L1: Base Calculations | X1: Resource-Specific Calculations | AK1: Resource-Specific Calculations
B2: Idaho Public Utilities Commission
B3: 04/5/2021 | AK3: =$E$105 -> PCP
G4: ENERGY INFORMATION ADMIN (EIA) - ANNUAL ENERGY OUTLOOK | X4: Resource Type | AK4: =TODAY()+1 -> 2021-04-07
B5: 1. Choose Utility | G5: Natural Gas Price Forecast | U5: Surplus Energy Transmission Cost Calcs | AK5: ="Avoided Cost Rates for "&'Input - Capacity Factors'!$C$3&" Projects" -> Avoided Cost Rates for Seasonal hydro Projects
G6: 2020 REPORT - RELEASE DATE - January 29, 2020 | L6: Year | N6: Energy Rate Calcs | R6: Capacity Rate Calcs | X6: Year | Z6: Energy Rate | AE6: Peak capacity adjustment | AH6: Total Rate | AI6: Fueled Rate | AK6: CONTRACT | AL6: CAL YEAR | AM6: NON-LEVELIZED RATE ($/MWH) | AN6: LEVELIZED RATES ($/MWH)
B7: 2. Choose Contract Type | H7: Real Price | I7: Nominal Price | N7: Gas Price | O7: Fuel Cost | P7: VO&M Cost | Q7: Total | R7: "Tilted" Capital Costs | S7: FO&M Cost | T7: Total | U7: Rate | V7: Losses | Z7: Fuel | AA7: VO&M | AB7: Trans. | AC7: Losses | AD7: Total | AE7: Capital | AF7: FO&M | AG7: Total | AK7: LENGTH | AN7: ON-LINE YEAR
I8: by Year | J8: FUEL COST | L8: No. | M8: Cal | N8: $/MMBtu | O8: $/MWh | P8: $/MWh | Q8: $/MWh | R8: $/MWh | S8: $/MWh | T8: $/MWh | U8: $/MWh | V8: $/MWh | X8: No. | Y8: Cal | Z8: $/MWh | AA8: $/MWh | AB8: $/MWh | AC8: $/MWh | AD8: $/MWh | AE8: $/MWh | AF8: $/MWh | AG8: $/MWh | AH8: $/MWh | AI8: $/MWh | AK8: (YEARS) | AN8: =$D$54 -> 2021 | AO8: =AN8+1 -> 2022 | AP8: =AO8+1 -> 2023 | AQ8: 2024 | AR8: 2025 | AS8: 2026
G9: YEAR | H9: (2019 $ per MMBtu) | I9: ($ per MMBtu) | J9: $/MWh | L9: 1 | M9: =D54 -> 2021 | N9: =IF(ISERROR(VLOOKUP($M9,$G$10:$J$40,3,FALSE)),GROWTH($I$31:$I$40,$G$31:$G$40,M9),VLOOKUP($M9,$G$10:$J$40,3,FALSE)) -> 3.034305 | O9: =N9*$D$36/1000 -> 21.5435655 | P9: =$D$40*(1+$D$47)^(M9-$D$43) -> 2.289683736 | Q9: =P9+O9 -> 23.83324924 | R9: =$R$41*(($D$37-$D$52)/$D$37)*((1+$D$37)^$D$32-1)/((1+$D$37)^$D$32-(1+$D$52)^$D$32)*(1+$D$52)^(M9-$M$41) -> 51.9718933 | S9: =$D$39*(1+$D$47)^($M9-$D$43)*(1000/(365*24))/VLOOKUP('Input - Capacity Factors'!$C$3,'Input - Capacity Factors'!$A:$B,2,FALSE) -> 6.519942094 | T9: =S9+R9 -> 58.4918354 | U9: =-VLOOKUP($E$105,'Input - Transmission'!$A:$C,2)*(1+'Input - Transmission'!$C$11)^('AVOID NEW'!$M9-'Input - Transmission'!$C$10)*12*(1000/(365*24))*(1/VLOOKUP('Input - Capacity Factors'!$C$3,'Input - Capacity Factors'!$A:$D,2,FALSE)) -> -12.40237203 | V9: =-VLOOKUP($E$105,'Input - Transmission'!$A:$C,3)*Q9 -> -1.191662462 | X9: 1 | Y9: =M9 -> 2021 | Z9: =O9 -> 21.5435655 | AA9: =P9 -> 2.289683736 | AB9: =IF(VLOOKUP($Y9,'Input - Load and Resource'!$B$13:$C$42,2,FALSE)>=0,0,0) -> 0 | AC9: =IF(VLOOKUP($Y9,'Input - Load and Resource'!$B$13:$C$42,2,FALSE)>=0,0,0) -> 0 | AD9: =SUM(Z9:AC9) -> 23.83324924 | AE9: =VLOOKUP($Y9,'Input - Load and Resource'!$B$13:$L$42,11,FALSE)*R9 -> 0 | AF9: =VLOOKUP($Y9,'Input - Load and Resource'!$B$13:$L$42,11,FALSE)*S9 -> 0 | AG9: =AF9+AE9 -> 0 | AH9: =AG9+AD9 -> 23.83324924 | AI9: =AA9+AE9+AF9 -> 2.289683736 | AK9: 1 | AL9: =D54 -> 2021 | AM9: =IF('Input - Capacity Factors'!$C$3="Fueled",'AVOID NEW'!AI9,AH9) -> 23.83324924 | AN9: =IF('Input - Capacity Factors'!$C$3="Fueled",-PMT($D$37,$AK9,NPV($D$37,$AI$9:$AI9)),-PMT($D$37,$AK9,NPV($D$37,$AH$9:$AH9))) -> 23.83324924 | AO9: =IF('Input - Capacity Factors'!$C$3="Fueled",-PMT($D$37,$AK9,NPV($D$37,$AI$10:$AI10)),-PMT($D$37,$AK9,NPV($D$37,$AH$10:$AH10))) -> 23.90064821 | AP9: =IF('Input - Capacity Factors'!$C$3="Fueled",-PMT($D$37,$AK9,NPV($D$37,$AI$11:$AI11)),-PMT($D$37,$AK9,NPV($D$37,$AH$11:$AH11))) -> 24.92997646 | AQ9: =IF('Input - Capacity Factors'!$C$3="Fueled",-PMT($D$37,$AK9,NPV($D$37,$AI$12:$AI12)),-PMT($D$37,$AK9,NPV($D$37,$AH$12:$AH12))) -> 27.0293285 | AR9: =IF('Input - Capacity Factors'!$C$3="Fueled",-PMT($D$37,$AK9,NPV($D$37,$AI$13:$AI13)),-PMT($D$37,$AK9,NPV($D$37,$AH$13:$AH13))) -> 30.29688761 | AS9: =IF('Input - Capacity Factors'!$C$3="Fueled",-PMT($D$37,$AK9,NPV($D$37,$AI$14:$AI14)),-PMT($D$37,$AK9,NPV($D$37,$AH$14:$AH14))) -> 33.50790156
B10: 4. Choose specific resource | G10: 2020 | H10: 2.686785 | I10: 2.752327 | J10: =I10*D$36/1000 -> 19.5415217 | L10: 2 | M10: =M9+1 -> 2022 | N10: =IF(ISERROR(VLOOKUP($M10,$G$10:$J$40,3,FALSE)),GROWTH($I$31:$I$40,$G$31:$G$40,M10),VLOOKUP($M10,$G$10:$J$40,3,FALSE)) -> 3.037348 | O10: =N10*$D$36/1000 -> 21.5651708 | P10: =$D$40*(1+$D$47)^(M10-$D$43) -> 2.335477411 | Q10: =P10+O10 -> 23.90064821 | R10: =$R$41*(($D$37-$D$52)/$D$37)*((1+$D$37)^$D$32-1)/((1+$D$37)^$D$32-(1+$D$52)^$D$32)*(1+$D$52)^(M10-$M$41) -> 52.69949981 | S10: =$D$39*(1+$D$47)^($M10-$D$43)*(1000/(365*24))/VLOOKUP('Input - Capacity Factors'!$C$3,'Input - Capacity Factors'!$A:$B,2,FALSE) -> 6.650340936 | T10: =S10+R10 -> 59.34984075 | U10: =-VLOOKUP($E$105,'Input - Transmission'!$A:$C,2)*(1+'Input - Transmission'!$C$11)^('AVOID NEW'!$M10-'Input - Transmission'!$C$10)*12*(1000/(365*24))*(1/VLOOKUP('Input - Capacity Factors'!$C$3,'Input - Capacity Factors'!$A:$D,2,FALSE)) -> -12.65041947 | V10: =-VLOOKUP($E$105,'Input - Transmission'!$A:$C,3)*Q10 -> -1.195032411 | X10: 2 | Y10: =M10 -> 2022 | Z10: =O10 -> 21.5651708 | AA10: =P10 -> 2.335477411 | AB10: =IF(VLOOKUP($Y10,'Input - Load and Resource'!$B$13:$C$42,2,FALSE)>=0,0,0) -> 0 | AC10: =IF(VLOOKUP($Y10,'Input - Load and Resource'!$B$13:$C$42,2,FALSE)>=0,0,0) -> 0 | AD10: =SUM(Z10:AC10) -> 23.90064821 | AE10: =VLOOKUP($Y10,'Input - Load and Resource'!$B$13:$L$42,11,FALSE)*R10 -> 0 | AF10: =VLOOKUP($Y10,'Input - Load and Resource'!$B$13:$L$42,11,FALSE)*S10 -> 0 | AG10: =AF10+AE10 -> 0 | AH10: =AG10+AD10 -> 23.90064821 | AI10: =AA10+AE10+AF10 -> 2.335477411 | AK10: 2 | AL10: =AL9+1 -> 2022 | AM10: =IF('Input - Capacity Factors'!$C$3="Fueled",'AVOID NEW'!AI10,AH10) -> 23.90064821 | AN10: =IF('Input - Capacity Factors'!$C$3="Fueled",-PMT($D$37,$AK10,NPV($D$37,$AI$9:$AI10)),-PMT($D$37,$AK10,NPV($D$37,$AH$9:$AH10))) -> 23.86565571 | AO10: =IF('Input - Capacity Factors'!$C$3="Fueled",-PMT($D$37,$AK10,NPV($D$37,$AI$10:$AI11)),-PMT($D$37,$AK10,NPV($D$37,$AH$10:$AH11))) -> 24.39556515 | AP10: =IF('Input - Capacity Factors'!$C$3="Fueled",-PMT($D$37,$AK10,NPV($D$37,$AI$11:$AI12)),-PMT($D$37,$AK10,NPV($D$37,$AH$11:$AH12))) -> 25.93937738 | AQ10: =IF('Input - Capacity Factors'!$C$3="Fueled",-PMT($D$37,$AK10,NPV($D$37,$AI$12:$AI13)),-PMT($D$37,$AK10,NPV($D$37,$AH$12:$AH13))) -> 28.60042145 | AR10: =IF('Input - Capacity Factors'!$C$3="Fueled",-PMT($D$37,$AK10,NPV($D$37,$AI$13:$AI14)),-PMT($D$37,$AK10,NPV($D$37,$AH$13:$AH14))) -> 31.84079277 | AS10: =IF('Input - Capacity Factors'!$C$3="Fueled",-PMT($D$37,$AK10,NPV($D$37,$AI$14:$AI15)),-PMT($D$37,$AK10,NPV($D$37,$AH$14:$AH15))) -> 34.6562428
G11: 2021 | H11: 2.890885 | I11: 3.034305 | J11: 21.5435655 | L11: 3 | M11: =M10+1 -> 2023 | N11: 3.175745 | O11: 22.5477895 | P11: 2.382186959 | Q11: 24.92997646 | R11: 53.43729281 | S11: =$D$39*(1+$D$47)^($M11-$D$43)*(1000/(365*24))/VLOOKUP('Input - Capacity Factors'!$C$3,'Input - Capacity Factors'!$A:$B,2,FALSE) -> 6.783347755 | T11: 60.22064056 | U11: =-VLOOKUP($E$105,'Input - Transmission'!$A:$C,2)*(1+'Input - Transmission'!$C$11)^('AVOID NEW'!$M11-'Input - Transmission'!$C$10)*12*(1000/(365*24))*(1/VLOOKUP('Input - Capacity Factors'!$C$3,'Input - Capacity Factors'!$A:$D,2,FALSE)) -> -12.90342786 | V11: =-VLOOKUP($E$105,'Input - Transmission'!$A:$C,3)*Q11 -> -1.246498823 | X11: 3 | Y11: 2023 | Z11: 22.5477895 | AA11: 2.382186959 | AB11: =IF(VLOOKUP($Y11,'Input - Load and Resource'!$B$13:$C$42,2,FALSE)>=0,0,0) -> 0 | AC11: =IF(VLOOKUP($Y11,'Input - Load and Resource'!$B$13:$C$42,2,FALSE)>=0,0,0) -> 0 | AD11: 24.92997646 | AE11: =VLOOKUP($Y11,'Input - Load and Resource'!$B$13:$L$42,11,FALSE)*R11 -> 0 | AF11: =VLOOKUP($Y11,'Input - Load and Resource'!$B$13:$L$42,11,FALSE)*S11 -> 0 | AG11: 0 | AH11: 24.92997646 | AI11: 2.382186959 | AK11: 3 | AL11: =AL10+1 -> 2023 | AM11: =IF('Input - Capacity Factors'!$C$3="Fueled",'AVOID NEW'!AI11,AH11) -> 24.92997646 | AN11: =IF('Input - Capacity Factors'!$C$3="Fueled",-PMT($D$37,$AK11,NPV($D$37,$AI$9:$AI11)),-PMT($D$37,$AK11,NPV($D$37,$AH$9:$AH11))) -> 24.193566 | AO11: =IF('Input - Capacity Factors'!$C$3="Fueled",-PMT($D$37,$AK11,NPV($D$37,$AI$10:$AI12)),-PMT($D$37,$AK11,NPV($D$37,$AH$10:$AH12))) -> 25.20701049 | AP11: =IF('Input - Capacity Factors'!$C$3="Fueled",-PMT($D$37,$AK11,NPV($D$37,$AI$11:$AI13)),-PMT($D$37,$AK11,NPV($D$37,$AH$11:$AH13))) -> 27.28189791 | AQ11: =IF('Input - Capacity Factors'!$C$3="Fueled",-PMT($D$37,$AK11,NPV($D$37,$AI$12:$AI14)),-PMT($D$37,$AK11,NPV($D$37,$AH$12:$AH14))) -> 30.11238412 | AR11: =IF('Input - Capacity Factors'!$C$3="Fueled",-PMT($D$37,$AK11,NPV($D$37,$AI$13:$AI15)),-PMT($D$37,$AK11,NPV($D$37,$AH$13:$AH15))) -> 33.09024401 | AS11: =IF('Input - Capacity Factors'!$C$3="Fueled",-PMT($D$37,$AK11,NPV($D$37,$AI$14:$AI16)),-PMT($D$37,$AK11,NPV($D$37,$AH$14:$AH16))) -> 35.57794914
G12: 2022 | H12: 2.823007 | I12: 3.037348 | J12: 21.5651708 | L12: 4 | M12: 2024 | N12: 3.464718 | O12: 24.5994978 | P12: 2.429830698 | Q12: 27.0293285 | R12: 54.18541491 | S12: =$D$39*(1+$D$47)^($M12-$D$43)*(1000/(365*24))/VLOOKUP('Input - Capacity Factors'!$C$3,'Input - Capacity Factors'!$A:$B,2,FALSE) -> 6.91901471 | T12: 61.10442962 | U12: =-VLOOKUP($E$105,'Input - Transmission'!$A:$C,2)*(1+'Input - Transmission'!$C$11)^('AVOID NEW'!$M12-'Input - Transmission'!$C$10)*12*(1000/(365*24))*(1/VLOOKUP('Input - Capacity Factors'!$C$3,'Input - Capacity Factors'!$A:$D,2,FALSE)) -> -13.16149642 | V12: =-VLOOKUP($E$105,'Input - Transmission'!$A:$C,3)*Q12 -> -1.351466425 | X12: 4 | Y12: 2024 | Z12: 24.5994978 | AA12: 2.429830698 | AB12: =IF(VLOOKUP($Y12,'Input - Load and Resource'!$B$13:$C$42,2,FALSE)>=0,0,0) -> 0 | AC12: =IF(VLOOKUP($Y12,'Input - Load and Resource'!$B$13:$C$42,2,FALSE)>=0,0,0) -> 0 | AD12: 27.0293285 | AE12: =VLOOKUP($Y12,'Input - Load and Resource'!$B$13:$L$42,11,FALSE)*R12 -> 0 | AF12: =VLOOKUP($Y12,'Input - Load and Resource'!$B$13:$L$42,11,FALSE)*S12 -> 0 | AG12: 0 | AH12: 27.0293285 | AI12: 2.429830698 | AK12: 4 | AL12: 2024 | AM12: =IF('Input - Capacity Factors'!$C$3="Fueled",'AVOID NEW'!AI12,AH12) -> 27.0293285 | AN12: =IF('Input - Capacity Factors'!$C$3="Fueled",-PMT($D$37,$AK12,NPV($D$37,$AI$9:$AI12)),-PMT($D$37,$AK12,NPV($D$37,$AH$9:$AH12))) -> 24.82306673 | AO12: =IF('Input - Capacity Factors'!$C$3="Fueled",-PMT($D$37,$AK12,NPV($D$37,$AI$10:$AI13)),-PMT($D$37,$AK12,NPV($D$37,$AH$10:$AH13))) -> 26.33689402 | AP12: =IF('Input - Capacity Factors'!$C$3="Fueled",-PMT($D$37,$AK12,NPV($D$37,$AI$11:$AI14)),-PMT($D$37,$AK12,NPV($D$37,$AH$11:$AH14))) -> 28.66398609 | AQ12: =IF('Input - Capacity Factors'!$C$3="Fueled",-PMT($D$37,$AK12,NPV($D$37,$AI$12:$AI15)),-PMT($D$37,$AK12,NPV($D$37,$AH$12:$AH15))) -> 31.39631744 | AR12: =IF('Input - Capacity Factors'!$C$3="Fueled",-PMT($D$37,$AK12,NPV($D$37,$AI$13:$AI16)),-PMT($D$37,$AK12,NPV($D$37,$AH$13:$AH16))) -> 34.10197898 | AS12: =IF('Input - Capacity Factors'!$C$3="Fueled",-PMT($D$37,$AK12,NPV($D$37,$AI$14:$AI17)),-PMT($D$37,$AK12,NPV($D$37,$AH$14:$AH17))) -> 47.63900615
B13: 5. Enter current year | D13: 2021 | G13: 2023 | H13: 2.88151 | I13: 3.175745 | J13: 22.5477895 | L13: 5 | M13: 2025 | N13: 3.918093 | O13: 27.8184603 | P13: 2.478427312 | Q13: 30.29688761 | R13: 54.94401072 | S13: =$D$39*(1+$D$47)^($M13-$D$43)*(1000/(365*24))/VLOOKUP('Input - Capacity Factors'!$C$3,'Input - Capacity Factors'!$A:$B,2,FALSE) -> 7.057395004 | T13: 62.00140572 | U13: =-VLOOKUP($E$105,'Input - Transmission'!$A:$C,2)*(1+'Input - Transmission'!$C$11)^('AVOID NEW'!$M13-'Input - Transmission'!$C$10)*12*(1000/(365*24))*(1/VLOOKUP('Input - Capacity Factors'!$C$3,'Input - Capacity Factors'!$A:$D,2,FALSE)) -> -13.42472634 | V13: =-VLOOKUP($E$105,'Input - Transmission'!$A:$C,3)*Q13 -> -1.514844381 | X13: 5 | Y13: 2025 | Z13: 27.8184603 | AA13: 2.478427312 | AB13: =IF(VLOOKUP($Y13,'Input - Load and Resource'!$B$13:$C$42,2,FALSE)>=0,0,0) -> 0 | AC13: =IF(VLOOKUP($Y13,'Input - Load and Resource'!$B$13:$C$42,2,FALSE)>=0,0,0) -> 0 | AD13: 30.29688761 | AE13: =VLOOKUP($Y13,'Input - Load and Resource'!$B$13:$L$42,11,FALSE)*R13 -> 0 | AF13: =VLOOKUP($Y13,'Input - Load and Resource'!$B$13:$L$42,11,FALSE)*S13 -> 0 | AG13: 0 | AH13: 30.29688761 | AI13: 2.478427312 | AK13: 5 | AL13: 2025 | AM13: =IF('Input - Capacity Factors'!$C$3="Fueled",'AVOID NEW'!AI13,AH13) -> 30.29688761 | AN13: =IF('Input - Capacity Factors'!$C$3="Fueled",-PMT($D$37,$AK13,NPV($D$37,$AI$9:$AI13)),-PMT($D$37,$AK13,NPV($D$37,$AH$9:$AH13))) -> 25.75648701 | AO13: =IF('Input - Capacity Factors'!$C$3="Fueled",-PMT($D$37,$AK13,NPV($D$37,$AI$10:$AI14)),-PMT($D$37,$AK13,NPV($D$37,$AH$10:$AH14))) -> 27.55972612 | AP13: =IF('Input - Capacity Factors'!$C$3="Fueled",-PMT($D$37,$AK13,NPV($D$37,$AI$11:$AI15)),-PMT($D$37,$AK13,NPV($D$37,$AH$11:$AH15))) -> 29.89725906 | AQ13: =IF('Input - Capacity Factors'!$C$3="Fueled",-PMT($D$37,$AK13,NPV($D$37,$AI$12:$AI16)),-PMT($D$37,$AK13,NPV($D$37,$AH$12:$AH16))) -> 32.46236301 | AR13: =IF('Input - Capacity Factors'!$C$3="Fueled",-PMT($D$37,$AK13,NPV($D$37,$AI$13:$AI17)),-PMT($D$37,$AK13,NPV($D$37,$AH$13:$AH17))) -> 43.61867254 | AS13: =IF('Input - Capacity Factors'!$C$3="Fueled",-PMT($D$37,$AK13,NPV($D$37,$AI$14:$AI18)),-PMT($D$37,$AK13,NPV($D$37,$AH$14:$AH18))) -> 55.03375422
G14: 2024 | H14: 3.073578 | I14: 3.464718 | J14: 24.5994978 | L14: 6 | M14: 2026 | N14: 4.363367 | O14: 30.9799057 | P14: 2.527995858 | Q14: 33.50790156 | R14: 55.71322687 | S14: =$D$39*(1+$D$47)^($M14-$D$43)*(1000/(365*24))/VLOOKUP('Input - Capacity Factors'!$C$3,'Input - Capacity Factors'!$A:$B,2,FALSE) -> 7.198542904 | T14: 62.91176977 | U14: =-VLOOKUP($E$105,'Input - Transmission'!$A:$C,2)*(1+'Input - Transmission'!$C$11)^('AVOID NEW'!$M14-'Input - Transmission'!$C$10)*12*(1000/(365*24))*(1/VLOOKUP('Input - Capacity Factors'!$C$3,'Input - Capacity Factors'!$A:$D,2,FALSE)) -> -13.69322087 | V14: =-VLOOKUP($E$105,'Input - Transmission'!$A:$C,3)*Q14 -> -1.675395078 | X14: 6 | Y14: 2026 | Z14: 30.9799057 | AA14: 2.527995858 | AB14: =IF(VLOOKUP($Y14,'Input - Load and Resource'!$B$13:$C$42,2,FALSE)>=0,0,0) -> 0 | AC14: =IF(VLOOKUP($Y14,'Input - Load and Resource'!$B$13:$C$42,2,FALSE)>=0,0,0) -> 0 | AD14: 33.50790156 | AE14: =VLOOKUP($Y14,'Input - Load and Resource'!$B$13:$L$42,11,FALSE)*R14 -> 0 | AF14: =VLOOKUP($Y14,'Input - Load and Resource'!$B$13:$L$42,11,FALSE)*S14 -> 0 | AG14: 0 | AH14: 33.50790156 | AI14: 2.527995858 | AK14: 6 | AL14: 2026 | AM14: =IF('Input - Capacity Factors'!$C$3="Fueled",'AVOID NEW'!AI14,AH14) -> 33.50790156 | AN14: =IF('Input - Capacity Factors'!$C$3="Fueled",-PMT($D$37,$AK14,NPV($D$37,$AI$9:$AI14)),-PMT($D$37,$AK14,NPV($D$37,$AH$9:$AH14))) -> 26.81365715 | AO14: =IF('Input - Capacity Factors'!$C$3="Fueled",-PMT($D$37,$AK14,NPV($D$37,$AI$10:$AI15)),-PMT($D$37,$AK14,NPV($D$37,$AH$10:$AH15))) -> 28.69669204 | AP14: =IF('Input - Capacity Factors'!$C$3="Fueled",-PMT($D$37,$AK14,NPV($D$37,$AI$11:$AI16)),-PMT($D$37,$AK14,NPV($D$37,$AH$11:$AH16))) -> 30.95432204 | AQ14: =IF('Input - Capacity Factors'!$C$3="Fueled",-PMT($D$37,$AK14,NPV($D$37,$AI$12:$AI17)),-PMT($D$37,$AK14,NPV($D$37,$AH$12:$AH17))) -> 40.29735991 | AR14: =IF('Input - Capacity Factors'!$C$3="Fueled",-PMT($D$37,$AK14,NPV($D$37,$AI$13:$AI18)),-PMT($D$37,$AK14,NPV($D$37,$AH$13:$AH18))) -> 50.08124572 | AS14: =IF('Input - Capacity Factors'!$C$3="Fueled",-PMT($D$37,$AK14,NPV($D$37,$AI$14:$AI19)),-PMT($D$37,$AK14,NPV($D$37,$AH$14:$AH19))) -> 60.13566284
B15: 6. Enter project nameplate capacity | D15: 0.1 | G15: 2025 | H15: 3.398648 | I15: 3.918093 | J15: 27.8184603 | L15: 7 | M15: 2027 | N15: 4.692629 | O15: 33.3176659 | P15: 2.578555775 | Q15: 35.89622168 | R15: 56.49321204 | S15: =$D$39*(1+$D$47)^($M15-$D$43)*(1000/(365*24))/VLOOKUP('Input - Capacity Factors'!$C$3,'Input - Capacity Factors'!$A:$B,2,FALSE) -> 7.342513762 | T15: 63.8357258 | U15: =-VLOOKUP($E$105,'Input - Transmission'!$A:$C,2)*(1+'Input - Transmission'!$C$11)^('AVOID NEW'!$M15-'Input - Transmission'!$C$10)*12*(1000/(365*24))*(1/VLOOKUP('Input - Capacity Factors'!$C$3,'Input - Capacity Factors'!$A:$D,2,FALSE)) -> -13.96708529 | V15: =-VLOOKUP($E$105,'Input - Transmission'!$A:$C,3)*Q15 -> -1.794811084 | X15: 7 | Y15: 2027 | Z15: 33.3176659 | AA15: 2.578555775 | AB15: =IF(VLOOKUP($Y15,'Input - Load and Resource'!$B$13:$C$42,2,FALSE)>=0,0,0) -> 0 | AC15: =IF(VLOOKUP($Y15,'Input - Load and Resource'!$B$13:$C$42,2,FALSE)>=0,0,0) -> 0 | AD15: 35.89622168 | AE15: =VLOOKUP($Y15,'Input - Load and Resource'!$B$13:$L$42,11,FALSE)*R15 -> 0 | AF15: =VLOOKUP($Y15,'Input - Load and Resource'!$B$13:$L$42,11,FALSE)*S15 -> 0 | AG15: 0 | AH15: 35.89622168 | AI15: 2.578555775 | AK15: 7 | AL15: 2027 | AM15: =IF('Input - Capacity Factors'!$C$3="Fueled",'AVOID NEW'!AI15,AH15) -> 35.89622168 | AN15: =IF('Input - Capacity Factors'!$C$3="Fueled",-PMT($D$37,$AK15,NPV($D$37,$AI$9:$AI15)),-PMT($D$37,$AK15,NPV($D$37,$AH$9:$AH15))) -> 27.8321854 | AO15: =IF('Input - Capacity Factors'!$C$3="Fueled",-PMT($D$37,$AK15,NPV($D$37,$AI$10:$AI16)),-PMT($D$37,$AK15,NPV($D$37,$AH$10:$AH16))) -> 29.70048846 | AP15: =IF('Input - Capacity Factors'!$C$3="Fueled",-PMT($D$37,$AK15,NPV($D$37,$AI$11:$AI17)),-PMT($D$37,$AK15,NPV($D$37,$AH$11:$AH17))) -> 37.5657137 | AQ15: =IF('Input - Capacity Factors'!$C$3="Fueled",-PMT($D$37,$AK15,NPV($D$37,$AI$12:$AI18)),-PMT($D$37,$AK15,NPV($D$37,$AH$12:$AH18))) -> 45.98362672 | AR15: =IF('Input - Capacity Factors'!$C$3="Fueled",-PMT($D$37,$AK15,NPV($D$37,$AI$13:$AI19)),-PMT($D$37,$AK15,NPV($D$37,$AH$13:$AH19))) -> 54.8316384 | AS15: =IF('Input - Capacity Factors'!$C$3="Fueled",-PMT($D$37,$AK15,NPV($D$37,$AI$14:$AI20)),-PMT($D$37,$AK15,NPV($D$37,$AH$14:$AH20))) -> 63.99097382
B16: (MW) | G16: 2026 | H16: 3.698214 | I16: 4.363367 | J16: 30.9799057 | L16: 8 | M16: 2028 | N16: 4.932079 | O16: 35.0177609 | P16: 2.630126891 | Q16: 37.64788779 | R16: 57.28411701 | S16: =$D$39*(1+$D$47)^($M16-$D$43)*(1000/(365*24))/VLOOKUP('Input - Capacity Factors'!$C$3,'Input - Capacity Factors'!$A:$B,2,FALSE) -> 7.489364037 | T16: 64.77348105 | U16: =-VLOOKUP($E$105,'Input - Transmission'!$A:$C,2)*(1+'Input - Transmission'!$C$11)^('AVOID NEW'!$M16-'Input - Transmission'!$C$10)*12*(1000/(365*24))*(1/VLOOKUP('Input - Capacity Factors'!$C$3,'Input - Capacity Factors'!$A:$D,2,FALSE)) -> -14.24642699 | V16: =-VLOOKUP($E$105,'Input - Transmission'!$A:$C,3)*Q16 -> -1.88239439 | X16: 8 | Y16: 2028 | Z16: 35.0177609 | AA16: 2.630126891 | AB16: =IF(VLOOKUP($Y16,'Input - Load and Resource'!$B$13:$C$42,2,FALSE)>=0,0,0) -> 0 | AC16: =IF(VLOOKUP($Y16,'Input - Load and Resource'!$B$13:$C$42,2,FALSE)>=0,0,0) -> 0 | AD16: 37.64788779 | AE16: =VLOOKUP($Y16,'Input - Load and Resource'!$B$13:$L$42,11,FALSE)*R16 -> 0 | AF16: =VLOOKUP($Y16,'Input - Load and Resource'!$B$13:$L$42,11,FALSE)*S16 -> 0 | AG16: 0 | AH16: 37.64788779 | AI16: 2.630126891 | AK16: 8 | AL16: 2028 | AM16: =IF('Input - Capacity Factors'!$C$3="Fueled",'AVOID NEW'!AI16,AH16) -> 37.64788779 | AN16: =IF('Input - Capacity Factors'!$C$3="Fueled",-PMT($D$37,$AK16,NPV($D$37,$AI$9:$AI16)),-PMT($D$37,$AK16,NPV($D$37,$AH$9:$AH16))) -> 28.75567326 | AO16: =IF('Input - Capacity Factors'!$C$3="Fueled",-PMT($D$37,$AK16,NPV($D$37,$AI$10:$AI17)),-PMT($D$37,$AK16,NPV($D$37,$AH$10:$AH17))) -> 35.36519638 | AP16: =IF('Input - Capacity Factors'!$C$3="Fueled",-PMT($D$37,$AK16,NPV($D$37,$AI$11:$AI18)),-PMT($D$37,$AK16,NPV($D$37,$AH$11:$AH18))) -> 42.59330839 | AQ16: =IF('Input - Capacity Factors'!$C$3="Fueled",-PMT($D$37,$AK16,NPV($D$37,$AI$12:$AI19)),-PMT($D$37,$AK16,NPV($D$37,$AH$12:$AH19))) -> 50.3545677 | AR16: =IF('Input - Capacity Factors'!$C$3="Fueled",-PMT($D$37,$AK16,NPV($D$37,$AI$13:$AI20)),-PMT($D$37,$AK16,NPV($D$37,$AH$13:$AH20))) -> 58.56513666 | AS16: =IF('Input - Capacity Factors'!$C$3="Fueled",-PMT($D$37,$AK16,NPV($D$37,$AI$14:$AI21)),-PMT($D$37,$AK16,NPV($D$37,$AH$14:$AH21))) -> 67.08878289
G17: 2027 | H17: 3.884364 | I17: 4.692629 | J17: 33.3176659 | L17: 9 | M17: 2029 | N17: 5.065062 | O17: 35.9619402 | P17: 2.682729429 | Q17: 38.64466963 | R17: 58.08609465 | S17: =$D$39*(1+$D$47)^($M17-$D$43)*(1000/(365*24))/VLOOKUP('Input - Capacity Factors'!$C$3,'Input - Capacity Factors'!$A:$B,2,FALSE) -> 7.639151318 | T17: 65.72524597 | U17: =-VLOOKUP($E$105,'Input - Transmission'!$A:$C,2)*(1+'Input - Transmission'!$C$11)^('AVOID NEW'!$M17-'Input - Transmission'!$C$10)*12*(1000/(365*24))*(1/VLOOKUP('Input - Capacity Factors'!$C$3,'Input - Capacity Factors'!$A:$D,2,FALSE)) -> -14.53135553 | V17: =-VLOOKUP($E$105,'Input - Transmission'!$A:$C,3)*Q17 -> -1.932233481 | X17: 9 | Y17: 2029 | Z17: 35.9619402 | AA17: 2.682729429 | AB17: =IF(VLOOKUP($Y17,'Input - Load and Resource'!$B$13:$C$42,2,FALSE)>=0,0,0) -> 0 | AC17: =IF(VLOOKUP($Y17,'Input - Load and Resource'!$B$13:$C$42,2,FALSE)>=0,0,0) -> 0 | AD17: 38.64466963 | AE17: =VLOOKUP($Y17,'Input - Load and Resource'!$B$13:$L$42,11,FALSE)*R17 -> 45.30715383 | AF17: =VLOOKUP($Y17,'Input - Load and Resource'!$B$13:$L$42,11,FALSE)*S17 -> 5.958538028 | AG17: 51.26569185 | AH17: 89.91036148 | AI17: 53.94842128 | AK17: 9 | AL17: 2029 | AM17: =IF('Input - Capacity Factors'!$C$3="Fueled",'AVOID NEW'!AI17,AH17) -> 89.91036148 | AN17: =IF('Input - Capacity Factors'!$C$3="Fueled",-PMT($D$37,$AK17,NPV($D$37,$AI$9:$AI17)),-PMT($D$37,$AK17,NPV($D$37,$AH$9:$AH17))) -> 33.65701362 | AO17: =IF('Input - Capacity Factors'!$C$3="Fueled",-PMT($D$37,$AK17,NPV($D$37,$AI$10:$AI18)),-PMT($D$37,$AK17,NPV($D$37,$AH$10:$AH18))) -> 39.82443689 | AP17: =IF('Input - Capacity Factors'!$C$3="Fueled",-PMT($D$37,$AK17,NPV($D$37,$AI$11:$AI19)),-PMT($D$37,$AK17,NPV($D$37,$AH$11:$AH19))) -> 46.58852126 | AQ17: =IF('Input - Capacity Factors'!$C$3="Fueled",-PMT($D$37,$AK17,NPV($D$37,$AI$12:$AI20)),-PMT($D$37,$AK17,NPV($D$37,$AH$12:$AH20))) -> 53.89385929 | AR17: =IF('Input - Capacity Factors'!$C$3="Fueled",-PMT($D$37,$AK17,NPV($D$37,$AI$13:$AI21)),-PMT($D$37,$AK17,NPV($D$37,$AH$13:$AH21))) -> 61.63894165 | AS17: =IF('Input - Capacity Factors'!$C$3="Fueled",-PMT($D$37,$AK17,NPV($D$37,$AI$14:$AI22)),-PMT($D$37,$AK17,NPV($D$37,$AH$14:$AH22))) -> 69.6640538
B18: 20-yr Levelized rate | G18: 2028 | H18: 3.986866 | I18: 4.932079 | J18: 35.0177609 | L18: 10 | M18: 2030 | N18: 5.10538 | O18: 36.248198 | P18: 2.736384017 | Q18: 38.98458202 | R18: 58.89929997 | S18: =$D$39*(1+$D$47)^($M18-$D$43)*(1000/(365*24))/VLOOKUP('Input - Capacity Factors'!$C$3,'Input - Capacity Factors'!$A:$B,2,FALSE) -> 7.791934345 | T18: 66.69123432 | U18: =-VLOOKUP($E$105,'Input - Transmission'!$A:$C,2)*(1+'Input - Transmission'!$C$11)^('AVOID NEW'!$M18-'Input - Transmission'!$C$10)*12*(1000/(365*24))*(1/VLOOKUP('Input - Capacity Factors'!$C$3,'Input - Capacity Factors'!$A:$D,2,FALSE)) -> -14.82198264 | V18: =-VLOOKUP($E$105,'Input - Transmission'!$A:$C,3)*Q18 -> -1.949229101 | X18: 10 | Y18: 2030 | Z18: 36.248198 | AA18: 2.736384017 | AB18: =IF(VLOOKUP($Y18,'Input - Load and Resource'!$B$13:$C$42,2,FALSE)>=0,0,0) -> 0 | AC18: =IF(VLOOKUP($Y18,'Input - Load and Resource'!$B$13:$C$42,2,FALSE)>=0,0,0) -> 0 | AD18: 38.98458202 | AE18: =VLOOKUP($Y18,'Input - Load and Resource'!$B$13:$L$42,11,FALSE)*R18 -> 45.94145398 | AF18: =VLOOKUP($Y18,'Input - Load and Resource'!$B$13:$L$42,11,FALSE)*S18 -> 6.077708789 | AG18: 52.01916277 | AH18: 91.00374479 | AI18: 54.75554679 | AK18: 10 | AL18: 2030 | AM18: =IF('Input - Capacity Factors'!$C$3="Fueled",'AVOID NEW'!AI18,AH18) -> 91.00374479 | AN18: =IF('Input - Capacity Factors'!$C$3="Fueled",-PMT($D$37,$AK18,NPV($D$37,$AI$9:$AI18)),-PMT($D$37,$AK18,NPV($D$37,$AH$9:$AH18))) -> 37.61939047 | AO18: =IF('Input - Capacity Factors'!$C$3="Fueled",-PMT($D$37,$AK18,NPV($D$37,$AI$10:$AI19)),-PMT($D$37,$AK18,NPV($D$37,$AH$10:$AH19))) -> 43.46005986 | AP18: =IF('Input - Capacity Factors'!$C$3="Fueled",-PMT($D$37,$AK18,NPV($D$37,$AI$11:$AI20)),-PMT($D$37,$AK18,NPV($D$37,$AH$11:$AH20))) -> 49.89999044 | AQ18: =IF('Input - Capacity Factors'!$C$3="Fueled",-PMT($D$37,$AK18,NPV($D$37,$AI$12:$AI21)),-PMT($D$37,$AK18,NPV($D$37,$AH$12:$AH21))) -> 56.86657544 | AR18: =IF('Input - Capacity Factors'!$C$3="Fueled",-PMT($D$37,$AK18,NPV($D$37,$AI$13:$AI22)),-PMT($D$37,$AK18,NPV($D$37,$AH$13:$AH22))) -> 64.23566219 | AS18: =IF('Input - Capacity Factors'!$C$3="Fueled",-PMT($D$37,$AK18,NPV($D$37,$AI$14:$AI23)),-PMT($D$37,$AK18,NPV($D$37,$AH$14:$AH23))) -> 71.84877856
B19: =TEXT($D$13,"0000")&" on-line date:" -> 2021 on-line date: | D19: =AN28 -> 57.80029078 | G19: 2029 | H19: 3.998923 | I19: 5.065062 | J19: 35.9619402 | L19: 11 | M19: 2031 | N19: 5.192551 | O19: 36.8671121 | P19: 2.791111698 | Q19: 39.6582238 | R19: 59.72389017 | S19: =$D$39*(1+$D$47)^($M19-$D$43)*(1000/(365*24))/VLOOKUP('Input - Capacity Factors'!$C$3,'Input - Capacity Factors'!$A:$B,2,FALSE) -> 7.947773031 | T19: 67.67166321 | U19: =-VLOOKUP($E$105,'Input - Transmission'!$A:$C,2)*(1+'Input - Transmission'!$C$11)^('AVOID NEW'!$M19-'Input - Transmission'!$C$10)*12*(1000/(365*24))*(1/VLOOKUP('Input - Capacity Factors'!$C$3,'Input - Capacity Factors'!$A:$D,2,FALSE)) -> -15.1184223 | V19: =-VLOOKUP($E$105,'Input - Transmission'!$A:$C,3)*Q19 -> -1.98291119 | X19: 11 | Y19: 2031 | Z19: 36.8671121 | AA19: 2.791111698 | AB19: =IF(VLOOKUP($Y19,'Input - Load and Resource'!$B$13:$C$42,2,FALSE)>=0,0,0) -> 0 | AC19: =IF(VLOOKUP($Y19,'Input - Load and Resource'!$B$13:$C$42,2,FALSE)>=0,0,0) -> 0 | AD19: 39.6582238 | AE19: =VLOOKUP($Y19,'Input - Load and Resource'!$B$13:$L$42,11,FALSE)*R19 -> 46.58463434 | AF19: =VLOOKUP($Y19,'Input - Load and Resource'!$B$13:$L$42,11,FALSE)*S19 -> 6.199262965 | AG19: 52.7838973 | AH19: 92.4421211 | AI19: 55.575009 | AK19: 11 | AL19: 2031 | AM19: =IF('Input - Capacity Factors'!$C$3="Fueled",'AVOID NEW'!AI19,AH19) -> 92.4421211 | AN19: =IF('Input - Capacity Factors'!$C$3="Fueled",-PMT($D$37,$AK19,NPV($D$37,$AI$9:$AI19)),-PMT($D$37,$AK19,NPV($D$37,$AH$9:$AH19))) -> 40.91645467 | AO19: =IF('Input - Capacity Factors'!$C$3="Fueled",-PMT($D$37,$AK19,NPV($D$37,$AI$10:$AI20)),-PMT($D$37,$AK19,NPV($D$37,$AH$10:$AH20))) -> 46.53051471 | AP19: =IF('Input - Capacity Factors'!$C$3="Fueled",-PMT($D$37,$AK19,NPV($D$37,$AI$11:$AI21)),-PMT($D$37,$AK19,NPV($D$37,$AH$11:$AH21))) -> 52.72764014 | AQ19: =IF('Input - Capacity Factors'!$C$3="Fueled",-PMT($D$37,$AK19,NPV($D$37,$AI$12:$AI22)),-PMT($D$37,$AK19,NPV($D$37,$AH$12:$AH22))) -> 59.41377718 | AR19: =IF('Input - Capacity Factors'!$C$3="Fueled",-PMT($D$37,$AK19,NPV($D$37,$AI$13:$AI23)),-PMT($D$37,$AK19,NPV($D$37,$AH$13:$AH23))) -> 66.46371586 | AS19: =IF('Input - Capacity Factors'!$C$3="Fueled",-PMT($D$37,$AK19,NPV($D$37,$AI$14:$AI24)),-PMT($D$37,$AK19,NPV($D$37,$AH$14:$AH24))) -> 73.74693831
B20: =TEXT($D$13+1,"0000")&" on-line date:" -> 2022 on-line date: | D20: =AO28 -> 62.5182468 | G20: 2030 | H20: 3.938907 | I20: 5.10538 | J20: 36.248198 | L20: 12 | M20: 2032 | N20: 5.367294 | O20: 38.1077874 | P20: 2.846933932 | Q20: 40.95472133 | R20: 60.56002464 | S20: =$D$39*(1+$D$47)^($M20-$D$43)*(1000/(365*24))/VLOOKUP('Input - Capacity Factors'!$C$3,'Input - Capacity Factors'!$A:$B,2,FALSE) -> 8.106728492 | T20: 68.66675313 | U20: =-VLOOKUP($E$105,'Input - Transmission'!$A:$C,2)*(1+'Input - Transmission'!$C$11)^('AVOID NEW'!$M20-'Input - Transmission'!$C$10)*12*(1000/(365*24))*(1/VLOOKUP('Input - Capacity Factors'!$C$3,'Input - Capacity Factors'!$A:$D,2,FALSE)) -> -15.42079074 | V20: =-VLOOKUP($E$105,'Input - Transmission'!$A:$C,3)*Q20 -> -2.047736067 | X20: 12 | Y20: 2032 | Z20: 38.1077874 | AA20: 2.846933932 | AB20: =IF(VLOOKUP($Y20,'Input - Load and Resource'!$B$13:$C$42,2,FALSE)>=0,0,0) -> 0 | AC20: =IF(VLOOKUP($Y20,'Input - Load and Resource'!$B$13:$C$42,2,FALSE)>=0,0,0) -> 0 | AD20: 40.95472133 | AE20: =VLOOKUP($Y20,'Input - Load and Resource'!$B$13:$L$42,11,FALSE)*R20 -> 47.23681922 | AF20: =VLOOKUP($Y20,'Input - Load and Resource'!$B$13:$L$42,11,FALSE)*S20 -> 6.323248224 | AG20: 53.56006744 | AH20: 94.51478877 | AI20: 56.40700137 | AK20: 12 | AL20: 2032 | AM20: =IF('Input - Capacity Factors'!$C$3="Fueled",'AVOID NEW'!AI20,AH20) -> 94.51478877 | AN20: =IF('Input - Capacity Factors'!$C$3="Fueled",-PMT($D$37,$AK20,NPV($D$37,$AI$9:$AI20)),-PMT($D$37,$AK20,NPV($D$37,$AH$9:$AH20))) -> 43.74417115 | AO20: =IF('Input - Capacity Factors'!$C$3="Fueled",-PMT($D$37,$AK20,NPV($D$37,$AI$10:$AI21)),-PMT($D$37,$AK20,NPV($D$37,$AH$10:$AH21))) -> 49.18880401 | AP20: =IF('Input - Capacity Factors'!$C$3="Fueled",-PMT($D$37,$AK20,NPV($D$37,$AI$11:$AI22)),-PMT($D$37,$AK20,NPV($D$37,$AH$11:$AH22))) -> 55.18050441 | AQ20: =IF('Input - Capacity Factors'!$C$3="Fueled",-PMT($D$37,$AK20,NPV($D$37,$AI$12:$AI23)),-PMT($D$37,$AK20,NPV($D$37,$AH$12:$AH23))) -> 61.62270313 | AR20: =IF('Input - Capacity Factors'!$C$3="Fueled",-PMT($D$37,$AK20,NPV($D$37,$AI$13:$AI24)),-PMT($D$37,$AK20,NPV($D$37,$AH$13:$AH24))) -> 68.41295793 | AS20: =IF('Input - Capacity Factors'!$C$3="Fueled",-PMT($D$37,$AK20,NPV($D$37,$AI$14:$AI25)),-PMT($D$37,$AK20,NPV($D$37,$AH$14:$AH25))) -> 75.46937847
B21: =TEXT($D$13+2,"0000")&" on-line date:" -> 2023 on-line date: | D21: =AP28 -> 67.65758785 | G21: 2031 | H21: 3.917578 | I21: 5.192551 | J21: 36.8671121 | L21: 13 | M21: 2033 | N21: 5.586718 | O21: 39.6656978 | P21: 2.90387261 | Q21: 42.56957041 | R21: 61.40786498 | S21: =$D$39*(1+$D$47)^($M21-$D$43)*(1000/(365*24))/VLOOKUP('Input - Capacity Factors'!$C$3,'Input - Capacity Factors'!$A:$B,2,FALSE) -> 8.268863062 | T21: 69.67672804 | U21: =-VLOOKUP($E$105,'Input - Transmission'!$A:$C,2)*(1+'Input - Transmission'!$C$11)^('AVOID NEW'!$M21-'Input - Transmission'!$C$10)*12*(1000/(365*24))*(1/VLOOKUP('Input - Capacity Factors'!$C$3,'Input - Capacity Factors'!$A:$D,2,FALSE)) -> -15.72920656 | V21: =-VLOOKUP($E$105,'Input - Transmission'!$A:$C,3)*Q21 -> -2.128478521 | X21: 13 | Y21: 2033 | Z21: 39.6656978 | AA21: 2.90387261 | AB21: =IF(VLOOKUP($Y21,'Input - Load and Resource'!$B$13:$C$42,2,FALSE)>=0,0,0) -> 0 | AC21: =IF(VLOOKUP($Y21,'Input - Load and Resource'!$B$13:$C$42,2,FALSE)>=0,0,0) -> 0 | AD21: 42.56957041 | AE21: =VLOOKUP($Y21,'Input - Load and Resource'!$B$13:$L$42,11,FALSE)*R21 -> 47.89813469 | AF21: =VLOOKUP($Y21,'Input - Load and Resource'!$B$13:$L$42,11,FALSE)*S21 -> 6.449713188 | AG21: 54.34784787 | AH21: 96.91741828 | AI21: 57.25172048 | AK21: 13 | AL21: 2033 | AM21: =IF('Input - Capacity Factors'!$C$3="Fueled",'AVOID NEW'!AI21,AH21) -> 96.91741828 | AN21: =IF('Input - Capacity Factors'!$C$3="Fueled",-PMT($D$37,$AK21,NPV($D$37,$AI$9:$AI21)),-PMT($D$37,$AK21,NPV($D$37,$AH$9:$AH21))) -> 46.22112251 | AO21: =IF('Input - Capacity Factors'!$C$3="Fueled",-PMT($D$37,$AK21,NPV($D$37,$AI$10:$AI22)),-PMT($D$37,$AK21,NPV($D$37,$AH$10:$AH22))) -> 51.51942693 | AP21: =IF('Input - Capacity Factors'!$C$3="Fueled",-PMT($D$37,$AK21,NPV($D$37,$AI$11:$AI23)),-PMT($D$37,$AK21,NPV($D$37,$AH$11:$AH23))) -> 57.3280889 | AQ21: =IF('Input - Capacity Factors'!$C$3="Fueled",-PMT($D$37,$AK21,NPV($D$37,$AI$12:$AI24)),-PMT($D$37,$AK21,NPV($D$37,$AH$12:$AH24))) -> 63.56930798 | AR21: =IF('Input - Capacity Factors'!$C$3="Fueled",-PMT($D$37,$AK21,NPV($D$37,$AI$13:$AI25)),-PMT($D$37,$AK21,NPV($D$37,$AH$13:$AH25))) -> 70.18227011 | AS21: =IF('Input - Capacity Factors'!$C$3="Fueled",-PMT($D$37,$AK21,NPV($D$37,$AI$14:$AI26)),-PMT($D$37,$AK21,NPV($D$37,$AH$14:$AH26))) -> 77.02998053
B22: =TEXT($D$13+3,"0000")&" on-line date:" -> 2024 on-line date: | D22: =AQ28 -> 73.15961678 | G22: 2032 | H22: 3.961569 | I22: 5.367294 | J22: 38.1077874 | L22: 14 | M22: 2034 | N22: 5.790341 | O22: 41.1114211 | P22: 2.961950062 | Q22: 44.07337116 | R22: 62.26757509 | S22: =$D$39*(1+$D$47)^($M22-$D$43)*(1000/(365*24))/VLOOKUP('Input - Capacity Factors'!$C$3,'Input - Capacity Factors'!$A:$B,2,FALSE) -> 8.434240323 | T22: 70.70181541 | U22: =-VLOOKUP($E$105,'Input - Transmission'!$A:$C,2)*(1+'Input - Transmission'!$C$11)^('AVOID NEW'!$M22-'Input - Transmission'!$C$10)*12*(1000/(365*24))*(1/VLOOKUP('Input - Capacity Factors'!$C$3,'Input - Capacity Factors'!$A:$D,2,FALSE)) -> -16.04379069 | V22: =-VLOOKUP($E$105,'Input - Transmission'!$A:$C,3)*Q22 -> -2.203668558 | X22: 14 | Y22: 2034 | Z22: 41.1114211 | AA22: 2.961950062 | AB22: =IF(VLOOKUP($Y22,'Input - Load and Resource'!$B$13:$C$42,2,FALSE)>=0,0,0) -> 0 | AC22: =IF(VLOOKUP($Y22,'Input - Load and Resource'!$B$13:$C$42,2,FALSE)>=0,0,0) -> 0 | AD22: 44.07337116 | AE22: =VLOOKUP($Y22,'Input - Load and Resource'!$B$13:$L$42,11,FALSE)*R22 -> 48.56870857 | AF22: =VLOOKUP($Y22,'Input - Load and Resource'!$B$13:$L$42,11,FALSE)*S22 -> 6.578707452 | AG22: 55.14741602 | AH22: 99.22078719 | AI22: 58.10936609 | AK22: 14 | AL22: 2034 | AM22: =IF('Input - Capacity Factors'!$C$3="Fueled",'AVOID NEW'!AI22,AH22) -> 99.22078719 | AN22: =IF('Input - Capacity Factors'!$C$3="Fueled",-PMT($D$37,$AK22,NPV($D$37,$AI$9:$AI22)),-PMT($D$37,$AK22,NPV($D$37,$AH$9:$AH22))) -> 48.41297569 | AO22: =IF('Input - Capacity Factors'!$C$3="Fueled",-PMT($D$37,$AK22,NPV($D$37,$AI$10:$AI23)),-PMT($D$37,$AK22,NPV($D$37,$AH$10:$AH23))) -> 53.57745508 | AP22: =IF('Input - Capacity Factors'!$C$3="Fueled",-PMT($D$37,$AK22,NPV($D$37,$AI$11:$AI24)),-PMT($D$37,$AK22,NPV($D$37,$AH$11:$AH24))) -> 59.23388831 | AQ22: =IF('Input - Capacity Factors'!$C$3="Fueled",-PMT($D$37,$AK22,NPV($D$37,$AI$12:$AI25)),-PMT($D$37,$AK22,NPV($D$37,$AH$12:$AH25))) -> 65.34041327 | AR22: =IF('Input - Capacity Factors'!$C$3="Fueled",-PMT($D$37,$AK22,NPV($D$37,$AI$13:$AI26)),-PMT($D$37,$AK22,NPV($D$37,$AH$13:$AH26))) -> 71.78642267 | AS22: =IF('Input - Capacity Factors'!$C$3="Fueled",-PMT($D$37,$AK22,NPV($D$37,$AI$14:$AI27)),-PMT($D$37,$AK22,NPV($D$37,$AH$14:$AH27))) -> 78.44007682
B23: =TEXT($D$13+4,"0000")&" on-line date:" -> 2025 on-line date: | D23: =AR28 -> 78.95271526 | G23: 2033 | H23: 4.034191 | I23: 5.586718 | J23: 39.6656978 | L23: 15 | M23: 2035 | N23: 5.958172 | O23: 42.3030212 | P23: 3.021189064 | Q23: 45.32421026 | R23: 63.13932114 | S23: =$D$39*(1+$D$47)^($M23-$D$43)*(1000/(365*24))/VLOOKUP('Input - Capacity Factors'!$C$3,'Input - Capacity Factors'!$A:$B,2,FALSE) -> 8.60292513 | T23: 71.74224627 | U23: =-VLOOKUP($E$105,'Input - Transmission'!$A:$C,2)*(1+'Input - Transmission'!$C$11)^('AVOID NEW'!$M23-'Input - Transmission'!$C$10)*12*(1000/(365*24))*(1/VLOOKUP('Input - Capacity Factors'!$C$3,'Input - Capacity Factors'!$A:$D,2,FALSE)) -> -16.3646665 | V23: =-VLOOKUP($E$105,'Input - Transmission'!$A:$C,3)*Q23 -> -2.266210513 | X23: 15 | Y23: 2035 | Z23: 42.3030212 | AA23: 3.021189064 | AB23: =IF(VLOOKUP($Y23,'Input - Load and Resource'!$B$13:$C$42,2,FALSE)>=0,0,0) -> 0 | AC23: =IF(VLOOKUP($Y23,'Input - Load and Resource'!$B$13:$C$42,2,FALSE)>=0,0,0) -> 0 | AD23: 45.32421026 | AE23: =VLOOKUP($Y23,'Input - Load and Resource'!$B$13:$L$42,11,FALSE)*R23 -> 49.24867049 | AF23: =VLOOKUP($Y23,'Input - Load and Resource'!$B$13:$L$42,11,FALSE)*S23 -> 6.710281601 | AG23: 55.95895209 | AH23: 101.2831624 | AI23: 58.98014116 | AK23: 15 | AL23: 2035 | AM23: =IF('Input - Capacity Factors'!$C$3="Fueled",'AVOID NEW'!AI23,AH23) -> 101.2831624 | AN23: =IF('Input - Capacity Factors'!$C$3="Fueled",-PMT($D$37,$AK23,NPV($D$37,$AI$9:$AI23)),-PMT($D$37,$AK23,NPV($D$37,$AH$9:$AH23))) -> 50.36319361 | AO23: =IF('Input - Capacity Factors'!$C$3="Fueled",-PMT($D$37,$AK23,NPV($D$37,$AI$10:$AI24)),-PMT($D$37,$AK23,NPV($D$37,$AH$10:$AH24))) -> 55.41565653 | AP23: =IF('Input - Capacity Factors'!$C$3="Fueled",-PMT($D$37,$AK23,NPV($D$37,$AI$11:$AI25)),-PMT($D$37,$AK23,NPV($D$37,$AH$11:$AH25))) -> 60.9735221 | AQ23: =IF('Input - Capacity Factors'!$C$3="Fueled",-PMT($D$37,$AK23,NPV($D$37,$AI$12:$AI26)),-PMT($D$37,$AK23,NPV($D$37,$AH$12:$AH26))) -> 66.94981672 | AR23: =IF('Input - Capacity Factors'!$C$3="Fueled",-PMT($D$37,$AK23,NPV($D$37,$AI$13:$AI27)),-PMT($D$37,$AK23,NPV($D$37,$AH$13:$AH27))) -> 73.23755776 | AS23: =IF('Input - Capacity Factors'!$C$3="Fueled",-PMT($D$37,$AK23,NPV($D$37,$AI$14:$AI28)),-PMT($D$37,$AK23,NPV($D$37,$AH$14:$AH28))) -> 79.72730817
B24: =TEXT($D$13+5,"0000")&" on-line date:" -> 2026 on-line date: | D24: =AS28 -> 84.93231623 | G24: 2034 | H24: 4.092314 | I24: 5.790341 | J24: 41.1114211 | L24: 16 | M24: 2036 | N24: 6.133329 | O24: 43.5466359 | P24: 3.081612845 | Q24: 46.62824874 | R24: 64.02327164 | S24: =$D$39*(1+$D$47)^($M24-$D$43)*(1000/(365*24))/VLOOKUP('Input - Capacity Factors'!$C$3,'Input - Capacity Factors'!$A:$B,2,FALSE) -> 8.774983632 | T24: 72.79825527 | U24: =-VLOOKUP($E$105,'Input - Transmission'!$A:$C,2)*(1+'Input - Transmission'!$C$11)^('AVOID NEW'!$M24-'Input - Transmission'!$C$10)*12*(1000/(365*24))*(1/VLOOKUP('Input - Capacity Factors'!$C$3,'Input - Capacity Factors'!$A:$D,2,FALSE)) -> -16.69195983 | V24: =-VLOOKUP($E$105,'Input - Transmission'!$A:$C,3)*Q24 -> -2.331412437 | X24: 16 | Y24: 2036 | Z24: 43.5466359 | AA24: 3.081612845 | AB24: =IF(VLOOKUP($Y24,'Input - Load and Resource'!$B$13:$C$42,2,FALSE)>=0,0,0) -> 0 | AC24: =IF(VLOOKUP($Y24,'Input - Load and Resource'!$B$13:$C$42,2,FALSE)>=0,0,0) -> 0 | AD24: 46.62824874 | AE24: =VLOOKUP($Y24,'Input - Load and Resource'!$B$13:$L$42,11,FALSE)*R24 -> 49.93815188 | AF24: =VLOOKUP($Y24,'Input - Load and Resource'!$B$13:$L$42,11,FALSE)*S24 -> 6.844487233 | AG24: 56.78263911 | AH24: 103.4108879 | AI24: 59.86425196 | AK24: 16 | AL24: 2036 | AM24: =IF('Input - Capacity Factors'!$C$3="Fueled",'AVOID NEW'!AI24,AH24) -> 103.4108879 | AN24: =IF('Input - Capacity Factors'!$C$3="Fueled",-PMT($D$37,$AK24,NPV($D$37,$AI$9:$AI24)),-PMT($D$37,$AK24,NPV($D$37,$AH$9:$AH24))) -> 52.11548927 | AO24: =IF('Input - Capacity Factors'!$C$3="Fueled",-PMT($D$37,$AK24,NPV($D$37,$AI$10:$AI25)),-PMT($D$37,$AK24,NPV($D$37,$AH$10:$AH25))) -> 57.09963486 | AP24: =IF('Input - Capacity Factors'!$C$3="Fueled",-PMT($D$37,$AK24,NPV($D$37,$AI$11:$AI26)),-PMT($D$37,$AK24,NPV($D$37,$AH$11:$AH26))) -> 62.55900193 | AQ24: =IF('Input - Capacity Factors'!$C$3="Fueled",-PMT($D$37,$AK24,NPV($D$37,$AI$12:$AI27)),-PMT($D$37,$AK24,NPV($D$37,$AH$12:$AH27))) -> 68.40908209 | AR24: =IF('Input - Capacity Factors'!$C$3="Fueled",-PMT($D$37,$AK24,NPV($D$37,$AI$13:$AI28)),-PMT($D$37,$AK24,NPV($D$37,$AH$13:$AH28))) -> 74.56213334 | AS24: =IF('Input - Capacity Factors'!$C$3="Fueled",-PMT($D$37,$AK24,NPV($D$37,$AI$14:$AI29)),-PMT($D$37,$AK24,NPV($D$37,$AH$14:$AH29))) -> 80.9087013
G25: 2035 | H25: 4.121181 | I25: 5.958172 | J25: 42.3030212 | L25: 17 | M25: 2037 | N25: 6.427219 | O25: 45.6332549 | P25: 3.143245102 | Q25: 48.7765 | R25: 64.91959744 | S25: =$D$39*(1+$D$47)^($M25-$D$43)*(1000/(365*24))/VLOOKUP('Input - Capacity Factors'!$C$3,'Input - Capacity Factors'!$A:$B,2,FALSE) -> 8.950483305 | T25: 73.87008075 | U25: =-VLOOKUP($E$105,'Input - Transmission'!$A:$C,2)*(1+'Input - Transmission'!$C$11)^('AVOID NEW'!$M25-'Input - Transmission'!$C$10)*12*(1000/(365*24))*(1/VLOOKUP('Input - Capacity Factors'!$C$3,'Input - Capacity Factors'!$A:$D,2,FALSE)) -> -17.02579903 | V25: =-VLOOKUP($E$105,'Input - Transmission'!$A:$C,3)*Q25 -> -2.438825 | X25: 17 | Y25: 2037 | Z25: 45.6332549 | AA25: 3.143245102 | AB25: =IF(VLOOKUP($Y25,'Input - Load and Resource'!$B$13:$C$42,2,FALSE)>=0,0,0) -> 0 | AC25: =IF(VLOOKUP($Y25,'Input - Load and Resource'!$B$13:$C$42,2,FALSE)>=0,0,0) -> 0 | AD25: 48.7765 | AE25: =VLOOKUP($Y25,'Input - Load and Resource'!$B$13:$L$42,11,FALSE)*R25 -> 50.637286 | AF25: =VLOOKUP($Y25,'Input - Load and Resource'!$B$13:$L$42,11,FALSE)*S25 -> 6.981376978 | AG25: 57.61866298 | AH25: 106.395163 | AI25: 60.76190808 | AK25: 17 | AL25: 2037 | AM25: =IF('Input - Capacity Factors'!$C$3="Fueled",'AVOID NEW'!AI25,AH25) -> 106.395163 | AN25: =IF('Input - Capacity Factors'!$C$3="Fueled",-PMT($D$37,$AK25,NPV($D$37,$AI$9:$AI25)),-PMT($D$37,$AK25,NPV($D$37,$AH$9:$AH25))) -> 53.72668506 | AO25: =IF('Input - Capacity Factors'!$C$3="Fueled",-PMT($D$37,$AK25,NPV($D$37,$AI$10:$AI26)),-PMT($D$37,$AK25,NPV($D$37,$AH$10:$AH26))) -> 58.63934899 | AP25: =IF('Input - Capacity Factors'!$C$3="Fueled",-PMT($D$37,$AK25,NPV($D$37,$AI$11:$AI27)),-PMT($D$37,$AK25,NPV($D$37,$AH$11:$AH27))) -> 64.00064282 | AQ25: =IF('Input - Capacity Factors'!$C$3="Fueled",-PMT($D$37,$AK25,NPV($D$37,$AI$12:$AI28)),-PMT($D$37,$AK25,NPV($D$37,$AH$12:$AH28))) -> 69.74268086 | AR25: =IF('Input - Capacity Factors'!$C$3="Fueled",-PMT($D$37,$AK25,NPV($D$37,$AI$13:$AI29)),-PMT($D$37,$AK25,NPV($D$37,$AH$13:$AH29))) -> 75.77706155 | AS25: =IF('Input - Capacity Factors'!$C$3="Fueled",-PMT($D$37,$AK25,NPV($D$37,$AI$14:$AI30)),-PMT($D$37,$AK25,NPV($D$37,$AH$14:$AH30))) -> 82.00537811
G26: 2036 | H26: 4.150995 | I26: 6.133329 | J26: 43.5466359 | L26: 18 | M26: 2038 | N26: 6.661667 | O26: 47.2978357 | P26: 3.206110004 | Q26: 50.5039457 | R26: 65.82847181 | S26: =$D$39*(1+$D$47)^($M26-$D$43)*(1000/(365*24))/VLOOKUP('Input - Capacity Factors'!$C$3,'Input - Capacity Factors'!$A:$B,2,FALSE) -> 9.129492971 | T26: 74.95796478 | U26: =-VLOOKUP($E$105,'Input - Transmission'!$A:$C,2)*(1+'Input - Transmission'!$C$11)^('AVOID NEW'!$M26-'Input - Transmission'!$C$10)*12*(1000/(365*24))*(1/VLOOKUP('Input - Capacity Factors'!$C$3,'Input - Capacity Factors'!$A:$D,2,FALSE)) -> -17.36631501 | V26: =-VLOOKUP($E$105,'Input - Transmission'!$A:$C,3)*Q26 -> -2.525197285 | X26: 18 | Y26: 2038 | Z26: 47.2978357 | AA26: 3.206110004 | AB26: =IF(VLOOKUP($Y26,'Input - Load and Resource'!$B$13:$C$42,2,FALSE)>=0,0,0) -> 0 | AC26: =IF(VLOOKUP($Y26,'Input - Load and Resource'!$B$13:$C$42,2,FALSE)>=0,0,0) -> 0 | AD26: 50.5039457 | AE26: =VLOOKUP($Y26,'Input - Load and Resource'!$B$13:$L$42,11,FALSE)*R26 -> 51.34620801 | AF26: =VLOOKUP($Y26,'Input - Load and Resource'!$B$13:$L$42,11,FALSE)*S26 -> 7.121004517 | AG26: 58.46721253 | AH26: 108.9711582 | AI26: 61.67332253 | AK26: 18 | AL26: 2038 | AM26: =IF('Input - Capacity Factors'!$C$3="Fueled",'AVOID NEW'!AI26,AH26) -> 108.9711582 | AN26: =IF('Input - Capacity Factors'!$C$3="Fueled",-PMT($D$37,$AK26,NPV($D$37,$AI$9:$AI26)),-PMT($D$37,$AK26,NPV($D$37,$AH$9:$AH26))) -> 55.20470123 | AO26: =IF('Input - Capacity Factors'!$C$3="Fueled",-PMT($D$37,$AK26,NPV($D$37,$AI$10:$AI27)),-PMT($D$37,$AK26,NPV($D$37,$AH$10:$AH27))) -> 60.04359629 | AP26: =IF('Input - Capacity Factors'!$C$3="Fueled",-PMT($D$37,$AK26,NPV($D$37,$AI$11:$AI28)),-PMT($D$37,$AK26,NPV($D$37,$AH$11:$AH28))) -> 65.32058658 | AQ26: =IF('Input - Capacity Factors'!$C$3="Fueled",-PMT($D$37,$AK26,NPV($D$37,$AI$12:$AI29)),-PMT($D$37,$AK26,NPV($D$37,$AH$12:$AH29))) -> 70.9666607 | AR26: =IF('Input - Capacity Factors'!$C$3="Fueled",-PMT($D$37,$AK26,NPV($D$37,$AI$13:$AI30)),-PMT($D$37,$AK26,NPV($D$37,$AH$13:$AH30))) -> 76.90281127 | AS26: =IF('Input - Capacity Factors'!$C$3="Fueled",-PMT($D$37,$AK26,NPV($D$37,$AI$14:$AI31)),-PMT($D$37,$AK26,NPV($D$37,$AH$14:$AH31))) -> 83.03443431
B27: INPUT | C27: DATA | D27: =$E$105 -> PCP | G27: 2037 | H27: 4.255341 | I27: 6.427219 | J27: 45.6332549 | L27: 19 | M27: 2039 | N27: 6.834904 | O27: 48.5278184 | P27: 3.270232204 | Q27: 51.7980506 | R27: 66.75007041 | S27: =$D$39*(1+$D$47)^($M27-$D$43)*(1000/(365*24))/VLOOKUP('Input - Capacity Factors'!$C$3,'Input - Capacity Factors'!$A:$B,2,FALSE) -> 9.31208283 | T27: 76.06215324 | U27: =-VLOOKUP($E$105,'Input - Transmission'!$A:$C,2)*(1+'Input - Transmission'!$C$11)^('AVOID NEW'!$M27-'Input - Transmission'!$C$10)*12*(1000/(365*24))*(1/VLOOKUP('Input - Capacity Factors'!$C$3,'Input - Capacity Factors'!$A:$D,2,FALSE)) -> -17.71364131 | V27: =-VLOOKUP($E$105,'Input - Transmission'!$A:$C,3)*Q27 -> -2.58990253 | X27: 19 | Y27: 2039 | Z27: 48.5278184 | AA27: 3.270232204 | AB27: =IF(VLOOKUP($Y27,'Input - Load and Resource'!$B$13:$C$42,2,FALSE)>=0,0,0) -> 0 | AC27: =IF(VLOOKUP($Y27,'Input - Load and Resource'!$B$13:$C$42,2,FALSE)>=0,0,0) -> 0 | AD27: 51.7980506 | AE27: =VLOOKUP($Y27,'Input - Load and Resource'!$B$13:$L$42,11,FALSE)*R27 -> 52.06505492 | AF27: =VLOOKUP($Y27,'Input - Load and Resource'!$B$13:$L$42,11,FALSE)*S27 -> 7.263424608 | AG27: 59.32847953 | AH27: 111.1265301 | AI27: 62.59871173 | AK27: 19 | AL27: 2039 | AM27: =IF('Input - Capacity Factors'!$C$3="Fueled",'AVOID NEW'!AI27,AH27) -> 111.1265301 | AN27: =IF('Input - Capacity Factors'!$C$3="Fueled",-PMT($D$37,$AK27,NPV($D$37,$AI$9:$AI27)),-PMT($D$37,$AK27,NPV($D$37,$AH$9:$AH27))) -> 56.55677088 | AO27: =IF('Input - Capacity Factors'!$C$3="Fueled",-PMT($D$37,$AK27,NPV($D$37,$AI$10:$AI28)),-PMT($D$37,$AK27,NPV($D$37,$AH$10:$AH28))) -> 61.33211077 | AP27: =IF('Input - Capacity Factors'!$C$3="Fueled",-PMT($D$37,$AK27,NPV($D$37,$AI$11:$AI29)),-PMT($D$37,$AK27,NPV($D$37,$AH$11:$AH29))) -> 66.53362172 | AQ27: =IF('Input - Capacity Factors'!$C$3="Fueled",-PMT($D$37,$AK27,NPV($D$37,$AI$12:$AI30)),-PMT($D$37,$AK27,NPV($D$37,$AH$12:$AH30))) -> 72.10031306 | AR27: =IF('Input - Capacity Factors'!$C$3="Fueled",-PMT($D$37,$AK27,NPV($D$37,$AI$13:$AI31)),-PMT($D$37,$AK27,NPV($D$37,$AH$13:$AH31))) -> 77.95614502 | AS27: =IF('Input - Capacity Factors'!$C$3="Fueled",-PMT($D$37,$AK27,NPV($D$37,$AI$14:$AI32)),-PMT($D$37,$AK27,NPV($D$37,$AH$14:$AH32))) -> 84.01184366
B28: DATA | C28: SOURCE | D28: DATA | G28: 2038 | H28: 4.314021 | I28: 6.661667 | J28: 47.2978357 | L28: 20 | M28: 2040 | N28: 7.01387 | O28: 49.798477 | P28: 3.335636848 | Q28: 53.13411385 | R28: 67.6845714 | S28: =$D$39*(1+$D$47)^($M28-$D$43)*(1000/(365*24))/VLOOKUP('Input - Capacity Factors'!$C$3,'Input - Capacity Factors'!$A:$B,2,FALSE) -> 9.498324487 | T28: 77.18289588 | U28: =-VLOOKUP($E$105,'Input - Transmission'!$A:$C,2)*(1+'Input - Transmission'!$C$11)^('AVOID NEW'!$M28-'Input - Transmission'!$C$10)*12*(1000/(365*24))*(1/VLOOKUP('Input - Capacity Factors'!$C$3,'Input - Capacity Factors'!$A:$D,2,FALSE)) -> -18.06791414 | V28: =-VLOOKUP($E$105,'Input - Transmission'!$A:$C,3)*Q28 -> -2.656705692 | X28: 20 | Y28: 2040 | Z28: 49.798477 | AA28: 3.335636848 | AB28: =IF(VLOOKUP($Y28,'Input - Load and Resource'!$B$13:$C$42,2,FALSE)>=0,0,0) -> 0 | AC28: =IF(VLOOKUP($Y28,'Input - Load and Resource'!$B$13:$C$42,2,FALSE)>=0,0,0) -> 0 | AD28: 53.13411385 | AE28: =VLOOKUP($Y28,'Input - Load and Resource'!$B$13:$L$42,11,FALSE)*R28 -> 52.79396569 | AF28: =VLOOKUP($Y28,'Input - Load and Resource'!$B$13:$L$42,11,FALSE)*S28 -> 7.4086931 | AG28: 60.20265879 | AH28: 113.3367726 | AI28: 63.53829564 | AK28: 20 | AL28: 2040 | AM28: =IF('Input - Capacity Factors'!$C$3="Fueled",'AVOID NEW'!AI28,AH28) -> 113.3367726 | AN28: =IF('Input - Capacity Factors'!$C$3="Fueled",-PMT($D$37,$AK28,NPV($D$37,$AI$9:$AI28)),-PMT($D$37,$AK28,NPV($D$37,$AH$9:$AH28))) -> 57.80029078 | AO28: =IF('Input - Capacity Factors'!$C$3="Fueled",-PMT($D$37,$AK28,NPV($D$37,$AI$10:$AI29)),-PMT($D$37,$AK28,NPV($D$37,$AH$10:$AH29))) -> 62.5182468 | AP28: =IF('Input - Capacity Factors'!$C$3="Fueled",-PMT($D$37,$AK28,NPV($D$37,$AI$11:$AI30)),-PMT($D$37,$AK28,NPV($D$37,$AH$11:$AH30))) -> 67.65758785 | AQ28: =IF('Input - Capacity Factors'!$C$3="Fueled",-PMT($D$37,$AK28,NPV($D$37,$AI$12:$AI31)),-PMT($D$37,$AK28,NPV($D$37,$AH$12:$AH31))) -> 73.15961678 | AR28: =IF('Input - Capacity Factors'!$C$3="Fueled",-PMT($D$37,$AK28,NPV($D$37,$AI$13:$AI32)),-PMT($D$37,$AK28,NPV($D$37,$AH$13:$AH32))) -> 78.95271526 | AS28: =IF('Input - Capacity Factors'!$C$3="Fueled",-PMT($D$37,$AK28,NPV($D$37,$AI$14:$AI33)),-PMT($D$37,$AK28,NPV($D$37,$AH$14:$AH33))) -> 84.93231623
C29: N/A | G29: 2039 | H29: 4.32931 | I29: 6.834904 | J29: 48.5278184 | L29: 21 | M29: 2041 | N29: 7.183046 | O29: 50.9996266 | P29: 3.402349585 | Q29: =P29+O29 -> 54.40197618 | R29: 68.6321554 | S29: =$D$39*(1+$D$47)^($M29-$D$43)*(1000/(365*24))/VLOOKUP('Input - Capacity Factors'!$C$3,'Input - Capacity Factors'!$A:$B,2,FALSE) -> 9.688290977 | T29: 78.32044637 | U29: =-VLOOKUP($E$105,'Input - Transmission'!$A:$C,2)*(1+'Input - Transmission'!$C$11)^('AVOID NEW'!$M29-'Input - Transmission'!$C$10)*12*(1000/(365*24))*(1/VLOOKUP('Input - Capacity Factors'!$C$3,'Input - Capacity Factors'!$A:$D,2,FALSE)) -> -18.42927242 | V29: =-VLOOKUP($E$105,'Input - Transmission'!$A:$C,3)*Q29 -> -2.720098809 | X29: 21 | Y29: 2041 | Z29: 50.9996266 | AA29: 3.402349585 | AB29: =IF(VLOOKUP($Y29,'Input - Load and Resource'!$B$13:$C$42,2,FALSE)>=0,0,0) -> 0 | AC29: =IF(VLOOKUP($Y29,'Input - Load and Resource'!$B$13:$C$42,2,FALSE)>=0,0,0) -> 0 | AD29: 54.40197618 | AE29: =VLOOKUP($Y29,'Input - Load and Resource'!$B$13:$L$42,11,FALSE)*R29 -> 53.53308121 | AF29: =VLOOKUP($Y29,'Input - Load and Resource'!$B$13:$L$42,11,FALSE)*S29 -> 7.556866962 | AG29: 61.08994817 | AH29: 115.4919244 | AI29: 64.49229776 | AK29: 21 | AL29: 2041 | AM29: =IF('Input - Capacity Factors'!$C$3="Fueled",'AVOID NEW'!AI29,AH29) -> 115.4919244 | AN29: Eligibility for these rates is limited to wind and solar projects 100 kW or smaller, and to non-wind and non-solar projects smaller than 10 aMW.
C30: N/A | G30: 2040 | H30: 4.345497 | I30: 7.01387 | J30: 49.798477 | L30: 22 | M30: 2042 | N30: 7.379404 | O30: 52.3937684 | P30: 3.470396577 | Q30: 55.86416498 | R30: 69.59300557 | S30: =$D$39*(1+$D$47)^($M30-$D$43)*(1000/(365*24))/VLOOKUP('Input - Capacity Factors'!$C$3,'Input - Capacity Factors'!$A:$B,2,FALSE) -> 9.882056796 | T30: 79.47506237 | U30: =-VLOOKUP($E$105,'Input - Transmission'!$A:$C,2)*(1+'Input - Transmission'!$C$11)^('AVOID NEW'!$M30-'Input - Transmission'!$C$10)*12*(1000/(365*24))*(1/VLOOKUP('Input - Capacity Factors'!$C$3,'Input - Capacity Factors'!$A:$D,2,FALSE)) -> -18.79785787 | V30: =-VLOOKUP($E$105,'Input - Transmission'!$A:$C,3)*Q30 -> -2.793208249 | X30: 22 | Y30: 2042 | Z30: 52.3937684 | AA30: 3.470396577 | AB30: =IF(VLOOKUP($Y30,'Input - Load and Resource'!$B$13:$C$42,2,FALSE)>=0,0,0) -> 0 | AC30: =IF(VLOOKUP($Y30,'Input - Load and Resource'!$B$13:$C$42,2,FALSE)>=0,0,0) -> 0 | AD30: 55.86416498 | AE30: =VLOOKUP($Y30,'Input - Load and Resource'!$B$13:$L$42,11,FALSE)*R30 -> 54.28254435 | AF30: =VLOOKUP($Y30,'Input - Load and Resource'!$B$13:$L$42,11,FALSE)*S30 -> 7.708004301 | AG30: 61.99054865 | AH30: 117.8547136 | AI30: 65.46094522 | AK30: 22 | AL30: 2042 | AM30: =IF('Input - Capacity Factors'!$C$3="Fueled",'AVOID NEW'!AI30,AH30) -> 117.8547136
C31: N/A | G31: 2041 | H31: 4.351688 | I31: 7.183046 | J31: 50.9996266 | L31: 23 | M31: 2043 | N31: 7.609071 | O31: 54.0244041 | P31: 3.539804508 | Q31: 57.56420861 | R31: 70.56730765 | S31: =$D$39*(1+$D$47)^($M31-$D$43)*(1000/(365*24))/VLOOKUP('Input - Capacity Factors'!$C$3,'Input - Capacity Factors'!$A:$B,2,FALSE) -> 10.07969793 | T31: 80.64700558 | U31: =-VLOOKUP($E$105,'Input - Transmission'!$A:$C,2)*(1+'Input - Transmission'!$C$11)^('AVOID NEW'!$M31-'Input - Transmission'!$C$10)*12*(1000/(365*24))*(1/VLOOKUP('Input - Capacity Factors'!$C$3,'Input - Capacity Factors'!$A:$D,2,FALSE)) -> -19.17381502 | V31: =-VLOOKUP($E$105,'Input - Transmission'!$A:$C,3)*Q31 -> -2.87821043 | X31: 23 | Y31: 2043 | Z31: 54.0244041 | AA31: 3.539804508 | AB31: =IF(VLOOKUP($Y31,'Input - Load and Resource'!$B$13:$C$42,2,FALSE)>=0,0,0) -> 0 | AC31: =IF(VLOOKUP($Y31,'Input - Load and Resource'!$B$13:$C$42,2,FALSE)>=0,0,0) -> 0 | AD31: 57.56420861 | AE31: =VLOOKUP($Y31,'Input - Load and Resource'!$B$13:$L$42,11,FALSE)*R31 -> 55.04249997 | AF31: =VLOOKUP($Y31,'Input - Load and Resource'!$B$13:$L$42,11,FALSE)*S31 -> 7.862164387 | AG31: 62.90466435 | AH31: 120.468873 | AI31: 66.44446886 | AK31: 23 | AL31: 2043 | AM31: =IF('Input - Capacity Factors'!$C$3="Fueled",'AVOID NEW'!AI31,AH31) -> 120.468873
B32: "SAR" PLANT LIFE (YEARS): | C32: N/A | D32: 30 | G32: 2042 | H32: 4.370358 | I32: 7.379404 | J32: 52.3937684 | L32: 24 | M32: 2044 | N32: 7.889739 | O32: 56.0171469 | P32: 3.610600598 | Q32: 59.6277475 | R32: 71.55524996 | S32: =$D$39*(1+$D$47)^($M32-$D$43)*(1000/(365*24))/VLOOKUP('Input - Capacity Factors'!$C$3,'Input - Capacity Factors'!$A:$B,2,FALSE) -> 10.28129189 | T32: 81.83654185 | U32: =-VLOOKUP($E$105,'Input - Transmission'!$A:$C,2)*(1+'Input - Transmission'!$C$11)^('AVOID NEW'!$M32-'Input - Transmission'!$C$10)*12*(1000/(365*24))*(1/VLOOKUP('Input - Capacity Factors'!$C$3,'Input - Capacity Factors'!$A:$D,2,FALSE)) -> -19.55729133 | V32: =-VLOOKUP($E$105,'Input - Transmission'!$A:$C,3)*Q32 -> -2.981387375 | X32: 24 | Y32: 2044 | Z32: 56.0171469 | AA32: 3.610600598 | AB32: =IF(VLOOKUP($Y32,'Input - Load and Resource'!$B$13:$C$42,2,FALSE)>=0,0,0) -> 0 | AC32: =IF(VLOOKUP($Y32,'Input - Load and Resource'!$B$13:$C$42,2,FALSE)>=0,0,0) -> 0 | AD32: 59.6277475 | AE32: =VLOOKUP($Y32,'Input - Load and Resource'!$B$13:$L$42,11,FALSE)*R32 -> 55.81309497 | AF32: =VLOOKUP($Y32,'Input - Load and Resource'!$B$13:$L$42,11,FALSE)*S32 -> 8.019407675 | AG32: 63.83250264 | AH32: 123.4602501 | AI32: 67.44310324 | AK32: 24 | AL32: 2044 | AM32: =IF('Input - Capacity Factors'!$C$3="Fueled",'AVOID NEW'!AI32,AH32) -> 123.4602501
B33: "SAR" PLANT COST ($/kW): | C33: N/A | D33: 1313 | G33: 2043 | H33: 4.405063 | I33: 7.609071 | J33: 54.0244041 | L33: 25 | M33: 2045 | N33: 8.110449 | O33: 57.5841879 | P33: 3.68281261 | Q33: 61.26700051 | R33: 72.55702346 | S33: =$D$39*(1+$D$47)^($M33-$D$43)*(1000/(365*24))/VLOOKUP('Input - Capacity Factors'!$C$3,'Input - Capacity Factors'!$A:$B,2,FALSE) -> 10.48691773 | T33: 83.04394118 | U33: =-VLOOKUP($E$105,'Input - Transmission'!$A:$C,2)*(1+'Input - Transmission'!$C$11)^('AVOID NEW'!$M33-'Input - Transmission'!$C$10)*12*(1000/(365*24))*(1/VLOOKUP('Input - Capacity Factors'!$C$3,'Input - Capacity Factors'!$A:$D,2,FALSE)) -> -19.94843715 | V33: =-VLOOKUP($E$105,'Input - Transmission'!$A:$C,3)*Q33 -> -3.063350026 | X33: 25 | Y33: 2045 | Z33: 57.5841879 | AA33: 3.68281261 | AB33: =IF(VLOOKUP($Y33,'Input - Load and Resource'!$B$13:$C$42,2,FALSE)>=0,0,0) -> 0 | AC33: =IF(VLOOKUP($Y33,'Input - Load and Resource'!$B$13:$C$42,2,FALSE)>=0,0,0) -> 0 | AD33: 61.26700051 | AE33: =VLOOKUP($Y33,'Input - Load and Resource'!$B$13:$L$42,11,FALSE)*R33 -> 56.5944783 | AF33: =VLOOKUP($Y33,'Input - Load and Resource'!$B$13:$L$42,11,FALSE)*S33 -> 8.179795828 | AG33: 64.77427412 | AH33: 126.0412746 | AI33: 68.45708673 | AK33: 25 | AL33: 2045 | AM33: =IF('Input - Capacity Factors'!$C$3="Fueled",'AVOID NEW'!AI33,AH33) -> 126.0412746
B34: BASE YEAR OF "SAR" COST: | C34: N/A | D34: 2008 | G34: 2044 | H34: 4.463525 | I34: 7.889739 | J34: 56.0171469 | L34: 26 | M34: 2046 | N34: 8.439767 | O34: 59.9223457 | P34: 3.756468863 | Q34: 63.67881456 | R34: 73.57282178 | S34: =$D$39*(1+$D$47)^($M34-$D$43)*(1000/(365*24))/VLOOKUP('Input - Capacity Factors'!$C$3,'Input - Capacity Factors'!$A:$B,2,FALSE) -> 10.69665608 | T34: 84.26947787 | U34: =-VLOOKUP($E$105,'Input - Transmission'!$A:$C,2)*(1+'Input - Transmission'!$C$11)^('AVOID NEW'!$M34-'Input - Transmission'!$C$10)*12*(1000/(365*24))*(1/VLOOKUP('Input - Capacity Factors'!$C$3,'Input - Capacity Factors'!$A:$D,2,FALSE)) -> -20.34740589 | V34: =-VLOOKUP($E$105,'Input - Transmission'!$A:$C,3)*Q34 -> -3.183940728 | X34: 26 | Y34: 2046 | Z34: 59.9223457 | AA34: 3.756468863 | AB34: =IF(VLOOKUP($Y34,'Input - Load and Resource'!$B$13:$C$42,2,FALSE)>=0,0,0) -> 0 | AC34: =IF(VLOOKUP($Y34,'Input - Load and Resource'!$B$13:$C$42,2,FALSE)>=0,0,0) -> 0 | AD34: 63.67881456 | AE34: =VLOOKUP($Y34,'Input - Load and Resource'!$B$13:$L$42,11,FALSE)*R34 -> 57.38680099 | AF34: =VLOOKUP($Y34,'Input - Load and Resource'!$B$13:$L$42,11,FALSE)*S34 -> 8.343391745 | AG34: 65.73019274 | AH34: 129.4090073 | AI34: 69.4866616 | AK34: 26 | AL34: 2046 | AM34: =IF('Input - Capacity Factors'!$C$3="Fueled",'AVOID NEW'!AI34,AH34) -> 129.4090073
B35: "SAR" CAPACITY FACTOR (%): | C35: N/A | D35: 0.9 | G35: 2045 | H35: 4.48248 | I35: 8.110449 | J35: 57.5841879 | L35: 27 | M35: 2047 | N35: 8.796387 | O35: 62.4543477 | P35: 3.83159824 | Q35: 66.28594594 | R35: 74.60284129 | S35: =$D$39*(1+$D$47)^($M35-$D$43)*(1000/(365*24))/VLOOKUP('Input - Capacity Factors'!$C$3,'Input - Capacity Factors'!$A:$B,2,FALSE) -> 10.9105892 | T35: 85.51343049 | U35: =-VLOOKUP($E$105,'Input - Transmission'!$A:$C,2)*(1+'Input - Transmission'!$C$11)^('AVOID NEW'!$M35-'Input - Transmission'!$C$10)*12*(1000/(365*24))*(1/VLOOKUP('Input - Capacity Factors'!$C$3,'Input - Capacity Factors'!$A:$D,2,FALSE)) -> -20.75435401 | V35: =-VLOOKUP($E$105,'Input - Transmission'!$A:$C,3)*Q35 -> -3.314297297 | X35: 27 | Y35: 2047 | Z35: 62.4543477 | AA35: 3.83159824 | AB35: =IF(VLOOKUP($Y35,'Input - Load and Resource'!$B$13:$C$42,2,FALSE)>=0,0,0) -> 0 | AC35: =IF(VLOOKUP($Y35,'Input - Load and Resource'!$B$13:$C$42,2,FALSE)>=0,0,0) -> 0 | AD35: 66.28594594 | AE35: =VLOOKUP($Y35,'Input - Load and Resource'!$B$13:$L$42,11,FALSE)*R35 -> 58.19021621 | AF35: =VLOOKUP($Y35,'Input - Load and Resource'!$B$13:$L$42,11,FALSE)*S35 -> 8.51025958 | AG35: 66.70047579 | AH35: 132.9864217 | AI35: 70.53207403
B36: HEAT RATE (BTU/kWh): | D36: 7100 | G36: 2046 | H36: 4.556293 | I36: 8.439767 | J36: 59.9223457 | L36: 28 | M36: 2048 | N36: 9.117996 | O36: 64.7377716 | P36: 3.908230205 | Q36: 68.6460018 | R36: 75.64728107 | S36: =$D$39*(1+$D$47)^($M36-$D$43)*(1000/(365*24))/VLOOKUP('Input - Capacity Factors'!$C$3,'Input - Capacity Factors'!$A:$B,2,FALSE) -> 11.12880099 | T36: 86.77608206 | U36: =-VLOOKUP($E$105,'Input - Transmission'!$A:$C,2)*(1+'Input - Transmission'!$C$11)^('AVOID NEW'!$M36-'Input - Transmission'!$C$10)*12*(1000/(365*24))*(1/VLOOKUP('Input - Capacity Factors'!$C$3,'Input - Capacity Factors'!$A:$D,2,FALSE)) -> -21.16944109 | V36: =-VLOOKUP($E$105,'Input - Transmission'!$A:$C,3)*Q36 -> -3.43230009 | X36: 28 | Y36: 2048 | Z36: 64.7377716 | AA36: 3.908230205 | AB36: =IF(VLOOKUP($Y36,'Input - Load and Resource'!$B$13:$C$42,2,FALSE)>=0,0,0) -> 0 | AC36: =IF(VLOOKUP($Y36,'Input - Load and Resource'!$B$13:$C$42,2,FALSE)>=0,0,0) -> 0 | AD36: 68.6460018 | AE36: =VLOOKUP($Y36,'Input - Load and Resource'!$B$13:$L$42,11,FALSE)*R36 -> 59.00487923 | AF36: =VLOOKUP($Y36,'Input - Load and Resource'!$B$13:$L$42,11,FALSE)*S36 -> 8.680464771 | AG36: 67.685344 | AH36: 136.3313458 | AI36: 71.59357421
B37: UTILITY WEIGHTED COST OF CAPITAL (%): | C37: N/A | D37: =HLOOKUP($D$27,$B$62:$G$65,3) -> 0.0798 | G37: 2047 | H37: 4.636666 | I37: 8.796387 | J37: 62.4543477 | L37: 29 | M37: 2049 | N37: 9.403763 | O37: 66.7667173 | P37: 3.986394809 | Q37: 70.75311211 | R37: 76.706343 | S37: =$D$39*(1+$D$47)^($M37-$D$43)*(1000/(365*24))/VLOOKUP('Input - Capacity Factors'!$C$3,'Input - Capacity Factors'!$A:$B,2,FALSE) -> 11.35137701 | T37: 88.05772001 | U37: =-VLOOKUP($E$105,'Input - Transmission'!$A:$C,2)*(1+'Input - Transmission'!$C$11)^('AVOID NEW'!$M37-'Input - Transmission'!$C$10)*12*(1000/(365*24))*(1/VLOOKUP('Input - Capacity Factors'!$C$3,'Input - Capacity Factors'!$A:$D,2,FALSE)) -> -21.59282991 | V37: =-VLOOKUP($E$105,'Input - Transmission'!$A:$C,3)*Q37 -> -3.537655605 | X37: 29 | Y37: 2049 | Z37: 66.7667173 | AA37: 3.986394809 | AB37: =IF(VLOOKUP($Y37,'Input - Load and Resource'!$B$13:$C$42,2,FALSE)>=0,0,0) -> 0 | AC37: =IF(VLOOKUP($Y37,'Input - Load and Resource'!$B$13:$C$42,2,FALSE)>=0,0,0) -> 0 | AD37: 70.75311211 | AE37: =VLOOKUP($Y37,'Input - Load and Resource'!$B$13:$L$42,11,FALSE)*R37 -> 59.83094754 | AF37: =VLOOKUP($Y37,'Input - Load and Resource'!$B$13:$L$42,11,FALSE)*S37 -> 8.854074067 | AG37: 68.68502161 | AH37: 139.4381337 | AI37: 72.67141642
B38: RATEPAYER DISCOUNT RATE (%): | C38: ASSUMED | D38: =D37 -> 0.0798 | G38: 2048 | H38: 4.690476 | I38: 9.117996 | J38: 64.7377716 | L38: 30 | M38: 2050 | N38: 9.844832 | O38: 69.8983072 | P38: 4.066122705 | Q38: 73.9644299 | R38: 77.7802318 | S38: =$D$39*(1+$D$47)^($M38-$D$43)*(1000/(365*24))/VLOOKUP('Input - Capacity Factors'!$C$3,'Input - Capacity Factors'!$A:$B,2,FALSE) -> 11.57840455 | T38: 89.35863635 | U38: =-VLOOKUP($E$105,'Input - Transmission'!$A:$C,2)*(1+'Input - Transmission'!$C$11)^('AVOID NEW'!$M38-'Input - Transmission'!$C$10)*12*(1000/(365*24))*(1/VLOOKUP('Input - Capacity Factors'!$C$3,'Input - Capacity Factors'!$A:$D,2,FALSE)) -> -22.02468651 | V38: =-VLOOKUP($E$105,'Input - Transmission'!$A:$C,3)*Q38 -> -3.698221495 | X38: 30 | Y38: 2050 | Z38: 69.8983072 | AA38: 4.066122705 | AB38: =IF(VLOOKUP($Y38,'Input - Load and Resource'!$B$13:$C$42,2,FALSE)>=0,0,0) -> 0 | AC38: =IF(VLOOKUP($Y38,'Input - Load and Resource'!$B$13:$C$42,2,FALSE)>=0,0,0) -> 0 | AD38: 73.9644299 | AE38: =VLOOKUP($Y38,'Input - Load and Resource'!$B$13:$L$42,11,FALSE)*R38 -> 60.66858081 | AF38: =VLOOKUP($Y38,'Input - Load and Resource'!$B$13:$L$42,11,FALSE)*S38 -> 9.031155548 | AG38: 69.69973636 | AH38: 143.6641663 | AI38: 73.76585906
B39: "SAR" FIXED O&M ($/kW): | C39: N/A | D39: 14.57 | G39: 2049 | H39: 4.720174 | I39: 9.403763 | J39: 66.7667173
B40: "SAR" VARIABLE O&M ($/MWh): | C40: N/A | D40: 1.77 | G40: 2050 | H40: 4.823413 | I40: 9.844832 | J40: 69.8983072 | M40: Calculation of Level Carrying Cost | R40: capital cost
B41: CURRENT YEAR GAS PRICE ($/MMBTU): | D41: =VLOOKUP(D54,$G$10:$J$40,3) -> 3.034305 | M41: =D34-1 -> 2007 | R41: =$D$33*(1+$D$45)^($M41-D$34)*$D$50*(1000/(365*24))/VLOOKUP('Input - Capacity Factors'!$C$3,'Input - Capacity Factors'!A:B,2,FALSE) -> 48.90058475
B42: CURRENT YEAR FUEL COST ($/MWh): | D42: =D41*D36/1000 -> 21.5435655 | M42: Calculated for year prior to SAR cost base year
B43: BASE YEAR, O&M EXPENSES: | D43: 2008
B44: BASE YEAR FUEL COST: | D44: 2019 | G44: General inflation rate: | H44: 0.02 | I44: per year | N44: Gas prices were extrapolated using exponential growth.
B45: ESCALATION RATE; "SAR" (%): | C45: N/A | D45: 0.014 | G45: Note: The Annual Energy Outlook includes both a real and nominal forecast so no need to use general inflation rate.
C46: N/A
B47: ESCALATION RATE; O&M (%): | C47: N/A | D47: 0.02
C48: N/A
B49: ADJUSTABLE PORTION ($/MWh): | C49: CALC | D49: =IF(D53="FUELED",D42,0) -> 0
B50: CAPITAL CARRYING CHARGE (%): | C50: N/A | D50: =HLOOKUP($D$27,$B$62:$G$65,4) -> 0.109170507
B51: LEVEL CARRYING COST ($/MWh): | C51: CALC | D51: =R41 -> 48.90058475
B52: "TILTING" RATE (%): | C52: N/A | D52: 0.014
B53: TYPE OF RATES: | C53: N/A | D53: =IF('Input - Capacity Factors'!C3="Fueled", "Fueled", "Non-fueled") -> Non-fueled
B54: CURRENT YEAR: | C54: N/A | D54: =D13 -> 2021
B62: UTILITY-SPECIFIC VARIABLES | D62: IPCO | E62: AVISTA | F62: PCP
B63: FIRST DEFICIT YEAR: | D63: 2002 | E63: 2002 | F63: 2002
B64: UTILITY WEIGHTED COST OF CAPITAL (%): | D64: 0.081801171 | E64: 0.0735 | F64: 0.0798
B65: CAPITAL CARRYING CHARGE (%): | D65: 0.1115702157 | E65: 0.1027260392 | F65: 0.109170507
B66: HLH LLH PRICE DIFFERENTIAL: | D66: 7.28 | E66: 5 | F66: Monthly
B67: WIND INTEGRATION ADJUSTMENT: | D67: NA | E67: 0.07 | F67: NA
B68: SOLAR INTEGRATION ADJUSTMENT: | D68: NA | E68: NA | F68: NA
B69: Rate Effective Date | E69: April 5, 2021
B71: SEASONALIZATION FACTORS | C71: FACTOR | D71: SEASON | E71: FACTOR | F71: Tiber, United Materials Contracts | H71: New Contracts
B72: Idaho Power | C72: 0.735 | D72: Mar-May | E72: 0.735 | F72: Mar-May | H72: Mar-May
C73: 1.2 | D73: Jun-Sep | E73: 1.2 | F73: Jun, Jul, Nov, Dec | H73: Jul, Aug, Nov, Dec
C74: 1 | D74: Oct-Feb | E74: 1 | F74: Jan, Feb, Aug, Sep, Oct | H74: Jan, Feb, Jun, Sep, Oct
B75: Avista | C75: 1.08 | D75: Jul-Feb | E75: 1.08 | H75: July - Feb
C76: 0.84 | D76: Mar-Jun | E76: 0.84 | H76: Mar - June
B78: PacifiCorp | D78: Monthly | E78: See PacifiCorp spreadsheets
B83: Light Load Hours (LLH) are defined as: | G83: Integration Charges
B84: Monday through Saturday Hour ending 2300 through 0600 (Pacific Prevailing Time (PPT)) | G84: Tier | H84: Avista | I84: Integration Charge
B85: All Sunday Hours (PPT) | G85: 1 | H85: 0 - 199 MW | I85: 0.07
B86: All NERC Holidays (PPT) | G86: 2 | H86: 200 - 299 MW | I86: 0.08
C87: NERC Holidays being: | D87: NERC Holidays being: | G87: 3 | H87: 300 and above | I87: 0.09
D88: New Years Day
D89: Memorial Day | H89: Idaho Power | I89: Integration Charge
D90: Independence Day | G90: 1 | H90: 0 - 300 MW | I90: Sch 87
D91: Labor Day | G91: 2 | H91: 301 - 500 MW | I91: Sch 87
D92: Thanksgiving Day | G92: 3 | H92: 501 and above | I92: Sch 87
D93: Christmas Day
B94: Heavy Load Hours (HLH) are defined as: | H94: PacifiCorp | I94: Integration Charge
B95: Monday through Saturday Hour ending 0700 through 2200 (PST) | G95: Wind | H95: All new capacity | I95: NA
B96: Less all NERC Holidays | G96: Solar | H96: All new capacity | I96: NA
D101: Drop down box (don't change)
D102: AVISTA | E102: 1
D103: IPCO | E103: 2
D104: PCP | E104: 3
D105: =VLOOKUP(E105,D102:E104,2,FALSE) -> 3 | E105: PCP
E106: Seasonal hydro
D110: New contract | E110: New contract
D111: Replacement contract

Sheet Single rate sheets for printing
B3: =O3 -> PACIFICORP | M3: Company | N3: ='AVOID NEW'!E105 -> PCP | O3: =VLOOKUP(N3,P:Q,2,FALSE) -> PACIFICORP | P3: AVISTA | Q3: AVISTA
B4: ="AVOIDED COST RATES FOR "&UPPER(N4)&" PROJECTS" -> AVOIDED COST RATES FOR SEASONAL HYDRO PROJECTS | M4: Type of project | N4: ='Input - Load and Resource'!D2 -> Seasonal hydro | P4: IPCO | Q4: IDAHO POWER COMPANY
B5: ='AVOID NEW'!$E$69 -> April 5, 2021 | O5: Eligibility for these rates is limited to projects 100 kW or smaller. | P5: PCP | Q5: PACIFICORP
B6: $/MWh | O6: Eligibility for these rates is limited to projects smaller than 10 aMW.
B7: =IF('AVOID NEW'!$E$110="New contract", "New Contracts and Replacement Contracts without Full Capacity Payments","Replacement Contracts with Full Capacity Payments") -> New Contracts and Replacement Contracts without Full Capacity Payments | O7: Note: These rates will be further adjusted with the applicable integration charge.
B8: =IF(N4="Wind",O5,IF(N4="Solar",O5,O6)) -> Eligibility for these rates is limited to projects smaller than 10 aMW. | O8: Note: "Other projects" refers to projects other than wind, solar, non-seasonal hydro, and seasonal hydro projects. These "Other projects" may include (but are not limited to): cogeneration, biomass, biogas, landfill gas, or geothermal projects.
O9: =" " -> 
B10: LEVELIZED | I10: NON-LEVELIZED | O10: Note: A "seasonal hydro project" is defined as a generation facility which produces at least 55% of its annual generation during the months of June, July, and August. Order 32802
B11: CONTRACT | C11: ON-LINE YEAR | M11: Rates calculated using extrapolated gas prices
B12: LENGTH | I12: CONTRACT | J12: NON-LEVELIZED | L12: Levelized | M12: 2017 | N12: 20 | O12: =H34 -> 84.93231623
B13: (YEARS) | C13: ='AVOID NEW'!$AN$8 -> 2021 | D13: ='AVOID NEW'!$AO$8 -> 2022 | E13: ='AVOID NEW'!$AP$8 -> 2023 | F13: ='AVOID NEW'!$AQ$8 -> 2024 | G13: ='AVOID NEW'!$AR$8 -> 2025 | H13: ='AVOID NEW'!$AS$8 -> 2026 | I13: YEAR | J13: RATES | L13: Non-levelized | M13: 2036 | N13: =J39 -> 126.0412746
M14: 2037 | N14: =J40 -> 129.4090073
B15: 1 | C15: ='AVOID NEW'!$AN$9 -> 23.83324924 | D15: ='AVOID NEW'!$AO$9 -> 23.90064821 | E15: ='AVOID NEW'!$AP$9 -> 24.92997646 | F15: ='AVOID NEW'!$AQ$9 -> 27.0293285 | G15: ='AVOID NEW'!$AR$9 -> 30.29688761 | H15: ='AVOID NEW'!$AS$9 -> 33.50790156 | I15: ='AVOID NEW'!$AL$9 -> 2021 | J15: ='AVOID NEW'!$AM$9 -> 23.83324924
B16: 2 | C16: ='AVOID NEW'!$AN$10 -> 23.86565571 | D16: ='AVOID NEW'!$AO$10 -> 24.39556515 | E16: ='AVOID NEW'!$AP$10 -> 25.93937738 | F16: ='AVOID NEW'!$AQ$10 -> 28.60042145 | G16: ='AVOID NEW'!$AR$10 -> 31.84079277 | H16: ='AVOID NEW'!$AS$10 -> 34.6562428 | I16: ='AVOID NEW'!$AL$10 -> 2022 | J16: ='AVOID NEW'!$AM$10 -> 23.90064821
B17: 3 | C17: ='AVOID NEW'!$AN$11 -> 24.193566 | D17: ='AVOID NEW'!$AO$11 -> 25.20701049 | E17: ='AVOID NEW'!$AP$11 -> 27.28189791 | F17: ='AVOID NEW'!$AQ$11 -> 30.11238412 | G17: ='AVOID NEW'!$AR$11 -> 33.09024401 | H17: ='AVOID NEW'!$AS$11 -> 35.57794914 | I17: ='AVOID NEW'!$AL$11 -> 2023 | J17: ='AVOID NEW'!$AM$11 -> 24.92997646
B18: 4 | C18: ='AVOID NEW'!$AN$12 -> 24.82306673 | D18: ='AVOID NEW'!$AO$12 -> 26.33689402 | E18: ='AVOID NEW'!$AP$12 -> 28.66398609 | F18: ='AVOID NEW'!$AQ$12 -> 31.39631744 | G18: ='AVOID NEW'!$AR$12 -> 34.10197898 | H18: ='AVOID NEW'!$AS$12 -> 47.63900615 | I18: ='AVOID NEW'!$AL$12 -> 2024 | J18: ='AVOID NEW'!$AM$12 -> 27.0293285 | L18: The company, contract type, and resource type are all tied to those selected in AVOID NEW.
B19: 5 | C19: ='AVOID NEW'!$AN$13 -> 25.75648701 | D19: ='AVOID NEW'!$AO$13 -> 27.55972612 | E19: ='AVOID NEW'!$AP$13 -> 29.89725906 | F19: ='AVOID NEW'!$AQ$13 -> 32.46236301 | G19: ='AVOID NEW'!$AR$13 -> 43.61867254 | H19: ='AVOID NEW'!$AS$13 -> 55.03375422 | I19: ='AVOID NEW'!$AL$13 -> 2025 | J19: ='AVOID NEW'!$AM$13 -> 30.29688761
B20: 6 | C20: ='AVOID NEW'!$AN$14 -> 26.81365715 | D20: ='AVOID NEW'!$AO$14 -> 28.69669204 | E20: ='AVOID NEW'!$AP$14 -> 30.95432204 | F20: ='AVOID NEW'!$AQ$14 -> 40.29735991 | G20: ='AVOID NEW'!$AR$14 -> 50.08124572 | H20: ='AVOID NEW'!$AS$14 -> 60.13566284 | I20: ='AVOID NEW'!$AL$14 -> 2026 | J20: ='AVOID NEW'!$AM$14 -> 33.50790156
B21: 7 | C21: ='AVOID NEW'!$AN$15 -> 27.8321854 | D21: ='AVOID NEW'!$AO$15 -> 29.70048846 | E21: ='AVOID NEW'!$AP$15 -> 37.5657137 | F21: ='AVOID NEW'!$AQ$15 -> 45.98362672 | G21: ='AVOID NEW'!$AR$15 -> 54.8316384 | H21: ='AVOID NEW'!$AS$15 -> 63.99097382 | I21: ='AVOID NEW'!$AL$15 -> 2027 | J21: ='AVOID NEW'!$AM$15 -> 35.89622168
B22: 8 | C22: ='AVOID NEW'!$AN$16 -> 28.75567326 | D22: ='AVOID NEW'!$AO$16 -> 35.36519638 | E22: ='AVOID NEW'!$AP$16 -> 42.59330839 | F22: ='AVOID NEW'!$AQ$16 -> 50.3545677 | G22: ='AVOID NEW'!$AR$16 -> 58.56513666 | H22: ='AVOID NEW'!$AS$16 -> 67.08878289 | I22: ='AVOID NEW'!$AL$16 -> 2028 | J22: ='AVOID NEW'!$AM$16 -> 37.64788779
B23: 9 | C23: ='AVOID NEW'!$AN$17 -> 33.65701362 | D23: ='AVOID NEW'!$AO$17 -> 39.82443689 | E23: ='AVOID NEW'!$AP$17 -> 46.58852126 | F23: ='AVOID NEW'!$AQ$17 -> 53.89385929 | G23: ='AVOID NEW'!$AR$17 -> 61.63894165 | H23: ='AVOID NEW'!$AS$17 -> 69.6640538 | I23: ='AVOID NEW'!$AL$17 -> 2029 | J23: ='AVOID NEW'!$AM$17 -> 89.91036148
B24: 10 | C24: ='AVOID NEW'!$AN$18 -> 37.61939047 | D24: ='AVOID NEW'!$AO$18 -> 43.46005986 | E24: ='AVOID NEW'!$AP$18 -> 49.89999044 | F24: ='AVOID NEW'!$AQ$18 -> 56.86657544 | G24: ='AVOID NEW'!$AR$18 -> 64.23566219 | H24: ='AVOID NEW'!$AS$18 -> 71.84877856 | I24: ='AVOID NEW'!$AL$18 -> 2030 | J24: ='AVOID NEW'!$AM$18 -> 91.00374479
B25: 11 | C25: ='AVOID NEW'!$AN$19 -> 40.91645467 | D25: ='AVOID NEW'!$AO$19 -> 46.53051471 | E25: ='AVOID NEW'!$AP$19 -> 52.72764014 | F25: ='AVOID NEW'!$AQ$19 -> 59.41377718 | G25: ='AVOID NEW'!$AR$19 -> 66.46371586 | H25: ='AVOID NEW'!$AS$19 -> 73.74693831 | I25: ='AVOID NEW'!$AL$19 -> 2031 | J25: ='AVOID NEW'!$AM$19 -> 92.4421211
B26: 12 | C26: ='AVOID NEW'!$AN$20 -> 43.74417115 | D26: ='AVOID NEW'!$AO$20 -> 49.18880401 | E26: ='AVOID NEW'!$AP$20 -> 55.18050441 | F26: ='AVOID NEW'!$AQ$20 -> 61.62270313 | G26: ='AVOID NEW'!$AR$20 -> 68.41295793 | H26: ='AVOID NEW'!$AS$20 -> 75.46937847 | I26: ='AVOID NEW'!$AL$20 -> 2032 | J26: ='AVOID NEW'!$AM$20 -> 94.51478877
B27: 13 | C27: ='AVOID NEW'!$AN$21 -> 46.22112251 | D27: ='AVOID NEW'!$AO$21 -> 51.51942693 | E27: ='AVOID NEW'!$AP$21 -> 57.3280889 | F27: ='AVOID NEW'!$AQ$21 -> 63.56930798 | G27: ='AVOID NEW'!$AR$21 -> 70.18227011 | H27: ='AVOID NEW'!$AS$21 -> 77.02998053 | I27: ='AVOID NEW'!$AL$21 -> 2033 | J27: ='AVOID NEW'!$AM$21 -> 96.91741828
B28: 14 | C28: ='AVOID NEW'!$AN$22 -> 48.41297569 | D28: ='AVOID NEW'!$AO$22 -> 53.57745508 | E28: ='AVOID NEW'!$AP$22 -> 59.23388831 | F28: ='AVOID NEW'!$AQ$22 -> 65.34041327 | G28: ='AVOID NEW'!$AR$22 -> 71.78642267 | H28: ='AVOID NEW'!$AS$22 -> 78.44007682 | I28: ='AVOID NEW'!$AL$22 -> 2034 | J28: ='AVOID NEW'!$AM$22 -> 99.22078719
B29: 15 | C29: ='AVOID NEW'!$AN$23 -> 50.36319361 | D29: ='AVOID NEW'!$AO$23 -> 55.41565653 | E29: ='AVOID NEW'!$AP$23 -> 60.9735221 | F29: ='AVOID NEW'!$AQ$23 -> 66.94981672 | G29: ='AVOID NEW'!$AR$23 -> 73.23755776 | H29: ='AVOID NEW'!$AS$23 -> 79.72730817 | I29: ='AVOID NEW'!$AL$23 -> 2035 | J29: ='AVOID NEW'!$AM$23 -> 101.2831624
B30: 16 | C30: ='AVOID NEW'!$AN$24 -> 52.11548927 | D30: ='AVOID NEW'!$AO$24 -> 57.09963486 | E30: ='AVOID NEW'!$AP$24 -> 62.55900193 | F30: ='AVOID NEW'!$AQ$24 -> 68.40908209 | G30: ='AVOID NEW'!$AR$24 -> 74.56213334 | H30: ='AVOID NEW'!$AS$24 -> 80.9087013 | I30: ='AVOID NEW'!$AL$24 -> 2036 | J30: ='AVOID NEW'!$AM$24 -> 103.4108879
B31: 17 | C31: ='AVOID NEW'!$AN$25 -> 53.72668506 | D31: ='AVOID NEW'!$AO$25 -> 58.63934899 | E31: ='AVOID NEW'!$AP$25 -> 64.00064282 | F31: ='AVOID NEW'!$AQ$25 -> 69.74268086 | G31: ='AVOID NEW'!$AR$25 -> 75.77706155 | H31: ='AVOID NEW'!$AS$25 -> 82.00537811 | I31: ='AVOID NEW'!$AL$25 -> 2037 | J31: ='AVOID NEW'!$AM$25 -> 106.395163
B32: 18 | C32: ='AVOID NEW'!$AN$26 -> 55.20470123 | D32: ='AVOID NEW'!$AO$26 -> 60.04359629 | E32: ='AVOID NEW'!$AP$26 -> 65.32058658 | F32: ='AVOID NEW'!$AQ$26 -> 70.9666607 | G32: ='AVOID NEW'!$AR$26 -> 76.90281127 | H32: ='AVOID NEW'!$AS$26 -> 83.03443431 | I32: ='AVOID NEW'!$AL$26 -> 2038 | J32: ='AVOID NEW'!$AM$26 -> 108.9711582
B33: 19 | C33: ='AVOID NEW'!$AN$27 -> 56.55677088 | D33: ='AVOID NEW'!$AO$27 -> 61.33211077 | E33: ='AVOID NEW'!$AP$27 -> 66.53362172 | F33: ='AVOID NEW'!$AQ$27 -> 72.10031306 | G33: ='AVOID NEW'!$AR$27 -> 77.95614502 | H33: ='AVOID NEW'!$AS$27 -> 84.01184366 | I33: ='AVOID NEW'!$AL$27 -> 2039 | J33: ='AVOID NEW'!$AM$27 -> 111.1265301
B34: 20 | C34: ='AVOID NEW'!$AN$28 -> 57.80029078 | D34: ='AVOID NEW'!$AO$28 -> 62.5182468 | E34: ='AVOID NEW'!$AP$28 -> 67.65758785 | F34: ='AVOID NEW'!$AQ$28 -> 73.15961678 | G34: ='AVOID NEW'!$AR$28 -> 78.95271526 | H34: ='AVOID NEW'!$AS$28 -> 84.93231623 | I34: ='AVOID NEW'!$AL$28 -> 2040 | J34: ='AVOID NEW'!$AM$28 -> 113.3367726
I35: ='AVOID NEW'!$AL$29 -> 2041 | J35: ='AVOID NEW'!$AM$29 -> 115.4919244
I36: ='AVOID NEW'!$AL$30 -> 2042 | J36: ='AVOID NEW'!$AM$30 -> 117.8547136
I37: ='AVOID NEW'!$AL$31 -> 2043 | J37: ='AVOID NEW'!$AM$31 -> 120.468873
I38: ='AVOID NEW'!$AL$32 -> 2044 | J38: ='AVOID NEW'!$AM$32 -> 123.4602501
I39: ='AVOID NEW'!$AL$33 -> 2045 | J39: ='AVOID NEW'!$AM$33 -> 126.0412746
I40: ='AVOID NEW'!$AL$34 -> 2046 | J40: ='AVOID NEW'!$AM$34 -> 129.4090073
I42: =IF(N4="Fueled", "ADJUSTABLE COMPONENT","") -> 
I43: =IF(N4="Fueled",'AVOID NEW'!D42,"") -> 
B45: =IF(N4="Fueled", "The total avoided cost rate in each year is the sum of the adjustable component and the fixed component from either of the tables above.", "") -> 
B47: =IF($N$4="Fueled", "Example 1. A 20-year levelized contract with a "&C14&" on-line date would receive the following rates:", "") -> 
C48: =IF($N$4="Fueled", "Year","") ->  | E48: =IF($N$4="Fueled", "Rate", "") -> 
C49: =IF($N$4="Fueled", "1", "") ->  | E49: =IF($N$4="Fueled", TEXT($C$34,"$0.00")&" + "&TEXT($I$43,"$0.00"),"") -> 
C50: =IF($N$4="Fueled", "2-20", "") ->  | E50: =IF($N$4="Fueled", TEXT($C$34,"$0.00")&" + Adjustable component in each year","") -> 
B52: =IF($N$4="Fueled", "Example 2. A 3-year non-levelized contract with a "&$I$15&" on-line date would receive the following rates:","") -> 
C53: =IF($N$4="Fueled", "Year","") ->  | E53: =IF($N$4="Fueled", "Rate", "") -> 
C54: =IF($N$4="Fueled", "1", "") ->  | E54: =IF($N$4="Fueled",TEXT($J$15,"$0.00")&" + "&TEXT($I$43,"$0.00"),"") -> 
C55: =IF($N$4="Fueled", "2", "") ->  | E55: =IF($N$4="Fueled", TEXT($J$16,"$0.00")&" + Adjustable component in year "&$I$16,"") -> 
C56: =IF($N$4="Fueled", "3", "") ->  | E56: =IF($N$4="Fueled", TEXT($J$17,"$0.00")&" + Adjustable component in year "&$I$17,"") -> 
B57: =IF($N$4="Seasonal Hydro",$O$10,$O$9) -> Note: A "seasonal hydro project" is defined as a generation facility which produces at least 55% of its annual generation during the months of June, July, and August. Order 32802
B61: =IF($N$4="Other",$O$8,IF($N$4="Wind",$O$7,IF($N$4="Solar",$O$7,$O$9))) -> 
B64: Note: The rates shown in this table have been computed using the U.S. Energy Information Administration (EIA)'s Annual Energy Outlook 2020, released January 29, 2020. See Annual Energy Outlook 2020, Table 3.8 Energy Prices by Sector-Mountain at https://www.eia.gov/outlooks/aeo/tables_ref.php

Sheet All rate sheets for printing
L1: The company and contract type are tied to those selected in AVOID NEW.
B3: =$N$3 -> PACIFICORP | L3: Company | M3: ='AVOID NEW'!E105 -> PCP | N3: =VLOOKUP(M3,P:Q,2,FALSE) -> PACIFICORP | P3: AVISTA | Q3: AVISTA
B4: ="AVOIDED COST RATES FOR WIND PROJECTS" -> AVOIDED COST RATES FOR WIND PROJECTS | P4: IPCO | Q4: IDAHO POWER COMPANY
B5: ='AVOID NEW'!$E$69 -> April 5, 2021 | L5: Type of contract | M5: ='AVOID NEW'!E110 -> New contract | P5: PCP | Q5: PACIFICORP
B6: $/MWh
B7: =IF('AVOID NEW'!$E$110="New contract", "New Contracts and Replacement Contracts without Full Capacity Payments","Replacement Contracts with Full Capacity Payments") -> New Contracts and Replacement Contracts without Full Capacity Payments
B8: Eligibility for these rates is limited to projects 100 kW or smaller.
B10: LEVELIZED | I10: NON-LEVELIZED
B11: CONTRACT | C11: ON-LINE YEAR
B12: LENGTH | I12: CONTRACT | J12: NON-LEVELIZED
B13: (YEARS) | C13: ='AVOID NEW'!$AN$8 -> 2021 | D13: ='AVOID NEW'!$AO$8 -> 2022 | E13: ='AVOID NEW'!$AP$8 -> 2023 | F13: ='AVOID NEW'!$AQ$8 -> 2024 | G13: ='AVOID NEW'!$AR$8 -> 2025 | H13: ='AVOID NEW'!$AS$8 -> 2026 | I13: YEAR | J13: RATES
L14: Note: You must select the box below to retrieve the rates for the selected utility and contract type.
B15: 1 | C15: 28.77572008 | D15: 29.07452604 | E15: 30.48313631 | F15: 32.84329566 | G15: 35.7600494 | H15: 38.62202101 | I15: 2020 | J15: 28.77572008
B16: 2 | C16: 28.91982712 | D16: 29.75386545 | E16: 31.62138533 | F16: 34.24997699 | G16: 37.14031061 | H16: 40.98242532 | I16: 2021 | J16: 29.07452604
B17: 3 | C17: 29.40443858 | D17: 30.71156037 | E17: 32.90433309 | F17: 35.60527039 | G17: 39.11681462 | H17: 42.07577067 | I17: 2022 | J17: 30.48313631
B18: 4 | C18: 30.17496343 | D18: 31.84274616 | E18: 34.18546241 | F18: 37.37785345 | G18: 40.32511141 | H18: 43.0624707 | I18: 2023 | J18: 32.84329566
B19: 5 | C19: 31.13939967 | D19: 33.01339571 | E19: 35.7967208 | F19: 38.60934223 | G19: 41.38784119 | H19: 43.81314666 | I19: 2024 | J19: 35.7600494
B20: 6 | C20: 32.17625085 | D20: 34.46876386 | E20: 37.00402552 | F20: 39.69988228 | G20: 42.22227243 | H20: 44.50677604 | I20: 2025 | J20: 38.62202101
B21: 7 | C21: 33.47268775 | D21: 35.61665081 | E21: 38.08728614 | F21: 40.58129178 | G21: 42.97641623 | H21: 45.12499809 | I21: 2026 | J21: 43.51631935
B22: 8 | C22: 34.53493468 | D22: 36.6621514 | E22: 38.98452986 | F22: 41.37412548 | G22: 43.64417384 | H22: 45.82804064 | I22: 2027 | J22: 44.50945055
B23: 9 | C23: 35.51772193 | D23: 37.54645224 | E23: 39.79369341 | F23: 42.07681811 | G23: 44.36703687 | H23: 46.52304592 | I23: 2028 | J23: 46.47941889
B24: 10 | C24: 36.36430551 | D24: 38.34893049 | E24: 40.5141854 | F24: 42.81383098 | G24: 45.07237557 | H24: 47.20297308 | I24: 2029 | J24: 47.40966294
B25: 11 | C25: 37.13886907 | D25: 39.06820334 | E25: 41.25522134 | F25: 43.52661013 | G25: 45.7565784 | H25: 47.8615271 | I25: 2030 | J25: 48.81884672
B26: 12 | C26: 37.83846774 | D26: 39.79988405 | E26: 41.96818892 | F26: 44.21371229 | G26: 46.41565465 | H26: 48.51448693 | I26: 2031 | J26: 49.91442862
B27: 13 | C27: 38.5466568 | D27: 40.50243699 | E27: 42.65282006 | F27: 44.87274852 | G27: 47.06456214 | H27: 49.13175169 | I27: 2032 | J27: 52.42962163
B28: 14 | C28: 39.22700867 | D28: 41.17600939 | E28: 43.30769677 | F28: 45.51782011 | G28: 47.67741048 | H28: 49.72288214 | I28: 2033 | J28: 54.27491412
B29: 15 | C29: 39.87956191 | D29: 41.81962195 | E29: 43.94594728 | F29: 46.12650709 | G29: 48.26307109 | H29: 50.29490758 | I29: 2034 | J29: 56.07396776
B30: 16 | C30: 40.50337783 | D30: 42.44529043 | E30: 44.54795376 | F30: 46.70708049 | G30: 48.82821289 | H30: 50.87490924 | I30: 2035 | J30: 57.79214705
B31: 17 | C31: 41.10925344 | D31: 43.03561129 | E31: 45.12138402 | F31: 47.26587844 | G31: 49.39761249 | H31: 51.42251104 | I31: 2036 | J31: 59.78540233
B32: 18 | C32: 41.68151253 | D32: 43.59759746 | E32: 45.67221338 | F32: 47.82563837 | G32: 49.93522621 | H32: 51.9474797 | I32: 2037 | J32: 61.23228445
B33: 19 | C33: 42.22645611 | D33: 44.13679551 | E33: 46.22131922 | F33: 48.35408691 | G33: 50.45001386 | H33: 52.47846859 | I33: 2038 | J33: 62.79740335
B34: 20 | C34: 42.74913388 | D34: 44.67234258 | E34: 46.73969262 | F34: 48.85948933 | G34: 50.96818964 | H34: 53.02274281 | I34: 2039 | J34: 64.4908561
I35: 2040 | J35: 66.94938647
I36: 2041 | J36: 68.30236682
I37: 2042 | J37: 69.8826121
I38: 2043 | J38: 72.52264361
I39: 2044 | J39: 75.66280824
I40: 2045 | J40: 78.53028325
B56: Note: These rates will be further adjusted with the applicable integration charge.
B63: Note: The rates shown in this table have been computed using the U.S. Energy Information Administration (EIA)'s Annual Energy Outlook 2020, released January 29, 2020. See Annual Energy Outlook 2020, Table 3.8 Energy Prices by Sector-Mountain at https://www.eia.gov/outlooks/aeo/tables_ref.php
J64: =$B$3&" Page 1" -> PACIFICORP Page 1
B66: =$N$3 -> PACIFICORP
B67: ="AVOIDED COST RATES FOR SOLAR PROJECTS" -> AVOIDED COST RATES FOR SOLAR PROJECTS
B68: ='AVOID NEW'!$E$69 -> April 5, 2021
B69: $/MWh
B70: =IF('AVOID NEW'!$E$110="New contract", "New Contracts and Replacement Contracts without Full Capacity Payments","Replacement Contracts with Full Capacity Payments") -> New Contracts and Replacement Contracts without Full Capacity Payments
B71: Eligibility for these rates is limited to projects 100 kW or smaller.
B73: LEVELIZED | I73: NON-LEVELIZED
B74: CONTRACT | C74: ON-LINE YEAR
B75: LENGTH | I75: CONTRACT | J75: NON-LEVELIZED
B76: (YEARS) | C76: ='AVOID NEW'!$AN$8 -> 2021 | D76: ='AVOID NEW'!$AO$8 -> 2022 | E76: ='AVOID NEW'!$AP$8 -> 2023 | F76: ='AVOID NEW'!$AQ$8 -> 2024 | G76: ='AVOID NEW'!$AR$8 -> 2025 | H76: ='AVOID NEW'!$AS$8 -> 2026 | I76: YEAR | J76: RATES
B78: 1 | C78: 28.77572008 | D78: 29.07452604 | E78: 30.48313631 | F78: 32.84329566 | G78: 35.7600494 | H78: 38.62202101 | I78: 2020 | J78: 28.77572008
B79: 2 | C79: 28.91982712 | D79: 29.75386545 | E79: 31.62138533 | F79: 34.24997699 | G79: 37.14031061 | H79: 41.64111641 | I79: 2021 | J79: 29.07452604
B80: 3 | C80: 29.40443858 | D80: 30.71156037 | E80: 32.90433309 | F80: 35.60527039 | G80: 39.54019879 | H80: 42.9598932 | I80: 2022 | J80: 30.48313631
B81: 4 | C81: 30.17496343 | D81: 31.84274616 | E81: 34.18546241 | F81: 37.68387947 | G81: 40.96416339 | H81: 44.06360064 | I81: 2023 | J81: 32.84329566
B82: 5 | C82: 31.13939967 | D82: 33.01339571 | E82: 36.03256732 | F82: 39.10184346 | G82: 42.15938677 | H82: 49.57935628 | I82: 2024 | J82: 35.7600494
B83: 6 | C83: 32.17625085 | D83: 34.65801934 | E83: 37.39923406 | F83: 40.31901048 | G83: 46.84937818 | H83: 53.49484861 | I83: 2025 | J83: 38.62202101
B84: 7 | C84: 33.6288304 | D84: 35.9427122 | E84: 38.59808937 | F84: 44.39882191 | G84: 50.3919022 | H84: 53.25351296 | I84: 2026 | J84: 44.88211531
B85: 8 | C85: 34.80943789 | D85: 37.09218432 | E85: 42.1984164 | F85: 47.61704428 | G85: 50.48737447 | H85: 53.31772941 | I85: 2027 | J85: 45.89536144
B86: 9 | C86: 35.88535117 | D86: 40.29395971 | E86: 45.13067898 | F86: 47.92697638 | G86: 50.76986897 | H86: 53.52098308 | I86: 2028 | J86: 47.88574619
B87: 10 | C87: 38.74149534 | D87: 42.96658044 | E87: 45.57584103 | F87: 48.35366933 | G87: 51.12710886 | H87: 53.81203538 | I87: 2029 | J87: 76.00554568
B88: 11 | C88: 41.17284439 | D88: 43.49006167 | E88: 46.09481971 | F88: 48.8160203 | G88: 51.53024997 | H88: 54.15646254 | I88: 2030 | J88: 77.83620455
B89: 12 | C89: 41.73200685 | D89: 44.06125204 | E89: 46.62562566 | F89: 49.29755135 | G89: 51.95847749 | H89: 54.55128841 | I89: 2031 | J89: 51.38386061
B90: 13 | C90: 42.32359237 | D90: 44.63041619 | E90: 47.15872816 | F90: 49.78546312 | G90: 52.41509987 | H90: 54.95342569 | I90: 2032 | J90: 53.92072288
B91: 14 | C91: 42.9060181 | D91: 45.19184318 | E91: 47.68609172 | F91: 50.2864194 | G91: 52.86590403 | H91: 55.36315725 | I91: 2033 | J91: 55.78800994
B92: 15 | C92: 43.47554117 | D92: 45.74025668 | E92: 48.21599058 | F92: 50.77254479 | G92: 53.3136567 | H92: 55.78070708 | I92: 2034 | J92: 57.60938846
B93: 16 | C93: 44.02838613 | D93: 46.2844489 | E93: 48.72516551 | F93: 51.24801771 | G93: 53.76044711 | H93: 57.33967659 | I93: 2035 | J93: 59.35022802
B94: 17 | C94: 44.5731801 | D94: 46.80455056 | E94: 49.21849894 | F94: 51.71604576 | G94: 55.23052617 | H94: 57.73760426 | I94: 2036 | J94: 61.36648409
B95: 18 | C95: 45.09255874 | D95: 47.30565624 | E95: 49.69979921 | F95: 53.10466695 | G95: 55.65064725 | H95: 58.13208347 | I95: 2037 | J95: 62.83671277
B96: 19 | C96: 45.59149001 | D96: 47.79179767 | E96: 51.01199574 | F96: 53.54078613 | G96: 56.06249267 | H96: 58.54868081 | I96: 2038 | J96: 64.4255293
B97: 20 | C97: 46.07395692 | D97: 49.03024744 | E97: 51.45784498 | F97: 53.96495796 | G97: 56.49004177 | H97: 58.99219113 | I97: 2039 | J97: 66.14303617
I98: 2040 | J98: 100.5457941
I99: 2041 | J99: 70.00374659
I100: 2042 | J100: 71.60914869
I101: 2043 | J101: 74.27471596
I102: 2044 | J102: 77.44080114
I103: 2045 | J103: 80.33458742
B119: Note: These rates will be further adjusted with the applicable integration charge.
B126: Note: The rates shown in this table have been computed using the U.S. Energy Information Administration (EIA)'s Annual Energy Outlook 2020, released January 29, 2020. See Annual Energy Outlook 2020, Table 3.8 Energy Prices by Sector-Mountain at https://www.eia.gov/outlooks/aeo/tables_ref.php
J127: =$B$3&" Page 2" -> PACIFICORP Page 2
B129: =$N$3 -> PACIFICORP
B130: ="AVOIDED COST RATES FOR NON-SEASONAL HYDRO PROJECTS" -> AVOIDED COST RATES FOR NON-SEASONAL HYDRO PROJECTS
B131: ='AVOID NEW'!$E$69 -> April 5, 2021
B132: $/MWh
B133: =IF('AVOID NEW'!$E$110="New contract", "New Contracts and Replacement Contracts without Full Capacity Payments","Replacement Contracts with Full Capacity Payments") -> New Contracts and Replacement Contracts without Full Capacity Payments
B134: Eligibility for these rates is limited to projects smaller than 10 aMW.
B136: LEVELIZED | I136: NON-LEVELIZED
B137: CONTRACT | C137: ON-LINE YEAR
B138: LENGTH | I138: CONTRACT | J138: NON-LEVELIZED
B139: (YEARS) | C139: ='AVOID NEW'!$AN$8 -> 2021 | D139: ='AVOID NEW'!$AO$8 -> 2022 | E139: ='AVOID NEW'!$AP$8 -> 2023 | F139: ='AVOID NEW'!$AQ$8 -> 2024 | G139: ='AVOID NEW'!$AR$8 -> 2025 | H139: ='AVOID NEW'!$AS$8 -> 2026 | I139: YEAR | J139: RATES
B141: 1 | C141: 28.77572008 | D141: 29.07452604 | E141: 30.48313631 | F141: 32.84329566 | G141: 35.7600494 | H141: 38.62202101 | I141: 2020 | J141: 28.77572008
B142: 2 | C142: 28.91982712 | D142: 29.75386545 | E142: 31.62138533 | F142: 34.24997699 | G142: 37.14031061 | H142: 44.68535969 | I142: 2021 | J142: 29.07452604
B143: 3 | C143: 29.40443858 | D143: 30.71156037 | E143: 32.90433309 | F143: 35.60527039 | G143: 41.49693461 | H143: 47.04600297 | I143: 2022 | J143: 30.48313631
B144: 4 | C144: 30.17496343 | D144: 31.84274616 | E144: 34.18546241 | F144: 39.09822629 | G144: 43.9176415 | H144: 48.69047834 | I144: 2023 | J144: 32.84329566
B145: 5 | C145: 31.13939967 | D145: 33.01339571 | E145: 37.12256872 | F145: 41.37801449 | G145: 45.72520463 | H145: 52.92790961 | I145: 2024 | J145: 35.7600494
B146: 6 | C146: 32.17625085 | D146: 35.53269302 | E146: 39.22575179 | F146: 43.18040773 | G146: 49.5364311 | H146: 55.98907343 | I146: 2025 | J146: 38.62202101
B147: 7 | C147: 34.35046791 | D147: 37.44965559 | E147: 40.95884591 | F147: 46.61573806 | G147: 52.44972818 | H147: 56.23898421 | I147: 2026 | J147: 51.19435377
B148: 8 | C148: 36.07809719 | D148: 39.07964832 | E148: 44.06478464 | F148: 49.34947833 | G148: 53.00077071 | H148: 56.6791274 | I148: 2027 | J148: 52.30056414
B149: 9 | C149: 37.58440685 | D149: 41.8894923 | E149: 46.61171307 | F149: 50.07564431 | G149: 53.64348196 | H149: 57.18118842 | I149: 2028 | J149: 54.38530651
B150: 10 | C150: 40.12197705 | D150: 44.24799612 | E150: 47.43490478 | F150: 50.83996777 | G150: 54.29398028 | H150: 57.71684709 | I150: 2029 | J150: 73.22959971
B151: 11 | C151: 42.2922881 | D151: 45.11413827 | E151: 48.26684805 | F151: 51.58259665 | G151: 54.94149037 | H151: 58.26626295 | I151: 2030 | J151: 75.01934387
B152: 12 | C152: 43.16204041 | D152: 45.97376861 | E152: 49.06165423 | F152: 52.30122016 | G152: 55.57724307 | H152: 58.83618152 | I152: 2031 | J152: 58.17506903
B153: 13 | C153: 44.018694 | D153: 46.78951697 | E153: 49.82093982 | F153: 52.99284733 | G153: 56.21288622 | H153: 59.39024571 | I153: 2032 | J153: 60.81207916
B154: 14 | C154: 44.83028945 | D154: 47.56450575 | E154: 50.54463246 | F154: 53.67114861 | G154: 56.82016394 | H154: 59.93354593 | I154: 2033 | J154: 62.78101758
B155: 15 | C155: 45.6001424 | D155: 48.29993762 | E155: 51.2468471 | F155: 54.31338771 | G155: 57.40621227 | H155: 60.46983225 | I155: 2034 | J155: 64.70557403
B156: 16 | C156: 46.32977281 | D156: 49.00946541 | E156: 51.90870631 | F156: 54.92759852 | G156: 57.97639842 | H156: 61.75192119 | I156: 2035 | J156: 66.55114151
B157: 17 | C157: 47.03185884 | D157: 49.67693833 | E157: 52.53844475 | F157: 55.51993826 | G157: 59.21152664 | H157: 62.25828376 | I157: 2036 | J157: 68.67369933
B158: 18 | C158: 47.6921887 | D158: 50.31034476 | E158: 53.14247955 | F158: 56.70763734 | G158: 59.74204953 | H158: 62.75112375 | I158: 2037 | J158: 70.25182776
B159: 19 | C159: 48.31822099 | D159: 50.91600274 | E159: 54.28166276 | F159: 57.25370121 | G159: 60.25423505 | H159: 63.25749001 | I159: 2038 | J159: 71.95016662
B160: 20 | C160: 48.91593309 | D160: 52.00454507 | E160: 54.83534931 | F160: 57.77803414 | G160: 60.7734749 | H160: 63.78336477 | I160: 2039 | J160: 73.77884333
I161: 2040 | J161: 97.28442205
I162: 2041 | J162: 77.86693783
I163: 2042 | J163: 79.58860606
I164: 2043 | J164: 82.37219082
I165: 2044 | J165: 85.65807183
I166: 2045 | J166: 88.67345972
B182: Note: These rates will be further adjusted with the applicable integration charge.
B189: Note: The rates shown in this table have been computed using the U.S. Energy Information Administration (EIA)'s Annual Energy Outlook 2020, released January 29, 2020. See Annual Energy Outlook 2020, Table 3.8 Energy Prices by Sector-Mountain at https://www.eia.gov/outlooks/aeo/tables_ref.php
J190: =$B$3&" Page 3" -> PACIFICORP Page 3
B192: =$N$3 -> PACIFICORP
B193: ="AVOIDED COST RATES FOR SEASONAL HYDRO PROJECTS" -> AVOIDED COST RATES FOR SEASONAL HYDRO PROJECTS
B194: ='AVOID NEW'!$E$69 -> April 5, 2021
B195: $/MWh
B196: =IF('AVOID NEW'!$E$110="New contract", "New Contracts and Replacement Contracts without Full Capacity Payments","Replacement Contracts with Full Capacity Payments") -> New Contracts and Replacement Contracts without Full Capacity Payments
B197: Eligibility for these rates is limited to projects smaller than 10 aMW.
B199: LEVELIZED | I199: NON-LEVELIZED
B200: CONTRACT | C200: ON-LINE YEAR
B201: LENGTH | I201: CONTRACT | J201: NON-LEVELIZED
B202: (YEARS) | C202: ='AVOID NEW'!$AN$8 -> 2021 | D202: ='AVOID NEW'!$AO$8 -> 2022 | E202: ='AVOID NEW'!$AP$8 -> 2023 | F202: ='AVOID NEW'!$AQ$8 -> 2024 | G202: ='AVOID NEW'!$AR$8 -> 2025 | H202: ='AVOID NEW'!$AS$8 -> 2026 | I202: YEAR | J202: RATES
B204: 1 | C204: 28.77572008 | D204: 29.07452604 | E204: 30.48313631 | F204: 32.84329566 | G204: 35.7600494 | H204: 38.62202101 | I204: 2020 | J204: 28.77572008
B205: 2 | C205: 28.91982712 | D205: 29.75386545 | E205: 31.62138533 | F205: 34.24997699 | G205: 37.14031061 | H205: 39.55103893 | I205: 2021 | J205: 29.07452604
B206: 3 | C206: 29.40443858 | D206: 30.71156037 | E206: 32.90433309 | F206: 35.60527039 | G206: 38.19676824 | H206: 40.15450441 | I206: 2022 | J206: 30.48313631
B207: 4 | C207: 30.17496343 | D207: 31.84274616 | E207: 34.18546241 | F207: 36.71283538 | G207: 38.93640231 | H207: 40.88693834 | I207: 2023 | J207: 32.84329566
B208: 5 | C208: 31.13939967 | D208: 33.01339571 | E208: 35.28420815 | F208: 37.53909917 | G208: 39.71121331 | H208: 49.83155811 | I208: 2024 | J208: 35.7600494
B209: 6 | C209: 32.17625085 | D209: 34.05749712 | E209: 36.14520697 | F209: 38.35446909 | G209: 47.05175801 | H209: 56.05748489 | I209: 2025 | J209: 38.62202101
B210: 7 | C210: 33.13337777 | D210: 34.90809435 | E210: 36.97727144 | F210: 44.56579262 | G210: 52.50617012 | H210: 54.99013221 | I210: 2026 | J210: 40.54833966
B211: 8 | C211: 33.93841807 | D211: 35.72765679 | E211: 42.33898501 | F211: 49.39699544 | G211: 51.94939233 | H211: 54.43182815 | I211: 2027 | J211: 41.49775958
B212: 9 | C212: 34.71883532 | D212: 40.41412989 | E212: 46.65233479 | F212: 49.17683537 | G212: 51.72229668 | H212: 54.14837598 | I212: 2028 | J212: 43.42336149
B213: 10 | C213: 38.8454686 | D213: 44.28314272 | E213: 46.65724012 | F213: 49.17772585 | G213: 51.66993979 | H213: 54.04792765 | I213: 2029 | J213: 92.6855625
B214: 11 | C214: 42.32299214 | D214: 44.43477105 | E214: 46.81471484 | F214: 49.29023696 | G214: 51.73632526 | H214: 54.07021635 | I214: 2030 | J214: 94.76206836
B215: 12 | C215: 42.5638433 | D215: 44.69513482 | E215: 47.04318339 | F215: 49.47900498 | G215: 51.88253591 | H215: 54.19503646 | I215: 2031 | J215: 46.7212399
B216: 13 | C216: 42.88541534 | D216: 45.00050595 | E216: 47.31955413 | F216: 49.71815458 | G216: 52.09934665 | H216: 54.36737158 | I216: 2032 | J216: 49.18934393
B217: 14 | C217: 43.23585593 | D217: 45.3351773 | E217: 47.62610383 | F217: 50.00500833 | G217: 52.34359069 | H217: 54.57898267 | I217: 2033 | J217: 50.98684051
B218: 15 | C218: 43.60388974 | D218: 45.68654051 | E218: 47.96400097 | F218: 50.3048392 | G218: 52.6114674 | H218: 54.82384311 | I218: 2034 | J218: 52.73738046
B219: 16 | C219: 43.9800904 | D219: 46.05788725 | E219: 48.30465551 | F219: 50.61668547 | G219: 52.90013911 | H219: 57.09860664 | I219: 2035 | J219: 54.40631726
B220: 17 | C220: 44.36876214 | D220: 46.42514038 | E220: 48.64887188 | F220: 50.93982258 | G220: 55.01301792 | H220: 57.33447524 | I220: 2036 | J220: 56.34959004
B221: 18 | C221: 44.74917681 | D221: 46.79012014 | E221: 48.99728507 | F221: 52.90781298 | G221: 55.28579878 | H221: 57.58462286 | I221: 2037 | J221: 57.7457383
B222: 19 | C222: 45.12364509 | D222: 47.15427166 | E222: 50.83335232 | F222: 53.20968904 | G222: 55.56567652 | H222: 57.87187415 | I222: 2038 | J222: 59.2593604
B223: 20 | C223: 45.49402261 | D223: 48.867742 | E223: 51.15665796 | F223: 53.51302231 | G223: 55.87437528 | H223: 58.19882873 | I223: 2039 | J223: 60.9005417
I224: 2040 | J224: 120.1426238
I225: 2041 | J225: 64.60513768
I226: 2042 | J226: 66.13071528
I227: 2043 | J227: 68.71525561
I228: 2044 | J228: 71.7990929
I229: 2045 | J229: 74.60939151
B234: Note: A "seasonal hydro project" is defined as a generation facility which produces at least 55% of its annual generation during the months of June, July, and August. Order 32802.
B245: Note: These rates will be further adjusted with the applicable integration charge.
B252: Note: The rates shown in this table have been computed using the U.S. Energy Information Administration (EIA)'s Annual Energy Outlook 2020, released January 29, 2020. See Annual Energy Outlook 2020, Table 3.8 Energy Prices by Sector-Mountain at https://www.eia.gov/outlooks/aeo/tables_ref.php
J253: =$B$3&" Page 4" -> PACIFICORP Page 4
B255: =$N$3 -> PACIFICORP
B256: ="AVOIDED COST RATES FOR OTHER PROJECTS" -> AVOIDED COST RATES FOR OTHER PROJECTS
B257: ='AVOID NEW'!$E$69 -> April 5, 2021
B258: $/MWh
B259: =IF('AVOID NEW'!$E$110="New contract", "New Contracts and Replacement Contracts without Full Capacity Payments","Replacement Contracts with Full Capacity Payments") -> New Contracts and Replacement Contracts without Full Capacity Payments
B260: Eligibility for these rates is limited to projects smaller than 10 aMW.
B262: LEVELIZED | I262: NON-LEVELIZED
B263: CONTRACT | C263: ON-LINE YEAR
B264: LENGTH | I264: CONTRACT | J264: NON-LEVELIZED
B265: (YEARS) | C265: ='AVOID NEW'!$AN$8 -> 2021 | D265: ='AVOID NEW'!$AO$8 -> 2022 | E265: ='AVOID NEW'!$AP$8 -> 2023 | F265: ='AVOID NEW'!$AQ$8 -> 2024 | G265: ='AVOID NEW'!$AR$8 -> 2025 | H265: ='AVOID NEW'!$AS$8 -> 2026 | I265: YEAR | J265: RATES
B267: 1 | C267: 28.77572008 | D267: 29.07452604 | E267: 30.48313631 | F267: 32.84329566 | G267: 35.7600494 | H267: 38.62202101 | I267: 2020 | J267: 28.77572008
B268: 2 | C268: 28.91982712 | D268: 29.75386545 | E268: 31.62138533 | F268: 34.24997699 | G268: 37.14031061 | H268: 49.42278016 | I268: 2021 | J268: 29.07452604
B269: 3 | C269: 29.40443858 | D269: 30.71156037 | E269: 32.90433309 | F269: 35.60527039 | G269: 44.54198699 | H269: 53.40476546 | I269: 2022 | J269: 30.48313631
B270: 4 | C270: 30.17496343 | D270: 31.84274616 | E270: 34.18546241 | F270: 41.29921845 | G270: 48.51381411 | H270: 55.89077839 | I270: 2023 | J270: 32.84329566
B271: 5 | C271: 31.13939967 | D271: 33.01339571 | E271: 38.81881783 | F271: 44.92016872 | G271: 51.27429415 | H271: 57.58388734 | I271: 2024 | J271: 35.7600494
B272: 6 | C272: 32.17625085 | D272: 36.8938513 | E272: 42.0681601 | F272: 47.63328504 | G272: 53.27262917 | H272: 58.94052932 | I272: 2025 | J272: 38.62202101
B273: 7 | C273: 35.47347288 | D273: 39.79474558 | E273: 44.63263126 | F273: 49.69823703 | G273: 54.88478637 | H273: 60.06123728 | I273: 2026 | J273: 61.01739511
B274: 8 | C274: 38.05237189 | D274: 42.1725196 | E274: 46.65986618 | F274: 51.3994951 | G274: 56.21863339 | H274: 61.16567256 | I274: 2027 | J274: 62.2682755
B275: 9 | C275: 40.22846005 | D275: 44.10799187 | E275: 48.36424425 | F275: 52.82655093 | G275: 57.47896782 | H275: 62.1939858 | I275: 2028 | J275: 64.49985622
B276: 10 | C276: 42.04146031 | D276: 45.76431567 | E276: 49.8150356 | F276: 54.15849484 | G276: 58.63113714 | H276: 63.15893356 | I276: 2029 | J276: 65.695635
B277: 11 | C277: 43.61694365 | D277: 47.19341866 | E277: 51.16591065 | F277: 55.37153342 | G277: 59.69569277 | H277: 64.06681372 | I277: 2030 | J277: 67.37433596
B278: 12 | C278: 44.99289045 | D278: 48.52645411 | E278: 52.39789263 | F278: 56.48739521 | G278: 60.68474983 | H278: 64.9417967 | I278: 2031 | J278: 68.74347856
B279: 13 | C279: 46.28119015 | D279: 49.7464917 | E279: 53.53123038 | F279: 57.51973259 | G279: 61.62441491 | H279: 65.75958883 | I279: 2032 | J279: 71.53633778
B280: 14 | C280: 47.46565589 | D280: 50.87125544 | E280: 54.57916187 | F280: 58.49410532 | G280: 62.49676069 | H280: 66.53389783 | I280: 2033 | J280: 73.66346501
B281: 15 | C281: 48.56117215 | D281: 51.91265789 | E281: 55.56556476 | F281: 59.39649754 | G281: 63.31649884 | H281: 67.27479413 | I281: 2034 | J281: 75.74858589
B282: 16 | C282: 49.57793791 | D282: 52.89238658 | E282: 56.47888577 | F282: 60.24148534 | G282: 64.09467995 | H282: 68.01164073 | I282: 2035 | J282: 77.75712991
B283: 17 | C283: 50.53527092 | D283: 53.80043742 | E283: 57.33296269 | F283: 61.04023097 | G283: 64.85943347 | H283: 68.70580812 | I283: 2036 | J283: 80.04511343
B284: 18 | C284: 51.42412624 | D284: 54.64958218 | E284: 58.1385732 | F284: 61.81922706 | G284: 65.57732624 | H284: 69.36842381 | I284: 2037 | J284: 81.79115435
B285: 19 | C285: 52.25604448 | D285: 55.44991805 | E285: 58.92038984 | F285: 62.54916849 | G285: 66.25938231 | H285: 70.02921842 | I285: 2038 | J285: 83.65993073
B286: 20 | C286: 53.04027158 | D286: 56.22422704 | E286: 59.65244405 | F286: 63.24069904 | G286: 66.93347091 | H286: 70.69632222 | I286: 2039 | J286: 85.66160883
I287: 2040 | J287: 88.43300271
I288: 2041 | J288: 90.10355612
I289: 2042 | J289: 92.00615653
I290: 2043 | J290: 94.9733989
I291: 2044 | J291: 98.44570498
I292: 2045 | J292: 101.650328
B308: Note: "Other projects" refers to projects other than wind, solar, non-seasonal hydro, and seasonal hydro projects. These "Other projects" may include (but are not limited to): cogeneration, biomass, biogas, landfill gas, or geothermal projects.
B314: Note: The rates shown in this table have been computed using the U.S. Energy Information Administration (EIA)'s Annual Energy Outlook 2020, released January 29, 2020. See Annual Energy Outlook 2020, Table 3.8 Energy Prices by Sector-Mountain at https://www.eia.gov/outlooks/aeo/tables_ref.php
J315: =$B$3&" Page 5" -> PACIFICORP Page 5

Sheet Input - Capacity Factors
A2: Resource On-Peak Capacity Contributions
A3: Current Resource | B3: =VLOOKUP(C3,A6:E11,5,FALSE) -> 4 | C3: =H10 -> Seasonal hydro | G3: Old resources - no longer broken apart but grouped into other
A4: Resource | B4: Annual Capacity Factor | C4: On-Peak Capacity Factors | G4: Biomass | H4: 0.85 | I4: 1 | J4: 1
C5: Summer | D5: Winter | G5: Geothermal | H5: 0.85 | I5: 1 | J5: 1
A6: Wind | B6: 0.33 | C6: 0.05 | D6: 0.05 | E6: 1 | G6: Other Base Load | H6: 0.92 | I6: 1 | J6: 1
A7: Solar | B7: 0.226 | C7: 0.35 | D7: 0.05 | E7: 2
A8: Non-seasonal hydro | B8: 0.46 | C8: 0.65 | D8: 0.25 | E8: 3
A9: Seasonal hydro | B9: 0.33 | C9: 0.78 | D9: 0 | E9: 4
A10: Other | B10: 0.89 | C10: 0.93 | D10: 0.93 | E10: 5 | G10: Do not change-used for printing sheets | H10: ='AVOID NEW'!E106 -> Seasonal hydro
A11: Fueled | B11: 0.89 | C11: 0.93 | D11: 0.93 | E11: 6

Sheet Input - Load and Resource
B1: Utility | D1: ='AVOID NEW'!D27 -> PCP | E1: ='AVOID NEW'!D105 -> 3 | G1: Notes: | H1: 1. Capacity contributions are set equal to zero when the utility does not need capacity; i.e., when the planning deficit, column (d), is not negative.
B2: Project type | D2: ='Input - Capacity Factors'!C3 -> Seasonal hydro | H2: Capacity contributions cannot exceed the absolute value of the planning deficit (column (d)).
B3: Project Nameplate | D3: ='AVOID NEW'!D15 -> 0.1 | E3: Contract type | F3: ='AVOID NEW'!$E$110 -> New contract | H3: 2. A capacity payment will be made if the capacity contribution is strictly positive.
D4: Summer | E4: Winter | H4: 3. The capacity factor is calculated as the capacity contribution divided by the project nameplate.
B5: Peak Capacity Factors | D5: =VLOOKUP(D2,'Input - Capacity Factors'!A:D,3,FALSE) -> 0.78 | E5: =VLOOKUP(D2,'Input - Capacity Factors'!A:D,4,FALSE) -> 0 | H5: 4. The capacity factor cannot decrease over time.
B6: Peak Capacity (MW) | D6: =$D$3*D5 -> 0.078 | E6: =$D$3*E5 -> 0 | H6: 5. Replacement contracts receive capacity payments throughout the life of the contract. In the years preceding a utility's need for capacity, the capacity factor is based on the capacity factor in the first year the resource makes a strictly positive capacity contribution.
B7: Current Year | D7: ='AVOID NEW'!D54 -> 2021 | E7: Max capacity in new contract | G7: =MAX(J13:J42) -> 0.078
B8: Most deficient season | D8: =IF(O9>O10,"Summer", IF(O9<O10,"Winter","Both")) -> Summer | E8: First deficiency | F8: =MIN($N$13:$N$42) -> 2029 | G8: =IF(VLOOKUP(F8,B13:E42,3,FALSE)<VLOOKUP(F8,B13:E42,4,FALSE),D4,IF(VLOOKUP(F8,B13:E42,3,FALSE)>VLOOKUP(F8,B13:E42,4,FALSE),E4,"Either")) -> Summer
B9: Calculation of basis for capacity payments | N9: Summer | O9: =COUNTIF($O$13:$O$42,N9) -> 22
C10: =D1 -> PCP | G10: With QF output | J10: Capacity Calculations | N10: Winter | O10: =COUNTIF($O$13:$O$42,N10) -> 0
C11: (a) | D11: (b) | E11: (c) | F11: (d) | G11: (e) | H11: (f) | I11: (g) | J11: (h) | K11: (i) | L11: (j)
C12: Energy (aMW) | D12: Summer Capacity (MW) | E12: Winter Capacity (MW) | F12: Planning Deficit (MW) | G12: Summer Capacity (MW) | H12: Winter Capacity (MW) | I12: New Planning Deficit (MW) | J12: Capacity Contribution (1) | K12: Based on capacity contribution, is capacity payment made? (2) | L12: Capacity adjustment applied to rates (3) (4) (5) | N12: Capacity contribution greater than 0? | O12: Season more deficient
A13: =B13-$D$7 -> 0 | B13: =D7 -> 2021 | C13: =OFFSET($B$49,$A13,$E$1*3-2) -> 0 | D13: =OFFSET($B$49,$A13,$E$1*3-1) -> 0 | E13: =OFFSET($B$49,$A13,$E$1*3) -> 0 | F13: =MIN(D13:E13) -> 0 | G13: =D13+$D$6 -> 0.078 | H13: =E13+$E$6 -> 0 | I13: =MIN(G13:H13) -> 0 | J13: =IF(F13>=0,0,MIN(-1*F13,I13-F13)) -> 0 | K13: =IF(J13>0,"Yes","No") -> No | L13: =IF($F$3="New contract",J13/$D$3,MAX($D$6:$E$6)/$D$3) -> 0 | N13: =IF(J13>0,B13,"") ->  | O13: =IF(F13<0,IF(D13<E13,"Summer",IF(D13>E13,"Winter","Both")),"") -> 
A14: =B14-$D$7 -> 1 | B14: =B13+1 -> 2022 | C14: =OFFSET($B$49,$A14,$E$1*3-2) -> 0 | D14: 0 | E14: 0 | F14: =MIN(D14:E14) -> 0 | G14: =D14+$D$6 -> 0.078 | H14: =E14+$E$6 -> 0 | I14: =MIN(G14:H14) -> 0 | J14: =IF(F14>=0,0,MIN(-1*F14,I14-F14)) -> 0 | K14: =IF(J14>0,"Yes","No") -> No | L14: =IF($F$3="New contract",J14/$D$3,MAX($D$6:$E$6)/$D$3) -> 0 | N14: =IF(J14>0,B14,"") ->  | O14: =IF(F14<0,IF(D14<E14,"Summer",IF(D14>E14,"Winter","Both")),"") -> 
A15: 2 | B15: =B14+1 -> 2023 | C15: 0 | D15: 0 | E15: 0 | F15: 0 | G15: 0.078 | H15: 0 | I15: 0 | J15: 0 | K15: No | L15: 0
A16: 3 | B16: 2024 | C16: 0 | D16: 0 | E16: 0 | F16: 0 | G16: 0.078 | H16: 0 | I16: 0 | J16: 0 | K16: No | L16: 0
A17: 4 | B17: 2025 | C17: 0 | D17: 0 | E17: 0 | F17: 0 | G17: 0.078 | H17: 0 | I17: 0 | J17: 0 | K17: No | L17: 0
A18: 5 | B18: 2026 | C18: 0 | D18: 0 | E18: 0 | F18: 0 | G18: 0.078 | H18: 0 | I18: 0 | J18: 0 | K18: No | L18: 0
A19: 6 | B19: 2027 | C19: 0 | D19: 0 | E19: 0 | F19: 0 | G19: 0.078 | H19: 0 | I19: 0 | J19: 0 | K19: No | L19: 0
A20: 7 | B20: 2028 | C20: 0 | D20: 0 | E20: 0 | F20: 0 | G20: 0.078 | H20: 0 | I20: 0 | J20: 0 | K20: No | L20: 0
A21: 8 | B21: 2029 | C21: 0 | D21: -71.83794749 | E21: 0 | F21: -71.83794749 | G21: -71.75994749 | H21: 0 | I21: -71.75994749 | J21: 0.078 | K21: Yes | L21: 0.78 | N21: 2029 | O21: Summer
A22: 9 | B22: 2030 | C22: 0 | D22: -314.395395 | E22: 0 | F22: -314.395395 | G22: -314.317395 | H22: 0 | I22: -314.317395 | J22: 0.078 | K22: Yes | L22: 0.78 | N22: 2030 | O22: Summer
A23: 10 | B23: 2031 | C23: 0 | D23: -398.8526388 | E23: 0 | F23: -398.8526388 | G23: -398.7746388 | H23: 0 | I23: -398.7746388 | J23: 0.078 | K23: Yes | L23: 0.78 | N23: 2031 | O23: Summer
A24: 11 | B24: 2032 | C24: 0 | D24: -478.9992684 | E24: 0 | F24: -478.9992684 | G24: -478.9212684 | H24: 0 | I24: -478.9212684 | J24: 0.078 | K24: Yes | L24: 0.78 | N24: 2032 | O24: Summer
A25: 12 | B25: 2033 | C25: 0 | D25: -758.9620157 | E25: 0 | F25: -758.9620157 | G25: -758.8840157 | H25: 0 | I25: -758.8840157 | J25: 0.078 | K25: Yes | L25: 0.78 | N25: 2033 | O25: Summer
A26: 13 | B26: 2034 | C26: 0 | D26: -754.3955192 | E26: 0 | F26: -754.3955192 | G26: -754.3175192 | H26: 0 | I26: -754.3175192 | J26: 0.078 | K26: Yes | L26: 0.78 | N26: 2034 | O26: Summer
A27: 14 | B27: 2035 | C27: 0 | D27: -760.4603218 | E27: 0 | F27: -760.4603218 | G27: -760.3823218 | H27: 0 | I27: -760.3823218 | J27: 0.078 | K27: Yes | L27: 0.78 | N27: 2035 | O27: Summer
A28: 15 | B28: 2036 | C28: 0 | D28: -739.3839693 | E28: 0 | F28: -739.3839693 | G28: -739.3059693 | H28: 0 | I28: -739.3059693 | J28: 0.078 | K28: Yes | L28: 0.78 | N28: 2036 | O28: Summer
A29: 16 | B29: 2037 | C29: 0 | D29: -2232.906355 | E29: 0 | F29: -2232.906355 | G29: -2232.828355 | H29: 0 | I29: -2232.828355 | J29: 0.078 | K29: Yes | L29: 0.78 | N29: 2037 | O29: Summer
A30: 17 | B30: 2038 | C30: 0 | D30: -2929.676937 | E30: 0 | F30: -2929.676937 | G30: -2929.598937 | H30: 0 | I30: -2929.598937 | J30: 0.078 | K30: Yes | L30: 0.78 | N30: 2038 | O30: Summer
A31: 18 | B31: 2039 | C31: 0 | D31: -2929.676937 | E31: 0 | F31: -2929.676937 | G31: -2929.598937 | H31: 0 | I31: -2929.598937 | J31: 0.078 | K31: Yes | L31: 0.78 | N31: 2039 | O31: Summer
A32: 19 | B32: 2040 | C32: 0 | D32: -2929.676937 | E32: 0 | F32: -2929.676937 | G32: -2929.598937 | H32: 0 | I32: -2929.598937 | J32: 0.078 | K32: Yes | L32: 0.78 | N32: 2040 | O32: Summer
A33: 20 | B33: 2041 | C33: 0 | D33: -2929.676937 | E33: 0 | F33: -2929.676937 | G33: -2929.598937 | H33: 0 | I33: -2929.598937 | J33: 0.078 | K33: Yes | L33: 0.78 | N33: 2041 | O33: Summer
A34: 21 | B34: 2042 | C34: 0 | D34: -2929.676937 | E34: 0 | F34: -2929.676937 | G34: -2929.598937 | H34: 0 | I34: -2929.598937 | J34: 0.078 | K34: Yes | L34: 0.78 | N34: 2042 | O34: Summer
A35: 22 | B35: 2043 | C35: 0 | D35: -2929.676937 | E35: 0 | F35: -2929.676937 | G35: -2929.598937 | H35: 0 | I35: -2929.598937 | J35: 0.078 | K35: Yes | L35: 0.78 | N35: 2043 | O35: Summer
A36: 23 | B36: 2044 | C36: 0 | D36: -2929.676937 | E36: 0 | F36: -2929.676937 | G36: -2929.598937 | H36: 0 | I36: -2929.598937 | J36: 0.078 | K36: Yes | L36: 0.78 | N36: 2044 | O36: Summer
A37: 24 | B37: 2045 | C37: 0 | D37: -2929.676937 | E37: 0 | F37: -2929.676937 | G37: -2929.598937 | H37: 0 | I37: -2929.598937 | J37: 0.078 | K37: Yes | L37: 0.78 | N37: 2045 | O37: Summer
A38: 25 | B38: 2046 | C38: 0 | D38: -2929.676937 | E38: 0 | F38: -2929.676937 | G38: -2929.598937 | H38: 0 | I38: -2929.598937 | J38: 0.078 | K38: Yes | L38: 0.78 | N38: 2046 | O38: Summer
A39: 26 | B39: 2047 | C39: 0 | D39: -2929.676937 | E39: 0 | F39: -2929.676937 | G39: -2929.598937 | H39: 0 | I39: -2929.598937 | J39: 0.078 | K39: Yes | L39: 0.78 | N39: 2047 | O39: Summer
A40: 27 | B40: 2048 | C40: 0 | D40: -2929.676937 | E40: 0 | F40: -2929.676937 | G40: -2929.598937 | H40: 0 | I40: -2929.598937 | J40: 0.078 | K40: Yes | L40: 0.78 | N40: 2048 | O40: Summer
A41: 28 | B41: 2049 | C41: 0 | D41: -2929.676937 | E41: 0 | F41: -2929.676937 | G41: -2929.598937 | H41: 0 | I41: -2929.598937 | J41: 0.078 | K41: Yes | L41: 0.78 | N41: 2049 | O41: Summer
A42: 29 | B42: 2050 | C42: 0 | D42: -2929.676937 | E42: 0 | F42: -2929.676937 | G42: -2929.598937 | H42: 0 | I42: -2929.598937 | J42: 0.078 | K42: Yes | L42: 0.78 | N42: 2050 | O42: Summer
B46: Input data from IRP
C47: ="Avista "& 'Input - Avista IRP'!G3 -> Avista AVU-E-20-11 | F47: IPC-E-17-12 | I47: ="PacifiCorp "&'Input - RMP IRP'!I10 -> PacifiCorp PAC-E-20-13
C48: Energy (aMW) | D48: Summer Capacity (MW) | E48: Winter Capacity (MW) | F48: Energy (aMW) | G48: Summer Capacity (MW) | H48: Winter Capacity (MW) | I48: Energy (aMW) | J48: Summer Capacity (MW) | K48: Winter Capacity (MW)
B49: =B13 -> 2021 | C49: =MIN(VLOOKUP($B49,'Input - Avista IRP'!$A:$D,2,FALSE),0) -> 0 | D49: =MIN(VLOOKUP($B49,'Input - Avista IRP'!$A:$H,7,FALSE),0) -> 0 | E49: =MIN(VLOOKUP($B49,'Input - Avista IRP'!$A:$H,8,FALSE),0) -> 0 | F49: =MIN(VLOOKUP($B49,'Input - IPCO IRP'!$A:$B,2,FALSE),0) -> 0 | G49: =MIN(VLOOKUP($B49,'Input - IPCO IRP'!$A:$K,10,FALSE),0) -> 0 | H49: =MIN(VLOOKUP($B49,'Input - IPCO IRP'!$A:$K,11,FALSE),0) -> 0 | I49: =MIN(VLOOKUP($B49,'Input - RMP IRP'!$A:$K,9,FALSE),0) -> 0 | J49: =MIN(VLOOKUP($B49,'Input - RMP IRP'!$A:$K,10,FALSE),0) -> 0 | K49: =MIN(VLOOKUP($B49,'Input - RMP IRP'!$A:$K,11,FALSE),0) -> 0
B50: =B49+1 -> 2022 | C50: =MIN(VLOOKUP($B50,'Input - Avista IRP'!$A:$D,2,FALSE),0) -> 0 | D50: =MIN(VLOOKUP($B50,'Input - Avista IRP'!$A:$H,7,FALSE),0) -> 0 | E50: =MIN(VLOOKUP($B50,'Input - Avista IRP'!$A:$H,8,FALSE),0) -> 0 | F50: =MIN(VLOOKUP($B50,'Input - IPCO IRP'!$A:$B,2,FALSE),0) -> 0 | G50: =MIN(VLOOKUP($B50,'Input - IPCO IRP'!$A:$K,10,FALSE),0) -> 0 | H50: =MIN(VLOOKUP($B50,'Input - IPCO IRP'!$A:$K,11,FALSE),0) -> 0 | I50: =MIN(VLOOKUP($B50,'Input - RMP IRP'!$A:$K,9,FALSE),0) -> 0 | J50: =MIN(VLOOKUP($B50,'Input - RMP IRP'!$A:$K,10,FALSE),0) -> 0 | K50: =MIN(VLOOKUP($B50,'Input - RMP IRP'!$A:$K,11,FALSE),0) -> 0
B51: =B50+1 -> 2023 | C51: =MIN(VLOOKUP($B51,'Input - Avista IRP'!$A:$D,2,FALSE),0) -> 0 | D51: =MIN(VLOOKUP($B51,'Input - Avista IRP'!$A:$H,7,FALSE),0) -> 0 | E51: =MIN(VLOOKUP($B51,'Input - Avista IRP'!$A:$H,8,FALSE),0) -> 0 | F51: =MIN(VLOOKUP($B51,'Input - IPCO IRP'!$A:$B,2,FALSE),0) -> 0 | G51: =MIN(VLOOKUP($B51,'Input - IPCO IRP'!$A:$K,10,FALSE),0) -> 0 | H51: =MIN(VLOOKUP($B51,'Input - IPCO IRP'!$A:$K,11,FALSE),0) -> 0 | I51: =MIN(VLOOKUP($B51,'Input - RMP IRP'!$A:$K,9,FALSE),0) -> 0 | J51: =MIN(VLOOKUP($B51,'Input - RMP IRP'!$A:$K,10,FALSE),0) -> 0 | K51: =MIN(VLOOKUP($B51,'Input - RMP IRP'!$A:$K,11,FALSE),0) -> 0
B52: 2024 | C52: =MIN(VLOOKUP($B52,'Input - Avista IRP'!$A:$D,2,FALSE),0) -> 0 | D52: =MIN(VLOOKUP($B52,'Input - Avista IRP'!$A:$H,7,FALSE),0) -> 0 | E52: =MIN(VLOOKUP($B52,'Input - Avista IRP'!$A:$H,8,FALSE),0) -> 0 | F52: =MIN(VLOOKUP($B52,'Input - IPCO IRP'!$A:$B,2,FALSE),0) -> 0 | G52: =MIN(VLOOKUP($B52,'Input - IPCO IRP'!$A:$K,10,FALSE),0) -> 0 | H52: =MIN(VLOOKUP($B52,'Input - IPCO IRP'!$A:$K,11,FALSE),0) -> 0 | I52: =MIN(VLOOKUP($B52,'Input - RMP IRP'!$A:$K,9,FALSE),0) -> 0 | J52: =MIN(VLOOKUP($B52,'Input - RMP IRP'!$A:$K,10,FALSE),0) -> 0 | K52: =MIN(VLOOKUP($B52,'Input - RMP IRP'!$A:$K,11,FALSE),0) -> 0
B53: 2025 | C53: =MIN(VLOOKUP($B53,'Input - Avista IRP'!$A:$D,2,FALSE),0) -> 0 | D53: =MIN(VLOOKUP($B53,'Input - Avista IRP'!$A:$H,7,FALSE),0) -> 0 | E53: =MIN(VLOOKUP($B53,'Input - Avista IRP'!$A:$H,8,FALSE),0) -> 0 | F53: =MIN(VLOOKUP($B53,'Input - IPCO IRP'!$A:$B,2,FALSE),0) -> 0 | G53: =MIN(VLOOKUP($B53,'Input - IPCO IRP'!$A:$K,10,FALSE),0) -> 0 | H53: =MIN(VLOOKUP($B53,'Input - IPCO IRP'!$A:$K,11,FALSE),0) -> 0 | I53: =MIN(VLOOKUP($B53,'Input - RMP IRP'!$A:$K,9,FALSE),0) -> 0 | J53: =MIN(VLOOKUP($B53,'Input - RMP IRP'!$A:$K,10,FALSE),0) -> 0 | K53: =MIN(VLOOKUP($B53,'Input - RMP IRP'!$A:$K,11,FALSE),0) -> 0
B54: 2026 | C54: =MIN(VLOOKUP($B54,'Input - Avista IRP'!$A:$D,2,FALSE),0) -> 0 | D54: =MIN(VLOOKUP($B54,'Input - Avista IRP'!$A:$H,7,FALSE),0) -> 0 | E54: =MIN(VLOOKUP($B54,'Input - Avista IRP'!$A:$H,8,FALSE),0) -> -16.8005885 | F54: =MIN(VLOOKUP($B54,'Input - IPCO IRP'!$A:$B,2,FALSE),0) -> 0 | G54: =MIN(VLOOKUP($B54,'Input - IPCO IRP'!$A:$K,10,FALSE),0) -> -34.02938925 | H54: =MIN(VLOOKUP($B54,'Input - IPCO IRP'!$A:$K,11,FALSE),0) -> 0 | I54: =MIN(VLOOKUP($B54,'Input - RMP IRP'!$A:$K,9,FALSE),0) -> 0 | J54: =MIN(VLOOKUP($B54,'Input - RMP IRP'!$A:$K,10,FALSE),0) -> 0 | K54: =MIN(VLOOKUP($B54,'Input - RMP IRP'!$A:$K,11,FALSE),0) -> 0
B55: 2027 | C55: =MIN(VLOOKUP($B55,'Input - Avista IRP'!$A:$D,2,FALSE),0) -> 0 | D55: =MIN(VLOOKUP($B55,'Input - Avista IRP'!$A:$H,7,FALSE),0) -> -90.1248244 | E55: =MIN(VLOOKUP($B55,'Input - Avista IRP'!$A:$H,8,FALSE),0) -> -22.53086362 | F55: =MIN(VLOOKUP($B55,'Input - IPCO IRP'!$A:$B,2,FALSE),0) -> 0 | G55: =MIN(VLOOKUP($B55,'Input - IPCO IRP'!$A:$K,10,FALSE),0) -> -93.95568925 | H55: =MIN(VLOOKUP($B55,'Input - IPCO IRP'!$A:$K,11,FALSE),0) -> 0 | I55: =MIN(VLOOKUP($B55,'Input - RMP IRP'!$A:$K,9,FALSE),0) -> 0 | J55: =MIN(VLOOKUP($B55,'Input - RMP IRP'!$A:$K,10,FALSE),0) -> 0 | K55: =MIN(VLOOKUP($B55,'Input - RMP IRP'!$A:$K,11,FALSE),0) -> 0
B56: 2028 | C56: =MIN(VLOOKUP($B56,'Input - Avista IRP'!$A:$D,2,FALSE),0) -> 0 | D56: =MIN(VLOOKUP($B56,'Input - Avista IRP'!$A:$H,7,FALSE),0) -> -97.22810607 | E56: =MIN(VLOOKUP($B56,'Input - Avista IRP'!$A:$H,8,FALSE),0) -> -42.85154951 | F56: =MIN(VLOOKUP($B56,'Input - IPCO IRP'!$A:$B,2,FALSE),0) -> 0 | G56: =MIN(VLOOKUP($B56,'Input - IPCO IRP'!$A:$K,10,FALSE),0) -> -158.8872893 | H56: =MIN(VLOOKUP($B56,'Input - IPCO IRP'!$A:$K,11,FALSE),0) -> 0 | I56: =MIN(VLOOKUP($B56,'Input - RMP IRP'!$A:$K,9,FALSE),0) -> 0 | J56: =MIN(VLOOKUP($B56,'Input - RMP IRP'!$A:$K,10,FALSE),0) -> 0 | K56: =MIN(VLOOKUP($B56,'Input - RMP IRP'!$A:$K,11,FALSE),0) -> 0
B57: 2029 | C57: =MIN(VLOOKUP($B57,'Input - Avista IRP'!$A:$D,2,FALSE),0) -> 0 | D57: =MIN(VLOOKUP($B57,'Input - Avista IRP'!$A:$H,7,FALSE),0) -> -124.9489577 | E57: =MIN(VLOOKUP($B57,'Input - Avista IRP'!$A:$H,8,FALSE),0) -> -47.96861676 | F57: =MIN(VLOOKUP($B57,'Input - IPCO IRP'!$A:$B,2,FALSE),0) -> 0 | G57: =MIN(VLOOKUP($B57,'Input - IPCO IRP'!$A:$K,10,FALSE),0) -> -397.4678893 | H57: =MIN(VLOOKUP($B57,'Input - IPCO IRP'!$A:$K,11,FALSE),0) -> 0 | I57: =MIN(VLOOKUP($B57,'Input - RMP IRP'!$A:$K,9,FALSE),0) -> 0 | J57: =MIN(VLOOKUP($B57,'Input - RMP IRP'!$A:$K,10,FALSE),0) -> -71.83794749 | K57: =MIN(VLOOKUP($B57,'Input - RMP IRP'!$A:$K,11,FALSE),0) -> 0
B58: 2030 | C58: =MIN(VLOOKUP($B58,'Input - Avista IRP'!$A:$D,2,FALSE),0) -> 0 | D58: =MIN(VLOOKUP($B58,'Input - Avista IRP'!$A:$H,7,FALSE),0) -> -131.4803867 | E58: =MIN(VLOOKUP($B58,'Input - Avista IRP'!$A:$H,8,FALSE),0) -> -53.28466284 | F58: =MIN(VLOOKUP($B58,'Input - IPCO IRP'!$A:$B,2,FALSE),0) -> 0 | G58: =MIN(VLOOKUP($B58,'Input - IPCO IRP'!$A:$K,10,FALSE),0) -> -457.7554893 | H58: =MIN(VLOOKUP($B58,'Input - IPCO IRP'!$A:$K,11,FALSE),0) -> 0 | I58: =MIN(VLOOKUP($B58,'Input - RMP IRP'!$A:$K,9,FALSE),0) -> 0 | J58: =MIN(VLOOKUP($B58,'Input - RMP IRP'!$A:$K,10,FALSE),0) -> -314.395395 | K58: =MIN(VLOOKUP($B58,'Input - RMP IRP'!$A:$K,11,FALSE),0) -> 0
B59: 2031 | C59: =MIN(VLOOKUP($B59,'Input - Avista IRP'!$A:$D,2,FALSE),0) -> 0 | D59: =MIN(VLOOKUP($B59,'Input - Avista IRP'!$A:$H,7,FALSE),0) -> -202.3864362 | E59: =MIN(VLOOKUP($B59,'Input - Avista IRP'!$A:$H,8,FALSE),0) -> -133.6975449 | F59: =MIN(VLOOKUP($B59,'Input - IPCO IRP'!$A:$B,2,FALSE),0) -> 0 | G59: =MIN(VLOOKUP($B59,'Input - IPCO IRP'!$A:$K,10,FALSE),0) -> -521.4474893 | H59: =MIN(VLOOKUP($B59,'Input - IPCO IRP'!$A:$K,11,FALSE),0) -> 0 | I59: =MIN(VLOOKUP($B59,'Input - RMP IRP'!$A:$K,9,FALSE),0) -> 0 | J59: =MIN(VLOOKUP($B59,'Input - RMP IRP'!$A:$K,10,FALSE),0) -> -398.8526388 | K59: =MIN(VLOOKUP($B59,'Input - RMP IRP'!$A:$K,11,FALSE),0) -> 0
B60: 2032 | C60: =MIN(VLOOKUP($B60,'Input - Avista IRP'!$A:$D,2,FALSE),0) -> 0 | D60: =MIN(VLOOKUP($B60,'Input - Avista IRP'!$A:$H,7,FALSE),0) -> -209.3972155 | E60: =MIN(VLOOKUP($B60,'Input - Avista IRP'!$A:$H,8,FALSE),0) -> -139.514879 | F60: =MIN(VLOOKUP($B60,'Input - IPCO IRP'!$A:$B,2,FALSE),0) -> 0 | G60: =MIN(VLOOKUP($B60,'Input - IPCO IRP'!$A:$K,10,FALSE),0) -> -574.4954893 | H60: =MIN(VLOOKUP($B60,'Input - IPCO IRP'!$A:$K,11,FALSE),0) -> 0 | I60: =MIN(VLOOKUP($B60,'Input - RMP IRP'!$A:$K,9,FALSE),0) -> 0 | J60: =MIN(VLOOKUP($B60,'Input - RMP IRP'!$A:$K,10,FALSE),0) -> -478.9992684 | K60: =MIN(VLOOKUP($B60,'Input - RMP IRP'!$A:$K,11,FALSE),0) -> 0
B61: 2033 | C61: =MIN(VLOOKUP($B61,'Input - Avista IRP'!$A:$D,2,FALSE),0) -> 0 | D61: =MIN(VLOOKUP($B61,'Input - Avista IRP'!$A:$H,7,FALSE),0) -> -216.7068092 | E61: =MIN(VLOOKUP($B61,'Input - Avista IRP'!$A:$H,8,FALSE),0) -> -145.6466593 | F61: =MIN(VLOOKUP($B61,'Input - IPCO IRP'!$A:$B,2,FALSE),0) -> 0 | G61: =MIN(VLOOKUP($B61,'Input - IPCO IRP'!$A:$K,10,FALSE),0) -> -815.0514893 | H61: =MIN(VLOOKUP($B61,'Input - IPCO IRP'!$A:$K,11,FALSE),0) -> 0 | I61: =MIN(VLOOKUP($B61,'Input - RMP IRP'!$A:$K,9,FALSE),0) -> 0 | J61: =MIN(VLOOKUP($B61,'Input - RMP IRP'!$A:$K,10,FALSE),0) -> -758.9620157 | K61: =MIN(VLOOKUP($B61,'Input - RMP IRP'!$A:$K,11,FALSE),0) -> 0
B62: 2034 | C62: =MIN(VLOOKUP($B62,'Input - Avista IRP'!$A:$D,2,FALSE),0) -> 0 | D62: =MIN(VLOOKUP($B62,'Input - Avista IRP'!$A:$H,7,FALSE),0) -> -224.3637709 | E62: =MIN(VLOOKUP($B62,'Input - Avista IRP'!$A:$H,8,FALSE),0) -> -152.1452751 | F62: =MIN(VLOOKUP($B62,'Input - IPCO IRP'!$A:$B,2,FALSE),0) -> 0 | G62: =MIN(VLOOKUP($B62,'Input - IPCO IRP'!$A:$K,10,FALSE),0) -> -872.2774893 | H62: =MIN(VLOOKUP($B62,'Input - IPCO IRP'!$A:$K,11,FALSE),0) -> 0 | I62: =MIN(VLOOKUP($B62,'Input - RMP IRP'!$A:$K,9,FALSE),0) -> 0 | J62: =MIN(VLOOKUP($B62,'Input - RMP IRP'!$A:$K,10,FALSE),0) -> -754.3955192 | K62: =MIN(VLOOKUP($B62,'Input - RMP IRP'!$A:$K,11,FALSE),0) -> 0
B63: 2035 | C63: =MIN(VLOOKUP($B63,'Input - Avista IRP'!$A:$D,2,FALSE),0) -> 0 | D63: =MIN(VLOOKUP($B63,'Input - Avista IRP'!$A:$H,7,FALSE),0) -> -268.4828033 | E63: =MIN(VLOOKUP($B63,'Input - Avista IRP'!$A:$H,8,FALSE),0) -> -194.907323 | F63: =MIN(VLOOKUP($B63,'Input - IPCO IRP'!$A:$B,2,FALSE),0) -> 0 | G63: =MIN(VLOOKUP($B63,'Input - IPCO IRP'!$A:$K,10,FALSE),0) -> -927.6724893 | H63: =MIN(VLOOKUP($B63,'Input - IPCO IRP'!$A:$K,11,FALSE),0) -> 0 | I63: =MIN(VLOOKUP($B63,'Input - RMP IRP'!$A:$K,9,FALSE),0) -> 0 | J63: =MIN(VLOOKUP($B63,'Input - RMP IRP'!$A:$K,10,FALSE),0) -> -760.4603218 | K63: =MIN(VLOOKUP($B63,'Input - RMP IRP'!$A:$K,11,FALSE),0) -> 0
B64: 2036 | C64: =MIN(VLOOKUP($B64,'Input - Avista IRP'!$A:$D,2,FALSE),0) -> 0 | D64: =MIN(VLOOKUP($B64,'Input - Avista IRP'!$A:$H,7,FALSE),0) -> -277.0148916 | E64: =MIN(VLOOKUP($B64,'Input - Avista IRP'!$A:$H,8,FALSE),0) -> -202.3342776 | F64: =MIN(VLOOKUP($B64,'Input - IPCO IRP'!$A:$B,2,FALSE),0) -> 0 | G64: =MIN(VLOOKUP($B64,'Input - IPCO IRP'!$A:$K,10,FALSE),0) -> -986.2884893 | H64: =MIN(VLOOKUP($B64,'Input - IPCO IRP'!$A:$K,11,FALSE),0) -> 0 | I64: =MIN(VLOOKUP($B64,'Input - RMP IRP'!$A:$K,9,FALSE),0) -> 0 | J64: =MIN(VLOOKUP($B64,'Input - RMP IRP'!$A:$K,10,FALSE),0) -> -739.3839693 | K64: =MIN(VLOOKUP($B64,'Input - RMP IRP'!$A:$K,11,FALSE),0) -> 0
B65: 2037 | C65: =MIN(VLOOKUP($B65,'Input - Avista IRP'!$A:$D,2,FALSE),0) -> 0 | D65: =MIN(VLOOKUP($B65,'Input - Avista IRP'!$A:$H,7,FALSE),0) -> -322.1537458 | E65: =MIN(VLOOKUP($B65,'Input - Avista IRP'!$A:$H,8,FALSE),0) -> -246.1808248 | F65: =MIN(VLOOKUP($B65,'Input - IPCO IRP'!$A:$B,2,FALSE),0) -> 0 | G65: =MIN(VLOOKUP($B65,'Input - IPCO IRP'!$A:$K,10,FALSE),0) -> -986.2884893 | H65: =MIN(VLOOKUP($B65,'Input - IPCO IRP'!$A:$K,11,FALSE),0) -> 0 | I65: =MIN(VLOOKUP($B65,'Input - RMP IRP'!$A:$K,9,FALSE),0) -> 0 | J65: =MIN(VLOOKUP($B65,'Input - RMP IRP'!$A:$K,10,FALSE),0) -> -2232.906355 | K65: =MIN(VLOOKUP($B65,'Input - RMP IRP'!$A:$K,11,FALSE),0) -> 0
B66: 2038 | C66: =MIN(VLOOKUP($B66,'Input - Avista IRP'!$A:$D,2,FALSE),0) -> 0 | D66: =MIN(VLOOKUP($B66,'Input - Avista IRP'!$A:$H,7,FALSE),0) -> -341.1404106 | E66: =MIN(VLOOKUP($B66,'Input - Avista IRP'!$A:$H,8,FALSE),0) -> -254.8752369 | F66: =MIN(VLOOKUP($B66,'Input - IPCO IRP'!$A:$B,2,FALSE),0) -> 0 | G66: =MIN(VLOOKUP($B66,'Input - IPCO IRP'!$A:$K,10,FALSE),0) -> -986.2884893 | H66: =MIN(VLOOKUP($B66,'Input - IPCO IRP'!$A:$K,11,FALSE),0) -> 0 | I66: =MIN(VLOOKUP($B66,'Input - RMP IRP'!$A:$K,9,FALSE),0) -> 0 | J66: =MIN(VLOOKUP($B66,'Input - RMP IRP'!$A:$K,10,FALSE),0) -> -2929.676937 | K66: =MIN(VLOOKUP($B66,'Input - RMP IRP'!$A:$K,11,FALSE),0) -> 0
B67: 2039 | C67: =MIN(VLOOKUP($B67,'Input - Avista IRP'!$A:$D,2,FALSE),0) -> 0 | D67: =MIN(VLOOKUP($B67,'Input - Avista IRP'!$A:$H,7,FALSE),0) -> -351.5630441 | E67: =MIN(VLOOKUP($B67,'Input - Avista IRP'!$A:$H,8,FALSE),0) -> -264.3683792 | F67: =MIN(VLOOKUP($B67,'Input - IPCO IRP'!$A:$B,2,FALSE),0) -> 0 | G67: =MIN(VLOOKUP($B67,'Input - IPCO IRP'!$A:$K,10,FALSE),0) -> -986.2884893 | H67: =MIN(VLOOKUP($B67,'Input - IPCO IRP'!$A:$K,11,FALSE),0) -> 0 | I67: =MIN(VLOOKUP($B67,'Input - RMP IRP'!$A:$K,9,FALSE),0) -> 0 | J67: =MIN(VLOOKUP($B67,'Input - RMP IRP'!$A:$K,10,FALSE),0) -> -2929.676937 | K67: =MIN(VLOOKUP($B67,'Input - RMP IRP'!$A:$K,11,FALSE),0) -> 0
B68: 2040 | C68: =MIN(VLOOKUP($B68,'Input - Avista IRP'!$A:$D,2,FALSE),0) -> 0 | D68: =MIN(VLOOKUP($B68,'Input - Avista IRP'!$A:$H,7,FALSE),0) -> -362.8589674 | E68: =MIN(VLOOKUP($B68,'Input - Avista IRP'!$A:$H,8,FALSE),0) -> -274.7957466 | F68: =MIN(VLOOKUP($B68,'Input - IPCO IRP'!$A:$B,2,FALSE),0) -> 0 | G68: =MIN(VLOOKUP($B68,'Input - IPCO IRP'!$A:$K,10,FALSE),0) -> -986.2884893 | H68: =MIN(VLOOKUP($B68,'Input - IPCO IRP'!$A:$K,11,FALSE),0) -> 0 | I68: =MIN(VLOOKUP($B68,'Input - RMP IRP'!$A:$K,9,FALSE),0) -> 0 | J68: =MIN(VLOOKUP($B68,'Input - RMP IRP'!$A:$K,10,FALSE),0) -> -2929.676937 | K68: =MIN(VLOOKUP($B68,'Input - RMP IRP'!$A:$K,11,FALSE),0) -> 0
B69: 2041 | C69: =MIN(VLOOKUP($B69,'Input - Avista IRP'!$A:$D,2,FALSE),0) -> 0 | D69: =MIN(VLOOKUP($B69,'Input - Avista IRP'!$A:$H,7,FALSE),0) -> -377.6701114 | E69: =MIN(VLOOKUP($B69,'Input - Avista IRP'!$A:$H,8,FALSE),0) -> -286.3160877 | F69: =MIN(VLOOKUP($B69,'Input - IPCO IRP'!$A:$B,2,FALSE),0) -> 0 | G69: =MIN(VLOOKUP($B69,'Input - IPCO IRP'!$A:$K,10,FALSE),0) -> -986.2884893 | H69: =MIN(VLOOKUP($B69,'Input - IPCO IRP'!$A:$K,11,FALSE),0) -> 0 | I69: =MIN(VLOOKUP($B69,'Input - RMP IRP'!$A:$K,9,FALSE),0) -> 0 | J69: =MIN(VLOOKUP($B69,'Input - RMP IRP'!$A:$K,10,FALSE),0) -> -2929.676937 | K69: =MIN(VLOOKUP($B69,'Input - RMP IRP'!$A:$K,11,FALSE),0) -> 0
B70: 2042 | C70: =MIN(VLOOKUP($B70,'Input - Avista IRP'!$A:$D,2,FALSE),0) -> 0 | D70: =MIN(VLOOKUP($B70,'Input - Avista IRP'!$A:$H,7,FALSE),0) -> -391.179025 | E70: =MIN(VLOOKUP($B70,'Input - Avista IRP'!$A:$H,8,FALSE),0) -> -299.1153966 | F70: =MIN(VLOOKUP($B70,'Input - IPCO IRP'!$A:$B,2,FALSE),0) -> 0 | G70: =MIN(VLOOKUP($B70,'Input - IPCO IRP'!$A:$K,10,FALSE),0) -> -986.2884893 | H70: =MIN(VLOOKUP($B70,'Input - IPCO IRP'!$A:$K,11,FALSE),0) -> 0 | I70: =MIN(VLOOKUP($B70,'Input - RMP IRP'!$A:$K,9,FALSE),0) -> 0 | J70: =MIN(VLOOKUP($B70,'Input - RMP IRP'!$A:$K,10,FALSE),0) -> -2929.676937 | K70: =MIN(VLOOKUP($B70,'Input - RMP IRP'!$A:$K,11,FALSE),0) -> 0
B71: 2043 | C71: =MIN(VLOOKUP($B71,'Input - Avista IRP'!$A:$D,2,FALSE),0) -> 0 | D71: =MIN(VLOOKUP($B71,'Input - Avista IRP'!$A:$H,7,FALSE),0) -> -407.8824379 | E71: =MIN(VLOOKUP($B71,'Input - Avista IRP'!$A:$H,8,FALSE),0) -> -313.4115897 | F71: =MIN(VLOOKUP($B71,'Input - IPCO IRP'!$A:$B,2,FALSE),0) -> 0 | G71: =MIN(VLOOKUP($B71,'Input - IPCO IRP'!$A:$K,10,FALSE),0) -> -986.2884893 | H71: =MIN(VLOOKUP($B71,'Input - IPCO IRP'!$A:$K,11,FALSE),0) -> 0 | I71: =MIN(VLOOKUP($B71,'Input - RMP IRP'!$A:$K,9,FALSE),0) -> 0 | J71: =MIN(VLOOKUP($B71,'Input - RMP IRP'!$A:$K,10,FALSE),0) -> -2929.676937 | K71: =MIN(VLOOKUP($B71,'Input - RMP IRP'!$A:$K,11,FALSE),0) -> 0
B72: 2044 | C72: =MIN(VLOOKUP($B72,'Input - Avista IRP'!$A:$D,2,FALSE),0) -> 0 | D72: =MIN(VLOOKUP($B72,'Input - Avista IRP'!$A:$H,7,FALSE),0) -> -424.416848 | E72: =MIN(VLOOKUP($B72,'Input - Avista IRP'!$A:$H,8,FALSE),0) -> -329.4599848 | F72: =MIN(VLOOKUP($B72,'Input - IPCO IRP'!$A:$B,2,FALSE),0) -> 0 | G72: =MIN(VLOOKUP($B72,'Input - IPCO IRP'!$A:$K,10,FALSE),0) -> -986.2884893 | H72: =MIN(VLOOKUP($B72,'Input - IPCO IRP'!$A:$K,11,FALSE),0) -> 0 | I72: =MIN(VLOOKUP($B72,'Input - RMP IRP'!$A:$K,9,FALSE),0) -> 0 | J72: =MIN(VLOOKUP($B72,'Input - RMP IRP'!$A:$K,10,FALSE),0) -> -2929.676937 | K72: =MIN(VLOOKUP($B72,'Input - RMP IRP'!$A:$K,11,FALSE),0) -> 0
B73: 2045 | C73: =MIN(VLOOKUP($B73,'Input - Avista IRP'!$A:$D,2,FALSE),0) -> 0 | D73: =MIN(VLOOKUP($B73,'Input - Avista IRP'!$A:$H,7,FALSE),0) -> -442.8593392 | E73: =MIN(VLOOKUP($B73,'Input - Avista IRP'!$A:$H,8,FALSE),0) -> -347.5597213 | F73: =MIN(VLOOKUP($B73,'Input - IPCO IRP'!$A:$B,2,FALSE),0) -> 0 | G73: =MIN(VLOOKUP($B73,'Input - IPCO IRP'!$A:$K,10,FALSE),0) -> -986.2884893 | H73: =MIN(VLOOKUP($B73,'Input - IPCO IRP'!$A:$K,11,FALSE),0) -> 0 | I73: =MIN(VLOOKUP($B73,'Input - RMP IRP'!$A:$K,9,FALSE),0) -> 0 | J73: =MIN(VLOOKUP($B73,'Input - RMP IRP'!$A:$K,10,FALSE),0) -> -2929.676937 | K73: =MIN(VLOOKUP($B73,'Input - RMP IRP'!$A:$K,11,FALSE),0) -> 0
B74: 2046 | C74: =MIN(VLOOKUP($B74,'Input - Avista IRP'!$A:$D,2,FALSE),0) -> 0 | D74: =MIN(VLOOKUP($B74,'Input - Avista IRP'!$A:$H,7,FALSE),0) -> -442.8593392 | E74: =MIN(VLOOKUP($B74,'Input - Avista IRP'!$A:$H,8,FALSE),0) -> -347.5597213 | F74: =MIN(VLOOKUP($B74,'Input - IPCO IRP'!$A:$B,2,FALSE),0) -> 0 | G74: =MIN(VLOOKUP($B74,'Input - IPCO IRP'!$A:$K,10,FALSE),0) -> -986.2884893 | H74: =MIN(VLOOKUP($B74,'Input - IPCO IRP'!$A:$K,11,FALSE),0) -> 0 | I74: =MIN(VLOOKUP($B74,'Input - RMP IRP'!$A:$K,9,FALSE),0) -> 0 | J74: =MIN(VLOOKUP($B74,'Input - RMP IRP'!$A:$K,10,FALSE),0) -> -2929.676937 | K74: =MIN(VLOOKUP($B74,'Input - RMP IRP'!$A:$K,11,FALSE),0) -> 0
B75: 2047 | C75: =MIN(VLOOKUP($B75,'Input - Avista IRP'!$A:$D,2,FALSE),0) -> 0 | D75: =MIN(VLOOKUP($B75,'Input - Avista IRP'!$A:$H,7,FALSE),0) -> -442.8593392 | E75: =MIN(VLOOKUP($B75,'Input - Avista IRP'!$A:$H,8,FALSE),0) -> -347.5597213 | F75: =MIN(VLOOKUP($B75,'Input - IPCO IRP'!$A:$B,2,FALSE),0) -> 0 | G75: =MIN(VLOOKUP($B75,'Input - IPCO IRP'!$A:$K,10,FALSE),0) -> -986.2884893 | H75: =MIN(VLOOKUP($B75,'Input - IPCO IRP'!$A:$K,11,FALSE),0) -> 0 | I75: =MIN(VLOOKUP($B75,'Input - RMP IRP'!$A:$K,9,FALSE),0) -> 0 | J75: =MIN(VLOOKUP($B75,'Input - RMP IRP'!$A:$K,10,FALSE),0) -> -2929.676937 | K75: =MIN(VLOOKUP($B75,'Input - RMP IRP'!$A:$K,11,FALSE),0) -> 0
B76: 2048 | C76: =MIN(VLOOKUP($B76,'Input - Avista IRP'!$A:$D,2,FALSE),0) -> 0 | D76: =MIN(VLOOKUP($B76,'Input - Avista IRP'!$A:$H,7,FALSE),0) -> -442.8593392 | E76: =MIN(VLOOKUP($B76,'Input - Avista IRP'!$A:$H,8,FALSE),0) -> -347.5597213 | F76: =MIN(VLOOKUP($B76,'Input - IPCO IRP'!$A:$B,2,FALSE),0) ->  | G76: =MIN(VLOOKUP($B76,'Input - IPCO IRP'!$A:$K,10,FALSE),0) ->  | H76: =MIN(VLOOKUP($B76,'Input - IPCO IRP'!$A:$K,11,FALSE),0) ->  | I76: =MIN(VLOOKUP($B76,'Input - RMP IRP'!$A:$K,9,FALSE),0) -> 0 | J76: =MIN(VLOOKUP($B76,'Input - RMP IRP'!$A:$K,10,FALSE),0) -> -2929.676937 | K76: =MIN(VLOOKUP($B76,'Input - RMP IRP'!$A:$K,11,FALSE),0) -> 0
B77: 2049 | C77: =MIN(VLOOKUP($B77,'Input - Avista IRP'!$A:$D,2,FALSE),0) -> 0 | D77: =MIN(VLOOKUP($B77,'Input - Avista IRP'!$A:$H,7,FALSE),0) -> -442.8593392 | E77: =MIN(VLOOKUP($B77,'Input - Avista IRP'!$A:$H,8,FALSE),0) -> -347.5597213 | F77: =MIN(VLOOKUP($B77,'Input - IPCO IRP'!$A:$B,2,FALSE),0) ->  | G77: =MIN(VLOOKUP($B77,'Input - IPCO IRP'!$A:$K,10,FALSE),0) ->  | H77: =MIN(VLOOKUP($B77,'Input - IPCO IRP'!$A:$K,11,FALSE),0) ->  | I77: =MIN(VLOOKUP($B77,'Input - RMP IRP'!$A:$K,9,FALSE),0) -> 0 | J77: =MIN(VLOOKUP($B77,'Input - RMP IRP'!$A:$K,10,FALSE),0) -> -2929.676937 | K77: =MIN(VLOOKUP($B77,'Input - RMP IRP'!$A:$K,11,FALSE),0) -> 0
B78: 2050 | C78: 0 | D78: =MIN(VLOOKUP($B78,'Input - Avista IRP'!$A:$H,7,FALSE),0) -> -442.8593392 | E78: =MIN(VLOOKUP($B78,'Input - Avista IRP'!$A:$H,8,FALSE),0) -> -347.5597213 | F78: =MIN(VLOOKUP($B78,'Input - IPCO IRP'!$A:$B,2,FALSE),0) ->  | G78: =MIN(VLOOKUP($B78,'Input - IPCO IRP'!$A:$K,10,FALSE),0) ->  | H78: =MIN(VLOOKUP($B78,'Input - IPCO IRP'!$A:$K,11,FALSE),0) ->  | I78: =MIN(VLOOKUP($B78,'Input - RMP IRP'!$A:$K,9,FALSE),0) -> 0 | J78: =MIN(VLOOKUP($B78,'Input - RMP IRP'!$A:$K,10,FALSE),0) -> -2929.676937 | K78: =MIN(VLOOKUP($B78,'Input - RMP IRP'!$A:$K,11,FALSE),0) -> 0

Sheet Input - Transmission
A2: Utility Transmission Costs
A5: Utility | B5: Rate ($/kW-mo) | C5: Losses
A6: AVISTA | B6: 2 | C6: 0.03
A7: IPCO | B7: 1.75 | C7: 0.04
A8: PCP | B8: 2.5 | C8: 0.05
A10: Rates Year | C10: 2012
A11: Inflation Rate | C11: ='AVOID NEW'!D47 -> 0.02
A14: Note: The current SAR model does not take utility transmission costs into account.

Sheet AVISTA NF HLH LLH Levelized
B1: =IF('AVOID NEW'!E105="AVISTA","AVISTA","THESE RATES ARE NOT VALID") -> THESE RATES ARE NOT VALID
B2: AVOIDED COST RATES FOR NON-FUELED PROJECTS
B3: Eligibility for these rates is limited to wind and solar projects 100 kW or smaller, and to non-wind and non-solar projects smaller than 10 aMW
B5: Seasonalization Factors
B7: Season 1 | D7: ='AVOID NEW'!E75 -> 1.08 | E7: (Applied to July - February)
B8: Season 2 | D8: ='AVOID NEW'!E76 -> 0.84 | E8: (Applied to March - June)
B12: =$B$1 -> THESE RATES ARE NOT VALID
B13: LEVELIZED RATES
B14: ="PROJECT ON-LINE IN "& 'AVOID NEW'!$D$54 -> PROJECT ON-LINE IN 2021
B15: ="Rate Effective Date: "&'AVOID NEW'!$E$69 -> Rate Effective Date: April 5, 2021
B16: ="Resource: "&'Input - Capacity Factors'!$C$3 -> Resource: Seasonal hydro
C17: Levelized Price | G17: ="Season 1 Pricing ("&$D$7*100&"%)" -> Season 1 Pricing (108%) | N17: ="Season 2 Pricing ("&100*$D$8&"%)" -> Season 2 Pricing (84%) | V17: Non-Seasonalized Pricing
C18: Heavy and Light Load Hour Differential | D18: ='AVOID NEW'!$E$66 -> 5 | G18: Flat | I18: Heavy Load Hour | K18: Light Load Hour | N18: Flat | P18: Heavy Load Hour | R18: Light Load Hour | V18: Flat | X18: Heavy Load Hour | Z18: Light Load Hour
D19: =ROUND(D18/3,2) -> 1.67 | E19: =-ROUND((D18*2)/3,2) -> -3.33 | G19: Price | H19: Price less wind integration adjustment | J19: Price less wind integration adjustment | L19: Price less wind integration adjustment | O19: Price less wind integration adjustment | Q19: Price less wind integration adjustment | S19: Price less wind integration adjustment | W19: Price less wind integration adjustment | Y19: Price less wind integration adjustment | AA19: Price less wind integration adjustment
B20: Contract Length | C20: Flat | D20: Heavy Load Hour | E20: Light Load Hour | I20: Price | K20: Price | N20: Price | P20: Price | R20: Price | V20: Price | X20: Price | Z20: Price
B21: 1 | C21: ='AVOID NEW'!AN9 -> 23.83324924 | D21: =C21+D$19 -> 25.50324924 | E21: =C21+E$19 -> 20.50324924 | G21: =ROUND((+$C21*$D$7),2) -> 25.74 | H21: =IF(OR('Input - Capacity Factors'!$C$3="Wind"),IF(G21*'AVOID NEW'!$E$67<6.5,G21*(1-'AVOID NEW'!$E$67),G21-6.5),"NA") -> NA | I21: =ROUND((+$D21*$D$7),2) -> 27.54 | J21: =IF(OR('Input - Capacity Factors'!$C$3="Wind"),IF(I21*'AVOID NEW'!$E$67<6.5,I21*(1-'AVOID NEW'!$E$67),I21-6.5),"NA") -> NA | K21: =ROUND((+$E21*$D$7),2) -> 22.14 | L21: =IF(OR('Input - Capacity Factors'!$C$3="Wind"),IF(K21*'AVOID NEW'!$E$67<6.5,K21*(1-'AVOID NEW'!$E$67),K21-6.5),"NA") -> NA | N21: =ROUND((+$C21*$D$8),2) -> 20.02 | O21: =IF(OR('Input - Capacity Factors'!$C$3="Wind"),IF(N21*'AVOID NEW'!$E$67<6.5,N21*(1-'AVOID NEW'!$E$67),N21-6.5),"NA") -> NA | P21: =ROUND((+$D21*$D$8),2) -> 21.42 | Q21: =IF(OR('Input - Capacity Factors'!$C$3="Wind"),IF(P21*'AVOID NEW'!$E$67<6.5,P21*(1-'AVOID NEW'!$E$67),P21-6.5),"NA") -> NA | R21: =ROUND((+$E21*$D$8),2) -> 17.22 | S21: =IF(OR('Input - Capacity Factors'!$C$3="Wind"),IF(R21*'AVOID NEW'!$E$67<6.5,R21*(1-'AVOID NEW'!$E$67),R21-6.5),"NA") -> NA | V21: =ROUND((+$C21),2) -> 23.83 | W21: =IF(OR('Input - Capacity Factors'!$C$3="Wind"),IF(V21*'AVOID NEW'!$E$67<6.5,V21*(1-'AVOID NEW'!$E$67),V21-6.5),"NA") -> NA | X21: =ROUND((+$D21),2) -> 25.5 | Y21: =IF(OR('Input - Capacity Factors'!$C$3="Wind"),IF(X21*'AVOID NEW'!$E$67<6.5,X21*(1-'AVOID NEW'!$E$67),X21-6.5),"NA") -> NA | Z21: =ROUND((+$E21),2) -> 20.5 | AA21: =IF(OR('Input - Capacity Factors'!$C$3="Wind"),IF(Z21*'AVOID NEW'!$E$67<6.5,Z21*(1-'AVOID NEW'!$E$67),Z21-6.5),"NA") -> NA
B22: 2 | C22: ='AVOID NEW'!AN10 -> 23.86565571 | D22: 25.53565571 | E22: 20.53565571 | G22: 25.77 | H22: =IF(OR('Input - Capacity Factors'!$C$3="Wind"),IF(G22*'AVOID NEW'!$E$67<6.5,G22*(1-'AVOID NEW'!$E$67),G22-6.5),"NA") -> NA | I22: 27.58 | J22: =IF(OR('Input - Capacity Factors'!$C$3="Wind"),IF(I22*'AVOID NEW'!$E$67<6.5,I22*(1-'AVOID NEW'!$E$67),I22-6.5),"NA") -> NA | K22: 22.18 | L22: =IF(OR('Input - Capacity Factors'!$C$3="Wind"),IF(K22*'AVOID NEW'!$E$67<6.5,K22*(1-'AVOID NEW'!$E$67),K22-6.5),"NA") -> NA | N22: 20.05 | O22: =IF(OR('Input - Capacity Factors'!$C$3="Wind"),IF(N22*'AVOID NEW'!$E$67<6.5,N22*(1-'AVOID NEW'!$E$67),N22-6.5),"NA") -> NA | P22: 21.45 | Q22: =IF(OR('Input - Capacity Factors'!$C$3="Wind"),IF(P22*'AVOID NEW'!$E$67<6.5,P22*(1-'AVOID NEW'!$E$67),P22-6.5),"NA") -> NA | R22: 17.25 | S22: =IF(OR('Input - Capacity Factors'!$C$3="Wind"),IF(R22*'AVOID NEW'!$E$67<6.5,R22*(1-'AVOID NEW'!$E$67),R22-6.5),"NA") -> NA | V22: =ROUND((+$C22),2) -> 23.87 | W22: =IF(OR('Input - Capacity Factors'!$C$3="Wind"),IF(V22*'AVOID NEW'!$E$67<6.5,V22*(1-'AVOID NEW'!$E$67),V22-6.5),"NA") -> NA | X22: =ROUND((+$D22),2) -> 25.54 | Y22: =IF(OR('Input - Capacity Factors'!$C$3="Wind"),IF(X22*'AVOID NEW'!$E$67<6.5,X22*(1-'AVOID NEW'!$E$67),X22-6.5),"NA") -> NA | Z22: =ROUND((+$E22),2) -> 20.54 | AA22: =IF(OR('Input - Capacity Factors'!$C$3="Wind"),IF(Z22*'AVOID NEW'!$E$67<6.5,Z22*(1-'AVOID NEW'!$E$67),Z22-6.5),"NA") -> NA
B23: 3 | C23: ='AVOID NEW'!AN11 -> 24.193566 | D23: 25.863566 | E23: 20.863566 | G23: 26.13 | H23: =IF(OR('Input - Capacity Factors'!$C$3="Wind"),IF(G23*'AVOID NEW'!$E$67<6.5,G23*(1-'AVOID NEW'!$E$67),G23-6.5),"NA") -> NA | I23: 27.93 | J23: =IF(OR('Input - Capacity Factors'!$C$3="Wind"),IF(I23*'AVOID NEW'!$E$67<6.5,I23*(1-'AVOID NEW'!$E$67),I23-6.5),"NA") -> NA | K23: 22.53 | L23: =IF(OR('Input - Capacity Factors'!$C$3="Wind"),IF(K23*'AVOID NEW'!$E$67<6.5,K23*(1-'AVOID NEW'!$E$67),K23-6.5),"NA") -> NA | N23: 20.32 | O23: =IF(OR('Input - Capacity Factors'!$C$3="Wind"),IF(N23*'AVOID NEW'!$E$67<6.5,N23*(1-'AVOID NEW'!$E$67),N23-6.5),"NA") -> NA | P23: 21.73 | Q23: =IF(OR('Input - Capacity Factors'!$C$3="Wind"),IF(P23*'AVOID NEW'!$E$67<6.5,P23*(1-'AVOID NEW'!$E$67),P23-6.5),"NA") -> NA | R23: 17.53 | S23: =IF(OR('Input - Capacity Factors'!$C$3="Wind"),IF(R23*'AVOID NEW'!$E$67<6.5,R23*(1-'AVOID NEW'!$E$67),R23-6.5),"NA") -> NA | V23: 24.19 | W23: =IF(OR('Input - Capacity Factors'!$C$3="Wind"),IF(V23*'AVOID NEW'!$E$67<6.5,V23*(1-'AVOID NEW'!$E$67),V23-6.5),"NA") -> NA | X23: 25.86 | Y23: =IF(OR('Input - Capacity Factors'!$C$3="Wind"),IF(X23*'AVOID NEW'!$E$67<6.5,X23*(1-'AVOID NEW'!$E$67),X23-6.5),"NA") -> NA | Z23: 20.86 | AA23: =IF(OR('Input - Capacity Factors'!$C$3="Wind"),IF(Z23*'AVOID NEW'!$E$67<6.5,Z23*(1-'AVOID NEW'!$E$67),Z23-6.5),"NA") -> NA
B24: 4 | C24: ='AVOID NEW'!AN12 -> 24.82306673 | D24: 26.49306673 | E24: 21.49306673 | G24: 26.81 | H24: =IF(OR('Input - Capacity Factors'!$C$3="Wind"),IF(G24*'AVOID NEW'!$E$67<6.5,G24*(1-'AVOID NEW'!$E$67),G24-6.5),"NA") -> NA | I24: 28.61 | J24: =IF(OR('Input - Capacity Factors'!$C$3="Wind"),IF(I24*'AVOID NEW'!$E$67<6.5,I24*(1-'AVOID NEW'!$E$67),I24-6.5),"NA") -> NA | K24: 23.21 | L24: =IF(OR('Input - Capacity Factors'!$C$3="Wind"),IF(K24*'AVOID NEW'!$E$67<6.5,K24*(1-'AVOID NEW'!$E$67),K24-6.5),"NA") -> NA | N24: 20.85 | O24: =IF(OR('Input - Capacity Factors'!$C$3="Wind"),IF(N24*'AVOID NEW'!$E$67<6.5,N24*(1-'AVOID NEW'!$E$67),N24-6.5),"NA") -> NA | P24: 22.25 | Q24: =IF(OR('Input - Capacity Factors'!$C$3="Wind"),IF(P24*'AVOID NEW'!$E$67<6.5,P24*(1-'AVOID NEW'!$E$67),P24-6.5),"NA") -> NA | R24: 18.05 | S24: =IF(OR('Input - Capacity Factors'!$C$3="Wind"),IF(R24*'AVOID NEW'!$E$67<6.5,R24*(1-'AVOID NEW'!$E$67),R24-6.5),"NA") -> NA | V24: 24.82 | W24: =IF(OR('Input - Capacity Factors'!$C$3="Wind"),IF(V24*'AVOID NEW'!$E$67<6.5,V24*(1-'AVOID NEW'!$E$67),V24-6.5),"NA") -> NA | X24: 26.49 | Y24: =IF(OR('Input - Capacity Factors'!$C$3="Wind"),IF(X24*'AVOID NEW'!$E$67<6.5,X24*(1-'AVOID NEW'!$E$67),X24-6.5),"NA") -> NA | Z24: 21.49 | AA24: =IF(OR('Input - Capacity Factors'!$C$3="Wind"),IF(Z24*'AVOID NEW'!$E$67<6.5,Z24*(1-'AVOID NEW'!$E$67),Z24-6.5),"NA") -> NA
B25: 5 | C25: ='AVOID NEW'!AN13 -> 25.75648701 | D25: 27.42648701 | E25: 22.42648701 | G25: 27.82 | H25: =IF(OR('Input - Capacity Factors'!$C$3="Wind"),IF(G25*'AVOID NEW'!$E$67<6.5,G25*(1-'AVOID NEW'!$E$67),G25-6.5),"NA") -> NA | I25: 29.62 | J25: =IF(OR('Input - Capacity Factors'!$C$3="Wind"),IF(I25*'AVOID NEW'!$E$67<6.5,I25*(1-'AVOID NEW'!$E$67),I25-6.5),"NA") -> NA | K25: 24.22 | L25: =IF(OR('Input - Capacity Factors'!$C$3="Wind"),IF(K25*'AVOID NEW'!$E$67<6.5,K25*(1-'AVOID NEW'!$E$67),K25-6.5),"NA") -> NA | N25: 21.64 | O25: =IF(OR('Input - Capacity Factors'!$C$3="Wind"),IF(N25*'AVOID NEW'!$E$67<6.5,N25*(1-'AVOID NEW'!$E$67),N25-6.5),"NA") -> NA | P25: 23.04 | Q25: =IF(OR('Input - Capacity Factors'!$C$3="Wind"),IF(P25*'AVOID NEW'!$E$67<6.5,P25*(1-'AVOID NEW'!$E$67),P25-6.5),"NA") -> NA | R25: 18.84 | S25: =IF(OR('Input - Capacity Factors'!$C$3="Wind"),IF(R25*'AVOID NEW'!$E$67<6.5,R25*(1-'AVOID NEW'!$E$67),R25-6.5),"NA") -> NA | V25: 25.76 | W25: =IF(OR('Input - Capacity Factors'!$C$3="Wind"),IF(V25*'AVOID NEW'!$E$67<6.5,V25*(1-'AVOID NEW'!$E$67),V25-6.5),"NA") -> NA | X25: 27.43 | Y25: =IF(OR('Input - Capacity Factors'!$C$3="Wind"),IF(X25*'AVOID NEW'!$E$67<6.5,X25*(1-'AVOID NEW'!$E$67),X25-6.5),"NA") -> NA | Z25: 22.43 | AA25: =IF(OR('Input - Capacity Factors'!$C$3="Wind"),IF(Z25*'AVOID NEW'!$E$67<6.5,Z25*(1-'AVOID NEW'!$E$67),Z25-6.5),"NA") -> NA
B26: 6 | C26: ='AVOID NEW'!AN14 -> 26.81365715 | D26: 28.48365715 | E26: 23.48365715 | G26: 28.96 | H26: =IF(OR('Input - Capacity Factors'!$C$3="Wind"),IF(G26*'AVOID NEW'!$E$67<6.5,G26*(1-'AVOID NEW'!$E$67),G26-6.5),"NA") -> NA | I26: 30.76 | J26: =IF(OR('Input - Capacity Factors'!$C$3="Wind"),IF(I26*'AVOID NEW'!$E$67<6.5,I26*(1-'AVOID NEW'!$E$67),I26-6.5),"NA") -> NA | K26: 25.36 | L26: =IF(OR('Input - Capacity Factors'!$C$3="Wind"),IF(K26*'AVOID NEW'!$E$67<6.5,K26*(1-'AVOID NEW'!$E$67),K26-6.5),"NA") -> NA | N26: 22.52 | O26: =IF(OR('Input - Capacity Factors'!$C$3="Wind"),IF(N26*'AVOID NEW'!$E$67<6.5,N26*(1-'AVOID NEW'!$E$67),N26-6.5),"NA") -> NA | P26: 23.93 | Q26: =IF(OR('Input - Capacity Factors'!$C$3="Wind"),IF(P26*'AVOID NEW'!$E$67<6.5,P26*(1-'AVOID NEW'!$E$67),P26-6.5),"NA") -> NA | R26: 19.73 | S26: =IF(OR('Input - Capacity Factors'!$C$3="Wind"),IF(R26*'AVOID NEW'!$E$67<6.5,R26*(1-'AVOID NEW'!$E$67),R26-6.5),"NA") -> NA | V26: 26.81 | W26: =IF(OR('Input - Capacity Factors'!$C$3="Wind"),IF(V26*'AVOID NEW'!$E$67<6.5,V26*(1-'AVOID NEW'!$E$67),V26-6.5),"NA") -> NA | X26: 28.48 | Y26: =IF(OR('Input - Capacity Factors'!$C$3="Wind"),IF(X26*'AVOID NEW'!$E$67<6.5,X26*(1-'AVOID NEW'!$E$67),X26-6.5),"NA") -> NA | Z26: 23.48 | AA26: =IF(OR('Input - Capacity Factors'!$C$3="Wind"),IF(Z26*'AVOID NEW'!$E$67<6.5,Z26*(1-'AVOID NEW'!$E$67),Z26-6.5),"NA") -> NA
B27: 7 | C27: ='AVOID NEW'!AN15 -> 27.8321854 | D27: 29.5021854 | E27: 24.5021854 | G27: 30.06 | H27: =IF(OR('Input - Capacity Factors'!$C$3="Wind"),IF(G27*'AVOID NEW'!$E$67<6.5,G27*(1-'AVOID NEW'!$E$67),G27-6.5),"NA") -> NA | I27: 31.86 | J27: =IF(OR('Input - Capacity Factors'!$C$3="Wind"),IF(I27*'AVOID NEW'!$E$67<6.5,I27*(1-'AVOID NEW'!$E$67),I27-6.5),"NA") -> NA | K27: 26.46 | L27: =IF(OR('Input - Capacity Factors'!$C$3="Wind"),IF(K27*'AVOID NEW'!$E$67<6.5,K27*(1-'AVOID NEW'!$E$67),K27-6.5),"NA") -> NA | N27: 23.38 | O27: =IF(OR('Input - Capacity Factors'!$C$3="Wind"),IF(N27*'AVOID NEW'!$E$67<6.5,N27*(1-'AVOID NEW'!$E$67),N27-6.5),"NA") -> NA | P27: 24.78 | Q27: =IF(OR('Input - Capacity Factors'!$C$3="Wind"),IF(P27*'AVOID NEW'!$E$67<6.5,P27*(1-'AVOID NEW'!$E$67),P27-6.5),"NA") -> NA | R27: 20.58 | S27: =IF(OR('Input - Capacity Factors'!$C$3="Wind"),IF(R27*'AVOID NEW'!$E$67<6.5,R27*(1-'AVOID NEW'!$E$67),R27-6.5),"NA") -> NA | V27: 27.83 | W27: =IF(OR('Input - Capacity Factors'!$C$3="Wind"),IF(V27*'AVOID NEW'!$E$67<6.5,V27*(1-'AVOID NEW'!$E$67),V27-6.5),"NA") -> NA | X27: 29.5 | Y27: =IF(OR('Input - Capacity Factors'!$C$3="Wind"),IF(X27*'AVOID NEW'!$E$67<6.5,X27*(1-'AVOID NEW'!$E$67),X27-6.5),"NA") -> NA | Z27: 24.5 | AA27: =IF(OR('Input - Capacity Factors'!$C$3="Wind"),IF(Z27*'AVOID NEW'!$E$67<6.5,Z27*(1-'AVOID NEW'!$E$67),Z27-6.5),"NA") -> NA
B28: 8 | C28: ='AVOID NEW'!AN16 -> 28.75567326 | D28: 30.42567326 | E28: 25.42567326 | G28: 31.06 | H28: =IF(OR('Input - Capacity Factors'!$C$3="Wind"),IF(G28*'AVOID NEW'!$E$67<6.5,G28*(1-'AVOID NEW'!$E$67),G28-6.5),"NA") -> NA | I28: 32.86 | J28: =IF(OR('Input - Capacity Factors'!$C$3="Wind"),IF(I28*'AVOID NEW'!$E$67<6.5,I28*(1-'AVOID NEW'!$E$67),I28-6.5),"NA") -> NA | K28: 27.46 | L28: =IF(OR('Input - Capacity Factors'!$C$3="Wind"),IF(K28*'AVOID NEW'!$E$67<6.5,K28*(1-'AVOID NEW'!$E$67),K28-6.5),"NA") -> NA | N28: 24.15 | O28: =IF(OR('Input - Capacity Factors'!$C$3="Wind"),IF(N28*'AVOID NEW'!$E$67<6.5,N28*(1-'AVOID NEW'!$E$67),N28-6.5),"NA") -> NA | P28: 25.56 | Q28: =IF(OR('Input - Capacity Factors'!$C$3="Wind"),IF(P28*'AVOID NEW'!$E$67<6.5,P28*(1-'AVOID NEW'!$E$67),P28-6.5),"NA") -> NA | R28: 21.36 | S28: =IF(OR('Input - Capacity Factors'!$C$3="Wind"),IF(R28*'AVOID NEW'!$E$67<6.5,R28*(1-'AVOID NEW'!$E$67),R28-6.5),"NA") -> NA | V28: 28.76 | W28: =IF(OR('Input - Capacity Factors'!$C$3="Wind"),IF(V28*'AVOID NEW'!$E$67<6.5,V28*(1-'AVOID NEW'!$E$67),V28-6.5),"NA") -> NA | X28: 30.43 | Y28: =IF(OR('Input - Capacity Factors'!$C$3="Wind"),IF(X28*'AVOID NEW'!$E$67<6.5,X28*(1-'AVOID NEW'!$E$67),X28-6.5),"NA") -> NA | Z28: 25.43 | AA28: =IF(OR('Input - Capacity Factors'!$C$3="Wind"),IF(Z28*'AVOID NEW'!$E$67<6.5,Z28*(1-'AVOID NEW'!$E$67),Z28-6.5),"NA") -> NA
B29: 9 | C29: ='AVOID NEW'!AN17 -> 33.65701362 | D29: 35.32701362 | E29: 30.32701362 | G29: 36.35 | H29: =IF(OR('Input - Capacity Factors'!$C$3="Wind"),IF(G29*'AVOID NEW'!$E$67<6.5,G29*(1-'AVOID NEW'!$E$67),G29-6.5),"NA") -> NA | I29: 38.15 | J29: =IF(OR('Input - Capacity Factors'!$C$3="Wind"),IF(I29*'AVOID NEW'!$E$67<6.5,I29*(1-'AVOID NEW'!$E$67),I29-6.5),"NA") -> NA | K29: 32.75 | L29: =IF(OR('Input - Capacity Factors'!$C$3="Wind"),IF(K29*'AVOID NEW'!$E$67<6.5,K29*(1-'AVOID NEW'!$E$67),K29-6.5),"NA") -> NA | N29: 28.27 | O29: =IF(OR('Input - Capacity Factors'!$C$3="Wind"),IF(N29*'AVOID NEW'!$E$67<6.5,N29*(1-'AVOID NEW'!$E$67),N29-6.5),"NA") -> NA | P29: 29.67 | Q29: =IF(OR('Input - Capacity Factors'!$C$3="Wind"),IF(P29*'AVOID NEW'!$E$67<6.5,P29*(1-'AVOID NEW'!$E$67),P29-6.5),"NA") -> NA | R29: 25.47 | S29: =IF(OR('Input - Capacity Factors'!$C$3="Wind"),IF(R29*'AVOID NEW'!$E$67<6.5,R29*(1-'AVOID NEW'!$E$67),R29-6.5),"NA") -> NA | V29: 33.66 | W29: =IF(OR('Input - Capacity Factors'!$C$3="Wind"),IF(V29*'AVOID NEW'!$E$67<6.5,V29*(1-'AVOID NEW'!$E$67),V29-6.5),"NA") -> NA | X29: 35.33 | Y29: =IF(OR('Input - Capacity Factors'!$C$3="Wind"),IF(X29*'AVOID NEW'!$E$67<6.5,X29*(1-'AVOID NEW'!$E$67),X29-6.5),"NA") -> NA | Z29: 30.33 | AA29: =IF(OR('Input - Capacity Factors'!$C$3="Wind"),IF(Z29*'AVOID NEW'!$E$67<6.5,Z29*(1-'AVOID NEW'!$E$67),Z29-6.5),"NA") -> NA
B30: 10 | C30: ='AVOID NEW'!AN18 -> 37.61939047 | D30: 39.28939047 | E30: 34.28939047 | G30: 40.63 | H30: =IF(OR('Input - Capacity Factors'!$C$3="Wind"),IF(G30*'AVOID NEW'!$E$67<6.5,G30*(1-'AVOID NEW'!$E$67),G30-6.5),"NA") -> NA | I30: 42.43 | J30: =IF(OR('Input - Capacity Factors'!$C$3="Wind"),IF(I30*'AVOID NEW'!$E$67<6.5,I30*(1-'AVOID NEW'!$E$67),I30-6.5),"NA") -> NA | K30: 37.03 | L30: =IF(OR('Input - Capacity Factors'!$C$3="Wind"),IF(K30*'AVOID NEW'!$E$67<6.5,K30*(1-'AVOID NEW'!$E$67),K30-6.5),"NA") -> NA | N30: 31.6 | O30: =IF(OR('Input - Capacity Factors'!$C$3="Wind"),IF(N30*'AVOID NEW'!$E$67<6.5,N30*(1-'AVOID NEW'!$E$67),N30-6.5),"NA") -> NA | P30: 33 | Q30: =IF(OR('Input - Capacity Factors'!$C$3="Wind"),IF(P30*'AVOID NEW'!$E$67<6.5,P30*(1-'AVOID NEW'!$E$67),P30-6.5),"NA") -> NA | R30: 28.8 | S30: =IF(OR('Input - Capacity Factors'!$C$3="Wind"),IF(R30*'AVOID NEW'!$E$67<6.5,R30*(1-'AVOID NEW'!$E$67),R30-6.5),"NA") -> NA | V30: 37.62 | W30: =IF(OR('Input - Capacity Factors'!$C$3="Wind"),IF(V30*'AVOID NEW'!$E$67<6.5,V30*(1-'AVOID NEW'!$E$67),V30-6.5),"NA") -> NA | X30: 39.29 | Y30: =IF(OR('Input - Capacity Factors'!$C$3="Wind"),IF(X30*'AVOID NEW'!$E$67<6.5,X30*(1-'AVOID NEW'!$E$67),X30-6.5),"NA") -> NA | Z30: 34.29 | AA30: =IF(OR('Input - Capacity Factors'!$C$3="Wind"),IF(Z30*'AVOID NEW'!$E$67<6.5,Z30*(1-'AVOID NEW'!$E$67),Z30-6.5),"NA") -> NA
B31: 11 | C31: ='AVOID NEW'!AN19 -> 40.91645467 | D31: 42.58645467 | E31: 37.58645467 | G31: 44.19 | H31: =IF(OR('Input - Capacity Factors'!$C$3="Wind"),IF(G31*'AVOID NEW'!$E$67<6.5,G31*(1-'AVOID NEW'!$E$67),G31-6.5),"NA") -> NA | I31: 45.99 | J31: =IF(OR('Input - Capacity Factors'!$C$3="Wind"),IF(I31*'AVOID NEW'!$E$67<6.5,I31*(1-'AVOID NEW'!$E$67),I31-6.5),"NA") -> NA | K31: 40.59 | L31: =IF(OR('Input - Capacity Factors'!$C$3="Wind"),IF(K31*'AVOID NEW'!$E$67<6.5,K31*(1-'AVOID NEW'!$E$67),K31-6.5),"NA") -> NA | N31: 34.37 | O31: =IF(OR('Input - Capacity Factors'!$C$3="Wind"),IF(N31*'AVOID NEW'!$E$67<6.5,N31*(1-'AVOID NEW'!$E$67),N31-6.5),"NA") -> NA | P31: 35.77 | Q31: =IF(OR('Input - Capacity Factors'!$C$3="Wind"),IF(P31*'AVOID NEW'!$E$67<6.5,P31*(1-'AVOID NEW'!$E$67),P31-6.5),"NA") -> NA | R31: 31.57 | S31: =IF(OR('Input - Capacity Factors'!$C$3="Wind"),IF(R31*'AVOID NEW'!$E$67<6.5,R31*(1-'AVOID NEW'!$E$67),R31-6.5),"NA") -> NA | V31: 40.92 | W31: =IF(OR('Input - Capacity Factors'!$C$3="Wind"),IF(V31*'AVOID NEW'!$E$67<6.5,V31*(1-'AVOID NEW'!$E$67),V31-6.5),"NA") -> NA | X31: 42.59 | Y31: =IF(OR('Input - Capacity Factors'!$C$3="Wind"),IF(X31*'AVOID NEW'!$E$67<6.5,X31*(1-'AVOID NEW'!$E$67),X31-6.5),"NA") -> NA | Z31: 37.59 | AA31: =IF(OR('Input - Capacity Factors'!$C$3="Wind"),IF(Z31*'AVOID NEW'!$E$67<6.5,Z31*(1-'AVOID NEW'!$E$67),Z31-6.5),"NA") -> NA
B32: 12 | C32: ='AVOID NEW'!AN20 -> 43.74417115 | D32: 45.41417115 | E32: 40.41417115 | G32: 47.24 | H32: =IF(OR('Input - Capacity Factors'!$C$3="Wind"),IF(G32*'AVOID NEW'!$E$67<6.5,G32*(1-'AVOID NEW'!$E$67),G32-6.5),"NA") -> NA | I32: 49.05 | J32: =IF(OR('Input - Capacity Factors'!$C$3="Wind"),IF(I32*'AVOID NEW'!$E$67<6.5,I32*(1-'AVOID NEW'!$E$67),I32-6.5),"NA") -> NA | K32: 43.65 | L32: =IF(OR('Input - Capacity Factors'!$C$3="Wind"),IF(K32*'AVOID NEW'!$E$67<6.5,K32*(1-'AVOID NEW'!$E$67),K32-6.5),"NA") -> NA | N32: 36.75 | O32: =IF(OR('Input - Capacity Factors'!$C$3="Wind"),IF(N32*'AVOID NEW'!$E$67<6.5,N32*(1-'AVOID NEW'!$E$67),N32-6.5),"NA") -> NA | P32: 38.15 | Q32: =IF(OR('Input - Capacity Factors'!$C$3="Wind"),IF(P32*'AVOID NEW'!$E$67<6.5,P32*(1-'AVOID NEW'!$E$67),P32-6.5),"NA") -> NA | R32: 33.95 | S32: =IF(OR('Input - Capacity Factors'!$C$3="Wind"),IF(R32*'AVOID NEW'!$E$67<6.5,R32*(1-'AVOID NEW'!$E$67),R32-6.5),"NA") -> NA | V32: 43.74 | W32: =IF(OR('Input - Capacity Factors'!$C$3="Wind"),IF(V32*'AVOID NEW'!$E$67<6.5,V32*(1-'AVOID NEW'!$E$67),V32-6.5),"NA") -> NA | X32: 45.41 | Y32: =IF(OR('Input - Capacity Factors'!$C$3="Wind"),IF(X32*'AVOID NEW'!$E$67<6.5,X32*(1-'AVOID NEW'!$E$67),X32-6.5),"NA") -> NA | Z32: 40.41 | AA32: =IF(OR('Input - Capacity Factors'!$C$3="Wind"),IF(Z32*'AVOID NEW'!$E$67<6.5,Z32*(1-'AVOID NEW'!$E$67),Z32-6.5),"NA") -> NA
B33: 13 | C33: ='AVOID NEW'!AN21 -> 46.22112251 | D33: 47.89112251 | E33: 42.89112251 | G33: 49.92 | H33: =IF(OR('Input - Capacity Factors'!$C$3="Wind"),IF(G33*'AVOID NEW'!$E$67<6.5,G33*(1-'AVOID NEW'!$E$67),G33-6.5),"NA") -> NA | I33: 51.72 | J33: =IF(OR('Input - Capacity Factors'!$C$3="Wind"),IF(I33*'AVOID NEW'!$E$67<6.5,I33*(1-'AVOID NEW'!$E$67),I33-6.5),"NA") -> NA | K33: 46.32 | L33: =IF(OR('Input - Capacity Factors'!$C$3="Wind"),IF(K33*'AVOID NEW'!$E$67<6.5,K33*(1-'AVOID NEW'!$E$67),K33-6.5),"NA") -> NA | N33: 38.83 | O33: =IF(OR('Input - Capacity Factors'!$C$3="Wind"),IF(N33*'AVOID NEW'!$E$67<6.5,N33*(1-'AVOID NEW'!$E$67),N33-6.5),"NA") -> NA | P33: 40.23 | Q33: =IF(OR('Input - Capacity Factors'!$C$3="Wind"),IF(P33*'AVOID NEW'!$E$67<6.5,P33*(1-'AVOID NEW'!$E$67),P33-6.5),"NA") -> NA | R33: 36.03 | S33: =IF(OR('Input - Capacity Factors'!$C$3="Wind"),IF(R33*'AVOID NEW'!$E$67<6.5,R33*(1-'AVOID NEW'!$E$67),R33-6.5),"NA") -> NA | V33: 46.22 | W33: =IF(OR('Input - Capacity Factors'!$C$3="Wind"),IF(V33*'AVOID NEW'!$E$67<6.5,V33*(1-'AVOID NEW'!$E$67),V33-6.5),"NA") -> NA | X33: 47.89 | Y33: =IF(OR('Input - Capacity Factors'!$C$3="Wind"),IF(X33*'AVOID NEW'!$E$67<6.5,X33*(1-'AVOID NEW'!$E$67),X33-6.5),"NA") -> NA | Z33: 42.89 | AA33: =IF(OR('Input - Capacity Factors'!$C$3="Wind"),IF(Z33*'AVOID NEW'!$E$67<6.5,Z33*(1-'AVOID NEW'!$E$67),Z33-6.5),"NA") -> NA
B34: 14 | C34: ='AVOID NEW'!AN22 -> 48.41297569 | D34: 50.08297569 | E34: 45.08297569 | G34: 52.29 | H34: =IF(OR('Input - Capacity Factors'!$C$3="Wind"),IF(G34*'AVOID NEW'!$E$67<6.5,G34*(1-'AVOID NEW'!$E$67),G34-6.5),"NA") -> NA | I34: 54.09 | J34: =IF(OR('Input - Capacity Factors'!$C$3="Wind"),IF(I34*'AVOID NEW'!$E$67<6.5,I34*(1-'AVOID NEW'!$E$67),I34-6.5),"NA") -> NA | K34: 48.69 | L34: =IF(OR('Input - Capacity Factors'!$C$3="Wind"),IF(K34*'AVOID NEW'!$E$67<6.5,K34*(1-'AVOID NEW'!$E$67),K34-6.5),"NA") -> NA | N34: 40.67 | O34: =IF(OR('Input - Capacity Factors'!$C$3="Wind"),IF(N34*'AVOID NEW'!$E$67<6.5,N34*(1-'AVOID NEW'!$E$67),N34-6.5),"NA") -> NA | P34: 42.07 | Q34: =IF(OR('Input - Capacity Factors'!$C$3="Wind"),IF(P34*'AVOID NEW'!$E$67<6.5,P34*(1-'AVOID NEW'!$E$67),P34-6.5),"NA") -> NA | R34: 37.87 | S34: =IF(OR('Input - Capacity Factors'!$C$3="Wind"),IF(R34*'AVOID NEW'!$E$67<6.5,R34*(1-'AVOID NEW'!$E$67),R34-6.5),"NA") -> NA | V34: 48.41 | W34: =IF(OR('Input - Capacity Factors'!$C$3="Wind"),IF(V34*'AVOID NEW'!$E$67<6.5,V34*(1-'AVOID NEW'!$E$67),V34-6.5),"NA") -> NA | X34: 50.08 | Y34: =IF(OR('Input - Capacity Factors'!$C$3="Wind"),IF(X34*'AVOID NEW'!$E$67<6.5,X34*(1-'AVOID NEW'!$E$67),X34-6.5),"NA") -> NA | Z34: 45.08 | AA34: =IF(OR('Input - Capacity Factors'!$C$3="Wind"),IF(Z34*'AVOID NEW'!$E$67<6.5,Z34*(1-'AVOID NEW'!$E$67),Z34-6.5),"NA") -> NA
B35: 15 | C35: ='AVOID NEW'!AN23 -> 50.36319361 | D35: 52.03319361 | E35: 47.03319361 | G35: 54.39 | H35: =IF(OR('Input - Capacity Factors'!$C$3="Wind"),IF(G35*'AVOID NEW'!$E$67<6.5,G35*(1-'AVOID NEW'!$E$67),G35-6.5),"NA") -> NA | I35: 56.2 | J35: =IF(OR('Input - Capacity Factors'!$C$3="Wind"),IF(I35*'AVOID NEW'!$E$67<6.5,I35*(1-'AVOID NEW'!$E$67),I35-6.5),"NA") -> NA | K35: 50.8 | L35: =IF(OR('Input - Capacity Factors'!$C$3="Wind"),IF(K35*'AVOID NEW'!$E$67<6.5,K35*(1-'AVOID NEW'!$E$67),K35-6.5),"NA") -> NA | N35: 42.31 | O35: =IF(OR('Input - Capacity Factors'!$C$3="Wind"),IF(N35*'AVOID NEW'!$E$67<6.5,N35*(1-'AVOID NEW'!$E$67),N35-6.5),"NA") -> NA | P35: 43.71 | Q35: =IF(OR('Input - Capacity Factors'!$C$3="Wind"),IF(P35*'AVOID NEW'!$E$67<6.5,P35*(1-'AVOID NEW'!$E$67),P35-6.5),"NA") -> NA | R35: 39.51 | S35: =IF(OR('Input - Capacity Factors'!$C$3="Wind"),IF(R35*'AVOID NEW'!$E$67<6.5,R35*(1-'AVOID NEW'!$E$67),R35-6.5),"NA") -> NA | V35: 50.36 | W35: =IF(OR('Input - Capacity Factors'!$C$3="Wind"),IF(V35*'AVOID NEW'!$E$67<6.5,V35*(1-'AVOID NEW'!$E$67),V35-6.5),"NA") -> NA | X35: 52.03 | Y35: =IF(OR('Input - Capacity Factors'!$C$3="Wind"),IF(X35*'AVOID NEW'!$E$67<6.5,X35*(1-'AVOID NEW'!$E$67),X35-6.5),"NA") -> NA | Z35: 47.03 | AA35: =IF(OR('Input - Capacity Factors'!$C$3="Wind"),IF(Z35*'AVOID NEW'!$E$67<6.5,Z35*(1-'AVOID NEW'!$E$67),Z35-6.5),"NA") -> NA
B36: 16 | C36: ='AVOID NEW'!AN24 -> 52.11548927 | D36: 53.78548927 | E36: 48.78548927 | G36: 56.28 | H36: =IF(OR('Input - Capacity Factors'!$C$3="Wind"),IF(G36*'AVOID NEW'!$E$67<6.5,G36*(1-'AVOID NEW'!$E$67),G36-6.5),"NA") -> NA | I36: 58.09 | J36: =IF(OR('Input - Capacity Factors'!$C$3="Wind"),IF(I36*'AVOID NEW'!$E$67<6.5,I36*(1-'AVOID NEW'!$E$67),I36-6.5),"NA") -> NA | K36: 52.69 | L36: =IF(OR('Input - Capacity Factors'!$C$3="Wind"),IF(K36*'AVOID NEW'!$E$67<6.5,K36*(1-'AVOID NEW'!$E$67),K36-6.5),"NA") -> NA | N36: 43.78 | O36: =IF(OR('Input - Capacity Factors'!$C$3="Wind"),IF(N36*'AVOID NEW'!$E$67<6.5,N36*(1-'AVOID NEW'!$E$67),N36-6.5),"NA") -> NA | P36: 45.18 | Q36: =IF(OR('Input - Capacity Factors'!$C$3="Wind"),IF(P36*'AVOID NEW'!$E$67<6.5,P36*(1-'AVOID NEW'!$E$67),P36-6.5),"NA") -> NA | R36: 40.98 | S36: =IF(OR('Input - Capacity Factors'!$C$3="Wind"),IF(R36*'AVOID NEW'!$E$67<6.5,R36*(1-'AVOID NEW'!$E$67),R36-6.5),"NA") -> NA | V36: 52.12 | W36: =IF(OR('Input - Capacity Factors'!$C$3="Wind"),IF(V36*'AVOID NEW'!$E$67<6.5,V36*(1-'AVOID NEW'!$E$67),V36-6.5),"NA") -> NA | X36: 53.79 | Y36: =IF(OR('Input - Capacity Factors'!$C$3="Wind"),IF(X36*'AVOID NEW'!$E$67<6.5,X36*(1-'AVOID NEW'!$E$67),X36-6.5),"NA") -> NA | Z36: 48.79 | AA36: =IF(OR('Input - Capacity Factors'!$C$3="Wind"),IF(Z36*'AVOID NEW'!$E$67<6.5,Z36*(1-'AVOID NEW'!$E$67),Z36-6.5),"NA") -> NA
B37: 17 | C37: ='AVOID NEW'!AN25 -> 53.72668506 | D37: 55.39668506 | E37: 50.39668506 | G37: 58.02 | H37: =IF(OR('Input - Capacity Factors'!$C$3="Wind"),IF(G37*'AVOID NEW'!$E$67<6.5,G37*(1-'AVOID NEW'!$E$67),G37-6.5),"NA") -> NA | I37: 59.83 | J37: =IF(OR('Input - Capacity Factors'!$C$3="Wind"),IF(I37*'AVOID NEW'!$E$67<6.5,I37*(1-'AVOID NEW'!$E$67),I37-6.5),"NA") -> NA | K37: 54.43 | L37: =IF(OR('Input - Capacity Factors'!$C$3="Wind"),IF(K37*'AVOID NEW'!$E$67<6.5,K37*(1-'AVOID NEW'!$E$67),K37-6.5),"NA") -> NA | N37: 45.13 | O37: =IF(OR('Input - Capacity Factors'!$C$3="Wind"),IF(N37*'AVOID NEW'!$E$67<6.5,N37*(1-'AVOID NEW'!$E$67),N37-6.5),"NA") -> NA | P37: 46.53 | Q37: =IF(OR('Input - Capacity Factors'!$C$3="Wind"),IF(P37*'AVOID NEW'!$E$67<6.5,P37*(1-'AVOID NEW'!$E$67),P37-6.5),"NA") -> NA | R37: 42.33 | S37: =IF(OR('Input - Capacity Factors'!$C$3="Wind"),IF(R37*'AVOID NEW'!$E$67<6.5,R37*(1-'AVOID NEW'!$E$67),R37-6.5),"NA") -> NA | V37: 53.73 | W37: =IF(OR('Input - Capacity Factors'!$C$3="Wind"),IF(V37*'AVOID NEW'!$E$67<6.5,V37*(1-'AVOID NEW'!$E$67),V37-6.5),"NA") -> NA | X37: 55.4 | Y37: =IF(OR('Input - Capacity Factors'!$C$3="Wind"),IF(X37*'AVOID NEW'!$E$67<6.5,X37*(1-'AVOID NEW'!$E$67),X37-6.5),"NA") -> NA | Z37: 50.4 | AA37: =IF(OR('Input - Capacity Factors'!$C$3="Wind"),IF(Z37*'AVOID NEW'!$E$67<6.5,Z37*(1-'AVOID NEW'!$E$67),Z37-6.5),"NA") -> NA
B38: 18 | C38: ='AVOID NEW'!AN26 -> 55.20470123 | D38: 56.87470123 | E38: 51.87470123 | G38: 59.62 | H38: =IF(OR('Input - Capacity Factors'!$C$3="Wind"),IF(G38*'AVOID NEW'!$E$67<6.5,G38*(1-'AVOID NEW'!$E$67),G38-6.5),"NA") -> NA | I38: 61.42 | J38: =IF(OR('Input - Capacity Factors'!$C$3="Wind"),IF(I38*'AVOID NEW'!$E$67<6.5,I38*(1-'AVOID NEW'!$E$67),I38-6.5),"NA") -> NA | K38: 56.02 | L38: =IF(OR('Input - Capacity Factors'!$C$3="Wind"),IF(K38*'AVOID NEW'!$E$67<6.5,K38*(1-'AVOID NEW'!$E$67),K38-6.5),"NA") -> NA | N38: 46.37 | O38: =IF(OR('Input - Capacity Factors'!$C$3="Wind"),IF(N38*'AVOID NEW'!$E$67<6.5,N38*(1-'AVOID NEW'!$E$67),N38-6.5),"NA") -> NA | P38: 47.77 | Q38: =IF(OR('Input - Capacity Factors'!$C$3="Wind"),IF(P38*'AVOID NEW'!$E$67<6.5,P38*(1-'AVOID NEW'!$E$67),P38-6.5),"NA") -> NA | R38: 43.57 | S38: =IF(OR('Input - Capacity Factors'!$C$3="Wind"),IF(R38*'AVOID NEW'!$E$67<6.5,R38*(1-'AVOID NEW'!$E$67),R38-6.5),"NA") -> NA | V38: 55.2 | W38: =IF(OR('Input - Capacity Factors'!$C$3="Wind"),IF(V38*'AVOID NEW'!$E$67<6.5,V38*(1-'AVOID NEW'!$E$67),V38-6.5),"NA") -> NA | X38: 56.87 | Y38: =IF(OR('Input - Capacity Factors'!$C$3="Wind"),IF(X38*'AVOID NEW'!$E$67<6.5,X38*(1-'AVOID NEW'!$E$67),X38-6.5),"NA") -> NA | Z38: 51.87 | AA38: =IF(OR('Input - Capacity Factors'!$C$3="Wind"),IF(Z38*'AVOID NEW'!$E$67<6.5,Z38*(1-'AVOID NEW'!$E$67),Z38-6.5),"NA") -> NA
B39: 19 | C39: ='AVOID NEW'!AN27 -> 56.55677088 | D39: 58.22677088 | E39: 53.22677088 | G39: 61.08 | H39: =IF(OR('Input - Capacity Factors'!$C$3="Wind"),IF(G39*'AVOID NEW'!$E$67<6.5,G39*(1-'AVOID NEW'!$E$67),G39-6.5),"NA") -> NA | I39: 62.88 | J39: =IF(OR('Input - Capacity Factors'!$C$3="Wind"),IF(I39*'AVOID NEW'!$E$67<6.5,I39*(1-'AVOID NEW'!$E$67),I39-6.5),"NA") -> NA | K39: 57.48 | L39: =IF(OR('Input - Capacity Factors'!$C$3="Wind"),IF(K39*'AVOID NEW'!$E$67<6.5,K39*(1-'AVOID NEW'!$E$67),K39-6.5),"NA") -> NA | N39: 47.51 | O39: =IF(OR('Input - Capacity Factors'!$C$3="Wind"),IF(N39*'AVOID NEW'!$E$67<6.5,N39*(1-'AVOID NEW'!$E$67),N39-6.5),"NA") -> NA | P39: 48.91 | Q39: =IF(OR('Input - Capacity Factors'!$C$3="Wind"),IF(P39*'AVOID NEW'!$E$67<6.5,P39*(1-'AVOID NEW'!$E$67),P39-6.5),"NA") -> NA | R39: 44.71 | S39: =IF(OR('Input - Capacity Factors'!$C$3="Wind"),IF(R39*'AVOID NEW'!$E$67<6.5,R39*(1-'AVOID NEW'!$E$67),R39-6.5),"NA") -> NA | V39: 56.56 | W39: =IF(OR('Input - Capacity Factors'!$C$3="Wind"),IF(V39*'AVOID NEW'!$E$67<6.5,V39*(1-'AVOID NEW'!$E$67),V39-6.5),"NA") -> NA | X39: 58.23 | Y39: =IF(OR('Input - Capacity Factors'!$C$3="Wind"),IF(X39*'AVOID NEW'!$E$67<6.5,X39*(1-'AVOID NEW'!$E$67),X39-6.5),"NA") -> NA | Z39: 53.23 | AA39: =IF(OR('Input - Capacity Factors'!$C$3="Wind"),IF(Z39*'AVOID NEW'!$E$67<6.5,Z39*(1-'AVOID NEW'!$E$67),Z39-6.5),"NA") -> NA
B40: 20 | C40: ='AVOID NEW'!AN28 -> 57.80029078 | D40: 59.47029078 | E40: 54.47029078 | G40: 62.42 | H40: =IF(OR('Input - Capacity Factors'!$C$3="Wind"),IF(G40*'AVOID NEW'!$E$67<6.5,G40*(1-'AVOID NEW'!$E$67),G40-6.5),"NA") -> NA | I40: 64.23 | J40: =IF(OR('Input - Capacity Factors'!$C$3="Wind"),IF(I40*'AVOID NEW'!$E$67<6.5,I40*(1-'AVOID NEW'!$E$67),I40-6.5),"NA") -> NA | K40: 58.83 | L40: =IF(OR('Input - Capacity Factors'!$C$3="Wind"),IF(K40*'AVOID NEW'!$E$67<6.5,K40*(1-'AVOID NEW'!$E$67),K40-6.5),"NA") -> NA | N40: 48.55 | O40: =IF(OR('Input - Capacity Factors'!$C$3="Wind"),IF(N40*'AVOID NEW'!$E$67<6.5,N40*(1-'AVOID NEW'!$E$67),N40-6.5),"NA") -> NA | P40: 49.96 | Q40: =IF(OR('Input - Capacity Factors'!$C$3="Wind"),IF(P40*'AVOID NEW'!$E$67<6.5,P40*(1-'AVOID NEW'!$E$67),P40-6.5),"NA") -> NA | R40: 45.76 | S40: =IF(OR('Input - Capacity Factors'!$C$3="Wind"),IF(R40*'AVOID NEW'!$E$67<6.5,R40*(1-'AVOID NEW'!$E$67),R40-6.5),"NA") -> NA | V40: 57.8 | W40: =IF(OR('Input - Capacity Factors'!$C$3="Wind"),IF(V40*'AVOID NEW'!$E$67<6.5,V40*(1-'AVOID NEW'!$E$67),V40-6.5),"NA") -> NA | X40: 59.47 | Y40: =IF(OR('Input - Capacity Factors'!$C$3="Wind"),IF(X40*'AVOID NEW'!$E$67<6.5,X40*(1-'AVOID NEW'!$E$67),X40-6.5),"NA") -> NA | Z40: 54.47 | AA40: =IF(OR('Input - Capacity Factors'!$C$3="Wind"),IF(Z40*'AVOID NEW'!$E$67<6.5,Z40*(1-'AVOID NEW'!$E$67),Z40-6.5),"NA") -> NA
B44: =$B$1 -> THESE RATES ARE NOT VALID
B45: LEVELIZED RATES
B46: ="PROJECT ON-LINE IN "& 'AVOID NEW'!$D$54+1 -> PROJECT ON-LINE IN 2022
B47: ="Rate Effective Date: "&'AVOID NEW'!$E$69 -> Rate Effective Date: April 5, 2021
B48: ="Resource: "&'Input - Capacity Factors'!$C$3 -> Resource: Seasonal hydro
C49: Levelized Price | G49: ="Season 1 Pricing ("&$D$7*100&"%)" -> Season 1 Pricing (108%) | N49: ="Season 2 Pricing ("&100*$D$8&"%)" -> Season 2 Pricing (84%) | V49: Non-Seasonalized Pricing
C50: Heavy and Light Load Hour Differential | D50: ='AVOID NEW'!$E$66 -> 5 | G50: Flat | I50: Heavy Load Hour | K50: Light Load Hour | N50: Flat | P50: Heavy Load Hour | R50: Light Load Hour | V50: Flat | X50: Heavy Load Hour | Z50: Light Load Hour
D51: =ROUND(D50/3,2) -> 1.67 | E51: =-ROUND((D50*2)/3,2) -> -3.33 | H51: Price less wind integration adjustment | J51: Price less wind integration adjustment | L51: Price less wind integration adjustment | O51: Price less wind integration adjustment | Q51: Price less wind integration adjustment | S51: Price less wind integration adjustment | W51: Price less wind integration adjustment | Y51: Price less wind integration adjustment | AA51: Price less wind integration adjustment
B52: Contract Length | C52: Flat | D52: Heavy Load Hour | E52: Light Load Hour | G52: Price | I52: Price | K52: Price | N52: Price | P52: Price | R52: Price | V52: Price | X52: Price | Z52: Price
B53: 1 | C53: ='AVOID NEW'!AO9 -> 23.90064821 | D53: =C53+D$51 -> 25.57064821 | E53: =C53+E$51 -> 20.57064821 | G53: =ROUND((+$C53*$D$7),2) -> 25.81 | H53: =IF(OR('Input - Capacity Factors'!$C$3="Wind"),IF(G53*'AVOID NEW'!$E$67<6.5,G53*(1-'AVOID NEW'!$E$67),G53-6.5),"NA") -> NA | I53: =ROUND((+$D53*$D$7),2) -> 27.62 | J53: =IF(OR('Input - Capacity Factors'!$C$3="Wind"),IF(I53*'AVOID NEW'!$E$67<6.5,I53*(1-'AVOID NEW'!$E$67),I53-6.5),"NA") -> NA | K53: =ROUND((+$E53*$D$7),2) -> 22.22 | L53: =IF(OR('Input - Capacity Factors'!$C$3="Wind"),IF(K53*'AVOID NEW'!$E$67<6.5,K53*(1-'AVOID NEW'!$E$67),K53-6.5),"NA") -> NA | N53: =ROUND((+$C53*$D$8),2) -> 20.08 | O53: =IF(OR('Input - Capacity Factors'!$C$3="Wind"),IF(N53*'AVOID NEW'!$E$67<6.5,N53*(1-'AVOID NEW'!$E$67),N53-6.5),"NA") -> NA | P53: =ROUND((+$D53*$D$8),2) -> 21.48 | Q53: =IF(OR('Input - Capacity Factors'!$C$3="Wind"),IF(P53*'AVOID NEW'!$E$67<6.5,P53*(1-'AVOID NEW'!$E$67),P53-6.5),"NA") -> NA | R53: =ROUND((+$E53*$D$8),2) -> 17.28 | S53: =IF(OR('Input - Capacity Factors'!$C$3="Wind"),IF(R53*'AVOID NEW'!$E$67<6.5,R53*(1-'AVOID NEW'!$E$67),R53-6.5),"NA") -> NA | V53: =ROUND((+$C53),2) -> 23.9 | W53: =IF(OR('Input - Capacity Factors'!$C$3="Wind"),IF(V53*'AVOID NEW'!$E$67<6.5,V53*(1-'AVOID NEW'!$E$67),V53-6.5),"NA") -> NA | X53: =ROUND((+$D53),2) -> 25.57 | Y53: =IF(OR('Input - Capacity Factors'!$C$3="Wind"),IF(X53*'AVOID NEW'!$E$67<6.5,X53*(1-'AVOID NEW'!$E$67),X53-6.5),"NA") -> NA | Z53: =ROUND((+$E53),2) -> 20.57 | AA53: =IF(OR('Input - Capacity Factors'!$C$3="Wind"),IF(Z53*'AVOID NEW'!$E$67<6.5,Z53*(1-'AVOID NEW'!$E$67),Z53-6.5),"NA") -> NA
B54: 2 | C54: ='AVOID NEW'!AO10 -> 24.39556515 | D54: 26.06556515 | E54: 21.06556515 | G54: 26.35 | H54: =IF(OR('Input - Capacity Factors'!$C$3="Wind"),IF(G54*'AVOID NEW'!$E$67<6.5,G54*(1-'AVOID NEW'!$E$67),G54-6.5),"NA") -> NA | I54: 28.15 | J54: =IF(OR('Input - Capacity Factors'!$C$3="Wind"),IF(I54*'AVOID NEW'!$E$67<6.5,I54*(1-'AVOID NEW'!$E$67),I54-6.5),"NA") -> NA | K54: 22.75 | L54: =IF(OR('Input - Capacity Factors'!$C$3="Wind"),IF(K54*'AVOID NEW'!$E$67<6.5,K54*(1-'AVOID NEW'!$E$67),K54-6.5),"NA") -> NA | N54: 20.49 | O54: =IF(OR('Input - Capacity Factors'!$C$3="Wind"),IF(N54*'AVOID NEW'!$E$67<6.5,N54*(1-'AVOID NEW'!$E$67),N54-6.5),"NA") -> NA | P54: 21.9 | Q54: =IF(OR('Input - Capacity Factors'!$C$3="Wind"),IF(P54*'AVOID NEW'!$E$67<6.5,P54*(1-'AVOID NEW'!$E$67),P54-6.5),"NA") -> NA | R54: 17.7 | S54: =IF(OR('Input - Capacity Factors'!$C$3="Wind"),IF(R54*'AVOID NEW'!$E$67<6.5,R54*(1-'AVOID NEW'!$E$67),R54-6.5),"NA") -> NA | V54: =ROUND((+$C54),2) -> 24.4 | W54: =IF(OR('Input - Capacity Factors'!$C$3="Wind"),IF(V54*'AVOID NEW'!$E$67<6.5,V54*(1-'AVOID NEW'!$E$67),V54-6.5),"NA") -> NA | X54: =ROUND((+$D54),2) -> 26.07 | Y54: =IF(OR('Input - Capacity Factors'!$C$3="Wind"),IF(X54*'AVOID NEW'!$E$67<6.5,X54*(1-'AVOID NEW'!$E$67),X54-6.5),"NA") -> NA | Z54: =ROUND((+$E54),2) -> 21.07 | AA54: =IF(OR('Input - Capacity Factors'!$C$3="Wind"),IF(Z54*'AVOID NEW'!$E$67<6.5,Z54*(1-'AVOID NEW'!$E$67),Z54-6.5),"NA") -> NA
B55: 3 | C55: ='AVOID NEW'!AO11 -> 25.20701049 | D55: 26.87701049 | E55: 21.87701049 | G55: 27.22 | H55: =IF(OR('Input - Capacity Factors'!$C$3="Wind"),IF(G55*'AVOID NEW'!$E$67<6.5,G55*(1-'AVOID NEW'!$E$67),G55-6.5),"NA") -> NA | I55: 29.03 | J55: =IF(OR('Input - Capacity Factors'!$C$3="Wind"),IF(I55*'AVOID NEW'!$E$67<6.5,I55*(1-'AVOID NEW'!$E$67),I55-6.5),"NA") -> NA | K55: 23.63 | L55: =IF(OR('Input - Capacity Factors'!$C$3="Wind"),IF(K55*'AVOID NEW'!$E$67<6.5,K55*(1-'AVOID NEW'!$E$67),K55-6.5),"NA") -> NA | N55: 21.17 | O55: =IF(OR('Input - Capacity Factors'!$C$3="Wind"),IF(N55*'AVOID NEW'!$E$67<6.5,N55*(1-'AVOID NEW'!$E$67),N55-6.5),"NA") -> NA | P55: 22.58 | Q55: =IF(OR('Input - Capacity Factors'!$C$3="Wind"),IF(P55*'AVOID NEW'!$E$67<6.5,P55*(1-'AVOID NEW'!$E$67),P55-6.5),"NA") -> NA | R55: 18.38 | S55: =IF(OR('Input - Capacity Factors'!$C$3="Wind"),IF(R55*'AVOID NEW'!$E$67<6.5,R55*(1-'AVOID NEW'!$E$67),R55-6.5),"NA") -> NA | V55: 25.21 | W55: =IF(OR('Input - Capacity Factors'!$C$3="Wind"),IF(V55*'AVOID NEW'!$E$67<6.5,V55*(1-'AVOID NEW'!$E$67),V55-6.5),"NA") -> NA | X55: 26.88 | Y55: =IF(OR('Input - Capacity Factors'!$C$3="Wind"),IF(X55*'AVOID NEW'!$E$67<6.5,X55*(1-'AVOID NEW'!$E$67),X55-6.5),"NA") -> NA | Z55: 21.88 | AA55: =IF(OR('Input - Capacity Factors'!$C$3="Wind"),IF(Z55*'AVOID NEW'!$E$67<6.5,Z55*(1-'AVOID NEW'!$E$67),Z55-6.5),"NA") -> NA
B56: 4 | C56: ='AVOID NEW'!AO12 -> 26.33689402 | D56: 28.00689402 | E56: 23.00689402 | G56: 28.44 | H56: =IF(OR('Input - Capacity Factors'!$C$3="Wind"),IF(G56*'AVOID NEW'!$E$67<6.5,G56*(1-'AVOID NEW'!$E$67),G56-6.5),"NA") -> NA | I56: 30.25 | J56: =IF(OR('Input - Capacity Factors'!$C$3="Wind"),IF(I56*'AVOID NEW'!$E$67<6.5,I56*(1-'AVOID NEW'!$E$67),I56-6.5),"NA") -> NA | K56: 24.85 | L56: =IF(OR('Input - Capacity Factors'!$C$3="Wind"),IF(K56*'AVOID NEW'!$E$67<6.5,K56*(1-'AVOID NEW'!$E$67),K56-6.5),"NA") -> NA | N56: 22.12 | O56: =IF(OR('Input - Capacity Factors'!$C$3="Wind"),IF(N56*'AVOID NEW'!$E$67<6.5,N56*(1-'AVOID NEW'!$E$67),N56-6.5),"NA") -> NA | P56: 23.53 | Q56: =IF(OR('Input - Capacity Factors'!$C$3="Wind"),IF(P56*'AVOID NEW'!$E$67<6.5,P56*(1-'AVOID NEW'!$E$67),P56-6.5),"NA") -> NA | R56: 19.33 | S56: =IF(OR('Input - Capacity Factors'!$C$3="Wind"),IF(R56*'AVOID NEW'!$E$67<6.5,R56*(1-'AVOID NEW'!$E$67),R56-6.5),"NA") -> NA | V56: 26.34 | W56: =IF(OR('Input - Capacity Factors'!$C$3="Wind"),IF(V56*'AVOID NEW'!$E$67<6.5,V56*(1-'AVOID NEW'!$E$67),V56-6.5),"NA") -> NA | X56: 28.01 | Y56: =IF(OR('Input - Capacity Factors'!$C$3="Wind"),IF(X56*'AVOID NEW'!$E$67<6.5,X56*(1-'AVOID NEW'!$E$67),X56-6.5),"NA") -> NA | Z56: 23.01 | AA56: =IF(OR('Input - Capacity Factors'!$C$3="Wind"),IF(Z56*'AVOID NEW'!$E$67<6.5,Z56*(1-'AVOID NEW'!$E$67),Z56-6.5),"NA") -> NA
B57: 5 | C57: ='AVOID NEW'!AO13 -> 27.55972612 | D57: 29.22972612 | E57: 24.22972612 | G57: 29.76 | H57: =IF(OR('Input - Capacity Factors'!$C$3="Wind"),IF(G57*'AVOID NEW'!$E$67<6.5,G57*(1-'AVOID NEW'!$E$67),G57-6.5),"NA") -> NA | I57: 31.57 | J57: =IF(OR('Input - Capacity Factors'!$C$3="Wind"),IF(I57*'AVOID NEW'!$E$67<6.5,I57*(1-'AVOID NEW'!$E$67),I57-6.5),"NA") -> NA | K57: 26.17 | L57: =IF(OR('Input - Capacity Factors'!$C$3="Wind"),IF(K57*'AVOID NEW'!$E$67<6.5,K57*(1-'AVOID NEW'!$E$67),K57-6.5),"NA") -> NA | N57: 23.15 | O57: =IF(OR('Input - Capacity Factors'!$C$3="Wind"),IF(N57*'AVOID NEW'!$E$67<6.5,N57*(1-'AVOID NEW'!$E$67),N57-6.5),"NA") -> NA | P57: 24.55 | Q57: =IF(OR('Input - Capacity Factors'!$C$3="Wind"),IF(P57*'AVOID NEW'!$E$67<6.5,P57*(1-'AVOID NEW'!$E$67),P57-6.5),"NA") -> NA | R57: 20.35 | S57: =IF(OR('Input - Capacity Factors'!$C$3="Wind"),IF(R57*'AVOID NEW'!$E$67<6.5,R57*(1-'AVOID NEW'!$E$67),R57-6.5),"NA") -> NA | V57: 27.56 | W57: =IF(OR('Input - Capacity Factors'!$C$3="Wind"),IF(V57*'AVOID NEW'!$E$67<6.5,V57*(1-'AVOID NEW'!$E$67),V57-6.5),"NA") -> NA | X57: 29.23 | Y57: =IF(OR('Input - Capacity Factors'!$C$3="Wind"),IF(X57*'AVOID NEW'!$E$67<6.5,X57*(1-'AVOID NEW'!$E$67),X57-6.5),"NA") -> NA | Z57: 24.23 | AA57: =IF(OR('Input - Capacity Factors'!$C$3="Wind"),IF(Z57*'AVOID NEW'!$E$67<6.5,Z57*(1-'AVOID NEW'!$E$67),Z57-6.5),"NA") -> NA
B58: 6 | C58: ='AVOID NEW'!AO14 -> 28.69669204 | D58: 30.36669204 | E58: 25.36669204 | G58: 30.99 | H58: =IF(OR('Input - Capacity Factors'!$C$3="Wind"),IF(G58*'AVOID NEW'!$E$67<6.5,G58*(1-'AVOID NEW'!$E$67),G58-6.5),"NA") -> NA | I58: 32.8 | J58: =IF(OR('Input - Capacity Factors'!$C$3="Wind"),IF(I58*'AVOID NEW'!$E$67<6.5,I58*(1-'AVOID NEW'!$E$67),I58-6.5),"NA") -> NA | K58: 27.4 | L58: =IF(OR('Input - Capacity Factors'!$C$3="Wind"),IF(K58*'AVOID NEW'!$E$67<6.5,K58*(1-'AVOID NEW'!$E$67),K58-6.5),"NA") -> NA | N58: 24.11 | O58: =IF(OR('Input - Capacity Factors'!$C$3="Wind"),IF(N58*'AVOID NEW'!$E$67<6.5,N58*(1-'AVOID NEW'!$E$67),N58-6.5),"NA") -> NA | P58: 25.51 | Q58: =IF(OR('Input - Capacity Factors'!$C$3="Wind"),IF(P58*'AVOID NEW'!$E$67<6.5,P58*(1-'AVOID NEW'!$E$67),P58-6.5),"NA") -> NA | R58: 21.31 | S58: =IF(OR('Input - Capacity Factors'!$C$3="Wind"),IF(R58*'AVOID NEW'!$E$67<6.5,R58*(1-'AVOID NEW'!$E$67),R58-6.5),"NA") -> NA | V58: 28.7 | W58: =IF(OR('Input - Capacity Factors'!$C$3="Wind"),IF(V58*'AVOID NEW'!$E$67<6.5,V58*(1-'AVOID NEW'!$E$67),V58-6.5),"NA") -> NA | X58: 30.37 | Y58: =IF(OR('Input - Capacity Factors'!$C$3="Wind"),IF(X58*'AVOID NEW'!$E$67<6.5,X58*(1-'AVOID NEW'!$E$67),X58-6.5),"NA") -> NA | Z58: 25.37 | AA58: =IF(OR('Input - Capacity Factors'!$C$3="Wind"),IF(Z58*'AVOID NEW'!$E$67<6.5,Z58*(1-'AVOID NEW'!$E$67),Z58-6.5),"NA") -> NA
B59: 7 | C59: ='AVOID NEW'!AO15 -> 29.70048846 | D59: 31.37048846 | E59: 26.37048846 | G59: 32.08 | H59: =IF(OR('Input - Capacity Factors'!$C$3="Wind"),IF(G59*'AVOID NEW'!$E$67<6.5,G59*(1-'AVOID NEW'!$E$67),G59-6.5),"NA") -> NA | I59: 33.88 | J59: =IF(OR('Input - Capacity Factors'!$C$3="Wind"),IF(I59*'AVOID NEW'!$E$67<6.5,I59*(1-'AVOID NEW'!$E$67),I59-6.5),"NA") -> NA | K59: 28.48 | L59: =IF(OR('Input - Capacity Factors'!$C$3="Wind"),IF(K59*'AVOID NEW'!$E$67<6.5,K59*(1-'AVOID NEW'!$E$67),K59-6.5),"NA") -> NA | N59: 24.95 | O59: =IF(OR('Input - Capacity Factors'!$C$3="Wind"),IF(N59*'AVOID NEW'!$E$67<6.5,N59*(1-'AVOID NEW'!$E$67),N59-6.5),"NA") -> NA | P59: 26.35 | Q59: =IF(OR('Input - Capacity Factors'!$C$3="Wind"),IF(P59*'AVOID NEW'!$E$67<6.5,P59*(1-'AVOID NEW'!$E$67),P59-6.5),"NA") -> NA | R59: 22.15 | S59: =IF(OR('Input - Capacity Factors'!$C$3="Wind"),IF(R59*'AVOID NEW'!$E$67<6.5,R59*(1-'AVOID NEW'!$E$67),R59-6.5),"NA") -> NA | V59: 29.7 | W59: =IF(OR('Input - Capacity Factors'!$C$3="Wind"),IF(V59*'AVOID NEW'!$E$67<6.5,V59*(1-'AVOID NEW'!$E$67),V59-6.5),"NA") -> NA | X59: 31.37 | Y59: =IF(OR('Input - Capacity Factors'!$C$3="Wind"),IF(X59*'AVOID NEW'!$E$67<6.5,X59*(1-'AVOID NEW'!$E$67),X59-6.5),"NA") -> NA | Z59: 26.37 | AA59: =IF(OR('Input - Capacity Factors'!$C$3="Wind"),IF(Z59*'AVOID NEW'!$E$67<6.5,Z59*(1-'AVOID NEW'!$E$67),Z59-6.5),"NA") -> NA
B60: 8 | C60: ='AVOID NEW'!AO16 -> 35.36519638 | D60: 37.03519638 | E60: 32.03519638 | G60: 38.19 | H60: =IF(OR('Input - Capacity Factors'!$C$3="Wind"),IF(G60*'AVOID NEW'!$E$67<6.5,G60*(1-'AVOID NEW'!$E$67),G60-6.5),"NA") -> NA | I60: 40 | J60: =IF(OR('Input - Capacity Factors'!$C$3="Wind"),IF(I60*'AVOID NEW'!$E$67<6.5,I60*(1-'AVOID NEW'!$E$67),I60-6.5),"NA") -> NA | K60: 34.6 | L60: =IF(OR('Input - Capacity Factors'!$C$3="Wind"),IF(K60*'AVOID NEW'!$E$67<6.5,K60*(1-'AVOID NEW'!$E$67),K60-6.5),"NA") -> NA | N60: 29.71 | O60: =IF(OR('Input - Capacity Factors'!$C$3="Wind"),IF(N60*'AVOID NEW'!$E$67<6.5,N60*(1-'AVOID NEW'!$E$67),N60-6.5),"NA") -> NA | P60: 31.11 | Q60: =IF(OR('Input - Capacity Factors'!$C$3="Wind"),IF(P60*'AVOID NEW'!$E$67<6.5,P60*(1-'AVOID NEW'!$E$67),P60-6.5),"NA") -> NA | R60: 26.91 | S60: =IF(OR('Input - Capacity Factors'!$C$3="Wind"),IF(R60*'AVOID NEW'!$E$67<6.5,R60*(1-'AVOID NEW'!$E$67),R60-6.5),"NA") -> NA | V60: 35.37 | W60: =IF(OR('Input - Capacity Factors'!$C$3="Wind"),IF(V60*'AVOID NEW'!$E$67<6.5,V60*(1-'AVOID NEW'!$E$67),V60-6.5),"NA") -> NA | X60: 37.04 | Y60: =IF(OR('Input - Capacity Factors'!$C$3="Wind"),IF(X60*'AVOID NEW'!$E$67<6.5,X60*(1-'AVOID NEW'!$E$67),X60-6.5),"NA") -> NA | Z60: 32.04 | AA60: =IF(OR('Input - Capacity Factors'!$C$3="Wind"),IF(Z60*'AVOID NEW'!$E$67<6.5,Z60*(1-'AVOID NEW'!$E$67),Z60-6.5),"NA") -> NA
B61: 9 | C61: ='AVOID NEW'!AO17 -> 39.82443689 | D61: 41.49443689 | E61: 36.49443689 | G61: 43.01 | H61: =IF(OR('Input - Capacity Factors'!$C$3="Wind"),IF(G61*'AVOID NEW'!$E$67<6.5,G61*(1-'AVOID NEW'!$E$67),G61-6.5),"NA") -> NA | I61: 44.81 | J61: =IF(OR('Input - Capacity Factors'!$C$3="Wind"),IF(I61*'AVOID NEW'!$E$67<6.5,I61*(1-'AVOID NEW'!$E$67),I61-6.5),"NA") -> NA | K61: 39.41 | L61: =IF(OR('Input - Capacity Factors'!$C$3="Wind"),IF(K61*'AVOID NEW'!$E$67<6.5,K61*(1-'AVOID NEW'!$E$67),K61-6.5),"NA") -> NA | N61: 33.45 | O61: =IF(OR('Input - Capacity Factors'!$C$3="Wind"),IF(N61*'AVOID NEW'!$E$67<6.5,N61*(1-'AVOID NEW'!$E$67),N61-6.5),"NA") -> NA | P61: 34.86 | Q61: =IF(OR('Input - Capacity Factors'!$C$3="Wind"),IF(P61*'AVOID NEW'!$E$67<6.5,P61*(1-'AVOID NEW'!$E$67),P61-6.5),"NA") -> NA | R61: 30.66 | S61: =IF(OR('Input - Capacity Factors'!$C$3="Wind"),IF(R61*'AVOID NEW'!$E$67<6.5,R61*(1-'AVOID NEW'!$E$67),R61-6.5),"NA") -> NA | V61: 39.82 | W61: =IF(OR('Input - Capacity Factors'!$C$3="Wind"),IF(V61*'AVOID NEW'!$E$67<6.5,V61*(1-'AVOID NEW'!$E$67),V61-6.5),"NA") -> NA | X61: 41.49 | Y61: =IF(OR('Input - Capacity Factors'!$C$3="Wind"),IF(X61*'AVOID NEW'!$E$67<6.5,X61*(1-'AVOID NEW'!$E$67),X61-6.5),"NA") -> NA | Z61: 36.49 | AA61: =IF(OR('Input - Capacity Factors'!$C$3="Wind"),IF(Z61*'AVOID NEW'!$E$67<6.5,Z61*(1-'AVOID NEW'!$E$67),Z61-6.5),"NA") -> NA
B62: 10 | C62: ='AVOID NEW'!AO18 -> 43.46005986 | D62: 45.13005986 | E62: 40.13005986 | G62: 46.94 | H62: =IF(OR('Input - Capacity Factors'!$C$3="Wind"),IF(G62*'AVOID NEW'!$E$67<6.5,G62*(1-'AVOID NEW'!$E$67),G62-6.5),"NA") -> NA | I62: 48.74 | J62: =IF(OR('Input - Capacity Factors'!$C$3="Wind"),IF(I62*'AVOID NEW'!$E$67<6.5,I62*(1-'AVOID NEW'!$E$67),I62-6.5),"NA") -> NA | K62: 43.34 | L62: =IF(OR('Input - Capacity Factors'!$C$3="Wind"),IF(K62*'AVOID NEW'!$E$67<6.5,K62*(1-'AVOID NEW'!$E$67),K62-6.5),"NA") -> NA | N62: 36.51 | O62: =IF(OR('Input - Capacity Factors'!$C$3="Wind"),IF(N62*'AVOID NEW'!$E$67<6.5,N62*(1-'AVOID NEW'!$E$67),N62-6.5),"NA") -> NA | P62: 37.91 | Q62: =IF(OR('Input - Capacity Factors'!$C$3="Wind"),IF(P62*'AVOID NEW'!$E$67<6.5,P62*(1-'AVOID NEW'!$E$67),P62-6.5),"NA") -> NA | R62: 33.71 | S62: =IF(OR('Input - Capacity Factors'!$C$3="Wind"),IF(R62*'AVOID NEW'!$E$67<6.5,R62*(1-'AVOID NEW'!$E$67),R62-6.5),"NA") -> NA | V62: 43.46 | W62: =IF(OR('Input - Capacity Factors'!$C$3="Wind"),IF(V62*'AVOID NEW'!$E$67<6.5,V62*(1-'AVOID NEW'!$E$67),V62-6.5),"NA") -> NA | X62: 45.13 | Y62: =IF(OR('Input - Capacity Factors'!$C$3="Wind"),IF(X62*'AVOID NEW'!$E$67<6.5,X62*(1-'AVOID NEW'!$E$67),X62-6.5),"NA") -> NA | Z62: 40.13 | AA62: =IF(OR('Input - Capacity Factors'!$C$3="Wind"),IF(Z62*'AVOID NEW'!$E$67<6.5,Z62*(1-'AVOID NEW'!$E$67),Z62-6.5),"NA") -> NA
B63: 11 | C63: ='AVOID NEW'!AO19 -> 46.53051471 | D63: 48.20051471 | E63: 43.20051471 | G63: 50.25 | H63: =IF(OR('Input - Capacity Factors'!$C$3="Wind"),IF(G63*'AVOID NEW'!$E$67<6.5,G63*(1-'AVOID NEW'!$E$67),G63-6.5),"NA") -> NA | I63: 52.06 | J63: =IF(OR('Input - Capacity Factors'!$C$3="Wind"),IF(I63*'AVOID NEW'!$E$67<6.5,I63*(1-'AVOID NEW'!$E$67),I63-6.5),"NA") -> NA | K63: 46.66 | L63: =IF(OR('Input - Capacity Factors'!$C$3="Wind"),IF(K63*'AVOID NEW'!$E$67<6.5,K63*(1-'AVOID NEW'!$E$67),K63-6.5),"NA") -> NA | N63: 39.09 | O63: =IF(OR('Input - Capacity Factors'!$C$3="Wind"),IF(N63*'AVOID NEW'!$E$67<6.5,N63*(1-'AVOID NEW'!$E$67),N63-6.5),"NA") -> NA | P63: 40.49 | Q63: =IF(OR('Input - Capacity Factors'!$C$3="Wind"),IF(P63*'AVOID NEW'!$E$67<6.5,P63*(1-'AVOID NEW'!$E$67),P63-6.5),"NA") -> NA | R63: 36.29 | S63: =IF(OR('Input - Capacity Factors'!$C$3="Wind"),IF(R63*'AVOID NEW'!$E$67<6.5,R63*(1-'AVOID NEW'!$E$67),R63-6.5),"NA") -> NA | V63: 46.53 | W63: =IF(OR('Input - Capacity Factors'!$C$3="Wind"),IF(V63*'AVOID NEW'!$E$67<6.5,V63*(1-'AVOID NEW'!$E$67),V63-6.5),"NA") -> NA | X63: 48.2 | Y63: =IF(OR('Input - Capacity Factors'!$C$3="Wind"),IF(X63*'AVOID NEW'!$E$67<6.5,X63*(1-'AVOID NEW'!$E$67),X63-6.5),"NA") -> NA | Z63: 43.2 | AA63: =IF(OR('Input - Capacity Factors'!$C$3="Wind"),IF(Z63*'AVOID NEW'!$E$67<6.5,Z63*(1-'AVOID NEW'!$E$67),Z63-6.5),"NA") -> NA
B64: 12 | C64: ='AVOID NEW'!AO20 -> 49.18880401 | D64: 50.85880401 | E64: 45.85880401 | G64: 53.12 | H64: =IF(OR('Input - Capacity Factors'!$C$3="Wind"),IF(G64*'AVOID NEW'!$E$67<6.5,G64*(1-'AVOID NEW'!$E$67),G64-6.5),"NA") -> NA | I64: 54.93 | J64: =IF(OR('Input - Capacity Factors'!$C$3="Wind"),IF(I64*'AVOID NEW'!$E$67<6.5,I64*(1-'AVOID NEW'!$E$67),I64-6.5),"NA") -> NA | K64: 49.53 | L64: =IF(OR('Input - Capacity Factors'!$C$3="Wind"),IF(K64*'AVOID NEW'!$E$67<6.5,K64*(1-'AVOID NEW'!$E$67),K64-6.5),"NA") -> NA | N64: 41.32 | O64: =IF(OR('Input - Capacity Factors'!$C$3="Wind"),IF(N64*'AVOID NEW'!$E$67<6.5,N64*(1-'AVOID NEW'!$E$67),N64-6.5),"NA") -> NA | P64: 42.72 | Q64: =IF(OR('Input - Capacity Factors'!$C$3="Wind"),IF(P64*'AVOID NEW'!$E$67<6.5,P64*(1-'AVOID NEW'!$E$67),P64-6.5),"NA") -> NA | R64: 38.52 | S64: =IF(OR('Input - Capacity Factors'!$C$3="Wind"),IF(R64*'AVOID NEW'!$E$67<6.5,R64*(1-'AVOID NEW'!$E$67),R64-6.5),"NA") -> NA | V64: 49.19 | W64: =IF(OR('Input - Capacity Factors'!$C$3="Wind"),IF(V64*'AVOID NEW'!$E$67<6.5,V64*(1-'AVOID NEW'!$E$67),V64-6.5),"NA") -> NA | X64: 50.86 | Y64: =IF(OR('Input - Capacity Factors'!$C$3="Wind"),IF(X64*'AVOID NEW'!$E$67<6.5,X64*(1-'AVOID NEW'!$E$67),X64-6.5),"NA") -> NA | Z64: 45.86 | AA64: =IF(OR('Input - Capacity Factors'!$C$3="Wind"),IF(Z64*'AVOID NEW'!$E$67<6.5,Z64*(1-'AVOID NEW'!$E$67),Z64-6.5),"NA") -> NA
B65: 13 | C65: ='AVOID NEW'!AO21 -> 51.51942693 | D65: 53.18942693 | E65: 48.18942693 | G65: 55.64 | H65: =IF(OR('Input - Capacity Factors'!$C$3="Wind"),IF(G65*'AVOID NEW'!$E$67<6.5,G65*(1-'AVOID NEW'!$E$67),G65-6.5),"NA") -> NA | I65: 57.44 | J65: =IF(OR('Input - Capacity Factors'!$C$3="Wind"),IF(I65*'AVOID NEW'!$E$67<6.5,I65*(1-'AVOID NEW'!$E$67),I65-6.5),"NA") -> NA | K65: 52.04 | L65: =IF(OR('Input - Capacity Factors'!$C$3="Wind"),IF(K65*'AVOID NEW'!$E$67<6.5,K65*(1-'AVOID NEW'!$E$67),K65-6.5),"NA") -> NA | N65: 43.28 | O65: =IF(OR('Input - Capacity Factors'!$C$3="Wind"),IF(N65*'AVOID NEW'!$E$67<6.5,N65*(1-'AVOID NEW'!$E$67),N65-6.5),"NA") -> NA | P65: 44.68 | Q65: =IF(OR('Input - Capacity Factors'!$C$3="Wind"),IF(P65*'AVOID NEW'!$E$67<6.5,P65*(1-'AVOID NEW'!$E$67),P65-6.5),"NA") -> NA | R65: 40.48 | S65: =IF(OR('Input - Capacity Factors'!$C$3="Wind"),IF(R65*'AVOID NEW'!$E$67<6.5,R65*(1-'AVOID NEW'!$E$67),R65-6.5),"NA") -> NA | V65: 51.52 | W65: =IF(OR('Input - Capacity Factors'!$C$3="Wind"),IF(V65*'AVOID NEW'!$E$67<6.5,V65*(1-'AVOID NEW'!$E$67),V65-6.5),"NA") -> NA | X65: 53.19 | Y65: =IF(OR('Input - Capacity Factors'!$C$3="Wind"),IF(X65*'AVOID NEW'!$E$67<6.5,X65*(1-'AVOID NEW'!$E$67),X65-6.5),"NA") -> NA | Z65: 48.19 | AA65: =IF(OR('Input - Capacity Factors'!$C$3="Wind"),IF(Z65*'AVOID NEW'!$E$67<6.5,Z65*(1-'AVOID NEW'!$E$67),Z65-6.5),"NA") -> NA
B66: 14 | C66: ='AVOID NEW'!AO22 -> 53.57745508 | D66: 55.24745508 | E66: 50.24745508 | G66: 57.86 | H66: =IF(OR('Input - Capacity Factors'!$C$3="Wind"),IF(G66*'AVOID NEW'!$E$67<6.5,G66*(1-'AVOID NEW'!$E$67),G66-6.5),"NA") -> NA | I66: 59.67 | J66: =IF(OR('Input - Capacity Factors'!$C$3="Wind"),IF(I66*'AVOID NEW'!$E$67<6.5,I66*(1-'AVOID NEW'!$E$67),I66-6.5),"NA") -> NA | K66: 54.27 | L66: =IF(OR('Input - Capacity Factors'!$C$3="Wind"),IF(K66*'AVOID NEW'!$E$67<6.5,K66*(1-'AVOID NEW'!$E$67),K66-6.5),"NA") -> NA | N66: 45.01 | O66: =IF(OR('Input - Capacity Factors'!$C$3="Wind"),IF(N66*'AVOID NEW'!$E$67<6.5,N66*(1-'AVOID NEW'!$E$67),N66-6.5),"NA") -> NA | P66: 46.41 | Q66: =IF(OR('Input - Capacity Factors'!$C$3="Wind"),IF(P66*'AVOID NEW'!$E$67<6.5,P66*(1-'AVOID NEW'!$E$67),P66-6.5),"NA") -> NA | R66: 42.21 | S66: =IF(OR('Input - Capacity Factors'!$C$3="Wind"),IF(R66*'AVOID NEW'!$E$67<6.5,R66*(1-'AVOID NEW'!$E$67),R66-6.5),"NA") -> NA | V66: 53.58 | W66: =IF(OR('Input - Capacity Factors'!$C$3="Wind"),IF(V66*'AVOID NEW'!$E$67<6.5,V66*(1-'AVOID NEW'!$E$67),V66-6.5),"NA") -> NA | X66: 55.25 | Y66: =IF(OR('Input - Capacity Factors'!$C$3="Wind"),IF(X66*'AVOID NEW'!$E$67<6.5,X66*(1-'AVOID NEW'!$E$67),X66-6.5),"NA") -> NA | Z66: 50.25 | AA66: =IF(OR('Input - Capacity Factors'!$C$3="Wind"),IF(Z66*'AVOID NEW'!$E$67<6.5,Z66*(1-'AVOID NEW'!$E$67),Z66-6.5),"NA") -> NA
B67: 15 | C67: ='AVOID NEW'!AO23 -> 55.41565653 | D67: 57.08565653 | E67: 52.08565653 | G67: 59.85 | H67: =IF(OR('Input - Capacity Factors'!$C$3="Wind"),IF(G67*'AVOID NEW'!$E$67<6.5,G67*(1-'AVOID NEW'!$E$67),G67-6.5),"NA") -> NA | I67: 61.65 | J67: =IF(OR('Input - Capacity Factors'!$C$3="Wind"),IF(I67*'AVOID NEW'!$E$67<6.5,I67*(1-'AVOID NEW'!$E$67),I67-6.5),"NA") -> NA | K67: 56.25 | L67: =IF(OR('Input - Capacity Factors'!$C$3="Wind"),IF(K67*'AVOID NEW'!$E$67<6.5,K67*(1-'AVOID NEW'!$E$67),K67-6.5),"NA") -> NA | N67: 46.55 | O67: =IF(OR('Input - Capacity Factors'!$C$3="Wind"),IF(N67*'AVOID NEW'!$E$67<6.5,N67*(1-'AVOID NEW'!$E$67),N67-6.5),"NA") -> NA | P67: 47.95 | Q67: =IF(OR('Input - Capacity Factors'!$C$3="Wind"),IF(P67*'AVOID NEW'!$E$67<6.5,P67*(1-'AVOID NEW'!$E$67),P67-6.5),"NA") -> NA | R67: 43.75 | S67: =IF(OR('Input - Capacity Factors'!$C$3="Wind"),IF(R67*'AVOID NEW'!$E$67<6.5,R67*(1-'AVOID NEW'!$E$67),R67-6.5),"NA") -> NA | V67: 55.42 | W67: =IF(OR('Input - Capacity Factors'!$C$3="Wind"),IF(V67*'AVOID NEW'!$E$67<6.5,V67*(1-'AVOID NEW'!$E$67),V67-6.5),"NA") -> NA | X67: 57.09 | Y67: =IF(OR('Input - Capacity Factors'!$C$3="Wind"),IF(X67*'AVOID NEW'!$E$67<6.5,X67*(1-'AVOID NEW'!$E$67),X67-6.5),"NA") -> NA | Z67: 52.09 | AA67: =IF(OR('Input - Capacity Factors'!$C$3="Wind"),IF(Z67*'AVOID NEW'!$E$67<6.5,Z67*(1-'AVOID NEW'!$E$67),Z67-6.5),"NA") -> NA
B68: 16 | C68: ='AVOID NEW'!AO24 -> 57.09963486 | D68: 58.76963486 | E68: 53.76963486 | G68: 61.67 | H68: =IF(OR('Input - Capacity Factors'!$C$3="Wind"),IF(G68*'AVOID NEW'!$E$67<6.5,G68*(1-'AVOID NEW'!$E$67),G68-6.5),"NA") -> NA | I68: 63.47 | J68: =IF(OR('Input - Capacity Factors'!$C$3="Wind"),IF(I68*'AVOID NEW'!$E$67<6.5,I68*(1-'AVOID NEW'!$E$67),I68-6.5),"NA") -> NA | K68: 58.07 | L68: =IF(OR('Input - Capacity Factors'!$C$3="Wind"),IF(K68*'AVOID NEW'!$E$67<6.5,K68*(1-'AVOID NEW'!$E$67),K68-6.5),"NA") -> NA | N68: 47.96 | O68: =IF(OR('Input - Capacity Factors'!$C$3="Wind"),IF(N68*'AVOID NEW'!$E$67<6.5,N68*(1-'AVOID NEW'!$E$67),N68-6.5),"NA") -> NA | P68: 49.37 | Q68: =IF(OR('Input - Capacity Factors'!$C$3="Wind"),IF(P68*'AVOID NEW'!$E$67<6.5,P68*(1-'AVOID NEW'!$E$67),P68-6.5),"NA") -> NA | R68: 45.17 | S68: =IF(OR('Input - Capacity Factors'!$C$3="Wind"),IF(R68*'AVOID NEW'!$E$67<6.5,R68*(1-'AVOID NEW'!$E$67),R68-6.5),"NA") -> NA | V68: 57.1 | W68: =IF(OR('Input - Capacity Factors'!$C$3="Wind"),IF(V68*'AVOID NEW'!$E$67<6.5,V68*(1-'AVOID NEW'!$E$67),V68-6.5),"NA") -> NA | X68: 58.77 | Y68: =IF(OR('Input - Capacity Factors'!$C$3="Wind"),IF(X68*'AVOID NEW'!$E$67<6.5,X68*(1-'AVOID NEW'!$E$67),X68-6.5),"NA") -> NA | Z68: 53.77 | AA68: =IF(OR('Input - Capacity Factors'!$C$3="Wind"),IF(Z68*'AVOID NEW'!$E$67<6.5,Z68*(1-'AVOID NEW'!$E$67),Z68-6.5),"NA") -> NA
B69: 17 | C69: ='AVOID NEW'!AO25 -> 58.63934899 | D69: 60.30934899 | E69: 55.30934899 | G69: 63.33 | H69: =IF(OR('Input - Capacity Factors'!$C$3="Wind"),IF(G69*'AVOID NEW'!$E$67<6.5,G69*(1-'AVOID NEW'!$E$67),G69-6.5),"NA") -> NA | I69: 65.13 | J69: =IF(OR('Input - Capacity Factors'!$C$3="Wind"),IF(I69*'AVOID NEW'!$E$67<6.5,I69*(1-'AVOID NEW'!$E$67),I69-6.5),"NA") -> NA | K69: 59.73 | L69: =IF(OR('Input - Capacity Factors'!$C$3="Wind"),IF(K69*'AVOID NEW'!$E$67<6.5,K69*(1-'AVOID NEW'!$E$67),K69-6.5),"NA") -> NA | N69: 49.26 | O69: =IF(OR('Input - Capacity Factors'!$C$3="Wind"),IF(N69*'AVOID NEW'!$E$67<6.5,N69*(1-'AVOID NEW'!$E$67),N69-6.5),"NA") -> NA | P69: 50.66 | Q69: =IF(OR('Input - Capacity Factors'!$C$3="Wind"),IF(P69*'AVOID NEW'!$E$67<6.5,P69*(1-'AVOID NEW'!$E$67),P69-6.5),"NA") -> NA | R69: 46.46 | S69: =IF(OR('Input - Capacity Factors'!$C$3="Wind"),IF(R69*'AVOID NEW'!$E$67<6.5,R69*(1-'AVOID NEW'!$E$67),R69-6.5),"NA") -> NA | V69: 58.64 | W69: =IF(OR('Input - Capacity Factors'!$C$3="Wind"),IF(V69*'AVOID NEW'!$E$67<6.5,V69*(1-'AVOID NEW'!$E$67),V69-6.5),"NA") -> NA | X69: 60.31 | Y69: =IF(OR('Input - Capacity Factors'!$C$3="Wind"),IF(X69*'AVOID NEW'!$E$67<6.5,X69*(1-'AVOID NEW'!$E$67),X69-6.5),"NA") -> NA | Z69: 55.31 | AA69: =IF(OR('Input - Capacity Factors'!$C$3="Wind"),IF(Z69*'AVOID NEW'!$E$67<6.5,Z69*(1-'AVOID NEW'!$E$67),Z69-6.5),"NA") -> NA
B70: 18 | C70: ='AVOID NEW'!AO26 -> 60.04359629 | D70: 61.71359629 | E70: 56.71359629 | G70: 64.85 | H70: =IF(OR('Input - Capacity Factors'!$C$3="Wind"),IF(G70*'AVOID NEW'!$E$67<6.5,G70*(1-'AVOID NEW'!$E$67),G70-6.5),"NA") -> NA | I70: 66.65 | J70: =IF(OR('Input - Capacity Factors'!$C$3="Wind"),IF(I70*'AVOID NEW'!$E$67<6.5,I70*(1-'AVOID NEW'!$E$67),I70-6.5),"NA") -> NA | K70: 61.25 | L70: =IF(OR('Input - Capacity Factors'!$C$3="Wind"),IF(K70*'AVOID NEW'!$E$67<6.5,K70*(1-'AVOID NEW'!$E$67),K70-6.5),"NA") -> NA | N70: 50.44 | O70: =IF(OR('Input - Capacity Factors'!$C$3="Wind"),IF(N70*'AVOID NEW'!$E$67<6.5,N70*(1-'AVOID NEW'!$E$67),N70-6.5),"NA") -> NA | P70: 51.84 | Q70: =IF(OR('Input - Capacity Factors'!$C$3="Wind"),IF(P70*'AVOID NEW'!$E$67<6.5,P70*(1-'AVOID NEW'!$E$67),P70-6.5),"NA") -> NA | R70: 47.64 | S70: =IF(OR('Input - Capacity Factors'!$C$3="Wind"),IF(R70*'AVOID NEW'!$E$67<6.5,R70*(1-'AVOID NEW'!$E$67),R70-6.5),"NA") -> NA | V70: 60.04 | W70: =IF(OR('Input - Capacity Factors'!$C$3="Wind"),IF(V70*'AVOID NEW'!$E$67<6.5,V70*(1-'AVOID NEW'!$E$67),V70-6.5),"NA") -> NA | X70: 61.71 | Y70: =IF(OR('Input - Capacity Factors'!$C$3="Wind"),IF(X70*'AVOID NEW'!$E$67<6.5,X70*(1-'AVOID NEW'!$E$67),X70-6.5),"NA") -> NA | Z70: 56.71 | AA70: =IF(OR('Input - Capacity Factors'!$C$3="Wind"),IF(Z70*'AVOID NEW'!$E$67<6.5,Z70*(1-'AVOID NEW'!$E$67),Z70-6.5),"NA") -> NA
B71: 19 | C71: ='AVOID NEW'!AO27 -> 61.33211077 | D71: 63.00211077 | E71: 58.00211077 | G71: 66.24 | H71: =IF(OR('Input - Capacity Factors'!$C$3="Wind"),IF(G71*'AVOID NEW'!$E$67<6.5,G71*(1-'AVOID NEW'!$E$67),G71-6.5),"NA") -> NA | I71: 68.04 | J71: =IF(OR('Input - Capacity Factors'!$C$3="Wind"),IF(I71*'AVOID NEW'!$E$67<6.5,I71*(1-'AVOID NEW'!$E$67),I71-6.5),"NA") -> NA | K71: 62.64 | L71: =IF(OR('Input - Capacity Factors'!$C$3="Wind"),IF(K71*'AVOID NEW'!$E$67<6.5,K71*(1-'AVOID NEW'!$E$67),K71-6.5),"NA") -> NA | N71: 51.52 | O71: =IF(OR('Input - Capacity Factors'!$C$3="Wind"),IF(N71*'AVOID NEW'!$E$67<6.5,N71*(1-'AVOID NEW'!$E$67),N71-6.5),"NA") -> NA | P71: 52.92 | Q71: =IF(OR('Input - Capacity Factors'!$C$3="Wind"),IF(P71*'AVOID NEW'!$E$67<6.5,P71*(1-'AVOID NEW'!$E$67),P71-6.5),"NA") -> NA | R71: 48.72 | S71: =IF(OR('Input - Capacity Factors'!$C$3="Wind"),IF(R71*'AVOID NEW'!$E$67<6.5,R71*(1-'AVOID NEW'!$E$67),R71-6.5),"NA") -> NA | V71: 61.33 | W71: =IF(OR('Input - Capacity Factors'!$C$3="Wind"),IF(V71*'AVOID NEW'!$E$67<6.5,V71*(1-'AVOID NEW'!$E$67),V71-6.5),"NA") -> NA | X71: 63 | Y71: =IF(OR('Input - Capacity Factors'!$C$3="Wind"),IF(X71*'AVOID NEW'!$E$67<6.5,X71*(1-'AVOID NEW'!$E$67),X71-6.5),"NA") -> NA | Z71: 58 | AA71: =IF(OR('Input - Capacity Factors'!$C$3="Wind"),IF(Z71*'AVOID NEW'!$E$67<6.5,Z71*(1-'AVOID NEW'!$E$67),Z71-6.5),"NA") -> NA
B72: 20 | C72: ='AVOID NEW'!AO28 -> 62.5182468 | D72: 64.1882468 | E72: 59.1882468 | G72: 67.52 | H72: =IF(OR('Input - Capacity Factors'!$C$3="Wind"),IF(G72*'AVOID NEW'!$E$67<6.5,G72*(1-'AVOID NEW'!$E$67),G72-6.5),"NA") -> NA | I72: 69.32 | J72: =IF(OR('Input - Capacity Factors'!$C$3="Wind"),IF(I72*'AVOID NEW'!$E$67<6.5,I72*(1-'AVOID NEW'!$E$67),I72-6.5),"NA") -> NA | K72: 63.92 | L72: =IF(OR('Input - Capacity Factors'!$C$3="Wind"),IF(K72*'AVOID NEW'!$E$67<6.5,K72*(1-'AVOID NEW'!$E$67),K72-6.5),"NA") -> NA | N72: 52.52 | O72: =IF(OR('Input - Capacity Factors'!$C$3="Wind"),IF(N72*'AVOID NEW'!$E$67<6.5,N72*(1-'AVOID NEW'!$E$67),N72-6.5),"NA") -> NA | P72: 53.92 | Q72: =IF(OR('Input - Capacity Factors'!$C$3="Wind"),IF(P72*'AVOID NEW'!$E$67<6.5,P72*(1-'AVOID NEW'!$E$67),P72-6.5),"NA") -> NA | R72: 49.72 | S72: =IF(OR('Input - Capacity Factors'!$C$3="Wind"),IF(R72*'AVOID NEW'!$E$67<6.5,R72*(1-'AVOID NEW'!$E$67),R72-6.5),"NA") -> NA | V72: 62.52 | W72: =IF(OR('Input - Capacity Factors'!$C$3="Wind"),IF(V72*'AVOID NEW'!$E$67<6.5,V72*(1-'AVOID NEW'!$E$67),V72-6.5),"NA") -> NA | X72: 64.19 | Y72: =IF(OR('Input - Capacity Factors'!$C$3="Wind"),IF(X72*'AVOID NEW'!$E$67<6.5,X72*(1-'AVOID NEW'!$E$67),X72-6.5),"NA") -> NA | Z72: 59.19 | AA72: =IF(OR('Input - Capacity Factors'!$C$3="Wind"),IF(Z72*'AVOID NEW'!$E$67<6.5,Z72*(1-'AVOID NEW'!$E$67),Z72-6.5),"NA") -> NA
B76: =$B$1 -> THESE RATES ARE NOT VALID
B77: LEVELIZED RATES
B78: ="PROJECT ON-LINE IN "& 'AVOID NEW'!$D$54+2 -> PROJECT ON-LINE IN 2023
B79: ="Rate Effective Date: "&'AVOID NEW'!$E$69 -> Rate Effective Date: April 5, 2021
B80: ="Resource: "&'Input - Capacity Factors'!$C$3 -> Resource: Seasonal hydro
C81: Levelized Price | G81: ="Season 1 Pricing ("&$D$7*100&"%)" -> Season 1 Pricing (108%) | N81: ="Season 2 Pricing ("&100*$D$8&"%)" -> Season 2 Pricing (84%) | V81: Non-Seasonalized Pricing
C82: Heavy and Light Load Hour Differential | D82: ='AVOID NEW'!$E$66 -> 5 | G82: Flat | I82: Heavy Load Hour | K82: Light Load Hour | N82: Flat | P82: Heavy Load Hour | R82: Light Load Hour | V82: Flat | X82: Heavy Load Hour | Z82: Light Load Hour
D83: =ROUND(D82/3,2) -> 1.67 | E83: =-ROUND((D82*2)/3,2) -> -3.33 | H83: Price less wind integration adjustment | J83: Price less wind integration adjustment | L83: Price less wind integration adjustment | O83: Price less wind integration adjustment | Q83: Price less wind integration adjustment | S83: Price less wind integration adjustment | W83: Price less wind integration adjustment | Y83: Price less wind integration adjustment | AA83: Price less wind integration adjustment
B84: Contract Length | C84: Flat | D84: Heavy Load Hour | E84: Light Load Hour | G84: Price | I84: Price | K84: Price | N84: Price | P84: Price | R84: Price | V84: Price | X84: Price | Z84: Price
B85: 1 | C85: ='AVOID NEW'!AP9 -> 24.92997646 | D85: =C85+D$83 -> 26.59997646 | E85: =C85+E$83 -> 21.59997646 | G85: =ROUND((+$C85*$D$7),2) -> 26.92 | H85: =IF(OR('Input - Capacity Factors'!$C$3="Wind"),IF(G85*'AVOID NEW'!$E$67<6.5,G85*(1-'AVOID NEW'!$E$67),G85-6.5),"NA") -> NA | I85: =ROUND((+$D85*$D$7),2) -> 28.73 | J85: =IF(OR('Input - Capacity Factors'!$C$3="Wind"),IF(I85*'AVOID NEW'!$E$67<6.5,I85*(1-'AVOID NEW'!$E$67),I85-6.5),"NA") -> NA | K85: =ROUND((+$E85*$D$7),2) -> 23.33 | L85: =IF(OR('Input - Capacity Factors'!$C$3="Wind"),IF(K85*'AVOID NEW'!$E$67<6.5,K85*(1-'AVOID NEW'!$E$67),K85-6.5),"NA") -> NA | N85: =ROUND((+$C85*$D$8),2) -> 20.94 | O85: =IF(OR('Input - Capacity Factors'!$C$3="Wind"),IF(N85*'AVOID NEW'!$E$67<6.5,N85*(1-'AVOID NEW'!$E$67),N85-6.5),"NA") -> NA | P85: =ROUND((+$D85*$D$8),2) -> 22.34 | Q85: =IF(OR('Input - Capacity Factors'!$C$3="Wind"),IF(P85*'AVOID NEW'!$E$67<6.5,P85*(1-'AVOID NEW'!$E$67),P85-6.5),"NA") -> NA | R85: =ROUND((+$E85*$D$8),2) -> 18.14 | S85: =IF(OR('Input - Capacity Factors'!$C$3="Wind"),IF(R85*'AVOID NEW'!$E$67<6.5,R85*(1-'AVOID NEW'!$E$67),R85-6.5),"NA") -> NA | V85: =ROUND((+$C85),2) -> 24.93 | W85: =IF(OR('Input - Capacity Factors'!$C$3="Wind"),IF(V85*'AVOID NEW'!$E$67<6.5,V85*(1-'AVOID NEW'!$E$67),V85-6.5),"NA") -> NA | X85: =ROUND((+$D85),2) -> 26.6 | Y85: =IF(OR('Input - Capacity Factors'!$C$3="Wind"),IF(X85*'AVOID NEW'!$E$67<6.5,X85*(1-'AVOID NEW'!$E$67),X85-6.5),"NA") -> NA | Z85: =ROUND((+$E85),2) -> 21.6 | AA85: =IF(OR('Input - Capacity Factors'!$C$3="Wind"),IF(Z85*'AVOID NEW'!$E$67<6.5,Z85*(1-'AVOID NEW'!$E$67),Z85-6.5),"NA") -> NA
B86: 2 | C86: ='AVOID NEW'!AP10 -> 25.93937738 | D86: 27.60937738 | E86: 22.60937738 | G86: 28.01 | H86: =IF(OR('Input - Capacity Factors'!$C$3="Wind"),IF(G86*'AVOID NEW'!$E$67<6.5,G86*(1-'AVOID NEW'!$E$67),G86-6.5),"NA") -> NA | I86: 29.82 | J86: =IF(OR('Input - Capacity Factors'!$C$3="Wind"),IF(I86*'AVOID NEW'!$E$67<6.5,I86*(1-'AVOID NEW'!$E$67),I86-6.5),"NA") -> NA | K86: 24.42 | L86: =IF(OR('Input - Capacity Factors'!$C$3="Wind"),IF(K86*'AVOID NEW'!$E$67<6.5,K86*(1-'AVOID NEW'!$E$67),K86-6.5),"NA") -> NA | N86: 21.79 | O86: =IF(OR('Input - Capacity Factors'!$C$3="Wind"),IF(N86*'AVOID NEW'!$E$67<6.5,N86*(1-'AVOID NEW'!$E$67),N86-6.5),"NA") -> NA | P86: 23.19 | Q86: =IF(OR('Input - Capacity Factors'!$C$3="Wind"),IF(P86*'AVOID NEW'!$E$67<6.5,P86*(1-'AVOID NEW'!$E$67),P86-6.5),"NA") -> NA | R86: 18.99 | S86: =IF(OR('Input - Capacity Factors'!$C$3="Wind"),IF(R86*'AVOID NEW'!$E$67<6.5,R86*(1-'AVOID NEW'!$E$67),R86-6.5),"NA") -> NA | V86: =ROUND((+$C86),2) -> 25.94 | W86: =IF(OR('Input - Capacity Factors'!$C$3="Wind"),IF(V86*'AVOID NEW'!$E$67<6.5,V86*(1-'AVOID NEW'!$E$67),V86-6.5),"NA") -> NA | X86: =ROUND((+$D86),2) -> 27.61 | Y86: =IF(OR('Input - Capacity Factors'!$C$3="Wind"),IF(X86*'AVOID NEW'!$E$67<6.5,X86*(1-'AVOID NEW'!$E$67),X86-6.5),"NA") -> NA | Z86: =ROUND((+$E86),2) -> 22.61 | AA86: =IF(OR('Input - Capacity Factors'!$C$3="Wind"),IF(Z86*'AVOID NEW'!$E$67<6.5,Z86*(1-'AVOID NEW'!$E$67),Z86-6.5),"NA") -> NA
B87: 3 | C87: ='AVOID NEW'!AP11 -> 27.28189791 | D87: 28.95189791 | E87: 23.95189791 | G87: 29.46 | H87: =IF(OR('Input - Capacity Factors'!$C$3="Wind"),IF(G87*'AVOID NEW'!$E$67<6.5,G87*(1-'AVOID NEW'!$E$67),G87-6.5),"NA") -> NA | I87: 31.27 | J87: =IF(OR('Input - Capacity Factors'!$C$3="Wind"),IF(I87*'AVOID NEW'!$E$67<6.5,I87*(1-'AVOID NEW'!$E$67),I87-6.5),"NA") -> NA | K87: 25.87 | L87: =IF(OR('Input - Capacity Factors'!$C$3="Wind"),IF(K87*'AVOID NEW'!$E$67<6.5,K87*(1-'AVOID NEW'!$E$67),K87-6.5),"NA") -> NA | N87: 22.92 | O87: =IF(OR('Input - Capacity Factors'!$C$3="Wind"),IF(N87*'AVOID NEW'!$E$67<6.5,N87*(1-'AVOID NEW'!$E$67),N87-6.5),"NA") -> NA | P87: 24.32 | Q87: =IF(OR('Input - Capacity Factors'!$C$3="Wind"),IF(P87*'AVOID NEW'!$E$67<6.5,P87*(1-'AVOID NEW'!$E$67),P87-6.5),"NA") -> NA | R87: 20.12 | S87: =IF(OR('Input - Capacity Factors'!$C$3="Wind"),IF(R87*'AVOID NEW'!$E$67<6.5,R87*(1-'AVOID NEW'!$E$67),R87-6.5),"NA") -> NA | V87: 27.28 | W87: =IF(OR('Input - Capacity Factors'!$C$3="Wind"),IF(V87*'AVOID NEW'!$E$67<6.5,V87*(1-'AVOID NEW'!$E$67),V87-6.5),"NA") -> NA | X87: 28.95 | Y87: =IF(OR('Input - Capacity Factors'!$C$3="Wind"),IF(X87*'AVOID NEW'!$E$67<6.5,X87*(1-'AVOID NEW'!$E$67),X87-6.5),"NA") -> NA | Z87: 23.95 | AA87: =IF(OR('Input - Capacity Factors'!$C$3="Wind"),IF(Z87*'AVOID NEW'!$E$67<6.5,Z87*(1-'AVOID NEW'!$E$67),Z87-6.5),"NA") -> NA
B88: 4 | C88: ='AVOID NEW'!AP12 -> 28.66398609 | D88: 30.33398609 | E88: 25.33398609 | G88: 30.96 | H88: =IF(OR('Input - Capacity Factors'!$C$3="Wind"),IF(G88*'AVOID NEW'!$E$67<6.5,G88*(1-'AVOID NEW'!$E$67),G88-6.5),"NA") -> NA | I88: 32.76 | J88: =IF(OR('Input - Capacity Factors'!$C$3="Wind"),IF(I88*'AVOID NEW'!$E$67<6.5,I88*(1-'AVOID NEW'!$E$67),I88-6.5),"NA") -> NA | K88: 27.36 | L88: =IF(OR('Input - Capacity Factors'!$C$3="Wind"),IF(K88*'AVOID NEW'!$E$67<6.5,K88*(1-'AVOID NEW'!$E$67),K88-6.5),"NA") -> NA | N88: 24.08 | O88: =IF(OR('Input - Capacity Factors'!$C$3="Wind"),IF(N88*'AVOID NEW'!$E$67<6.5,N88*(1-'AVOID NEW'!$E$67),N88-6.5),"NA") -> NA | P88: 25.48 | Q88: =IF(OR('Input - Capacity Factors'!$C$3="Wind"),IF(P88*'AVOID NEW'!$E$67<6.5,P88*(1-'AVOID NEW'!$E$67),P88-6.5),"NA") -> NA | R88: 21.28 | S88: =IF(OR('Input - Capacity Factors'!$C$3="Wind"),IF(R88*'AVOID NEW'!$E$67<6.5,R88*(1-'AVOID NEW'!$E$67),R88-6.5),"NA") -> NA | V88: 28.66 | W88: =IF(OR('Input - Capacity Factors'!$C$3="Wind"),IF(V88*'AVOID NEW'!$E$67<6.5,V88*(1-'AVOID NEW'!$E$67),V88-6.5),"NA") -> NA | X88: 30.33 | Y88: =IF(OR('Input - Capacity Factors'!$C$3="Wind"),IF(X88*'AVOID NEW'!$E$67<6.5,X88*(1-'AVOID NEW'!$E$67),X88-6.5),"NA") -> NA | Z88: 25.33 | AA88: =IF(OR('Input - Capacity Factors'!$C$3="Wind"),IF(Z88*'AVOID NEW'!$E$67<6.5,Z88*(1-'AVOID NEW'!$E$67),Z88-6.5),"NA") -> NA
B89: 5 | C89: ='AVOID NEW'!AP13 -> 29.89725906 | D89: 31.56725906 | E89: 26.56725906 | G89: 32.29 | H89: =IF(OR('Input - Capacity Factors'!$C$3="Wind"),IF(G89*'AVOID NEW'!$E$67<6.5,G89*(1-'AVOID NEW'!$E$67),G89-6.5),"NA") -> NA | I89: 34.09 | J89: =IF(OR('Input - Capacity Factors'!$C$3="Wind"),IF(I89*'AVOID NEW'!$E$67<6.5,I89*(1-'AVOID NEW'!$E$67),I89-6.5),"NA") -> NA | K89: 28.69 | L89: =IF(OR('Input - Capacity Factors'!$C$3="Wind"),IF(K89*'AVOID NEW'!$E$67<6.5,K89*(1-'AVOID NEW'!$E$67),K89-6.5),"NA") -> NA | N89: 25.11 | O89: =IF(OR('Input - Capacity Factors'!$C$3="Wind"),IF(N89*'AVOID NEW'!$E$67<6.5,N89*(1-'AVOID NEW'!$E$67),N89-6.5),"NA") -> NA | P89: 26.52 | Q89: =IF(OR('Input - Capacity Factors'!$C$3="Wind"),IF(P89*'AVOID NEW'!$E$67<6.5,P89*(1-'AVOID NEW'!$E$67),P89-6.5),"NA") -> NA | R89: 22.32 | S89: =IF(OR('Input - Capacity Factors'!$C$3="Wind"),IF(R89*'AVOID NEW'!$E$67<6.5,R89*(1-'AVOID NEW'!$E$67),R89-6.5),"NA") -> NA | V89: 29.9 | W89: =IF(OR('Input - Capacity Factors'!$C$3="Wind"),IF(V89*'AVOID NEW'!$E$67<6.5,V89*(1-'AVOID NEW'!$E$67),V89-6.5),"NA") -> NA | X89: 31.57 | Y89: =IF(OR('Input - Capacity Factors'!$C$3="Wind"),IF(X89*'AVOID NEW'!$E$67<6.5,X89*(1-'AVOID NEW'!$E$67),X89-6.5),"NA") -> NA | Z89: 26.57 | AA89: =IF(OR('Input - Capacity Factors'!$C$3="Wind"),IF(Z89*'AVOID NEW'!$E$67<6.5,Z89*(1-'AVOID NEW'!$E$67),Z89-6.5),"NA") -> NA
B90: 6 | C90: ='AVOID NEW'!AP14 -> 30.95432204 | D90: 32.62432204 | E90: 27.62432204 | G90: 33.43 | H90: =IF(OR('Input - Capacity Factors'!$C$3="Wind"),IF(G90*'AVOID NEW'!$E$67<6.5,G90*(1-'AVOID NEW'!$E$67),G90-6.5),"NA") -> NA | I90: 35.23 | J90: =IF(OR('Input - Capacity Factors'!$C$3="Wind"),IF(I90*'AVOID NEW'!$E$67<6.5,I90*(1-'AVOID NEW'!$E$67),I90-6.5),"NA") -> NA | K90: 29.83 | L90: =IF(OR('Input - Capacity Factors'!$C$3="Wind"),IF(K90*'AVOID NEW'!$E$67<6.5,K90*(1-'AVOID NEW'!$E$67),K90-6.5),"NA") -> NA | N90: 26 | O90: =IF(OR('Input - Capacity Factors'!$C$3="Wind"),IF(N90*'AVOID NEW'!$E$67<6.5,N90*(1-'AVOID NEW'!$E$67),N90-6.5),"NA") -> NA | P90: 27.4 | Q90: =IF(OR('Input - Capacity Factors'!$C$3="Wind"),IF(P90*'AVOID NEW'!$E$67<6.5,P90*(1-'AVOID NEW'!$E$67),P90-6.5),"NA") -> NA | R90: 23.2 | S90: =IF(OR('Input - Capacity Factors'!$C$3="Wind"),IF(R90*'AVOID NEW'!$E$67<6.5,R90*(1-'AVOID NEW'!$E$67),R90-6.5),"NA") -> NA | V90: 30.95 | W90: =IF(OR('Input - Capacity Factors'!$C$3="Wind"),IF(V90*'AVOID NEW'!$E$67<6.5,V90*(1-'AVOID NEW'!$E$67),V90-6.5),"NA") -> NA | X90: 32.62 | Y90: =IF(OR('Input - Capacity Factors'!$C$3="Wind"),IF(X90*'AVOID NEW'!$E$67<6.5,X90*(1-'AVOID NEW'!$E$67),X90-6.5),"NA") -> NA | Z90: 27.62 | AA90: =IF(OR('Input - Capacity Factors'!$C$3="Wind"),IF(Z90*'AVOID NEW'!$E$67<6.5,Z90*(1-'AVOID NEW'!$E$67),Z90-6.5),"NA") -> NA
B91: 7 | C91: ='AVOID NEW'!AP15 -> 37.5657137 | D91: 39.2357137 | E91: 34.2357137 | G91: 40.57 | H91: =IF(OR('Input - Capacity Factors'!$C$3="Wind"),IF(G91*'AVOID NEW'!$E$67<6.5,G91*(1-'AVOID NEW'!$E$67),G91-6.5),"NA") -> NA | I91: 42.37 | J91: =IF(OR('Input - Capacity Factors'!$C$3="Wind"),IF(I91*'AVOID NEW'!$E$67<6.5,I91*(1-'AVOID NEW'!$E$67),I91-6.5),"NA") -> NA | K91: 36.97 | L91: =IF(OR('Input - Capacity Factors'!$C$3="Wind"),IF(K91*'AVOID NEW'!$E$67<6.5,K91*(1-'AVOID NEW'!$E$67),K91-6.5),"NA") -> NA | N91: 31.56 | O91: =IF(OR('Input - Capacity Factors'!$C$3="Wind"),IF(N91*'AVOID NEW'!$E$67<6.5,N91*(1-'AVOID NEW'!$E$67),N91-6.5),"NA") -> NA | P91: 32.96 | Q91: =IF(OR('Input - Capacity Factors'!$C$3="Wind"),IF(P91*'AVOID NEW'!$E$67<6.5,P91*(1-'AVOID NEW'!$E$67),P91-6.5),"NA") -> NA | R91: 28.76 | S91: =IF(OR('Input - Capacity Factors'!$C$3="Wind"),IF(R91*'AVOID NEW'!$E$67<6.5,R91*(1-'AVOID NEW'!$E$67),R91-6.5),"NA") -> NA | V91: 37.57 | W91: =IF(OR('Input - Capacity Factors'!$C$3="Wind"),IF(V91*'AVOID NEW'!$E$67<6.5,V91*(1-'AVOID NEW'!$E$67),V91-6.5),"NA") -> NA | X91: 39.24 | Y91: =IF(OR('Input - Capacity Factors'!$C$3="Wind"),IF(X91*'AVOID NEW'!$E$67<6.5,X91*(1-'AVOID NEW'!$E$67),X91-6.5),"NA") -> NA | Z91: 34.24 | AA91: =IF(OR('Input - Capacity Factors'!$C$3="Wind"),IF(Z91*'AVOID NEW'!$E$67<6.5,Z91*(1-'AVOID NEW'!$E$67),Z91-6.5),"NA") -> NA
B92: 8 | C92: ='AVOID NEW'!AP16 -> 42.59330839 | D92: 44.26330839 | E92: 39.26330839 | G92: 46 | H92: =IF(OR('Input - Capacity Factors'!$C$3="Wind"),IF(G92*'AVOID NEW'!$E$67<6.5,G92*(1-'AVOID NEW'!$E$67),G92-6.5),"NA") -> NA | I92: 47.8 | J92: =IF(OR('Input - Capacity Factors'!$C$3="Wind"),IF(I92*'AVOID NEW'!$E$67<6.5,I92*(1-'AVOID NEW'!$E$67),I92-6.5),"NA") -> NA | K92: 42.4 | L92: =IF(OR('Input - Capacity Factors'!$C$3="Wind"),IF(K92*'AVOID NEW'!$E$67<6.5,K92*(1-'AVOID NEW'!$E$67),K92-6.5),"NA") -> NA | N92: 35.78 | O92: =IF(OR('Input - Capacity Factors'!$C$3="Wind"),IF(N92*'AVOID NEW'!$E$67<6.5,N92*(1-'AVOID NEW'!$E$67),N92-6.5),"NA") -> NA | P92: 37.18 | Q92: =IF(OR('Input - Capacity Factors'!$C$3="Wind"),IF(P92*'AVOID NEW'!$E$67<6.5,P92*(1-'AVOID NEW'!$E$67),P92-6.5),"NA") -> NA | R92: 32.98 | S92: =IF(OR('Input - Capacity Factors'!$C$3="Wind"),IF(R92*'AVOID NEW'!$E$67<6.5,R92*(1-'AVOID NEW'!$E$67),R92-6.5),"NA") -> NA | V92: 42.59 | W92: =IF(OR('Input - Capacity Factors'!$C$3="Wind"),IF(V92*'AVOID NEW'!$E$67<6.5,V92*(1-'AVOID NEW'!$E$67),V92-6.5),"NA") -> NA | X92: 44.26 | Y92: =IF(OR('Input - Capacity Factors'!$C$3="Wind"),IF(X92*'AVOID NEW'!$E$67<6.5,X92*(1-'AVOID NEW'!$E$67),X92-6.5),"NA") -> NA | Z92: 39.26 | AA92: =IF(OR('Input - Capacity Factors'!$C$3="Wind"),IF(Z92*'AVOID NEW'!$E$67<6.5,Z92*(1-'AVOID NEW'!$E$67),Z92-6.5),"NA") -> NA
B93: 9 | C93: ='AVOID NEW'!AP17 -> 46.58852126 | D93: 48.25852126 | E93: 43.25852126 | G93: 50.32 | H93: =IF(OR('Input - Capacity Factors'!$C$3="Wind"),IF(G93*'AVOID NEW'!$E$67<6.5,G93*(1-'AVOID NEW'!$E$67),G93-6.5),"NA") -> NA | I93: 52.12 | J93: =IF(OR('Input - Capacity Factors'!$C$3="Wind"),IF(I93*'AVOID NEW'!$E$67<6.5,I93*(1-'AVOID NEW'!$E$67),I93-6.5),"NA") -> NA | K93: 46.72 | L93: =IF(OR('Input - Capacity Factors'!$C$3="Wind"),IF(K93*'AVOID NEW'!$E$67<6.5,K93*(1-'AVOID NEW'!$E$67),K93-6.5),"NA") -> NA | N93: 39.13 | O93: =IF(OR('Input - Capacity Factors'!$C$3="Wind"),IF(N93*'AVOID NEW'!$E$67<6.5,N93*(1-'AVOID NEW'!$E$67),N93-6.5),"NA") -> NA | P93: 40.54 | Q93: =IF(OR('Input - Capacity Factors'!$C$3="Wind"),IF(P93*'AVOID NEW'!$E$67<6.5,P93*(1-'AVOID NEW'!$E$67),P93-6.5),"NA") -> NA | R93: 36.34 | S93: =IF(OR('Input - Capacity Factors'!$C$3="Wind"),IF(R93*'AVOID NEW'!$E$67<6.5,R93*(1-'AVOID NEW'!$E$67),R93-6.5),"NA") -> NA | V93: 46.59 | W93: =IF(OR('Input - Capacity Factors'!$C$3="Wind"),IF(V93*'AVOID NEW'!$E$67<6.5,V93*(1-'AVOID NEW'!$E$67),V93-6.5),"NA") -> NA | X93: 48.26 | Y93: =IF(OR('Input - Capacity Factors'!$C$3="Wind"),IF(X93*'AVOID NEW'!$E$67<6.5,X93*(1-'AVOID NEW'!$E$67),X93-6.5),"NA") -> NA | Z93: 43.26 | AA93: =IF(OR('Input - Capacity Factors'!$C$3="Wind"),IF(Z93*'AVOID NEW'!$E$67<6.5,Z93*(1-'AVOID NEW'!$E$67),Z93-6.5),"NA") -> NA
B94: 10 | C94: ='AVOID NEW'!AP18 -> 49.89999044 | D94: 51.56999044 | E94: 46.56999044 | G94: 53.89 | H94: =IF(OR('Input - Capacity Factors'!$C$3="Wind"),IF(G94*'AVOID NEW'!$E$67<6.5,G94*(1-'AVOID NEW'!$E$67),G94-6.5),"NA") -> NA | I94: 55.7 | J94: =IF(OR('Input - Capacity Factors'!$C$3="Wind"),IF(I94*'AVOID NEW'!$E$67<6.5,I94*(1-'AVOID NEW'!$E$67),I94-6.5),"NA") -> NA | K94: 50.3 | L94: =IF(OR('Input - Capacity Factors'!$C$3="Wind"),IF(K94*'AVOID NEW'!$E$67<6.5,K94*(1-'AVOID NEW'!$E$67),K94-6.5),"NA") -> NA | N94: 41.92 | O94: =IF(OR('Input - Capacity Factors'!$C$3="Wind"),IF(N94*'AVOID NEW'!$E$67<6.5,N94*(1-'AVOID NEW'!$E$67),N94-6.5),"NA") -> NA | P94: 43.32 | Q94: =IF(OR('Input - Capacity Factors'!$C$3="Wind"),IF(P94*'AVOID NEW'!$E$67<6.5,P94*(1-'AVOID NEW'!$E$67),P94-6.5),"NA") -> NA | R94: 39.12 | S94: =IF(OR('Input - Capacity Factors'!$C$3="Wind"),IF(R94*'AVOID NEW'!$E$67<6.5,R94*(1-'AVOID NEW'!$E$67),R94-6.5),"NA") -> NA | V94: 49.9 | W94: =IF(OR('Input - Capacity Factors'!$C$3="Wind"),IF(V94*'AVOID NEW'!$E$67<6.5,V94*(1-'AVOID NEW'!$E$67),V94-6.5),"NA") -> NA | X94: 51.57 | Y94: =IF(OR('Input - Capacity Factors'!$C$3="Wind"),IF(X94*'AVOID NEW'!$E$67<6.5,X94*(1-'AVOID NEW'!$E$67),X94-6.5),"NA") -> NA | Z94: 46.57 | AA94: =IF(OR('Input - Capacity Factors'!$C$3="Wind"),IF(Z94*'AVOID NEW'!$E$67<6.5,Z94*(1-'AVOID NEW'!$E$67),Z94-6.5),"NA") -> NA
B95: 11 | C95: ='AVOID NEW'!AP19 -> 52.72764014 | D95: 54.39764014 | E95: 49.39764014 | G95: 56.95 | H95: =IF(OR('Input - Capacity Factors'!$C$3="Wind"),IF(G95*'AVOID NEW'!$E$67<6.5,G95*(1-'AVOID NEW'!$E$67),G95-6.5),"NA") -> NA | I95: 58.75 | J95: =IF(OR('Input - Capacity Factors'!$C$3="Wind"),IF(I95*'AVOID NEW'!$E$67<6.5,I95*(1-'AVOID NEW'!$E$67),I95-6.5),"NA") -> NA | K95: 53.35 | L95: =IF(OR('Input - Capacity Factors'!$C$3="Wind"),IF(K95*'AVOID NEW'!$E$67<6.5,K95*(1-'AVOID NEW'!$E$67),K95-6.5),"NA") -> NA | N95: 44.29 | O95: =IF(OR('Input - Capacity Factors'!$C$3="Wind"),IF(N95*'AVOID NEW'!$E$67<6.5,N95*(1-'AVOID NEW'!$E$67),N95-6.5),"NA") -> NA | P95: 45.69 | Q95: =IF(OR('Input - Capacity Factors'!$C$3="Wind"),IF(P95*'AVOID NEW'!$E$67<6.5,P95*(1-'AVOID NEW'!$E$67),P95-6.5),"NA") -> NA | R95: 41.49 | S95: =IF(OR('Input - Capacity Factors'!$C$3="Wind"),IF(R95*'AVOID NEW'!$E$67<6.5,R95*(1-'AVOID NEW'!$E$67),R95-6.5),"NA") -> NA | V95: 52.73 | W95: =IF(OR('Input - Capacity Factors'!$C$3="Wind"),IF(V95*'AVOID NEW'!$E$67<6.5,V95*(1-'AVOID NEW'!$E$67),V95-6.5),"NA") -> NA | X95: 54.4 | Y95: =IF(OR('Input - Capacity Factors'!$C$3="Wind"),IF(X95*'AVOID NEW'!$E$67<6.5,X95*(1-'AVOID NEW'!$E$67),X95-6.5),"NA") -> NA | Z95: 49.4 | AA95: =IF(OR('Input - Capacity Factors'!$C$3="Wind"),IF(Z95*'AVOID NEW'!$E$67<6.5,Z95*(1-'AVOID NEW'!$E$67),Z95-6.5),"NA") -> NA
B96: 12 | C96: ='AVOID NEW'!AP20 -> 55.18050441 | D96: 56.85050441 | E96: 51.85050441 | G96: 59.59 | H96: =IF(OR('Input - Capacity Factors'!$C$3="Wind"),IF(G96*'AVOID NEW'!$E$67<6.5,G96*(1-'AVOID NEW'!$E$67),G96-6.5),"NA") -> NA | I96: 61.4 | J96: =IF(OR('Input - Capacity Factors'!$C$3="Wind"),IF(I96*'AVOID NEW'!$E$67<6.5,I96*(1-'AVOID NEW'!$E$67),I96-6.5),"NA") -> NA | K96: 56 | L96: =IF(OR('Input - Capacity Factors'!$C$3="Wind"),IF(K96*'AVOID NEW'!$E$67<6.5,K96*(1-'AVOID NEW'!$E$67),K96-6.5),"NA") -> NA | N96: 46.35 | O96: =IF(OR('Input - Capacity Factors'!$C$3="Wind"),IF(N96*'AVOID NEW'!$E$67<6.5,N96*(1-'AVOID NEW'!$E$67),N96-6.5),"NA") -> NA | P96: 47.75 | Q96: =IF(OR('Input - Capacity Factors'!$C$3="Wind"),IF(P96*'AVOID NEW'!$E$67<6.5,P96*(1-'AVOID NEW'!$E$67),P96-6.5),"NA") -> NA | R96: 43.55 | S96: =IF(OR('Input - Capacity Factors'!$C$3="Wind"),IF(R96*'AVOID NEW'!$E$67<6.5,R96*(1-'AVOID NEW'!$E$67),R96-6.5),"NA") -> NA | V96: 55.18 | W96: =IF(OR('Input - Capacity Factors'!$C$3="Wind"),IF(V96*'AVOID NEW'!$E$67<6.5,V96*(1-'AVOID NEW'!$E$67),V96-6.5),"NA") -> NA | X96: 56.85 | Y96: =IF(OR('Input - Capacity Factors'!$C$3="Wind"),IF(X96*'AVOID NEW'!$E$67<6.5,X96*(1-'AVOID NEW'!$E$67),X96-6.5),"NA") -> NA | Z96: 51.85 | AA96: =IF(OR('Input - Capacity Factors'!$C$3="Wind"),IF(Z96*'AVOID NEW'!$E$67<6.5,Z96*(1-'AVOID NEW'!$E$67),Z96-6.5),"NA") -> NA
B97: 13 | C97: ='AVOID NEW'!AP21 -> 57.3280889 | D97: 58.9980889 | E97: 53.9980889 | G97: 61.91 | H97: =IF(OR('Input - Capacity Factors'!$C$3="Wind"),IF(G97*'AVOID NEW'!$E$67<6.5,G97*(1-'AVOID NEW'!$E$67),G97-6.5),"NA") -> NA | I97: 63.72 | J97: =IF(OR('Input - Capacity Factors'!$C$3="Wind"),IF(I97*'AVOID NEW'!$E$67<6.5,I97*(1-'AVOID NEW'!$E$67),I97-6.5),"NA") -> NA | K97: 58.32 | L97: =IF(OR('Input - Capacity Factors'!$C$3="Wind"),IF(K97*'AVOID NEW'!$E$67<6.5,K97*(1-'AVOID NEW'!$E$67),K97-6.5),"NA") -> NA | N97: 48.16 | O97: =IF(OR('Input - Capacity Factors'!$C$3="Wind"),IF(N97*'AVOID NEW'!$E$67<6.5,N97*(1-'AVOID NEW'!$E$67),N97-6.5),"NA") -> NA | P97: 49.56 | Q97: =IF(OR('Input - Capacity Factors'!$C$3="Wind"),IF(P97*'AVOID NEW'!$E$67<6.5,P97*(1-'AVOID NEW'!$E$67),P97-6.5),"NA") -> NA | R97: 45.36 | S97: =IF(OR('Input - Capacity Factors'!$C$3="Wind"),IF(R97*'AVOID NEW'!$E$67<6.5,R97*(1-'AVOID NEW'!$E$67),R97-6.5),"NA") -> NA | V97: 57.33 | W97: =IF(OR('Input - Capacity Factors'!$C$3="Wind"),IF(V97*'AVOID NEW'!$E$67<6.5,V97*(1-'AVOID NEW'!$E$67),V97-6.5),"NA") -> NA | X97: 59 | Y97: =IF(OR('Input - Capacity Factors'!$C$3="Wind"),IF(X97*'AVOID NEW'!$E$67<6.5,X97*(1-'AVOID NEW'!$E$67),X97-6.5),"NA") -> NA | Z97: 54 | AA97: =IF(OR('Input - Capacity Factors'!$C$3="Wind"),IF(Z97*'AVOID NEW'!$E$67<6.5,Z97*(1-'AVOID NEW'!$E$67),Z97-6.5),"NA") -> NA
B98: 14 | C98: ='AVOID NEW'!AP22 -> 59.23388831 | D98: 60.90388831 | E98: 55.90388831 | G98: 63.97 | H98: =IF(OR('Input - Capacity Factors'!$C$3="Wind"),IF(G98*'AVOID NEW'!$E$67<6.5,G98*(1-'AVOID NEW'!$E$67),G98-6.5),"NA") -> NA | I98: 65.78 | J98: =IF(OR('Input - Capacity Factors'!$C$3="Wind"),IF(I98*'AVOID NEW'!$E$67<6.5,I98*(1-'AVOID NEW'!$E$67),I98-6.5),"NA") -> NA | K98: 60.38 | L98: =IF(OR('Input - Capacity Factors'!$C$3="Wind"),IF(K98*'AVOID NEW'!$E$67<6.5,K98*(1-'AVOID NEW'!$E$67),K98-6.5),"NA") -> NA | N98: 49.76 | O98: =IF(OR('Input - Capacity Factors'!$C$3="Wind"),IF(N98*'AVOID NEW'!$E$67<6.5,N98*(1-'AVOID NEW'!$E$67),N98-6.5),"NA") -> NA | P98: 51.16 | Q98: =IF(OR('Input - Capacity Factors'!$C$3="Wind"),IF(P98*'AVOID NEW'!$E$67<6.5,P98*(1-'AVOID NEW'!$E$67),P98-6.5),"NA") -> NA | R98: 46.96 | S98: =IF(OR('Input - Capacity Factors'!$C$3="Wind"),IF(R98*'AVOID NEW'!$E$67<6.5,R98*(1-'AVOID NEW'!$E$67),R98-6.5),"NA") -> NA | V98: 59.23 | W98: =IF(OR('Input - Capacity Factors'!$C$3="Wind"),IF(V98*'AVOID NEW'!$E$67<6.5,V98*(1-'AVOID NEW'!$E$67),V98-6.5),"NA") -> NA | X98: 60.9 | Y98: =IF(OR('Input - Capacity Factors'!$C$3="Wind"),IF(X98*'AVOID NEW'!$E$67<6.5,X98*(1-'AVOID NEW'!$E$67),X98-6.5),"NA") -> NA | Z98: 55.9 | AA98: =IF(OR('Input - Capacity Factors'!$C$3="Wind"),IF(Z98*'AVOID NEW'!$E$67<6.5,Z98*(1-'AVOID NEW'!$E$67),Z98-6.5),"NA") -> NA
B99: 15 | C99: ='AVOID NEW'!AP23 -> 60.9735221 | D99: 62.6435221 | E99: 57.6435221 | G99: 65.85 | H99: =IF(OR('Input - Capacity Factors'!$C$3="Wind"),IF(G99*'AVOID NEW'!$E$67<6.5,G99*(1-'AVOID NEW'!$E$67),G99-6.5),"NA") -> NA | I99: 67.66 | J99: =IF(OR('Input - Capacity Factors'!$C$3="Wind"),IF(I99*'AVOID NEW'!$E$67<6.5,I99*(1-'AVOID NEW'!$E$67),I99-6.5),"NA") -> NA | K99: 62.26 | L99: =IF(OR('Input - Capacity Factors'!$C$3="Wind"),IF(K99*'AVOID NEW'!$E$67<6.5,K99*(1-'AVOID NEW'!$E$67),K99-6.5),"NA") -> NA | N99: 51.22 | O99: =IF(OR('Input - Capacity Factors'!$C$3="Wind"),IF(N99*'AVOID NEW'!$E$67<6.5,N99*(1-'AVOID NEW'!$E$67),N99-6.5),"NA") -> NA | P99: 52.62 | Q99: =IF(OR('Input - Capacity Factors'!$C$3="Wind"),IF(P99*'AVOID NEW'!$E$67<6.5,P99*(1-'AVOID NEW'!$E$67),P99-6.5),"NA") -> NA | R99: 48.42 | S99: =IF(OR('Input - Capacity Factors'!$C$3="Wind"),IF(R99*'AVOID NEW'!$E$67<6.5,R99*(1-'AVOID NEW'!$E$67),R99-6.5),"NA") -> NA | V99: 60.97 | W99: =IF(OR('Input - Capacity Factors'!$C$3="Wind"),IF(V99*'AVOID NEW'!$E$67<6.5,V99*(1-'AVOID NEW'!$E$67),V99-6.5),"NA") -> NA | X99: 62.64 | Y99: =IF(OR('Input - Capacity Factors'!$C$3="Wind"),IF(X99*'AVOID NEW'!$E$67<6.5,X99*(1-'AVOID NEW'!$E$67),X99-6.5),"NA") -> NA | Z99: 57.64 | AA99: =IF(OR('Input - Capacity Factors'!$C$3="Wind"),IF(Z99*'AVOID NEW'!$E$67<6.5,Z99*(1-'AVOID NEW'!$E$67),Z99-6.5),"NA") -> NA
B100: 16 | C100: ='AVOID NEW'!AP24 -> 62.55900193 | D100: 64.22900193 | E100: 59.22900193 | G100: 67.56 | H100: =IF(OR('Input - Capacity Factors'!$C$3="Wind"),IF(G100*'AVOID NEW'!$E$67<6.5,G100*(1-'AVOID NEW'!$E$67),G100-6.5),"NA") -> NA | I100: 69.37 | J100: =IF(OR('Input - Capacity Factors'!$C$3="Wind"),IF(I100*'AVOID NEW'!$E$67<6.5,I100*(1-'AVOID NEW'!$E$67),I100-6.5),"NA") -> NA | K100: 63.97 | L100: =IF(OR('Input - Capacity Factors'!$C$3="Wind"),IF(K100*'AVOID NEW'!$E$67<6.5,K100*(1-'AVOID NEW'!$E$67),K100-6.5),"NA") -> NA | N100: 52.55 | O100: =IF(OR('Input - Capacity Factors'!$C$3="Wind"),IF(N100*'AVOID NEW'!$E$67<6.5,N100*(1-'AVOID NEW'!$E$67),N100-6.5),"NA") -> NA | P100: 53.95 | Q100: =IF(OR('Input - Capacity Factors'!$C$3="Wind"),IF(P100*'AVOID NEW'!$E$67<6.5,P100*(1-'AVOID NEW'!$E$67),P100-6.5),"NA") -> NA | R100: 49.75 | S100: =IF(OR('Input - Capacity Factors'!$C$3="Wind"),IF(R100*'AVOID NEW'!$E$67<6.5,R100*(1-'AVOID NEW'!$E$67),R100-6.5),"NA") -> NA | V100: 62.56 | W100: =IF(OR('Input - Capacity Factors'!$C$3="Wind"),IF(V100*'AVOID NEW'!$E$67<6.5,V100*(1-'AVOID NEW'!$E$67),V100-6.5),"NA") -> NA | X100: 64.23 | Y100: =IF(OR('Input - Capacity Factors'!$C$3="Wind"),IF(X100*'AVOID NEW'!$E$67<6.5,X100*(1-'AVOID NEW'!$E$67),X100-6.5),"NA") -> NA | Z100: 59.23 | AA100: =IF(OR('Input - Capacity Factors'!$C$3="Wind"),IF(Z100*'AVOID NEW'!$E$67<6.5,Z100*(1-'AVOID NEW'!$E$67),Z100-6.5),"NA") -> NA
B101: 17 | C101: ='AVOID NEW'!AP25 -> 64.00064282 | D101: 65.67064282 | E101: 60.67064282 | G101: 69.12 | H101: =IF(OR('Input - Capacity Factors'!$C$3="Wind"),IF(G101*'AVOID NEW'!$E$67<6.5,G101*(1-'AVOID NEW'!$E$67),G101-6.5),"NA") -> NA | I101: 70.92 | J101: =IF(OR('Input - Capacity Factors'!$C$3="Wind"),IF(I101*'AVOID NEW'!$E$67<6.5,I101*(1-'AVOID NEW'!$E$67),I101-6.5),"NA") -> NA | K101: 65.52 | L101: =IF(OR('Input - Capacity Factors'!$C$3="Wind"),IF(K101*'AVOID NEW'!$E$67<6.5,K101*(1-'AVOID NEW'!$E$67),K101-6.5),"NA") -> NA | N101: 53.76 | O101: =IF(OR('Input - Capacity Factors'!$C$3="Wind"),IF(N101*'AVOID NEW'!$E$67<6.5,N101*(1-'AVOID NEW'!$E$67),N101-6.5),"NA") -> NA | P101: 55.16 | Q101: =IF(OR('Input - Capacity Factors'!$C$3="Wind"),IF(P101*'AVOID NEW'!$E$67<6.5,P101*(1-'AVOID NEW'!$E$67),P101-6.5),"NA") -> NA | R101: 50.96 | S101: =IF(OR('Input - Capacity Factors'!$C$3="Wind"),IF(R101*'AVOID NEW'!$E$67<6.5,R101*(1-'AVOID NEW'!$E$67),R101-6.5),"NA") -> NA | V101: 64 | W101: =IF(OR('Input - Capacity Factors'!$C$3="Wind"),IF(V101*'AVOID NEW'!$E$67<6.5,V101*(1-'AVOID NEW'!$E$67),V101-6.5),"NA") -> NA | X101: 65.67 | Y101: =IF(OR('Input - Capacity Factors'!$C$3="Wind"),IF(X101*'AVOID NEW'!$E$67<6.5,X101*(1-'AVOID NEW'!$E$67),X101-6.5),"NA") -> NA | Z101: 60.67 | AA101: =IF(OR('Input - Capacity Factors'!$C$3="Wind"),IF(Z101*'AVOID NEW'!$E$67<6.5,Z101*(1-'AVOID NEW'!$E$67),Z101-6.5),"NA") -> NA
B102: 18 | C102: ='AVOID NEW'!AP26 -> 65.32058658 | D102: 66.99058658 | E102: 61.99058658 | G102: 70.55 | H102: =IF(OR('Input - Capacity Factors'!$C$3="Wind"),IF(G102*'AVOID NEW'!$E$67<6.5,G102*(1-'AVOID NEW'!$E$67),G102-6.5),"NA") -> NA | I102: 72.35 | J102: =IF(OR('Input - Capacity Factors'!$C$3="Wind"),IF(I102*'AVOID NEW'!$E$67<6.5,I102*(1-'AVOID NEW'!$E$67),I102-6.5),"NA") -> NA | K102: 66.95 | L102: =IF(OR('Input - Capacity Factors'!$C$3="Wind"),IF(K102*'AVOID NEW'!$E$67<6.5,K102*(1-'AVOID NEW'!$E$67),K102-6.5),"NA") -> NA | N102: 54.87 | O102: =IF(OR('Input - Capacity Factors'!$C$3="Wind"),IF(N102*'AVOID NEW'!$E$67<6.5,N102*(1-'AVOID NEW'!$E$67),N102-6.5),"NA") -> NA | P102: 56.27 | Q102: =IF(OR('Input - Capacity Factors'!$C$3="Wind"),IF(P102*'AVOID NEW'!$E$67<6.5,P102*(1-'AVOID NEW'!$E$67),P102-6.5),"NA") -> NA | R102: 52.07 | S102: =IF(OR('Input - Capacity Factors'!$C$3="Wind"),IF(R102*'AVOID NEW'!$E$67<6.5,R102*(1-'AVOID NEW'!$E$67),R102-6.5),"NA") -> NA | V102: 65.32 | W102: =IF(OR('Input - Capacity Factors'!$C$3="Wind"),IF(V102*'AVOID NEW'!$E$67<6.5,V102*(1-'AVOID NEW'!$E$67),V102-6.5),"NA") -> NA | X102: 66.99 | Y102: =IF(OR('Input - Capacity Factors'!$C$3="Wind"),IF(X102*'AVOID NEW'!$E$67<6.5,X102*(1-'AVOID NEW'!$E$67),X102-6.5),"NA") -> NA | Z102: 61.99 | AA102: =IF(OR('Input - Capacity Factors'!$C$3="Wind"),IF(Z102*'AVOID NEW'!$E$67<6.5,Z102*(1-'AVOID NEW'!$E$67),Z102-6.5),"NA") -> NA
B103: 19 | C103: ='AVOID NEW'!AP27 -> 66.53362172 | D103: 68.20362172 | E103: 63.20362172 | G103: 71.86 | H103: =IF(OR('Input - Capacity Factors'!$C$3="Wind"),IF(G103*'AVOID NEW'!$E$67<6.5,G103*(1-'AVOID NEW'!$E$67),G103-6.5),"NA") -> NA | I103: 73.66 | J103: =IF(OR('Input - Capacity Factors'!$C$3="Wind"),IF(I103*'AVOID NEW'!$E$67<6.5,I103*(1-'AVOID NEW'!$E$67),I103-6.5),"NA") -> NA | K103: 68.26 | L103: =IF(OR('Input - Capacity Factors'!$C$3="Wind"),IF(K103*'AVOID NEW'!$E$67<6.5,K103*(1-'AVOID NEW'!$E$67),K103-6.5),"NA") -> NA | N103: 55.89 | O103: =IF(OR('Input - Capacity Factors'!$C$3="Wind"),IF(N103*'AVOID NEW'!$E$67<6.5,N103*(1-'AVOID NEW'!$E$67),N103-6.5),"NA") -> NA | P103: 57.29 | Q103: =IF(OR('Input - Capacity Factors'!$C$3="Wind"),IF(P103*'AVOID NEW'!$E$67<6.5,P103*(1-'AVOID NEW'!$E$67),P103-6.5),"NA") -> NA | R103: 53.09 | S103: =IF(OR('Input - Capacity Factors'!$C$3="Wind"),IF(R103*'AVOID NEW'!$E$67<6.5,R103*(1-'AVOID NEW'!$E$67),R103-6.5),"NA") -> NA | V103: 66.53 | W103: =IF(OR('Input - Capacity Factors'!$C$3="Wind"),IF(V103*'AVOID NEW'!$E$67<6.5,V103*(1-'AVOID NEW'!$E$67),V103-6.5),"NA") -> NA | X103: 68.2 | Y103: =IF(OR('Input - Capacity Factors'!$C$3="Wind"),IF(X103*'AVOID NEW'!$E$67<6.5,X103*(1-'AVOID NEW'!$E$67),X103-6.5),"NA") -> NA | Z103: 63.2 | AA103: =IF(OR('Input - Capacity Factors'!$C$3="Wind"),IF(Z103*'AVOID NEW'!$E$67<6.5,Z103*(1-'AVOID NEW'!$E$67),Z103-6.5),"NA") -> NA
B104: 20 | C104: ='AVOID NEW'!AP28 -> 67.65758785 | D104: 69.32758785 | E104: 64.32758785 | G104: 73.07 | H104: =IF(OR('Input - Capacity Factors'!$C$3="Wind"),IF(G104*'AVOID NEW'!$E$67<6.5,G104*(1-'AVOID NEW'!$E$67),G104-6.5),"NA") -> NA | I104: 74.87 | J104: =IF(OR('Input - Capacity Factors'!$C$3="Wind"),IF(I104*'AVOID NEW'!$E$67<6.5,I104*(1-'AVOID NEW'!$E$67),I104-6.5),"NA") -> NA | K104: 69.47 | L104: =IF(OR('Input - Capacity Factors'!$C$3="Wind"),IF(K104*'AVOID NEW'!$E$67<6.5,K104*(1-'AVOID NEW'!$E$67),K104-6.5),"NA") -> NA | N104: 56.83 | O104: =IF(OR('Input - Capacity Factors'!$C$3="Wind"),IF(N104*'AVOID NEW'!$E$67<6.5,N104*(1-'AVOID NEW'!$E$67),N104-6.5),"NA") -> NA | P104: 58.24 | Q104: =IF(OR('Input - Capacity Factors'!$C$3="Wind"),IF(P104*'AVOID NEW'!$E$67<6.5,P104*(1-'AVOID NEW'!$E$67),P104-6.5),"NA") -> NA | R104: 54.04 | S104: =IF(OR('Input - Capacity Factors'!$C$3="Wind"),IF(R104*'AVOID NEW'!$E$67<6.5,R104*(1-'AVOID NEW'!$E$67),R104-6.5),"NA") -> NA | V104: 67.66 | W104: =IF(OR('Input - Capacity Factors'!$C$3="Wind"),IF(V104*'AVOID NEW'!$E$67<6.5,V104*(1-'AVOID NEW'!$E$67),V104-6.5),"NA") -> NA | X104: 69.33 | Y104: =IF(OR('Input - Capacity Factors'!$C$3="Wind"),IF(X104*'AVOID NEW'!$E$67<6.5,X104*(1-'AVOID NEW'!$E$67),X104-6.5),"NA") -> NA | Z104: 64.33 | AA104: =IF(OR('Input - Capacity Factors'!$C$3="Wind"),IF(Z104*'AVOID NEW'!$E$67<6.5,Z104*(1-'AVOID NEW'!$E$67),Z104-6.5),"NA") -> NA
B108: =$B$1 -> THESE RATES ARE NOT VALID
B109: LEVELIZED RATES
B110: ="PROJECT ON-LINE IN "& 'AVOID NEW'!$D$54+3 -> PROJECT ON-LINE IN 2024
B111: ="Rate Effective Date: "&'AVOID NEW'!$E$69 -> Rate Effective Date: April 5, 2021
B112: ="Resource: "&'Input - Capacity Factors'!$C$3 -> Resource: Seasonal hydro
C113: Levelized Price | G113: ="Season 1 Pricing ("&$D$7*100&"%)" -> Season 1 Pricing (108%) | N113: ="Season 2 Pricing ("&100*$D$8&"%)" -> Season 2 Pricing (84%) | V113: Non-Seasonalized Pricing
C114: Heavy and Light Load Hour Differential | D114: ='AVOID NEW'!$E$66 -> 5 | G114: Flat | I114: Heavy Load Hour | K114: Light Load Hour | N114: Flat | P114: Heavy Load Hour | R114: Light Load Hour | V114: Flat | X114: Heavy Load Hour | Z114: Light Load Hour
D115: =ROUND(D114/3,2) -> 1.67 | E115: =-ROUND((D114*2)/3,2) -> -3.33 | H115: Price less wind integration adjustment | J115: Price less wind integration adjustment | L115: Price less wind integration adjustment | O115: Price less wind integration adjustment | Q115: Price less wind integration adjustment | S115: Price less wind integration adjustment | W115: Price less wind integration adjustment | Y115: Price less wind integration adjustment | AA115: Price less wind integration adjustment
B116: Contract Length | C116: Flat | D116: Heavy Load Hour | E116: Light Load Hour | G116: Price | I116: Price | K116: Price | N116: Price | P116: Price | R116: Price | V116: Price | X116: Price | Z116: Price
B117: 1 | C117: ='AVOID NEW'!AQ9 -> 27.0293285 | D117: =C117+D$83 -> 28.6993285 | E117: =C117+E$83 -> 23.6993285 | G117: =ROUND((+$C117*$D$7),2) -> 29.19 | H117: =IF(OR('Input - Capacity Factors'!$C$3="Wind"),IF(G117*'AVOID NEW'!$E$67<6.5,G117*(1-'AVOID NEW'!$E$67),G117-6.5),"NA") -> NA | I117: =ROUND((+$D117*$D$7),2) -> 31 | J117: =IF(OR('Input - Capacity Factors'!$C$3="Wind"),IF(I117*'AVOID NEW'!$E$67<6.5,I117*(1-'AVOID NEW'!$E$67),I117-6.5),"NA") -> NA | K117: =ROUND((+$E117*$D$7),2) -> 25.6 | L117: =IF(OR('Input - Capacity Factors'!$C$3="Wind"),IF(K117*'AVOID NEW'!$E$67<6.5,K117*(1-'AVOID NEW'!$E$67),K117-6.5),"NA") -> NA | N117: =ROUND((+$C117*$D$8),2) -> 22.7 | O117: =IF(OR('Input - Capacity Factors'!$C$3="Wind"),IF(N117*'AVOID NEW'!$E$67<6.5,N117*(1-'AVOID NEW'!$E$67),N117-6.5),"NA") -> NA | P117: =ROUND((+$D117*$D$8),2) -> 24.11 | Q117: =IF(OR('Input - Capacity Factors'!$C$3="Wind"),IF(P117*'AVOID NEW'!$E$67<6.5,P117*(1-'AVOID NEW'!$E$67),P117-6.5),"NA") -> NA | R117: =ROUND((+$E117*$D$8),2) -> 19.91 | S117: =IF(OR('Input - Capacity Factors'!$C$3="Wind"),IF(R117*'AVOID NEW'!$E$67<6.5,R117*(1-'AVOID NEW'!$E$67),R117-6.5),"NA") -> NA | V117: =ROUND((+$C117),2) -> 27.03 | W117: =IF(OR('Input - Capacity Factors'!$C$3="Wind"),IF(V117*'AVOID NEW'!$E$67<6.5,V117*(1-'AVOID NEW'!$E$67),V117-6.5),"NA") -> NA | X117: =ROUND((+$D117),2) -> 28.7 | Y117: =IF(OR('Input - Capacity Factors'!$C$3="Wind"),IF(X117*'AVOID NEW'!$E$67<6.5,X117*(1-'AVOID NEW'!$E$67),X117-6.5),"NA") -> NA | Z117: =ROUND((+$E117),2) -> 23.7 | AA117: =IF(OR('Input - Capacity Factors'!$C$3="Wind"),IF(Z117*'AVOID NEW'!$E$67<6.5,Z117*(1-'AVOID NEW'!$E$67),Z117-6.5),"NA") -> NA
B118: 2 | C118: ='AVOID NEW'!AQ10 -> 28.60042145 | D118: 30.27042145 | E118: 25.27042145 | G118: 30.89 | H118: =IF(OR('Input - Capacity Factors'!$C$3="Wind"),IF(G118*'AVOID NEW'!$E$67<6.5,G118*(1-'AVOID NEW'!$E$67),G118-6.5),"NA") -> NA | I118: 32.69 | J118: =IF(OR('Input - Capacity Factors'!$C$3="Wind"),IF(I118*'AVOID NEW'!$E$67<6.5,I118*(1-'AVOID NEW'!$E$67),I118-6.5),"NA") -> NA | K118: 27.29 | L118: =IF(OR('Input - Capacity Factors'!$C$3="Wind"),IF(K118*'AVOID NEW'!$E$67<6.5,K118*(1-'AVOID NEW'!$E$67),K118-6.5),"NA") -> NA | N118: 24.02 | O118: =IF(OR('Input - Capacity Factors'!$C$3="Wind"),IF(N118*'AVOID NEW'!$E$67<6.5,N118*(1-'AVOID NEW'!$E$67),N118-6.5),"NA") -> NA | P118: 25.43 | Q118: =IF(OR('Input - Capacity Factors'!$C$3="Wind"),IF(P118*'AVOID NEW'!$E$67<6.5,P118*(1-'AVOID NEW'!$E$67),P118-6.5),"NA") -> NA | R118: 21.23 | S118: =IF(OR('Input - Capacity Factors'!$C$3="Wind"),IF(R118*'AVOID NEW'!$E$67<6.5,R118*(1-'AVOID NEW'!$E$67),R118-6.5),"NA") -> NA | V118: =ROUND((+$C118),2) -> 28.6 | W118: =IF(OR('Input - Capacity Factors'!$C$3="Wind"),IF(V118*'AVOID NEW'!$E$67<6.5,V118*(1-'AVOID NEW'!$E$67),V118-6.5),"NA") -> NA | X118: =ROUND((+$D118),2) -> 30.27 | Y118: =IF(OR('Input - Capacity Factors'!$C$3="Wind"),IF(X118*'AVOID NEW'!$E$67<6.5,X118*(1-'AVOID NEW'!$E$67),X118-6.5),"NA") -> NA | Z118: =ROUND((+$E118),2) -> 25.27 | AA118: =IF(OR('Input - Capacity Factors'!$C$3="Wind"),IF(Z118*'AVOID NEW'!$E$67<6.5,Z118*(1-'AVOID NEW'!$E$67),Z118-6.5),"NA") -> NA
B119: 3 | C119: ='AVOID NEW'!AQ11 -> 30.11238412 | D119: 31.78238412 | E119: 26.78238412 | G119: 32.52 | H119: =IF(OR('Input - Capacity Factors'!$C$3="Wind"),IF(G119*'AVOID NEW'!$E$67<6.5,G119*(1-'AVOID NEW'!$E$67),G119-6.5),"NA") -> NA | I119: 34.32 | J119: =IF(OR('Input - Capacity Factors'!$C$3="Wind"),IF(I119*'AVOID NEW'!$E$67<6.5,I119*(1-'AVOID NEW'!$E$67),I119-6.5),"NA") -> NA | K119: 28.92 | L119: =IF(OR('Input - Capacity Factors'!$C$3="Wind"),IF(K119*'AVOID NEW'!$E$67<6.5,K119*(1-'AVOID NEW'!$E$67),K119-6.5),"NA") -> NA | N119: 25.29 | O119: =IF(OR('Input - Capacity Factors'!$C$3="Wind"),IF(N119*'AVOID NEW'!$E$67<6.5,N119*(1-'AVOID NEW'!$E$67),N119-6.5),"NA") -> NA | P119: 26.7 | Q119: =IF(OR('Input - Capacity Factors'!$C$3="Wind"),IF(P119*'AVOID NEW'!$E$67<6.5,P119*(1-'AVOID NEW'!$E$67),P119-6.5),"NA") -> NA | R119: 22.5 | S119: =IF(OR('Input - Capacity Factors'!$C$3="Wind"),IF(R119*'AVOID NEW'!$E$67<6.5,R119*(1-'AVOID NEW'!$E$67),R119-6.5),"NA") -> NA | V119: 30.11 | W119: =IF(OR('Input - Capacity Factors'!$C$3="Wind"),IF(V119*'AVOID NEW'!$E$67<6.5,V119*(1-'AVOID NEW'!$E$67),V119-6.5),"NA") -> NA | X119: 31.78 | Y119: =IF(OR('Input - Capacity Factors'!$C$3="Wind"),IF(X119*'AVOID NEW'!$E$67<6.5,X119*(1-'AVOID NEW'!$E$67),X119-6.5),"NA") -> NA | Z119: 26.78 | AA119: =IF(OR('Input - Capacity Factors'!$C$3="Wind"),IF(Z119*'AVOID NEW'!$E$67<6.5,Z119*(1-'AVOID NEW'!$E$67),Z119-6.5),"NA") -> NA
B120: 4 | C120: ='AVOID NEW'!AQ12 -> 31.39631744 | D120: 33.06631744 | E120: 28.06631744 | G120: 33.91 | H120: =IF(OR('Input - Capacity Factors'!$C$3="Wind"),IF(G120*'AVOID NEW'!$E$67<6.5,G120*(1-'AVOID NEW'!$E$67),G120-6.5),"NA") -> NA | I120: 35.71 | J120: =IF(OR('Input - Capacity Factors'!$C$3="Wind"),IF(I120*'AVOID NEW'!$E$67<6.5,I120*(1-'AVOID NEW'!$E$67),I120-6.5),"NA") -> NA | K120: 30.31 | L120: =IF(OR('Input - Capacity Factors'!$C$3="Wind"),IF(K120*'AVOID NEW'!$E$67<6.5,K120*(1-'AVOID NEW'!$E$67),K120-6.5),"NA") -> NA | N120: 26.37 | O120: =IF(OR('Input - Capacity Factors'!$C$3="Wind"),IF(N120*'AVOID NEW'!$E$67<6.5,N120*(1-'AVOID NEW'!$E$67),N120-6.5),"NA") -> NA | P120: 27.78 | Q120: =IF(OR('Input - Capacity Factors'!$C$3="Wind"),IF(P120*'AVOID NEW'!$E$67<6.5,P120*(1-'AVOID NEW'!$E$67),P120-6.5),"NA") -> NA | R120: 23.58 | S120: =IF(OR('Input - Capacity Factors'!$C$3="Wind"),IF(R120*'AVOID NEW'!$E$67<6.5,R120*(1-'AVOID NEW'!$E$67),R120-6.5),"NA") -> NA | V120: 31.4 | W120: =IF(OR('Input - Capacity Factors'!$C$3="Wind"),IF(V120*'AVOID NEW'!$E$67<6.5,V120*(1-'AVOID NEW'!$E$67),V120-6.5),"NA") -> NA | X120: 33.07 | Y120: =IF(OR('Input - Capacity Factors'!$C$3="Wind"),IF(X120*'AVOID NEW'!$E$67<6.5,X120*(1-'AVOID NEW'!$E$67),X120-6.5),"NA") -> NA | Z120: 28.07 | AA120: =IF(OR('Input - Capacity Factors'!$C$3="Wind"),IF(Z120*'AVOID NEW'!$E$67<6.5,Z120*(1-'AVOID NEW'!$E$67),Z120-6.5),"NA") -> NA
B121: 5 | C121: ='AVOID NEW'!AQ13 -> 32.46236301 | D121: 34.13236301 | E121: 29.13236301 | G121: 35.06 | H121: =IF(OR('Input - Capacity Factors'!$C$3="Wind"),IF(G121*'AVOID NEW'!$E$67<6.5,G121*(1-'AVOID NEW'!$E$67),G121-6.5),"NA") -> NA | I121: 36.86 | J121: =IF(OR('Input - Capacity Factors'!$C$3="Wind"),IF(I121*'AVOID NEW'!$E$67<6.5,I121*(1-'AVOID NEW'!$E$67),I121-6.5),"NA") -> NA | K121: 31.46 | L121: =IF(OR('Input - Capacity Factors'!$C$3="Wind"),IF(K121*'AVOID NEW'!$E$67<6.5,K121*(1-'AVOID NEW'!$E$67),K121-6.5),"NA") -> NA | N121: 27.27 | O121: =IF(OR('Input - Capacity Factors'!$C$3="Wind"),IF(N121*'AVOID NEW'!$E$67<6.5,N121*(1-'AVOID NEW'!$E$67),N121-6.5),"NA") -> NA | P121: 28.67 | Q121: =IF(OR('Input - Capacity Factors'!$C$3="Wind"),IF(P121*'AVOID NEW'!$E$67<6.5,P121*(1-'AVOID NEW'!$E$67),P121-6.5),"NA") -> NA | R121: 24.47 | S121: =IF(OR('Input - Capacity Factors'!$C$3="Wind"),IF(R121*'AVOID NEW'!$E$67<6.5,R121*(1-'AVOID NEW'!$E$67),R121-6.5),"NA") -> NA | V121: 32.46 | W121: =IF(OR('Input - Capacity Factors'!$C$3="Wind"),IF(V121*'AVOID NEW'!$E$67<6.5,V121*(1-'AVOID NEW'!$E$67),V121-6.5),"NA") -> NA | X121: 34.13 | Y121: =IF(OR('Input - Capacity Factors'!$C$3="Wind"),IF(X121*'AVOID NEW'!$E$67<6.5,X121*(1-'AVOID NEW'!$E$67),X121-6.5),"NA") -> NA | Z121: 29.13 | AA121: =IF(OR('Input - Capacity Factors'!$C$3="Wind"),IF(Z121*'AVOID NEW'!$E$67<6.5,Z121*(1-'AVOID NEW'!$E$67),Z121-6.5),"NA") -> NA
B122: 6 | C122: ='AVOID NEW'!AQ14 -> 40.29735991 | D122: 41.96735991 | E122: 36.96735991 | G122: 43.52 | H122: =IF(OR('Input - Capacity Factors'!$C$3="Wind"),IF(G122*'AVOID NEW'!$E$67<6.5,G122*(1-'AVOID NEW'!$E$67),G122-6.5),"NA") -> NA | I122: 45.32 | J122: =IF(OR('Input - Capacity Factors'!$C$3="Wind"),IF(I122*'AVOID NEW'!$E$67<6.5,I122*(1-'AVOID NEW'!$E$67),I122-6.5),"NA") -> NA | K122: 39.92 | L122: =IF(OR('Input - Capacity Factors'!$C$3="Wind"),IF(K122*'AVOID NEW'!$E$67<6.5,K122*(1-'AVOID NEW'!$E$67),K122-6.5),"NA") -> NA | N122: 33.85 | O122: =IF(OR('Input - Capacity Factors'!$C$3="Wind"),IF(N122*'AVOID NEW'!$E$67<6.5,N122*(1-'AVOID NEW'!$E$67),N122-6.5),"NA") -> NA | P122: 35.25 | Q122: =IF(OR('Input - Capacity Factors'!$C$3="Wind"),IF(P122*'AVOID NEW'!$E$67<6.5,P122*(1-'AVOID NEW'!$E$67),P122-6.5),"NA") -> NA | R122: 31.05 | S122: =IF(OR('Input - Capacity Factors'!$C$3="Wind"),IF(R122*'AVOID NEW'!$E$67<6.5,R122*(1-'AVOID NEW'!$E$67),R122-6.5),"NA") -> NA | V122: 40.3 | W122: =IF(OR('Input - Capacity Factors'!$C$3="Wind"),IF(V122*'AVOID NEW'!$E$67<6.5,V122*(1-'AVOID NEW'!$E$67),V122-6.5),"NA") -> NA | X122: 41.97 | Y122: =IF(OR('Input - Capacity Factors'!$C$3="Wind"),IF(X122*'AVOID NEW'!$E$67<6.5,X122*(1-'AVOID NEW'!$E$67),X122-6.5),"NA") -> NA | Z122: 36.97 | AA122: =IF(OR('Input - Capacity Factors'!$C$3="Wind"),IF(Z122*'AVOID NEW'!$E$67<6.5,Z122*(1-'AVOID NEW'!$E$67),Z122-6.5),"NA") -> NA
B123: 7 | C123: ='AVOID NEW'!AQ15 -> 45.98362672 | D123: 47.65362672 | E123: 42.65362672 | G123: 49.66 | H123: =IF(OR('Input - Capacity Factors'!$C$3="Wind"),IF(G123*'AVOID NEW'!$E$67<6.5,G123*(1-'AVOID NEW'!$E$67),G123-6.5),"NA") -> NA | I123: 51.47 | J123: =IF(OR('Input - Capacity Factors'!$C$3="Wind"),IF(I123*'AVOID NEW'!$E$67<6.5,I123*(1-'AVOID NEW'!$E$67),I123-6.5),"NA") -> NA | K123: 46.07 | L123: =IF(OR('Input - Capacity Factors'!$C$3="Wind"),IF(K123*'AVOID NEW'!$E$67<6.5,K123*(1-'AVOID NEW'!$E$67),K123-6.5),"NA") -> NA | N123: 38.63 | O123: =IF(OR('Input - Capacity Factors'!$C$3="Wind"),IF(N123*'AVOID NEW'!$E$67<6.5,N123*(1-'AVOID NEW'!$E$67),N123-6.5),"NA") -> NA | P123: 40.03 | Q123: =IF(OR('Input - Capacity Factors'!$C$3="Wind"),IF(P123*'AVOID NEW'!$E$67<6.5,P123*(1-'AVOID NEW'!$E$67),P123-6.5),"NA") -> NA | R123: 35.83 | S123: =IF(OR('Input - Capacity Factors'!$C$3="Wind"),IF(R123*'AVOID NEW'!$E$67<6.5,R123*(1-'AVOID NEW'!$E$67),R123-6.5),"NA") -> NA | V123: 45.98 | W123: =IF(OR('Input - Capacity Factors'!$C$3="Wind"),IF(V123*'AVOID NEW'!$E$67<6.5,V123*(1-'AVOID NEW'!$E$67),V123-6.5),"NA") -> NA | X123: 47.65 | Y123: =IF(OR('Input - Capacity Factors'!$C$3="Wind"),IF(X123*'AVOID NEW'!$E$67<6.5,X123*(1-'AVOID NEW'!$E$67),X123-6.5),"NA") -> NA | Z123: 42.65 | AA123: =IF(OR('Input - Capacity Factors'!$C$3="Wind"),IF(Z123*'AVOID NEW'!$E$67<6.5,Z123*(1-'AVOID NEW'!$E$67),Z123-6.5),"NA") -> NA
B124: 8 | C124: ='AVOID NEW'!AQ16 -> 50.3545677 | D124: 52.0245677 | E124: 47.0245677 | G124: 54.38 | H124: =IF(OR('Input - Capacity Factors'!$C$3="Wind"),IF(G124*'AVOID NEW'!$E$67<6.5,G124*(1-'AVOID NEW'!$E$67),G124-6.5),"NA") -> NA | I124: 56.19 | J124: =IF(OR('Input - Capacity Factors'!$C$3="Wind"),IF(I124*'AVOID NEW'!$E$67<6.5,I124*(1-'AVOID NEW'!$E$67),I124-6.5),"NA") -> NA | K124: 50.79 | L124: =IF(OR('Input - Capacity Factors'!$C$3="Wind"),IF(K124*'AVOID NEW'!$E$67<6.5,K124*(1-'AVOID NEW'!$E$67),K124-6.5),"NA") -> NA | N124: 42.3 | O124: =IF(OR('Input - Capacity Factors'!$C$3="Wind"),IF(N124*'AVOID NEW'!$E$67<6.5,N124*(1-'AVOID NEW'!$E$67),N124-6.5),"NA") -> NA | P124: 43.7 | Q124: =IF(OR('Input - Capacity Factors'!$C$3="Wind"),IF(P124*'AVOID NEW'!$E$67<6.5,P124*(1-'AVOID NEW'!$E$67),P124-6.5),"NA") -> NA | R124: 39.5 | S124: =IF(OR('Input - Capacity Factors'!$C$3="Wind"),IF(R124*'AVOID NEW'!$E$67<6.5,R124*(1-'AVOID NEW'!$E$67),R124-6.5),"NA") -> NA | V124: 50.35 | W124: =IF(OR('Input - Capacity Factors'!$C$3="Wind"),IF(V124*'AVOID NEW'!$E$67<6.5,V124*(1-'AVOID NEW'!$E$67),V124-6.5),"NA") -> NA | X124: 52.02 | Y124: =IF(OR('Input - Capacity Factors'!$C$3="Wind"),IF(X124*'AVOID NEW'!$E$67<6.5,X124*(1-'AVOID NEW'!$E$67),X124-6.5),"NA") -> NA | Z124: 47.02 | AA124: =IF(OR('Input - Capacity Factors'!$C$3="Wind"),IF(Z124*'AVOID NEW'!$E$67<6.5,Z124*(1-'AVOID NEW'!$E$67),Z124-6.5),"NA") -> NA
B125: 9 | C125: ='AVOID NEW'!AQ17 -> 53.89385929 | D125: 55.56385929 | E125: 50.56385929 | G125: 58.21 | H125: =IF(OR('Input - Capacity Factors'!$C$3="Wind"),IF(G125*'AVOID NEW'!$E$67<6.5,G125*(1-'AVOID NEW'!$E$67),G125-6.5),"NA") -> NA | I125: 60.01 | J125: =IF(OR('Input - Capacity Factors'!$C$3="Wind"),IF(I125*'AVOID NEW'!$E$67<6.5,I125*(1-'AVOID NEW'!$E$67),I125-6.5),"NA") -> NA | K125: 54.61 | L125: =IF(OR('Input - Capacity Factors'!$C$3="Wind"),IF(K125*'AVOID NEW'!$E$67<6.5,K125*(1-'AVOID NEW'!$E$67),K125-6.5),"NA") -> NA | N125: 45.27 | O125: =IF(OR('Input - Capacity Factors'!$C$3="Wind"),IF(N125*'AVOID NEW'!$E$67<6.5,N125*(1-'AVOID NEW'!$E$67),N125-6.5),"NA") -> NA | P125: 46.67 | Q125: =IF(OR('Input - Capacity Factors'!$C$3="Wind"),IF(P125*'AVOID NEW'!$E$67<6.5,P125*(1-'AVOID NEW'!$E$67),P125-6.5),"NA") -> NA | R125: 42.47 | S125: =IF(OR('Input - Capacity Factors'!$C$3="Wind"),IF(R125*'AVOID NEW'!$E$67<6.5,R125*(1-'AVOID NEW'!$E$67),R125-6.5),"NA") -> NA | V125: 53.89 | W125: =IF(OR('Input - Capacity Factors'!$C$3="Wind"),IF(V125*'AVOID NEW'!$E$67<6.5,V125*(1-'AVOID NEW'!$E$67),V125-6.5),"NA") -> NA | X125: 55.56 | Y125: =IF(OR('Input - Capacity Factors'!$C$3="Wind"),IF(X125*'AVOID NEW'!$E$67<6.5,X125*(1-'AVOID NEW'!$E$67),X125-6.5),"NA") -> NA | Z125: 50.56 | AA125: =IF(OR('Input - Capacity Factors'!$C$3="Wind"),IF(Z125*'AVOID NEW'!$E$67<6.5,Z125*(1-'AVOID NEW'!$E$67),Z125-6.5),"NA") -> NA
B126: 10 | C126: ='AVOID NEW'!AQ18 -> 56.86657544 | D126: 58.53657544 | E126: 53.53657544 | G126: 61.42 | H126: =IF(OR('Input - Capacity Factors'!$C$3="Wind"),IF(G126*'AVOID NEW'!$E$67<6.5,G126*(1-'AVOID NEW'!$E$67),G126-6.5),"NA") -> NA | I126: 63.22 | J126: =IF(OR('Input - Capacity Factors'!$C$3="Wind"),IF(I126*'AVOID NEW'!$E$67<6.5,I126*(1-'AVOID NEW'!$E$67),I126-6.5),"NA") -> NA | K126: 57.82 | L126: =IF(OR('Input - Capacity Factors'!$C$3="Wind"),IF(K126*'AVOID NEW'!$E$67<6.5,K126*(1-'AVOID NEW'!$E$67),K126-6.5),"NA") -> NA | N126: 47.77 | O126: =IF(OR('Input - Capacity Factors'!$C$3="Wind"),IF(N126*'AVOID NEW'!$E$67<6.5,N126*(1-'AVOID NEW'!$E$67),N126-6.5),"NA") -> NA | P126: 49.17 | Q126: =IF(OR('Input - Capacity Factors'!$C$3="Wind"),IF(P126*'AVOID NEW'!$E$67<6.5,P126*(1-'AVOID NEW'!$E$67),P126-6.5),"NA") -> NA | R126: 44.97 | S126: =IF(OR('Input - Capacity Factors'!$C$3="Wind"),IF(R126*'AVOID NEW'!$E$67<6.5,R126*(1-'AVOID NEW'!$E$67),R126-6.5),"NA") -> NA | V126: 56.87 | W126: =IF(OR('Input - Capacity Factors'!$C$3="Wind"),IF(V126*'AVOID NEW'!$E$67<6.5,V126*(1-'AVOID NEW'!$E$67),V126-6.5),"NA") -> NA | X126: 58.54 | Y126: =IF(OR('Input - Capacity Factors'!$C$3="Wind"),IF(X126*'AVOID NEW'!$E$67<6.5,X126*(1-'AVOID NEW'!$E$67),X126-6.5),"NA") -> NA | Z126: 53.54 | AA126: =IF(OR('Input - Capacity Factors'!$C$3="Wind"),IF(Z126*'AVOID NEW'!$E$67<6.5,Z126*(1-'AVOID NEW'!$E$67),Z126-6.5),"NA") -> NA
B127: 11 | C127: ='AVOID NEW'!AQ19 -> 59.41377718 | D127: 61.08377718 | E127: 56.08377718 | G127: 64.17 | H127: =IF(OR('Input - Capacity Factors'!$C$3="Wind"),IF(G127*'AVOID NEW'!$E$67<6.5,G127*(1-'AVOID NEW'!$E$67),G127-6.5),"NA") -> NA | I127: 65.97 | J127: =IF(OR('Input - Capacity Factors'!$C$3="Wind"),IF(I127*'AVOID NEW'!$E$67<6.5,I127*(1-'AVOID NEW'!$E$67),I127-6.5),"NA") -> NA | K127: 60.57 | L127: =IF(OR('Input - Capacity Factors'!$C$3="Wind"),IF(K127*'AVOID NEW'!$E$67<6.5,K127*(1-'AVOID NEW'!$E$67),K127-6.5),"NA") -> NA | N127: 49.91 | O127: =IF(OR('Input - Capacity Factors'!$C$3="Wind"),IF(N127*'AVOID NEW'!$E$67<6.5,N127*(1-'AVOID NEW'!$E$67),N127-6.5),"NA") -> NA | P127: 51.31 | Q127: =IF(OR('Input - Capacity Factors'!$C$3="Wind"),IF(P127*'AVOID NEW'!$E$67<6.5,P127*(1-'AVOID NEW'!$E$67),P127-6.5),"NA") -> NA | R127: 47.11 | S127: =IF(OR('Input - Capacity Factors'!$C$3="Wind"),IF(R127*'AVOID NEW'!$E$67<6.5,R127*(1-'AVOID NEW'!$E$67),R127-6.5),"NA") -> NA | V127: 59.41 | W127: =IF(OR('Input - Capacity Factors'!$C$3="Wind"),IF(V127*'AVOID NEW'!$E$67<6.5,V127*(1-'AVOID NEW'!$E$67),V127-6.5),"NA") -> NA | X127: 61.08 | Y127: =IF(OR('Input - Capacity Factors'!$C$3="Wind"),IF(X127*'AVOID NEW'!$E$67<6.5,X127*(1-'AVOID NEW'!$E$67),X127-6.5),"NA") -> NA | Z127: 56.08 | AA127: =IF(OR('Input - Capacity Factors'!$C$3="Wind"),IF(Z127*'AVOID NEW'!$E$67<6.5,Z127*(1-'AVOID NEW'!$E$67),Z127-6.5),"NA") -> NA
B128: 12 | C128: ='AVOID NEW'!AQ20 -> 61.62270313 | D128: 63.29270313 | E128: 58.29270313 | G128: 66.55 | H128: =IF(OR('Input - Capacity Factors'!$C$3="Wind"),IF(G128*'AVOID NEW'!$E$67<6.5,G128*(1-'AVOID NEW'!$E$67),G128-6.5),"NA") -> NA | I128: 68.36 | J128: =IF(OR('Input - Capacity Factors'!$C$3="Wind"),IF(I128*'AVOID NEW'!$E$67<6.5,I128*(1-'AVOID NEW'!$E$67),I128-6.5),"NA") -> NA | K128: 62.96 | L128: =IF(OR('Input - Capacity Factors'!$C$3="Wind"),IF(K128*'AVOID NEW'!$E$67<6.5,K128*(1-'AVOID NEW'!$E$67),K128-6.5),"NA") -> NA | N128: 51.76 | O128: =IF(OR('Input - Capacity Factors'!$C$3="Wind"),IF(N128*'AVOID NEW'!$E$67<6.5,N128*(1-'AVOID NEW'!$E$67),N128-6.5),"NA") -> NA | P128: 53.17 | Q128: =IF(OR('Input - Capacity Factors'!$C$3="Wind"),IF(P128*'AVOID NEW'!$E$67<6.5,P128*(1-'AVOID NEW'!$E$67),P128-6.5),"NA") -> NA | R128: 48.97 | S128: =IF(OR('Input - Capacity Factors'!$C$3="Wind"),IF(R128*'AVOID NEW'!$E$67<6.5,R128*(1-'AVOID NEW'!$E$67),R128-6.5),"NA") -> NA | V128: 61.62 | W128: =IF(OR('Input - Capacity Factors'!$C$3="Wind"),IF(V128*'AVOID NEW'!$E$67<6.5,V128*(1-'AVOID NEW'!$E$67),V128-6.5),"NA") -> NA | X128: 63.29 | Y128: =IF(OR('Input - Capacity Factors'!$C$3="Wind"),IF(X128*'AVOID NEW'!$E$67<6.5,X128*(1-'AVOID NEW'!$E$67),X128-6.5),"NA") -> NA | Z128: 58.29 | AA128: =IF(OR('Input - Capacity Factors'!$C$3="Wind"),IF(Z128*'AVOID NEW'!$E$67<6.5,Z128*(1-'AVOID NEW'!$E$67),Z128-6.5),"NA") -> NA
B129: 13 | C129: ='AVOID NEW'!AQ21 -> 63.56930798 | D129: 65.23930798 | E129: 60.23930798 | G129: 68.65 | H129: =IF(OR('Input - Capacity Factors'!$C$3="Wind"),IF(G129*'AVOID NEW'!$E$67<6.5,G129*(1-'AVOID NEW'!$E$67),G129-6.5),"NA") -> NA | I129: 70.46 | J129: =IF(OR('Input - Capacity Factors'!$C$3="Wind"),IF(I129*'AVOID NEW'!$E$67<6.5,I129*(1-'AVOID NEW'!$E$67),I129-6.5),"NA") -> NA | K129: 65.06 | L129: =IF(OR('Input - Capacity Factors'!$C$3="Wind"),IF(K129*'AVOID NEW'!$E$67<6.5,K129*(1-'AVOID NEW'!$E$67),K129-6.5),"NA") -> NA | N129: 53.4 | O129: =IF(OR('Input - Capacity Factors'!$C$3="Wind"),IF(N129*'AVOID NEW'!$E$67<6.5,N129*(1-'AVOID NEW'!$E$67),N129-6.5),"NA") -> NA | P129: 54.8 | Q129: =IF(OR('Input - Capacity Factors'!$C$3="Wind"),IF(P129*'AVOID NEW'!$E$67<6.5,P129*(1-'AVOID NEW'!$E$67),P129-6.5),"NA") -> NA | R129: 50.6 | S129: =IF(OR('Input - Capacity Factors'!$C$3="Wind"),IF(R129*'AVOID NEW'!$E$67<6.5,R129*(1-'AVOID NEW'!$E$67),R129-6.5),"NA") -> NA | V129: 63.57 | W129: =IF(OR('Input - Capacity Factors'!$C$3="Wind"),IF(V129*'AVOID NEW'!$E$67<6.5,V129*(1-'AVOID NEW'!$E$67),V129-6.5),"NA") -> NA | X129: 65.24 | Y129: =IF(OR('Input - Capacity Factors'!$C$3="Wind"),IF(X129*'AVOID NEW'!$E$67<6.5,X129*(1-'AVOID NEW'!$E$67),X129-6.5),"NA") -> NA | Z129: 60.24 | AA129: =IF(OR('Input - Capacity Factors'!$C$3="Wind"),IF(Z129*'AVOID NEW'!$E$67<6.5,Z129*(1-'AVOID NEW'!$E$67),Z129-6.5),"NA") -> NA
B130: 14 | C130: ='AVOID NEW'!AQ22 -> 65.34041327 | D130: 67.01041327 | E130: 62.01041327 | G130: 70.57 | H130: =IF(OR('Input - Capacity Factors'!$C$3="Wind"),IF(G130*'AVOID NEW'!$E$67<6.5,G130*(1-'AVOID NEW'!$E$67),G130-6.5),"NA") -> NA | I130: 72.37 | J130: =IF(OR('Input - Capacity Factors'!$C$3="Wind"),IF(I130*'AVOID NEW'!$E$67<6.5,I130*(1-'AVOID NEW'!$E$67),I130-6.5),"NA") -> NA | K130: 66.97 | L130: =IF(OR('Input - Capacity Factors'!$C$3="Wind"),IF(K130*'AVOID NEW'!$E$67<6.5,K130*(1-'AVOID NEW'!$E$67),K130-6.5),"NA") -> NA | N130: 54.89 | O130: =IF(OR('Input - Capacity Factors'!$C$3="Wind"),IF(N130*'AVOID NEW'!$E$67<6.5,N130*(1-'AVOID NEW'!$E$67),N130-6.5),"NA") -> NA | P130: 56.29 | Q130: =IF(OR('Input - Capacity Factors'!$C$3="Wind"),IF(P130*'AVOID NEW'!$E$67<6.5,P130*(1-'AVOID NEW'!$E$67),P130-6.5),"NA") -> NA | R130: 52.09 | S130: =IF(OR('Input - Capacity Factors'!$C$3="Wind"),IF(R130*'AVOID NEW'!$E$67<6.5,R130*(1-'AVOID NEW'!$E$67),R130-6.5),"NA") -> NA | V130: 65.34 | W130: =IF(OR('Input - Capacity Factors'!$C$3="Wind"),IF(V130*'AVOID NEW'!$E$67<6.5,V130*(1-'AVOID NEW'!$E$67),V130-6.5),"NA") -> NA | X130: 67.01 | Y130: =IF(OR('Input - Capacity Factors'!$C$3="Wind"),IF(X130*'AVOID NEW'!$E$67<6.5,X130*(1-'AVOID NEW'!$E$67),X130-6.5),"NA") -> NA | Z130: 62.01 | AA130: =IF(OR('Input - Capacity Factors'!$C$3="Wind"),IF(Z130*'AVOID NEW'!$E$67<6.5,Z130*(1-'AVOID NEW'!$E$67),Z130-6.5),"NA") -> NA
B131: 15 | C131: ='AVOID NEW'!AQ23 -> 66.94981672 | D131: 68.61981672 | E131: 63.61981672 | G131: 72.31 | H131: =IF(OR('Input - Capacity Factors'!$C$3="Wind"),IF(G131*'AVOID NEW'!$E$67<6.5,G131*(1-'AVOID NEW'!$E$67),G131-6.5),"NA") -> NA | I131: 74.11 | J131: =IF(OR('Input - Capacity Factors'!$C$3="Wind"),IF(I131*'AVOID NEW'!$E$67<6.5,I131*(1-'AVOID NEW'!$E$67),I131-6.5),"NA") -> NA | K131: 68.71 | L131: =IF(OR('Input - Capacity Factors'!$C$3="Wind"),IF(K131*'AVOID NEW'!$E$67<6.5,K131*(1-'AVOID NEW'!$E$67),K131-6.5),"NA") -> NA | N131: 56.24 | O131: =IF(OR('Input - Capacity Factors'!$C$3="Wind"),IF(N131*'AVOID NEW'!$E$67<6.5,N131*(1-'AVOID NEW'!$E$67),N131-6.5),"NA") -> NA | P131: 57.64 | Q131: =IF(OR('Input - Capacity Factors'!$C$3="Wind"),IF(P131*'AVOID NEW'!$E$67<6.5,P131*(1-'AVOID NEW'!$E$67),P131-6.5),"NA") -> NA | R131: 53.44 | S131: =IF(OR('Input - Capacity Factors'!$C$3="Wind"),IF(R131*'AVOID NEW'!$E$67<6.5,R131*(1-'AVOID NEW'!$E$67),R131-6.5),"NA") -> NA | V131: 66.95 | W131: =IF(OR('Input - Capacity Factors'!$C$3="Wind"),IF(V131*'AVOID NEW'!$E$67<6.5,V131*(1-'AVOID NEW'!$E$67),V131-6.5),"NA") -> NA | X131: 68.62 | Y131: =IF(OR('Input - Capacity Factors'!$C$3="Wind"),IF(X131*'AVOID NEW'!$E$67<6.5,X131*(1-'AVOID NEW'!$E$67),X131-6.5),"NA") -> NA | Z131: 63.62 | AA131: =IF(OR('Input - Capacity Factors'!$C$3="Wind"),IF(Z131*'AVOID NEW'!$E$67<6.5,Z131*(1-'AVOID NEW'!$E$67),Z131-6.5),"NA") -> NA
B132: 16 | C132: ='AVOID NEW'!AQ24 -> 68.40908209 | D132: 70.07908209 | E132: 65.07908209 | G132: 73.88 | H132: =IF(OR('Input - Capacity Factors'!$C$3="Wind"),IF(G132*'AVOID NEW'!$E$67<6.5,G132*(1-'AVOID NEW'!$E$67),G132-6.5),"NA") -> NA | I132: 75.69 | J132: =IF(OR('Input - Capacity Factors'!$C$3="Wind"),IF(I132*'AVOID NEW'!$E$67<6.5,I132*(1-'AVOID NEW'!$E$67),I132-6.5),"NA") -> NA | K132: 70.29 | L132: =IF(OR('Input - Capacity Factors'!$C$3="Wind"),IF(K132*'AVOID NEW'!$E$67<6.5,K132*(1-'AVOID NEW'!$E$67),K132-6.5),"NA") -> NA | N132: 57.46 | O132: =IF(OR('Input - Capacity Factors'!$C$3="Wind"),IF(N132*'AVOID NEW'!$E$67<6.5,N132*(1-'AVOID NEW'!$E$67),N132-6.5),"NA") -> NA | P132: 58.87 | Q132: =IF(OR('Input - Capacity Factors'!$C$3="Wind"),IF(P132*'AVOID NEW'!$E$67<6.5,P132*(1-'AVOID NEW'!$E$67),P132-6.5),"NA") -> NA | R132: 54.67 | S132: =IF(OR('Input - Capacity Factors'!$C$3="Wind"),IF(R132*'AVOID NEW'!$E$67<6.5,R132*(1-'AVOID NEW'!$E$67),R132-6.5),"NA") -> NA | V132: 68.41 | W132: =IF(OR('Input - Capacity Factors'!$C$3="Wind"),IF(V132*'AVOID NEW'!$E$67<6.5,V132*(1-'AVOID NEW'!$E$67),V132-6.5),"NA") -> NA | X132: 70.08 | Y132: =IF(OR('Input - Capacity Factors'!$C$3="Wind"),IF(X132*'AVOID NEW'!$E$67<6.5,X132*(1-'AVOID NEW'!$E$67),X132-6.5),"NA") -> NA | Z132: 65.08 | AA132: =IF(OR('Input - Capacity Factors'!$C$3="Wind"),IF(Z132*'AVOID NEW'!$E$67<6.5,Z132*(1-'AVOID NEW'!$E$67),Z132-6.5),"NA") -> NA
B133: 17 | C133: ='AVOID NEW'!AQ25 -> 69.74268086 | D133: 71.41268086 | E133: 66.41268086 | G133: 75.32 | H133: =IF(OR('Input - Capacity Factors'!$C$3="Wind"),IF(G133*'AVOID NEW'!$E$67<6.5,G133*(1-'AVOID NEW'!$E$67),G133-6.5),"NA") -> NA | I133: 77.13 | J133: =IF(OR('Input - Capacity Factors'!$C$3="Wind"),IF(I133*'AVOID NEW'!$E$67<6.5,I133*(1-'AVOID NEW'!$E$67),I133-6.5),"NA") -> NA | K133: 71.73 | L133: =IF(OR('Input - Capacity Factors'!$C$3="Wind"),IF(K133*'AVOID NEW'!$E$67<6.5,K133*(1-'AVOID NEW'!$E$67),K133-6.5),"NA") -> NA | N133: 58.58 | O133: =IF(OR('Input - Capacity Factors'!$C$3="Wind"),IF(N133*'AVOID NEW'!$E$67<6.5,N133*(1-'AVOID NEW'!$E$67),N133-6.5),"NA") -> NA | P133: 59.99 | Q133: =IF(OR('Input - Capacity Factors'!$C$3="Wind"),IF(P133*'AVOID NEW'!$E$67<6.5,P133*(1-'AVOID NEW'!$E$67),P133-6.5),"NA") -> NA | R133: 55.79 | S133: =IF(OR('Input - Capacity Factors'!$C$3="Wind"),IF(R133*'AVOID NEW'!$E$67<6.5,R133*(1-'AVOID NEW'!$E$67),R133-6.5),"NA") -> NA | V133: 69.74 | W133: =IF(OR('Input - Capacity Factors'!$C$3="Wind"),IF(V133*'AVOID NEW'!$E$67<6.5,V133*(1-'AVOID NEW'!$E$67),V133-6.5),"NA") -> NA | X133: 71.41 | Y133: =IF(OR('Input - Capacity Factors'!$C$3="Wind"),IF(X133*'AVOID NEW'!$E$67<6.5,X133*(1-'AVOID NEW'!$E$67),X133-6.5),"NA") -> NA | Z133: 66.41 | AA133: =IF(OR('Input - Capacity Factors'!$C$3="Wind"),IF(Z133*'AVOID NEW'!$E$67<6.5,Z133*(1-'AVOID NEW'!$E$67),Z133-6.5),"NA") -> NA
B134: 18 | C134: ='AVOID NEW'!AQ26 -> 70.9666607 | D134: 72.6366607 | E134: 67.6366607 | G134: 76.64 | H134: =IF(OR('Input - Capacity Factors'!$C$3="Wind"),IF(G134*'AVOID NEW'!$E$67<6.5,G134*(1-'AVOID NEW'!$E$67),G134-6.5),"NA") -> NA | I134: 78.45 | J134: =IF(OR('Input - Capacity Factors'!$C$3="Wind"),IF(I134*'AVOID NEW'!$E$67<6.5,I134*(1-'AVOID NEW'!$E$67),I134-6.5),"NA") -> NA | K134: 73.05 | L134: =IF(OR('Input - Capacity Factors'!$C$3="Wind"),IF(K134*'AVOID NEW'!$E$67<6.5,K134*(1-'AVOID NEW'!$E$67),K134-6.5),"NA") -> NA | N134: 59.61 | O134: =IF(OR('Input - Capacity Factors'!$C$3="Wind"),IF(N134*'AVOID NEW'!$E$67<6.5,N134*(1-'AVOID NEW'!$E$67),N134-6.5),"NA") -> NA | P134: 61.01 | Q134: =IF(OR('Input - Capacity Factors'!$C$3="Wind"),IF(P134*'AVOID NEW'!$E$67<6.5,P134*(1-'AVOID NEW'!$E$67),P134-6.5),"NA") -> NA | R134: 56.81 | S134: =IF(OR('Input - Capacity Factors'!$C$3="Wind"),IF(R134*'AVOID NEW'!$E$67<6.5,R134*(1-'AVOID NEW'!$E$67),R134-6.5),"NA") -> NA | V134: 70.97 | W134: =IF(OR('Input - Capacity Factors'!$C$3="Wind"),IF(V134*'AVOID NEW'!$E$67<6.5,V134*(1-'AVOID NEW'!$E$67),V134-6.5),"NA") -> NA | X134: 72.64 | Y134: =IF(OR('Input - Capacity Factors'!$C$3="Wind"),IF(X134*'AVOID NEW'!$E$67<6.5,X134*(1-'AVOID NEW'!$E$67),X134-6.5),"NA") -> NA | Z134: 67.64 | AA134: =IF(OR('Input - Capacity Factors'!$C$3="Wind"),IF(Z134*'AVOID NEW'!$E$67<6.5,Z134*(1-'AVOID NEW'!$E$67),Z134-6.5),"NA") -> NA
B135: 19 | C135: ='AVOID NEW'!AQ27 -> 72.10031306 | D135: 73.77031306 | E135: 68.77031306 | G135: 77.87 | H135: =IF(OR('Input - Capacity Factors'!$C$3="Wind"),IF(G135*'AVOID NEW'!$E$67<6.5,G135*(1-'AVOID NEW'!$E$67),G135-6.5),"NA") -> NA | I135: 79.67 | J135: =IF(OR('Input - Capacity Factors'!$C$3="Wind"),IF(I135*'AVOID NEW'!$E$67<6.5,I135*(1-'AVOID NEW'!$E$67),I135-6.5),"NA") -> NA | K135: 74.27 | L135: =IF(OR('Input - Capacity Factors'!$C$3="Wind"),IF(K135*'AVOID NEW'!$E$67<6.5,K135*(1-'AVOID NEW'!$E$67),K135-6.5),"NA") -> NA | N135: 60.56 | O135: =IF(OR('Input - Capacity Factors'!$C$3="Wind"),IF(N135*'AVOID NEW'!$E$67<6.5,N135*(1-'AVOID NEW'!$E$67),N135-6.5),"NA") -> NA | P135: 61.97 | Q135: =IF(OR('Input - Capacity Factors'!$C$3="Wind"),IF(P135*'AVOID NEW'!$E$67<6.5,P135*(1-'AVOID NEW'!$E$67),P135-6.5),"NA") -> NA | R135: 57.77 | S135: =IF(OR('Input - Capacity Factors'!$C$3="Wind"),IF(R135*'AVOID NEW'!$E$67<6.5,R135*(1-'AVOID NEW'!$E$67),R135-6.5),"NA") -> NA | V135: 72.1 | W135: =IF(OR('Input - Capacity Factors'!$C$3="Wind"),IF(V135*'AVOID NEW'!$E$67<6.5,V135*(1-'AVOID NEW'!$E$67),V135-6.5),"NA") -> NA | X135: 73.77 | Y135: =IF(OR('Input - Capacity Factors'!$C$3="Wind"),IF(X135*'AVOID NEW'!$E$67<6.5,X135*(1-'AVOID NEW'!$E$67),X135-6.5),"NA") -> NA | Z135: 68.77 | AA135: =IF(OR('Input - Capacity Factors'!$C$3="Wind"),IF(Z135*'AVOID NEW'!$E$67<6.5,Z135*(1-'AVOID NEW'!$E$67),Z135-6.5),"NA") -> NA
B136: 20 | C136: ='AVOID NEW'!AQ28 -> 73.15961678 | D136: 74.82961678 | E136: 69.82961678 | G136: 79.01 | H136: =IF(OR('Input - Capacity Factors'!$C$3="Wind"),IF(G136*'AVOID NEW'!$E$67<6.5,G136*(1-'AVOID NEW'!$E$67),G136-6.5),"NA") -> NA | I136: 80.82 | J136: =IF(OR('Input - Capacity Factors'!$C$3="Wind"),IF(I136*'AVOID NEW'!$E$67<6.5,I136*(1-'AVOID NEW'!$E$67),I136-6.5),"NA") -> NA | K136: 75.42 | L136: =IF(OR('Input - Capacity Factors'!$C$3="Wind"),IF(K136*'AVOID NEW'!$E$67<6.5,K136*(1-'AVOID NEW'!$E$67),K136-6.5),"NA") -> NA | N136: 61.45 | O136: =IF(OR('Input - Capacity Factors'!$C$3="Wind"),IF(N136*'AVOID NEW'!$E$67<6.5,N136*(1-'AVOID NEW'!$E$67),N136-6.5),"NA") -> NA | P136: 62.86 | Q136: =IF(OR('Input - Capacity Factors'!$C$3="Wind"),IF(P136*'AVOID NEW'!$E$67<6.5,P136*(1-'AVOID NEW'!$E$67),P136-6.5),"NA") -> NA | R136: 58.66 | S136: =IF(OR('Input - Capacity Factors'!$C$3="Wind"),IF(R136*'AVOID NEW'!$E$67<6.5,R136*(1-'AVOID NEW'!$E$67),R136-6.5),"NA") -> NA | V136: 73.16 | W136: =IF(OR('Input - Capacity Factors'!$C$3="Wind"),IF(V136*'AVOID NEW'!$E$67<6.5,V136*(1-'AVOID NEW'!$E$67),V136-6.5),"NA") -> NA | X136: 74.83 | Y136: =IF(OR('Input - Capacity Factors'!$C$3="Wind"),IF(X136*'AVOID NEW'!$E$67<6.5,X136*(1-'AVOID NEW'!$E$67),X136-6.5),"NA") -> NA | Z136: 69.83 | AA136: =IF(OR('Input - Capacity Factors'!$C$3="Wind"),IF(Z136*'AVOID NEW'!$E$67<6.5,Z136*(1-'AVOID NEW'!$E$67),Z136-6.5),"NA") -> NA
B140: =$B$1 -> THESE RATES ARE NOT VALID
B141: LEVELIZED RATES
B142: ="PROJECT ON-LINE IN "& 'AVOID NEW'!$D$54+4 -> PROJECT ON-LINE IN 2025
B143: ="Rate Effective Date: "&'AVOID NEW'!$E$69 -> Rate Effective Date: April 5, 2021
B144: ="Resource: "&'Input - Capacity Factors'!$C$3 -> Resource: Seasonal hydro
C145: Levelized Price | G145: ="Season 1 Pricing ("&$D$7*100&"%)" -> Season 1 Pricing (108%) | N145: ="Season 2 Pricing ("&100*$D$8&"%)" -> Season 2 Pricing (84%) | V145: Non-Seasonalized Pricing
C146: Heavy and Light Load Hour Differential | D146: ='AVOID NEW'!$E$66 -> 5 | G146: Flat | I146: Heavy Load Hour | K146: Light Load Hour | N146: Flat | P146: Heavy Load Hour | R146: Light Load Hour | V146: Flat | X146: Heavy Load Hour | Z146: Light Load Hour
D147: =ROUND(D146/3,2) -> 1.67 | E147: =-ROUND((D146*2)/3,2) -> -3.33 | H147: Price less wind integration adjustment | J147: Price less wind integration adjustment | L147: Price less wind integration adjustment | O147: Price less wind integration adjustment | Q147: Price less wind integration adjustment | S147: Price less wind integration adjustment | W147: Price less wind integration adjustment | Y147: Price less wind integration adjustment | AA147: Price less wind integration adjustment
B148: Contract Length | C148: Flat | D148: Heavy Load Hour | E148: Light Load Hour | G148: Price | I148: Price | K148: Price | N148: Price | P148: Price | R148: Price | V148: Price | X148: Price | Z148: Price
B149: 1 | C149: ='AVOID NEW'!AR9 -> 30.29688761 | D149: =C149+D$83 -> 31.96688761 | E149: =C149+E$83 -> 26.96688761 | G149: =ROUND((+$C149*$D$7),2) -> 32.72 | H149: =IF(OR('Input - Capacity Factors'!$C$3="Wind"),IF(G149*'AVOID NEW'!$E$67<6.5,G149*(1-'AVOID NEW'!$E$67),G149-6.5),"NA") -> NA | I149: =ROUND((+$D149*$D$7),2) -> 34.52 | J149: =IF(OR('Input - Capacity Factors'!$C$3="Wind"),IF(I149*'AVOID NEW'!$E$67<6.5,I149*(1-'AVOID NEW'!$E$67),I149-6.5),"NA") -> NA | K149: =ROUND((+$E149*$D$7),2) -> 29.12 | L149: =IF(OR('Input - Capacity Factors'!$C$3="Wind"),IF(K149*'AVOID NEW'!$E$67<6.5,K149*(1-'AVOID NEW'!$E$67),K149-6.5),"NA") -> NA | N149: =ROUND((+$C149*$D$8),2) -> 25.45 | O149: =IF(OR('Input - Capacity Factors'!$C$3="Wind"),IF(N149*'AVOID NEW'!$E$67<6.5,N149*(1-'AVOID NEW'!$E$67),N149-6.5),"NA") -> NA | P149: =ROUND((+$D149*$D$8),2) -> 26.85 | Q149: =IF(OR('Input - Capacity Factors'!$C$3="Wind"),IF(P149*'AVOID NEW'!$E$67<6.5,P149*(1-'AVOID NEW'!$E$67),P149-6.5),"NA") -> NA | R149: =ROUND((+$E149*$D$8),2) -> 22.65 | S149: =IF(OR('Input - Capacity Factors'!$C$3="Wind"),IF(R149*'AVOID NEW'!$E$67<6.5,R149*(1-'AVOID NEW'!$E$67),R149-6.5),"NA") -> NA | V149: =ROUND((+$C149),2) -> 30.3 | W149: =IF(OR('Input - Capacity Factors'!$C$3="Wind"),IF(V149*'AVOID NEW'!$E$67<6.5,V149*(1-'AVOID NEW'!$E$67),V149-6.5),"NA") -> NA | X149: =ROUND((+$D149),2) -> 31.97 | Y149: =IF(OR('Input - Capacity Factors'!$C$3="Wind"),IF(X149*'AVOID NEW'!$E$67<6.5,X149*(1-'AVOID NEW'!$E$67),X149-6.5),"NA") -> NA | Z149: =ROUND((+$E149),2) -> 26.97 | AA149: =IF(OR('Input - Capacity Factors'!$C$3="Wind"),IF(Z149*'AVOID NEW'!$E$67<6.5,Z149*(1-'AVOID NEW'!$E$67),Z149-6.5),"NA") -> NA
B150: 2 | C150: ='AVOID NEW'!AR10 -> 31.84079277 | D150: 33.51079277 | E150: 28.51079277 | G150: 34.39 | H150: =IF(OR('Input - Capacity Factors'!$C$3="Wind"),IF(G150*'AVOID NEW'!$E$67<6.5,G150*(1-'AVOID NEW'!$E$67),G150-6.5),"NA") -> NA | I150: 36.19 | J150: =IF(OR('Input - Capacity Factors'!$C$3="Wind"),IF(I150*'AVOID NEW'!$E$67<6.5,I150*(1-'AVOID NEW'!$E$67),I150-6.5),"NA") -> NA | K150: 30.79 | L150: =IF(OR('Input - Capacity Factors'!$C$3="Wind"),IF(K150*'AVOID NEW'!$E$67<6.5,K150*(1-'AVOID NEW'!$E$67),K150-6.5),"NA") -> NA | N150: 26.75 | O150: =IF(OR('Input - Capacity Factors'!$C$3="Wind"),IF(N150*'AVOID NEW'!$E$67<6.5,N150*(1-'AVOID NEW'!$E$67),N150-6.5),"NA") -> NA | P150: 28.15 | Q150: =IF(OR('Input - Capacity Factors'!$C$3="Wind"),IF(P150*'AVOID NEW'!$E$67<6.5,P150*(1-'AVOID NEW'!$E$67),P150-6.5),"NA") -> NA | R150: 23.95 | S150: =IF(OR('Input - Capacity Factors'!$C$3="Wind"),IF(R150*'AVOID NEW'!$E$67<6.5,R150*(1-'AVOID NEW'!$E$67),R150-6.5),"NA") -> NA | V150: =ROUND((+$C150),2) -> 31.84 | W150: =IF(OR('Input - Capacity Factors'!$C$3="Wind"),IF(V150*'AVOID NEW'!$E$67<6.5,V150*(1-'AVOID NEW'!$E$67),V150-6.5),"NA") -> NA | X150: =ROUND((+$D150),2) -> 33.51 | Y150: =IF(OR('Input - Capacity Factors'!$C$3="Wind"),IF(X150*'AVOID NEW'!$E$67<6.5,X150*(1-'AVOID NEW'!$E$67),X150-6.5),"NA") -> NA | Z150: =ROUND((+$E150),2) -> 28.51 | AA150: =IF(OR('Input - Capacity Factors'!$C$3="Wind"),IF(Z150*'AVOID NEW'!$E$67<6.5,Z150*(1-'AVOID NEW'!$E$67),Z150-6.5),"NA") -> NA
B151: 3 | C151: ='AVOID NEW'!AR11 -> 33.09024401 | D151: 34.76024401 | E151: 29.76024401 | G151: 35.74 | H151: =IF(OR('Input - Capacity Factors'!$C$3="Wind"),IF(G151*'AVOID NEW'!$E$67<6.5,G151*(1-'AVOID NEW'!$E$67),G151-6.5),"NA") -> NA | I151: 37.54 | J151: =IF(OR('Input - Capacity Factors'!$C$3="Wind"),IF(I151*'AVOID NEW'!$E$67<6.5,I151*(1-'AVOID NEW'!$E$67),I151-6.5),"NA") -> NA | K151: 32.14 | L151: =IF(OR('Input - Capacity Factors'!$C$3="Wind"),IF(K151*'AVOID NEW'!$E$67<6.5,K151*(1-'AVOID NEW'!$E$67),K151-6.5),"NA") -> NA | N151: 27.8 | O151: =IF(OR('Input - Capacity Factors'!$C$3="Wind"),IF(N151*'AVOID NEW'!$E$67<6.5,N151*(1-'AVOID NEW'!$E$67),N151-6.5),"NA") -> NA | P151: 29.2 | Q151: =IF(OR('Input - Capacity Factors'!$C$3="Wind"),IF(P151*'AVOID NEW'!$E$67<6.5,P151*(1-'AVOID NEW'!$E$67),P151-6.5),"NA") -> NA | R151: 25 | S151: =IF(OR('Input - Capacity Factors'!$C$3="Wind"),IF(R151*'AVOID NEW'!$E$67<6.5,R151*(1-'AVOID NEW'!$E$67),R151-6.5),"NA") -> NA | V151: 33.09 | W151: =IF(OR('Input - Capacity Factors'!$C$3="Wind"),IF(V151*'AVOID NEW'!$E$67<6.5,V151*(1-'AVOID NEW'!$E$67),V151-6.5),"NA") -> NA | X151: 34.76 | Y151: =IF(OR('Input - Capacity Factors'!$C$3="Wind"),IF(X151*'AVOID NEW'!$E$67<6.5,X151*(1-'AVOID NEW'!$E$67),X151-6.5),"NA") -> NA | Z151: 29.76 | AA151: =IF(OR('Input - Capacity Factors'!$C$3="Wind"),IF(Z151*'AVOID NEW'!$E$67<6.5,Z151*(1-'AVOID NEW'!$E$67),Z151-6.5),"NA") -> NA
B152: 4 | C152: ='AVOID NEW'!AR12 -> 34.10197898 | D152: 35.77197898 | E152: 30.77197898 | G152: 36.83 | H152: =IF(OR('Input - Capacity Factors'!$C$3="Wind"),IF(G152*'AVOID NEW'!$E$67<6.5,G152*(1-'AVOID NEW'!$E$67),G152-6.5),"NA") -> NA | I152: 38.63 | J152: =IF(OR('Input - Capacity Factors'!$C$3="Wind"),IF(I152*'AVOID NEW'!$E$67<6.5,I152*(1-'AVOID NEW'!$E$67),I152-6.5),"NA") -> NA | K152: 33.23 | L152: =IF(OR('Input - Capacity Factors'!$C$3="Wind"),IF(K152*'AVOID NEW'!$E$67<6.5,K152*(1-'AVOID NEW'!$E$67),K152-6.5),"NA") -> NA | N152: 28.65 | O152: =IF(OR('Input - Capacity Factors'!$C$3="Wind"),IF(N152*'AVOID NEW'!$E$67<6.5,N152*(1-'AVOID NEW'!$E$67),N152-6.5),"NA") -> NA | P152: 30.05 | Q152: =IF(OR('Input - Capacity Factors'!$C$3="Wind"),IF(P152*'AVOID NEW'!$E$67<6.5,P152*(1-'AVOID NEW'!$E$67),P152-6.5),"NA") -> NA | R152: 25.85 | S152: =IF(OR('Input - Capacity Factors'!$C$3="Wind"),IF(R152*'AVOID NEW'!$E$67<6.5,R152*(1-'AVOID NEW'!$E$67),R152-6.5),"NA") -> NA | V152: 34.1 | W152: =IF(OR('Input - Capacity Factors'!$C$3="Wind"),IF(V152*'AVOID NEW'!$E$67<6.5,V152*(1-'AVOID NEW'!$E$67),V152-6.5),"NA") -> NA | X152: 35.77 | Y152: =IF(OR('Input - Capacity Factors'!$C$3="Wind"),IF(X152*'AVOID NEW'!$E$67<6.5,X152*(1-'AVOID NEW'!$E$67),X152-6.5),"NA") -> NA | Z152: 30.77 | AA152: =IF(OR('Input - Capacity Factors'!$C$3="Wind"),IF(Z152*'AVOID NEW'!$E$67<6.5,Z152*(1-'AVOID NEW'!$E$67),Z152-6.5),"NA") -> NA
B153: 5 | C153: ='AVOID NEW'!AR13 -> 43.61867254 | D153: 45.28867254 | E153: 40.28867254 | G153: 47.11 | H153: =IF(OR('Input - Capacity Factors'!$C$3="Wind"),IF(G153*'AVOID NEW'!$E$67<6.5,G153*(1-'AVOID NEW'!$E$67),G153-6.5),"NA") -> NA | I153: 48.91 | J153: =IF(OR('Input - Capacity Factors'!$C$3="Wind"),IF(I153*'AVOID NEW'!$E$67<6.5,I153*(1-'AVOID NEW'!$E$67),I153-6.5),"NA") -> NA | K153: 43.51 | L153: =IF(OR('Input - Capacity Factors'!$C$3="Wind"),IF(K153*'AVOID NEW'!$E$67<6.5,K153*(1-'AVOID NEW'!$E$67),K153-6.5),"NA") -> NA | N153: 36.64 | O153: =IF(OR('Input - Capacity Factors'!$C$3="Wind"),IF(N153*'AVOID NEW'!$E$67<6.5,N153*(1-'AVOID NEW'!$E$67),N153-6.5),"NA") -> NA | P153: 38.04 | Q153: =IF(OR('Input - Capacity Factors'!$C$3="Wind"),IF(P153*'AVOID NEW'!$E$67<6.5,P153*(1-'AVOID NEW'!$E$67),P153-6.5),"NA") -> NA | R153: 33.84 | S153: =IF(OR('Input - Capacity Factors'!$C$3="Wind"),IF(R153*'AVOID NEW'!$E$67<6.5,R153*(1-'AVOID NEW'!$E$67),R153-6.5),"NA") -> NA | V153: 43.62 | W153: =IF(OR('Input - Capacity Factors'!$C$3="Wind"),IF(V153*'AVOID NEW'!$E$67<6.5,V153*(1-'AVOID NEW'!$E$67),V153-6.5),"NA") -> NA | X153: 45.29 | Y153: =IF(OR('Input - Capacity Factors'!$C$3="Wind"),IF(X153*'AVOID NEW'!$E$67<6.5,X153*(1-'AVOID NEW'!$E$67),X153-6.5),"NA") -> NA | Z153: 40.29 | AA153: =IF(OR('Input - Capacity Factors'!$C$3="Wind"),IF(Z153*'AVOID NEW'!$E$67<6.5,Z153*(1-'AVOID NEW'!$E$67),Z153-6.5),"NA") -> NA
B154: 6 | C154: ='AVOID NEW'!AR14 -> 50.08124572 | D154: 51.75124572 | E154: 46.75124572 | G154: 54.09 | H154: =IF(OR('Input - Capacity Factors'!$C$3="Wind"),IF(G154*'AVOID NEW'!$E$67<6.5,G154*(1-'AVOID NEW'!$E$67),G154-6.5),"NA") -> NA | I154: 55.89 | J154: =IF(OR('Input - Capacity Factors'!$C$3="Wind"),IF(I154*'AVOID NEW'!$E$67<6.5,I154*(1-'AVOID NEW'!$E$67),I154-6.5),"NA") -> NA | K154: 50.49 | L154: =IF(OR('Input - Capacity Factors'!$C$3="Wind"),IF(K154*'AVOID NEW'!$E$67<6.5,K154*(1-'AVOID NEW'!$E$67),K154-6.5),"NA") -> NA | N154: 42.07 | O154: =IF(OR('Input - Capacity Factors'!$C$3="Wind"),IF(N154*'AVOID NEW'!$E$67<6.5,N154*(1-'AVOID NEW'!$E$67),N154-6.5),"NA") -> NA | P154: 43.47 | Q154: =IF(OR('Input - Capacity Factors'!$C$3="Wind"),IF(P154*'AVOID NEW'!$E$67<6.5,P154*(1-'AVOID NEW'!$E$67),P154-6.5),"NA") -> NA | R154: 39.27 | S154: =IF(OR('Input - Capacity Factors'!$C$3="Wind"),IF(R154*'AVOID NEW'!$E$67<6.5,R154*(1-'AVOID NEW'!$E$67),R154-6.5),"NA") -> NA | V154: 50.08 | W154: =IF(OR('Input - Capacity Factors'!$C$3="Wind"),IF(V154*'AVOID NEW'!$E$67<6.5,V154*(1-'AVOID NEW'!$E$67),V154-6.5),"NA") -> NA | X154: 51.75 | Y154: =IF(OR('Input - Capacity Factors'!$C$3="Wind"),IF(X154*'AVOID NEW'!$E$67<6.5,X154*(1-'AVOID NEW'!$E$67),X154-6.5),"NA") -> NA | Z154: 46.75 | AA154: =IF(OR('Input - Capacity Factors'!$C$3="Wind"),IF(Z154*'AVOID NEW'!$E$67<6.5,Z154*(1-'AVOID NEW'!$E$67),Z154-6.5),"NA") -> NA
B155: 7 | C155: ='AVOID NEW'!AR15 -> 54.8316384 | D155: 56.5016384 | E155: 51.5016384 | G155: 59.22 | H155: =IF(OR('Input - Capacity Factors'!$C$3="Wind"),IF(G155*'AVOID NEW'!$E$67<6.5,G155*(1-'AVOID NEW'!$E$67),G155-6.5),"NA") -> NA | I155: 61.02 | J155: =IF(OR('Input - Capacity Factors'!$C$3="Wind"),IF(I155*'AVOID NEW'!$E$67<6.5,I155*(1-'AVOID NEW'!$E$67),I155-6.5),"NA") -> NA | K155: 55.62 | L155: =IF(OR('Input - Capacity Factors'!$C$3="Wind"),IF(K155*'AVOID NEW'!$E$67<6.5,K155*(1-'AVOID NEW'!$E$67),K155-6.5),"NA") -> NA | N155: 46.06 | O155: =IF(OR('Input - Capacity Factors'!$C$3="Wind"),IF(N155*'AVOID NEW'!$E$67<6.5,N155*(1-'AVOID NEW'!$E$67),N155-6.5),"NA") -> NA | P155: 47.46 | Q155: =IF(OR('Input - Capacity Factors'!$C$3="Wind"),IF(P155*'AVOID NEW'!$E$67<6.5,P155*(1-'AVOID NEW'!$E$67),P155-6.5),"NA") -> NA | R155: 43.26 | S155: =IF(OR('Input - Capacity Factors'!$C$3="Wind"),IF(R155*'AVOID NEW'!$E$67<6.5,R155*(1-'AVOID NEW'!$E$67),R155-6.5),"NA") -> NA | V155: 54.83 | W155: =IF(OR('Input - Capacity Factors'!$C$3="Wind"),IF(V155*'AVOID NEW'!$E$67<6.5,V155*(1-'AVOID NEW'!$E$67),V155-6.5),"NA") -> NA | X155: 56.5 | Y155: =IF(OR('Input - Capacity Factors'!$C$3="Wind"),IF(X155*'AVOID NEW'!$E$67<6.5,X155*(1-'AVOID NEW'!$E$67),X155-6.5),"NA") -> NA | Z155: 51.5 | AA155: =IF(OR('Input - Capacity Factors'!$C$3="Wind"),IF(Z155*'AVOID NEW'!$E$67<6.5,Z155*(1-'AVOID NEW'!$E$67),Z155-6.5),"NA") -> NA
B156: 8 | C156: ='AVOID NEW'!AR16 -> 58.56513666 | D156: 60.23513666 | E156: 55.23513666 | G156: 63.25 | H156: =IF(OR('Input - Capacity Factors'!$C$3="Wind"),IF(G156*'AVOID NEW'!$E$67<6.5,G156*(1-'AVOID NEW'!$E$67),G156-6.5),"NA") -> NA | I156: 65.05 | J156: =IF(OR('Input - Capacity Factors'!$C$3="Wind"),IF(I156*'AVOID NEW'!$E$67<6.5,I156*(1-'AVOID NEW'!$E$67),I156-6.5),"NA") -> NA | K156: 59.65 | L156: =IF(OR('Input - Capacity Factors'!$C$3="Wind"),IF(K156*'AVOID NEW'!$E$67<6.5,K156*(1-'AVOID NEW'!$E$67),K156-6.5),"NA") -> NA | N156: 49.19 | O156: =IF(OR('Input - Capacity Factors'!$C$3="Wind"),IF(N156*'AVOID NEW'!$E$67<6.5,N156*(1-'AVOID NEW'!$E$67),N156-6.5),"NA") -> NA | P156: 50.6 | Q156: =IF(OR('Input - Capacity Factors'!$C$3="Wind"),IF(P156*'AVOID NEW'!$E$67<6.5,P156*(1-'AVOID NEW'!$E$67),P156-6.5),"NA") -> NA | R156: 46.4 | S156: =IF(OR('Input - Capacity Factors'!$C$3="Wind"),IF(R156*'AVOID NEW'!$E$67<6.5,R156*(1-'AVOID NEW'!$E$67),R156-6.5),"NA") -> NA | V156: 58.57 | W156: =IF(OR('Input - Capacity Factors'!$C$3="Wind"),IF(V156*'AVOID NEW'!$E$67<6.5,V156*(1-'AVOID NEW'!$E$67),V156-6.5),"NA") -> NA | X156: 60.24 | Y156: =IF(OR('Input - Capacity Factors'!$C$3="Wind"),IF(X156*'AVOID NEW'!$E$67<6.5,X156*(1-'AVOID NEW'!$E$67),X156-6.5),"NA") -> NA | Z156: 55.24 | AA156: =IF(OR('Input - Capacity Factors'!$C$3="Wind"),IF(Z156*'AVOID NEW'!$E$67<6.5,Z156*(1-'AVOID NEW'!$E$67),Z156-6.5),"NA") -> NA
B157: 9 | C157: ='AVOID NEW'!AR17 -> 61.63894165 | D157: 63.30894165 | E157: 58.30894165 | G157: 66.57 | H157: =IF(OR('Input - Capacity Factors'!$C$3="Wind"),IF(G157*'AVOID NEW'!$E$67<6.5,G157*(1-'AVOID NEW'!$E$67),G157-6.5),"NA") -> NA | I157: 68.37 | J157: =IF(OR('Input - Capacity Factors'!$C$3="Wind"),IF(I157*'AVOID NEW'!$E$67<6.5,I157*(1-'AVOID NEW'!$E$67),I157-6.5),"NA") -> NA | K157: 62.97 | L157: =IF(OR('Input - Capacity Factors'!$C$3="Wind"),IF(K157*'AVOID NEW'!$E$67<6.5,K157*(1-'AVOID NEW'!$E$67),K157-6.5),"NA") -> NA | N157: 51.78 | O157: =IF(OR('Input - Capacity Factors'!$C$3="Wind"),IF(N157*'AVOID NEW'!$E$67<6.5,N157*(1-'AVOID NEW'!$E$67),N157-6.5),"NA") -> NA | P157: 53.18 | Q157: =IF(OR('Input - Capacity Factors'!$C$3="Wind"),IF(P157*'AVOID NEW'!$E$67<6.5,P157*(1-'AVOID NEW'!$E$67),P157-6.5),"NA") -> NA | R157: 48.98 | S157: =IF(OR('Input - Capacity Factors'!$C$3="Wind"),IF(R157*'AVOID NEW'!$E$67<6.5,R157*(1-'AVOID NEW'!$E$67),R157-6.5),"NA") -> NA | V157: 61.64 | W157: =IF(OR('Input - Capacity Factors'!$C$3="Wind"),IF(V157*'AVOID NEW'!$E$67<6.5,V157*(1-'AVOID NEW'!$E$67),V157-6.5),"NA") -> NA | X157: 63.31 | Y157: =IF(OR('Input - Capacity Factors'!$C$3="Wind"),IF(X157*'AVOID NEW'!$E$67<6.5,X157*(1-'AVOID NEW'!$E$67),X157-6.5),"NA") -> NA | Z157: 58.31 | AA157: =IF(OR('Input - Capacity Factors'!$C$3="Wind"),IF(Z157*'AVOID NEW'!$E$67<6.5,Z157*(1-'AVOID NEW'!$E$67),Z157-6.5),"NA") -> NA
B158: 10 | C158: ='AVOID NEW'!AR18 -> 64.23566219 | D158: 65.90566219 | E158: 60.90566219 | G158: 69.37 | H158: =IF(OR('Input - Capacity Factors'!$C$3="Wind"),IF(G158*'AVOID NEW'!$E$67<6.5,G158*(1-'AVOID NEW'!$E$67),G158-6.5),"NA") -> NA | I158: 71.18 | J158: =IF(OR('Input - Capacity Factors'!$C$3="Wind"),IF(I158*'AVOID NEW'!$E$67<6.5,I158*(1-'AVOID NEW'!$E$67),I158-6.5),"NA") -> NA | K158: 65.78 | L158: =IF(OR('Input - Capacity Factors'!$C$3="Wind"),IF(K158*'AVOID NEW'!$E$67<6.5,K158*(1-'AVOID NEW'!$E$67),K158-6.5),"NA") -> NA | N158: 53.96 | O158: =IF(OR('Input - Capacity Factors'!$C$3="Wind"),IF(N158*'AVOID NEW'!$E$67<6.5,N158*(1-'AVOID NEW'!$E$67),N158-6.5),"NA") -> NA | P158: 55.36 | Q158: =IF(OR('Input - Capacity Factors'!$C$3="Wind"),IF(P158*'AVOID NEW'!$E$67<6.5,P158*(1-'AVOID NEW'!$E$67),P158-6.5),"NA") -> NA | R158: 51.16 | S158: =IF(OR('Input - Capacity Factors'!$C$3="Wind"),IF(R158*'AVOID NEW'!$E$67<6.5,R158*(1-'AVOID NEW'!$E$67),R158-6.5),"NA") -> NA | V158: 64.24 | W158: =IF(OR('Input - Capacity Factors'!$C$3="Wind"),IF(V158*'AVOID NEW'!$E$67<6.5,V158*(1-'AVOID NEW'!$E$67),V158-6.5),"NA") -> NA | X158: 65.91 | Y158: =IF(OR('Input - Capacity Factors'!$C$3="Wind"),IF(X158*'AVOID NEW'!$E$67<6.5,X158*(1-'AVOID NEW'!$E$67),X158-6.5),"NA") -> NA | Z158: 60.91 | AA158: =IF(OR('Input - Capacity Factors'!$C$3="Wind"),IF(Z158*'AVOID NEW'!$E$67<6.5,Z158*(1-'AVOID NEW'!$E$67),Z158-6.5),"NA") -> NA
B159: 11 | C159: ='AVOID NEW'!AR19 -> 66.46371586 | D159: 68.13371586 | E159: 63.13371586 | G159: 71.78 | H159: =IF(OR('Input - Capacity Factors'!$C$3="Wind"),IF(G159*'AVOID NEW'!$E$67<6.5,G159*(1-'AVOID NEW'!$E$67),G159-6.5),"NA") -> NA | I159: 73.58 | J159: =IF(OR('Input - Capacity Factors'!$C$3="Wind"),IF(I159*'AVOID NEW'!$E$67<6.5,I159*(1-'AVOID NEW'!$E$67),I159-6.5),"NA") -> NA | K159: 68.18 | L159: =IF(OR('Input - Capacity Factors'!$C$3="Wind"),IF(K159*'AVOID NEW'!$E$67<6.5,K159*(1-'AVOID NEW'!$E$67),K159-6.5),"NA") -> NA | N159: 55.83 | O159: =IF(OR('Input - Capacity Factors'!$C$3="Wind"),IF(N159*'AVOID NEW'!$E$67<6.5,N159*(1-'AVOID NEW'!$E$67),N159-6.5),"NA") -> NA | P159: 57.23 | Q159: =IF(OR('Input - Capacity Factors'!$C$3="Wind"),IF(P159*'AVOID NEW'!$E$67<6.5,P159*(1-'AVOID NEW'!$E$67),P159-6.5),"NA") -> NA | R159: 53.03 | S159: =IF(OR('Input - Capacity Factors'!$C$3="Wind"),IF(R159*'AVOID NEW'!$E$67<6.5,R159*(1-'AVOID NEW'!$E$67),R159-6.5),"NA") -> NA | V159: 66.46 | W159: =IF(OR('Input - Capacity Factors'!$C$3="Wind"),IF(V159*'AVOID NEW'!$E$67<6.5,V159*(1-'AVOID NEW'!$E$67),V159-6.5),"NA") -> NA | X159: 68.13 | Y159: =IF(OR('Input - Capacity Factors'!$C$3="Wind"),IF(X159*'AVOID NEW'!$E$67<6.5,X159*(1-'AVOID NEW'!$E$67),X159-6.5),"NA") -> NA | Z159: 63.13 | AA159: =IF(OR('Input - Capacity Factors'!$C$3="Wind"),IF(Z159*'AVOID NEW'!$E$67<6.5,Z159*(1-'AVOID NEW'!$E$67),Z159-6.5),"NA") -> NA
B160: 12 | C160: ='AVOID NEW'!AR20 -> 68.41295793 | D160: 70.08295793 | E160: 65.08295793 | G160: 73.89 | H160: =IF(OR('Input - Capacity Factors'!$C$3="Wind"),IF(G160*'AVOID NEW'!$E$67<6.5,G160*(1-'AVOID NEW'!$E$67),G160-6.5),"NA") -> NA | I160: 75.69 | J160: =IF(OR('Input - Capacity Factors'!$C$3="Wind"),IF(I160*'AVOID NEW'!$E$67<6.5,I160*(1-'AVOID NEW'!$E$67),I160-6.5),"NA") -> NA | K160: 70.29 | L160: =IF(OR('Input - Capacity Factors'!$C$3="Wind"),IF(K160*'AVOID NEW'!$E$67<6.5,K160*(1-'AVOID NEW'!$E$67),K160-6.5),"NA") -> NA | N160: 57.47 | O160: =IF(OR('Input - Capacity Factors'!$C$3="Wind"),IF(N160*'AVOID NEW'!$E$67<6.5,N160*(1-'AVOID NEW'!$E$67),N160-6.5),"NA") -> NA | P160: 58.87 | Q160: =IF(OR('Input - Capacity Factors'!$C$3="Wind"),IF(P160*'AVOID NEW'!$E$67<6.5,P160*(1-'AVOID NEW'!$E$67),P160-6.5),"NA") -> NA | R160: 54.67 | S160: =IF(OR('Input - Capacity Factors'!$C$3="Wind"),IF(R160*'AVOID NEW'!$E$67<6.5,R160*(1-'AVOID NEW'!$E$67),R160-6.5),"NA") -> NA | V160: 68.41 | W160: =IF(OR('Input - Capacity Factors'!$C$3="Wind"),IF(V160*'AVOID NEW'!$E$67<6.5,V160*(1-'AVOID NEW'!$E$67),V160-6.5),"NA") -> NA | X160: 70.08 | Y160: =IF(OR('Input - Capacity Factors'!$C$3="Wind"),IF(X160*'AVOID NEW'!$E$67<6.5,X160*(1-'AVOID NEW'!$E$67),X160-6.5),"NA") -> NA | Z160: 65.08 | AA160: =IF(OR('Input - Capacity Factors'!$C$3="Wind"),IF(Z160*'AVOID NEW'!$E$67<6.5,Z160*(1-'AVOID NEW'!$E$67),Z160-6.5),"NA") -> NA
B161: 13 | C161: ='AVOID NEW'!AR21 -> 70.18227011 | D161: 71.85227011 | E161: 66.85227011 | G161: 75.8 | H161: =IF(OR('Input - Capacity Factors'!$C$3="Wind"),IF(G161*'AVOID NEW'!$E$67<6.5,G161*(1-'AVOID NEW'!$E$67),G161-6.5),"NA") -> NA | I161: 77.6 | J161: =IF(OR('Input - Capacity Factors'!$C$3="Wind"),IF(I161*'AVOID NEW'!$E$67<6.5,I161*(1-'AVOID NEW'!$E$67),I161-6.5),"NA") -> NA | K161: 72.2 | L161: =IF(OR('Input - Capacity Factors'!$C$3="Wind"),IF(K161*'AVOID NEW'!$E$67<6.5,K161*(1-'AVOID NEW'!$E$67),K161-6.5),"NA") -> NA | N161: 58.95 | O161: =IF(OR('Input - Capacity Factors'!$C$3="Wind"),IF(N161*'AVOID NEW'!$E$67<6.5,N161*(1-'AVOID NEW'!$E$67),N161-6.5),"NA") -> NA | P161: 60.36 | Q161: =IF(OR('Input - Capacity Factors'!$C$3="Wind"),IF(P161*'AVOID NEW'!$E$67<6.5,P161*(1-'AVOID NEW'!$E$67),P161-6.5),"NA") -> NA | R161: 56.16 | S161: =IF(OR('Input - Capacity Factors'!$C$3="Wind"),IF(R161*'AVOID NEW'!$E$67<6.5,R161*(1-'AVOID NEW'!$E$67),R161-6.5),"NA") -> NA | V161: 70.18 | W161: =IF(OR('Input - Capacity Factors'!$C$3="Wind"),IF(V161*'AVOID NEW'!$E$67<6.5,V161*(1-'AVOID NEW'!$E$67),V161-6.5),"NA") -> NA | X161: 71.85 | Y161: =IF(OR('Input - Capacity Factors'!$C$3="Wind"),IF(X161*'AVOID NEW'!$E$67<6.5,X161*(1-'AVOID NEW'!$E$67),X161-6.5),"NA") -> NA | Z161: 66.85 | AA161: =IF(OR('Input - Capacity Factors'!$C$3="Wind"),IF(Z161*'AVOID NEW'!$E$67<6.5,Z161*(1-'AVOID NEW'!$E$67),Z161-6.5),"NA") -> NA
B162: 14 | C162: ='AVOID NEW'!AR22 -> 71.78642267 | D162: 73.45642267 | E162: 68.45642267 | G162: 77.53 | H162: =IF(OR('Input - Capacity Factors'!$C$3="Wind"),IF(G162*'AVOID NEW'!$E$67<6.5,G162*(1-'AVOID NEW'!$E$67),G162-6.5),"NA") -> NA | I162: 79.33 | J162: =IF(OR('Input - Capacity Factors'!$C$3="Wind"),IF(I162*'AVOID NEW'!$E$67<6.5,I162*(1-'AVOID NEW'!$E$67),I162-6.5),"NA") -> NA | K162: 73.93 | L162: =IF(OR('Input - Capacity Factors'!$C$3="Wind"),IF(K162*'AVOID NEW'!$E$67<6.5,K162*(1-'AVOID NEW'!$E$67),K162-6.5),"NA") -> NA | N162: 60.3 | O162: =IF(OR('Input - Capacity Factors'!$C$3="Wind"),IF(N162*'AVOID NEW'!$E$67<6.5,N162*(1-'AVOID NEW'!$E$67),N162-6.5),"NA") -> NA | P162: 61.7 | Q162: =IF(OR('Input - Capacity Factors'!$C$3="Wind"),IF(P162*'AVOID NEW'!$E$67<6.5,P162*(1-'AVOID NEW'!$E$67),P162-6.5),"NA") -> NA | R162: 57.5 | S162: =IF(OR('Input - Capacity Factors'!$C$3="Wind"),IF(R162*'AVOID NEW'!$E$67<6.5,R162*(1-'AVOID NEW'!$E$67),R162-6.5),"NA") -> NA | V162: 71.79 | W162: =IF(OR('Input - Capacity Factors'!$C$3="Wind"),IF(V162*'AVOID NEW'!$E$67<6.5,V162*(1-'AVOID NEW'!$E$67),V162-6.5),"NA") -> NA | X162: 73.46 | Y162: =IF(OR('Input - Capacity Factors'!$C$3="Wind"),IF(X162*'AVOID NEW'!$E$67<6.5,X162*(1-'AVOID NEW'!$E$67),X162-6.5),"NA") -> NA | Z162: 68.46 | AA162: =IF(OR('Input - Capacity Factors'!$C$3="Wind"),IF(Z162*'AVOID NEW'!$E$67<6.5,Z162*(1-'AVOID NEW'!$E$67),Z162-6.5),"NA") -> NA
B163: 15 | C163: ='AVOID NEW'!AR23 -> 73.23755776 | D163: 74.90755776 | E163: 69.90755776 | G163: 79.1 | H163: =IF(OR('Input - Capacity Factors'!$C$3="Wind"),IF(G163*'AVOID NEW'!$E$67<6.5,G163*(1-'AVOID NEW'!$E$67),G163-6.5),"NA") -> NA | I163: 80.9 | J163: =IF(OR('Input - Capacity Factors'!$C$3="Wind"),IF(I163*'AVOID NEW'!$E$67<6.5,I163*(1-'AVOID NEW'!$E$67),I163-6.5),"NA") -> NA | K163: 75.5 | L163: =IF(OR('Input - Capacity Factors'!$C$3="Wind"),IF(K163*'AVOID NEW'!$E$67<6.5,K163*(1-'AVOID NEW'!$E$67),K163-6.5),"NA") -> NA | N163: 61.52 | O163: =IF(OR('Input - Capacity Factors'!$C$3="Wind"),IF(N163*'AVOID NEW'!$E$67<6.5,N163*(1-'AVOID NEW'!$E$67),N163-6.5),"NA") -> NA | P163: 62.92 | Q163: =IF(OR('Input - Capacity Factors'!$C$3="Wind"),IF(P163*'AVOID NEW'!$E$67<6.5,P163*(1-'AVOID NEW'!$E$67),P163-6.5),"NA") -> NA | R163: 58.72 | S163: =IF(OR('Input - Capacity Factors'!$C$3="Wind"),IF(R163*'AVOID NEW'!$E$67<6.5,R163*(1-'AVOID NEW'!$E$67),R163-6.5),"NA") -> NA | V163: 73.24 | W163: =IF(OR('Input - Capacity Factors'!$C$3="Wind"),IF(V163*'AVOID NEW'!$E$67<6.5,V163*(1-'AVOID NEW'!$E$67),V163-6.5),"NA") -> NA | X163: 74.91 | Y163: =IF(OR('Input - Capacity Factors'!$C$3="Wind"),IF(X163*'AVOID NEW'!$E$67<6.5,X163*(1-'AVOID NEW'!$E$67),X163-6.5),"NA") -> NA | Z163: 69.91 | AA163: =IF(OR('Input - Capacity Factors'!$C$3="Wind"),IF(Z163*'AVOID NEW'!$E$67<6.5,Z163*(1-'AVOID NEW'!$E$67),Z163-6.5),"NA") -> NA
B164: 16 | C164: ='AVOID NEW'!AR24 -> 74.56213334 | D164: 76.23213334 | E164: 71.23213334 | G164: 80.53 | H164: =IF(OR('Input - Capacity Factors'!$C$3="Wind"),IF(G164*'AVOID NEW'!$E$67<6.5,G164*(1-'AVOID NEW'!$E$67),G164-6.5),"NA") -> NA | I164: 82.33 | J164: =IF(OR('Input - Capacity Factors'!$C$3="Wind"),IF(I164*'AVOID NEW'!$E$67<6.5,I164*(1-'AVOID NEW'!$E$67),I164-6.5),"NA") -> NA | K164: 76.93 | L164: =IF(OR('Input - Capacity Factors'!$C$3="Wind"),IF(K164*'AVOID NEW'!$E$67<6.5,K164*(1-'AVOID NEW'!$E$67),K164-6.5),"NA") -> NA | N164: 62.63 | O164: =IF(OR('Input - Capacity Factors'!$C$3="Wind"),IF(N164*'AVOID NEW'!$E$67<6.5,N164*(1-'AVOID NEW'!$E$67),N164-6.5),"NA") -> NA | P164: 64.03 | Q164: =IF(OR('Input - Capacity Factors'!$C$3="Wind"),IF(P164*'AVOID NEW'!$E$67<6.5,P164*(1-'AVOID NEW'!$E$67),P164-6.5),"NA") -> NA | R164: 59.83 | S164: =IF(OR('Input - Capacity Factors'!$C$3="Wind"),IF(R164*'AVOID NEW'!$E$67<6.5,R164*(1-'AVOID NEW'!$E$67),R164-6.5),"NA") -> NA | V164: 74.56 | W164: =IF(OR('Input - Capacity Factors'!$C$3="Wind"),IF(V164*'AVOID NEW'!$E$67<6.5,V164*(1-'AVOID NEW'!$E$67),V164-6.5),"NA") -> NA | X164: 76.23 | Y164: =IF(OR('Input - Capacity Factors'!$C$3="Wind"),IF(X164*'AVOID NEW'!$E$67<6.5,X164*(1-'AVOID NEW'!$E$67),X164-6.5),"NA") -> NA | Z164: 71.23 | AA164: =IF(OR('Input - Capacity Factors'!$C$3="Wind"),IF(Z164*'AVOID NEW'!$E$67<6.5,Z164*(1-'AVOID NEW'!$E$67),Z164-6.5),"NA") -> NA
B165: 17 | C165: ='AVOID NEW'!AR25 -> 75.77706155 | D165: 77.44706155 | E165: 72.44706155 | G165: 81.84 | H165: =IF(OR('Input - Capacity Factors'!$C$3="Wind"),IF(G165*'AVOID NEW'!$E$67<6.5,G165*(1-'AVOID NEW'!$E$67),G165-6.5),"NA") -> NA | I165: 83.64 | J165: =IF(OR('Input - Capacity Factors'!$C$3="Wind"),IF(I165*'AVOID NEW'!$E$67<6.5,I165*(1-'AVOID NEW'!$E$67),I165-6.5),"NA") -> NA | K165: 78.24 | L165: =IF(OR('Input - Capacity Factors'!$C$3="Wind"),IF(K165*'AVOID NEW'!$E$67<6.5,K165*(1-'AVOID NEW'!$E$67),K165-6.5),"NA") -> NA | N165: 63.65 | O165: =IF(OR('Input - Capacity Factors'!$C$3="Wind"),IF(N165*'AVOID NEW'!$E$67<6.5,N165*(1-'AVOID NEW'!$E$67),N165-6.5),"NA") -> NA | P165: 65.06 | Q165: =IF(OR('Input - Capacity Factors'!$C$3="Wind"),IF(P165*'AVOID NEW'!$E$67<6.5,P165*(1-'AVOID NEW'!$E$67),P165-6.5),"NA") -> NA | R165: 60.86 | S165: =IF(OR('Input - Capacity Factors'!$C$3="Wind"),IF(R165*'AVOID NEW'!$E$67<6.5,R165*(1-'AVOID NEW'!$E$67),R165-6.5),"NA") -> NA | V165: 75.78 | W165: =IF(OR('Input - Capacity Factors'!$C$3="Wind"),IF(V165*'AVOID NEW'!$E$67<6.5,V165*(1-'AVOID NEW'!$E$67),V165-6.5),"NA") -> NA | X165: 77.45 | Y165: =IF(OR('Input - Capacity Factors'!$C$3="Wind"),IF(X165*'AVOID NEW'!$E$67<6.5,X165*(1-'AVOID NEW'!$E$67),X165-6.5),"NA") -> NA | Z165: 72.45 | AA165: =IF(OR('Input - Capacity Factors'!$C$3="Wind"),IF(Z165*'AVOID NEW'!$E$67<6.5,Z165*(1-'AVOID NEW'!$E$67),Z165-6.5),"NA") -> NA
B166: 18 | C166: ='AVOID NEW'!AR26 -> 76.90281127 | D166: 78.57281127 | E166: 73.57281127 | G166: 83.06 | H166: =IF(OR('Input - Capacity Factors'!$C$3="Wind"),IF(G166*'AVOID NEW'!$E$67<6.5,G166*(1-'AVOID NEW'!$E$67),G166-6.5),"NA") -> NA | I166: 84.86 | J166: =IF(OR('Input - Capacity Factors'!$C$3="Wind"),IF(I166*'AVOID NEW'!$E$67<6.5,I166*(1-'AVOID NEW'!$E$67),I166-6.5),"NA") -> NA | K166: 79.46 | L166: =IF(OR('Input - Capacity Factors'!$C$3="Wind"),IF(K166*'AVOID NEW'!$E$67<6.5,K166*(1-'AVOID NEW'!$E$67),K166-6.5),"NA") -> NA | N166: 64.6 | O166: =IF(OR('Input - Capacity Factors'!$C$3="Wind"),IF(N166*'AVOID NEW'!$E$67<6.5,N166*(1-'AVOID NEW'!$E$67),N166-6.5),"NA") -> NA | P166: 66 | Q166: =IF(OR('Input - Capacity Factors'!$C$3="Wind"),IF(P166*'AVOID NEW'!$E$67<6.5,P166*(1-'AVOID NEW'!$E$67),P166-6.5),"NA") -> NA | R166: 61.8 | S166: =IF(OR('Input - Capacity Factors'!$C$3="Wind"),IF(R166*'AVOID NEW'!$E$67<6.5,R166*(1-'AVOID NEW'!$E$67),R166-6.5),"NA") -> NA | V166: 76.9 | W166: =IF(OR('Input - Capacity Factors'!$C$3="Wind"),IF(V166*'AVOID NEW'!$E$67<6.5,V166*(1-'AVOID NEW'!$E$67),V166-6.5),"NA") -> NA | X166: 78.57 | Y166: =IF(OR('Input - Capacity Factors'!$C$3="Wind"),IF(X166*'AVOID NEW'!$E$67<6.5,X166*(1-'AVOID NEW'!$E$67),X166-6.5),"NA") -> NA | Z166: 73.57 | AA166: =IF(OR('Input - Capacity Factors'!$C$3="Wind"),IF(Z166*'AVOID NEW'!$E$67<6.5,Z166*(1-'AVOID NEW'!$E$67),Z166-6.5),"NA") -> NA
B167: 19 | C167: ='AVOID NEW'!AR27 -> 77.95614502 | D167: 79.62614502 | E167: 74.62614502 | G167: 84.19 | H167: =IF(OR('Input - Capacity Factors'!$C$3="Wind"),IF(G167*'AVOID NEW'!$E$67<6.5,G167*(1-'AVOID NEW'!$E$67),G167-6.5),"NA") -> NA | I167: 86 | J167: =IF(OR('Input - Capacity Factors'!$C$3="Wind"),IF(I167*'AVOID NEW'!$E$67<6.5,I167*(1-'AVOID NEW'!$E$67),I167-6.5),"NA") -> NA | K167: 80.6 | L167: =IF(OR('Input - Capacity Factors'!$C$3="Wind"),IF(K167*'AVOID NEW'!$E$67<6.5,K167*(1-'AVOID NEW'!$E$67),K167-6.5),"NA") -> NA | N167: 65.48 | O167: =IF(OR('Input - Capacity Factors'!$C$3="Wind"),IF(N167*'AVOID NEW'!$E$67<6.5,N167*(1-'AVOID NEW'!$E$67),N167-6.5),"NA") -> NA | P167: 66.89 | Q167: =IF(OR('Input - Capacity Factors'!$C$3="Wind"),IF(P167*'AVOID NEW'!$E$67<6.5,P167*(1-'AVOID NEW'!$E$67),P167-6.5),"NA") -> NA | R167: 62.69 | S167: =IF(OR('Input - Capacity Factors'!$C$3="Wind"),IF(R167*'AVOID NEW'!$E$67<6.5,R167*(1-'AVOID NEW'!$E$67),R167-6.5),"NA") -> NA | V167: 77.96 | W167: =IF(OR('Input - Capacity Factors'!$C$3="Wind"),IF(V167*'AVOID NEW'!$E$67<6.5,V167*(1-'AVOID NEW'!$E$67),V167-6.5),"NA") -> NA | X167: 79.63 | Y167: =IF(OR('Input - Capacity Factors'!$C$3="Wind"),IF(X167*'AVOID NEW'!$E$67<6.5,X167*(1-'AVOID NEW'!$E$67),X167-6.5),"NA") -> NA | Z167: 74.63 | AA167: =IF(OR('Input - Capacity Factors'!$C$3="Wind"),IF(Z167*'AVOID NEW'!$E$67<6.5,Z167*(1-'AVOID NEW'!$E$67),Z167-6.5),"NA") -> NA
B168: 20 | C168: ='AVOID NEW'!AR28 -> 78.95271526 | D168: 80.62271526 | E168: 75.62271526 | G168: 85.27 | H168: =IF(OR('Input - Capacity Factors'!$C$3="Wind"),IF(G168*'AVOID NEW'!$E$67<6.5,G168*(1-'AVOID NEW'!$E$67),G168-6.5),"NA") -> NA | I168: 87.07 | J168: =IF(OR('Input - Capacity Factors'!$C$3="Wind"),IF(I168*'AVOID NEW'!$E$67<6.5,I168*(1-'AVOID NEW'!$E$67),I168-6.5),"NA") -> NA | K168: 81.67 | L168: =IF(OR('Input - Capacity Factors'!$C$3="Wind"),IF(K168*'AVOID NEW'!$E$67<6.5,K168*(1-'AVOID NEW'!$E$67),K168-6.5),"NA") -> NA | N168: 66.32 | O168: =IF(OR('Input - Capacity Factors'!$C$3="Wind"),IF(N168*'AVOID NEW'!$E$67<6.5,N168*(1-'AVOID NEW'!$E$67),N168-6.5),"NA") -> NA | P168: 67.72 | Q168: =IF(OR('Input - Capacity Factors'!$C$3="Wind"),IF(P168*'AVOID NEW'!$E$67<6.5,P168*(1-'AVOID NEW'!$E$67),P168-6.5),"NA") -> NA | R168: 63.52 | S168: =IF(OR('Input - Capacity Factors'!$C$3="Wind"),IF(R168*'AVOID NEW'!$E$67<6.5,R168*(1-'AVOID NEW'!$E$67),R168-6.5),"NA") -> NA | V168: 78.95 | W168: =IF(OR('Input - Capacity Factors'!$C$3="Wind"),IF(V168*'AVOID NEW'!$E$67<6.5,V168*(1-'AVOID NEW'!$E$67),V168-6.5),"NA") -> NA | X168: 80.62 | Y168: =IF(OR('Input - Capacity Factors'!$C$3="Wind"),IF(X168*'AVOID NEW'!$E$67<6.5,X168*(1-'AVOID NEW'!$E$67),X168-6.5),"NA") -> NA | Z168: 75.62 | AA168: =IF(OR('Input - Capacity Factors'!$C$3="Wind"),IF(Z168*'AVOID NEW'!$E$67<6.5,Z168*(1-'AVOID NEW'!$E$67),Z168-6.5),"NA") -> NA
B172: =$B$1 -> THESE RATES ARE NOT VALID
B173: LEVELIZED RATES
B174: ="PROJECT ON-LINE IN "& 'AVOID NEW'!$D$54+5 -> PROJECT ON-LINE IN 2026
B175: ="Rate Effective Date: "&'AVOID NEW'!$E$69 -> Rate Effective Date: April 5, 2021
B176: ="Resource: "&'Input - Capacity Factors'!$C$3 -> Resource: Seasonal hydro
C177: Levelized Price | G177: ="Season 1 Pricing ("&$D$7*100&"%)" -> Season 1 Pricing (108%) | N177: ="Season 2 Pricing ("&100*$D$8&"%)" -> Season 2 Pricing (84%) | V177: Non-Seasonalized Pricing
C178: Heavy and Light Load Hour Differential | D178: ='AVOID NEW'!$E$66 -> 5 | G178: Flat | I178: Heavy Load Hour | K178: Light Load Hour | N178: Flat | P178: Heavy Load Hour | R178: Light Load Hour | V178: Flat | X178: Heavy Load Hour | Z178: Light Load Hour
D179: =ROUND(D178/3,2) -> 1.67 | E179: =-ROUND((D178*2)/3,2) -> -3.33 | H179: Price less wind integration adjustment | J179: Price less wind integration adjustment | L179: Price less wind integration adjustment | O179: Price less wind integration adjustment | Q179: Price less wind integration adjustment | S179: Price less wind integration adjustment | W179: Price less wind integration adjustment | Y179: Price less wind integration adjustment | AA179: Price less wind integration adjustment
B180: Contract Length | C180: Flat | D180: Heavy Load Hour | E180: Light Load Hour | G180: Price | I180: Price | K180: Price | N180: Price | P180: Price | R180: Price | V180: Price | X180: Price | Z180: Price
B181: 1 | C181: ='AVOID NEW'!AS9 -> 33.50790156 | D181: =C181+D$83 -> 35.17790156 | E181: =C181+E$83 -> 30.17790156 | G181: =ROUND((+$C181*$D$7),2) -> 36.19 | H181: =IF(OR('Input - Capacity Factors'!$C$3="Wind"),IF(G181*'AVOID NEW'!$E$67<6.5,G181*(1-'AVOID NEW'!$E$67),G181-6.5),"NA") -> NA | I181: =ROUND((+$D181*$D$7),2) -> 37.99 | J181: =IF(OR('Input - Capacity Factors'!$C$3="Wind"),IF(I181*'AVOID NEW'!$E$67<6.5,I181*(1-'AVOID NEW'!$E$67),I181-6.5),"NA") -> NA | K181: =ROUND((+$E181*$D$7),2) -> 32.59 | L181: =IF(OR('Input - Capacity Factors'!$C$3="Wind"),IF(K181*'AVOID NEW'!$E$67<6.5,K181*(1-'AVOID NEW'!$E$67),K181-6.5),"NA") -> NA | N181: =ROUND((+$C181*$D$8),2) -> 28.15 | O181: =IF(OR('Input - Capacity Factors'!$C$3="Wind"),IF(N181*'AVOID NEW'!$E$67<6.5,N181*(1-'AVOID NEW'!$E$67),N181-6.5),"NA") -> NA | P181: =ROUND((+$D181*$D$8),2) -> 29.55 | Q181: =IF(OR('Input - Capacity Factors'!$C$3="Wind"),IF(P181*'AVOID NEW'!$E$67<6.5,P181*(1-'AVOID NEW'!$E$67),P181-6.5),"NA") -> NA | R181: =ROUND((+$E181*$D$8),2) -> 25.35 | S181: =IF(OR('Input - Capacity Factors'!$C$3="Wind"),IF(R181*'AVOID NEW'!$E$67<6.5,R181*(1-'AVOID NEW'!$E$67),R181-6.5),"NA") -> NA | V181: =ROUND((+$C181),2) -> 33.51 | W181: =IF(OR('Input - Capacity Factors'!$C$3="Wind"),IF(V181*'AVOID NEW'!$E$67<6.5,V181*(1-'AVOID NEW'!$E$67),V181-6.5),"NA") -> NA | X181: =ROUND((+$D181),2) -> 35.18 | Y181: =IF(OR('Input - Capacity Factors'!$C$3="Wind"),IF(X181*'AVOID NEW'!$E$67<6.5,X181*(1-'AVOID NEW'!$E$67),X181-6.5),"NA") -> NA | Z181: =ROUND((+$E181),2) -> 30.18 | AA181: =IF(OR('Input - Capacity Factors'!$C$3="Wind"),IF(Z181*'AVOID NEW'!$E$67<6.5,Z181*(1-'AVOID NEW'!$E$67),Z181-6.5),"NA") -> NA
B182: 2 | C182: ='AVOID NEW'!AS10 -> 34.6562428 | D182: 36.3262428 | E182: 31.3262428 | G182: 37.43 | H182: =IF(OR('Input - Capacity Factors'!$C$3="Wind"),IF(G182*'AVOID NEW'!$E$67<6.5,G182*(1-'AVOID NEW'!$E$67),G182-6.5),"NA") -> NA | I182: 39.23 | J182: =IF(OR('Input - Capacity Factors'!$C$3="Wind"),IF(I182*'AVOID NEW'!$E$67<6.5,I182*(1-'AVOID NEW'!$E$67),I182-6.5),"NA") -> NA | K182: 33.83 | L182: =IF(OR('Input - Capacity Factors'!$C$3="Wind"),IF(K182*'AVOID NEW'!$E$67<6.5,K182*(1-'AVOID NEW'!$E$67),K182-6.5),"NA") -> NA | N182: 29.11 | O182: =IF(OR('Input - Capacity Factors'!$C$3="Wind"),IF(N182*'AVOID NEW'!$E$67<6.5,N182*(1-'AVOID NEW'!$E$67),N182-6.5),"NA") -> NA | P182: 30.51 | Q182: =IF(OR('Input - Capacity Factors'!$C$3="Wind"),IF(P182*'AVOID NEW'!$E$67<6.5,P182*(1-'AVOID NEW'!$E$67),P182-6.5),"NA") -> NA | R182: 26.31 | S182: =IF(OR('Input - Capacity Factors'!$C$3="Wind"),IF(R182*'AVOID NEW'!$E$67<6.5,R182*(1-'AVOID NEW'!$E$67),R182-6.5),"NA") -> NA | V182: =ROUND((+$C182),2) -> 34.66 | W182: =IF(OR('Input - Capacity Factors'!$C$3="Wind"),IF(V182*'AVOID NEW'!$E$67<6.5,V182*(1-'AVOID NEW'!$E$67),V182-6.5),"NA") -> NA | X182: =ROUND((+$D182),2) -> 36.33 | Y182: =IF(OR('Input - Capacity Factors'!$C$3="Wind"),IF(X182*'AVOID NEW'!$E$67<6.5,X182*(1-'AVOID NEW'!$E$67),X182-6.5),"NA") -> NA | Z182: =ROUND((+$E182),2) -> 31.33 | AA182: =IF(OR('Input - Capacity Factors'!$C$3="Wind"),IF(Z182*'AVOID NEW'!$E$67<6.5,Z182*(1-'AVOID NEW'!$E$67),Z182-6.5),"NA") -> NA
B183: 3 | C183: ='AVOID NEW'!AS11 -> 35.57794914 | D183: 37.24794914 | E183: 32.24794914 | G183: 38.42 | H183: =IF(OR('Input - Capacity Factors'!$C$3="Wind"),IF(G183*'AVOID NEW'!$E$67<6.5,G183*(1-'AVOID NEW'!$E$67),G183-6.5),"NA") -> NA | I183: 40.23 | J183: =IF(OR('Input - Capacity Factors'!$C$3="Wind"),IF(I183*'AVOID NEW'!$E$67<6.5,I183*(1-'AVOID NEW'!$E$67),I183-6.5),"NA") -> NA | K183: 34.83 | L183: =IF(OR('Input - Capacity Factors'!$C$3="Wind"),IF(K183*'AVOID NEW'!$E$67<6.5,K183*(1-'AVOID NEW'!$E$67),K183-6.5),"NA") -> NA | N183: 29.89 | O183: =IF(OR('Input - Capacity Factors'!$C$3="Wind"),IF(N183*'AVOID NEW'!$E$67<6.5,N183*(1-'AVOID NEW'!$E$67),N183-6.5),"NA") -> NA | P183: 31.29 | Q183: =IF(OR('Input - Capacity Factors'!$C$3="Wind"),IF(P183*'AVOID NEW'!$E$67<6.5,P183*(1-'AVOID NEW'!$E$67),P183-6.5),"NA") -> NA | R183: 27.09 | S183: =IF(OR('Input - Capacity Factors'!$C$3="Wind"),IF(R183*'AVOID NEW'!$E$67<6.5,R183*(1-'AVOID NEW'!$E$67),R183-6.5),"NA") -> NA | V183: 35.58 | W183: =IF(OR('Input - Capacity Factors'!$C$3="Wind"),IF(V183*'AVOID NEW'!$E$67<6.5,V183*(1-'AVOID NEW'!$E$67),V183-6.5),"NA") -> NA | X183: 37.25 | Y183: =IF(OR('Input - Capacity Factors'!$C$3="Wind"),IF(X183*'AVOID NEW'!$E$67<6.5,X183*(1-'AVOID NEW'!$E$67),X183-6.5),"NA") -> NA | Z183: 32.25 | AA183: =IF(OR('Input - Capacity Factors'!$C$3="Wind"),IF(Z183*'AVOID NEW'!$E$67<6.5,Z183*(1-'AVOID NEW'!$E$67),Z183-6.5),"NA") -> NA
B184: 4 | C184: ='AVOID NEW'!AS12 -> 47.63900615 | D184: 49.30900615 | E184: 44.30900615 | G184: 51.45 | H184: =IF(OR('Input - Capacity Factors'!$C$3="Wind"),IF(G184*'AVOID NEW'!$E$67<6.5,G184*(1-'AVOID NEW'!$E$67),G184-6.5),"NA") -> NA | I184: 53.25 | J184: =IF(OR('Input - Capacity Factors'!$C$3="Wind"),IF(I184*'AVOID NEW'!$E$67<6.5,I184*(1-'AVOID NEW'!$E$67),I184-6.5),"NA") -> NA | K184: 47.85 | L184: =IF(OR('Input - Capacity Factors'!$C$3="Wind"),IF(K184*'AVOID NEW'!$E$67<6.5,K184*(1-'AVOID NEW'!$E$67),K184-6.5),"NA") -> NA | N184: 40.02 | O184: =IF(OR('Input - Capacity Factors'!$C$3="Wind"),IF(N184*'AVOID NEW'!$E$67<6.5,N184*(1-'AVOID NEW'!$E$67),N184-6.5),"NA") -> NA | P184: 41.42 | Q184: =IF(OR('Input - Capacity Factors'!$C$3="Wind"),IF(P184*'AVOID NEW'!$E$67<6.5,P184*(1-'AVOID NEW'!$E$67),P184-6.5),"NA") -> NA | R184: 37.22 | S184: =IF(OR('Input - Capacity Factors'!$C$3="Wind"),IF(R184*'AVOID NEW'!$E$67<6.5,R184*(1-'AVOID NEW'!$E$67),R184-6.5),"NA") -> NA | V184: 47.64 | W184: =IF(OR('Input - Capacity Factors'!$C$3="Wind"),IF(V184*'AVOID NEW'!$E$67<6.5,V184*(1-'AVOID NEW'!$E$67),V184-6.5),"NA") -> NA | X184: 49.31 | Y184: =IF(OR('Input - Capacity Factors'!$C$3="Wind"),IF(X184*'AVOID NEW'!$E$67<6.5,X184*(1-'AVOID NEW'!$E$67),X184-6.5),"NA") -> NA | Z184: 44.31 | AA184: =IF(OR('Input - Capacity Factors'!$C$3="Wind"),IF(Z184*'AVOID NEW'!$E$67<6.5,Z184*(1-'AVOID NEW'!$E$67),Z184-6.5),"NA") -> NA
B185: 5 | C185: ='AVOID NEW'!AS13 -> 55.03375422 | D185: 56.70375422 | E185: 51.70375422 | G185: 59.44 | H185: =IF(OR('Input - Capacity Factors'!$C$3="Wind"),IF(G185*'AVOID NEW'!$E$67<6.5,G185*(1-'AVOID NEW'!$E$67),G185-6.5),"NA") -> NA | I185: 61.24 | J185: =IF(OR('Input - Capacity Factors'!$C$3="Wind"),IF(I185*'AVOID NEW'!$E$67<6.5,I185*(1-'AVOID NEW'!$E$67),I185-6.5),"NA") -> NA | K185: 55.84 | L185: =IF(OR('Input - Capacity Factors'!$C$3="Wind"),IF(K185*'AVOID NEW'!$E$67<6.5,K185*(1-'AVOID NEW'!$E$67),K185-6.5),"NA") -> NA | N185: 46.23 | O185: =IF(OR('Input - Capacity Factors'!$C$3="Wind"),IF(N185*'AVOID NEW'!$E$67<6.5,N185*(1-'AVOID NEW'!$E$67),N185-6.5),"NA") -> NA | P185: 47.63 | Q185: =IF(OR('Input - Capacity Factors'!$C$3="Wind"),IF(P185*'AVOID NEW'!$E$67<6.5,P185*(1-'AVOID NEW'!$E$67),P185-6.5),"NA") -> NA | R185: 43.43 | S185: =IF(OR('Input - Capacity Factors'!$C$3="Wind"),IF(R185*'AVOID NEW'!$E$67<6.5,R185*(1-'AVOID NEW'!$E$67),R185-6.5),"NA") -> NA | V185: 55.03 | W185: =IF(OR('Input - Capacity Factors'!$C$3="Wind"),IF(V185*'AVOID NEW'!$E$67<6.5,V185*(1-'AVOID NEW'!$E$67),V185-6.5),"NA") -> NA | X185: 56.7 | Y185: =IF(OR('Input - Capacity Factors'!$C$3="Wind"),IF(X185*'AVOID NEW'!$E$67<6.5,X185*(1-'AVOID NEW'!$E$67),X185-6.5),"NA") -> NA | Z185: 51.7 | AA185: =IF(OR('Input - Capacity Factors'!$C$3="Wind"),IF(Z185*'AVOID NEW'!$E$67<6.5,Z185*(1-'AVOID NEW'!$E$67),Z185-6.5),"NA") -> NA
B186: 6 | C186: ='AVOID NEW'!AS14 -> 60.13566284 | D186: 61.80566284 | E186: 56.80566284 | G186: 64.95 | H186: =IF(OR('Input - Capacity Factors'!$C$3="Wind"),IF(G186*'AVOID NEW'!$E$67<6.5,G186*(1-'AVOID NEW'!$E$67),G186-6.5),"NA") -> NA | I186: 66.75 | J186: =IF(OR('Input - Capacity Factors'!$C$3="Wind"),IF(I186*'AVOID NEW'!$E$67<6.5,I186*(1-'AVOID NEW'!$E$67),I186-6.5),"NA") -> NA | K186: 61.35 | L186: =IF(OR('Input - Capacity Factors'!$C$3="Wind"),IF(K186*'AVOID NEW'!$E$67<6.5,K186*(1-'AVOID NEW'!$E$67),K186-6.5),"NA") -> NA | N186: 50.51 | O186: =IF(OR('Input - Capacity Factors'!$C$3="Wind"),IF(N186*'AVOID NEW'!$E$67<6.5,N186*(1-'AVOID NEW'!$E$67),N186-6.5),"NA") -> NA | P186: 51.92 | Q186: =IF(OR('Input - Capacity Factors'!$C$3="Wind"),IF(P186*'AVOID NEW'!$E$67<6.5,P186*(1-'AVOID NEW'!$E$67),P186-6.5),"NA") -> NA | R186: 47.72 | S186: =IF(OR('Input - Capacity Factors'!$C$3="Wind"),IF(R186*'AVOID NEW'!$E$67<6.5,R186*(1-'AVOID NEW'!$E$67),R186-6.5),"NA") -> NA | V186: 60.14 | W186: =IF(OR('Input - Capacity Factors'!$C$3="Wind"),IF(V186*'AVOID NEW'!$E$67<6.5,V186*(1-'AVOID NEW'!$E$67),V186-6.5),"NA") -> NA | X186: 61.81 | Y186: =IF(OR('Input - Capacity Factors'!$C$3="Wind"),IF(X186*'AVOID NEW'!$E$67<6.5,X186*(1-'AVOID NEW'!$E$67),X186-6.5),"NA") -> NA | Z186: 56.81 | AA186: =IF(OR('Input - Capacity Factors'!$C$3="Wind"),IF(Z186*'AVOID NEW'!$E$67<6.5,Z186*(1-'AVOID NEW'!$E$67),Z186-6.5),"NA") -> NA
B187: 7 | C187: ='AVOID NEW'!AS15 -> 63.99097382 | D187: 65.66097382 | E187: 60.66097382 | G187: 69.11 | H187: =IF(OR('Input - Capacity Factors'!$C$3="Wind"),IF(G187*'AVOID NEW'!$E$67<6.5,G187*(1-'AVOID NEW'!$E$67),G187-6.5),"NA") -> NA | I187: 70.91 | J187: =IF(OR('Input - Capacity Factors'!$C$3="Wind"),IF(I187*'AVOID NEW'!$E$67<6.5,I187*(1-'AVOID NEW'!$E$67),I187-6.5),"NA") -> NA | K187: 65.51 | L187: =IF(OR('Input - Capacity Factors'!$C$3="Wind"),IF(K187*'AVOID NEW'!$E$67<6.5,K187*(1-'AVOID NEW'!$E$67),K187-6.5),"NA") -> NA | N187: 53.75 | O187: =IF(OR('Input - Capacity Factors'!$C$3="Wind"),IF(N187*'AVOID NEW'!$E$67<6.5,N187*(1-'AVOID NEW'!$E$67),N187-6.5),"NA") -> NA | P187: 55.16 | Q187: =IF(OR('Input - Capacity Factors'!$C$3="Wind"),IF(P187*'AVOID NEW'!$E$67<6.5,P187*(1-'AVOID NEW'!$E$67),P187-6.5),"NA") -> NA | R187: 50.96 | S187: =IF(OR('Input - Capacity Factors'!$C$3="Wind"),IF(R187*'AVOID NEW'!$E$67<6.5,R187*(1-'AVOID NEW'!$E$67),R187-6.5),"NA") -> NA | V187: 63.99 | W187: =IF(OR('Input - Capacity Factors'!$C$3="Wind"),IF(V187*'AVOID NEW'!$E$67<6.5,V187*(1-'AVOID NEW'!$E$67),V187-6.5),"NA") -> NA | X187: 65.66 | Y187: =IF(OR('Input - Capacity Factors'!$C$3="Wind"),IF(X187*'AVOID NEW'!$E$67<6.5,X187*(1-'AVOID NEW'!$E$67),X187-6.5),"NA") -> NA | Z187: 60.66 | AA187: =IF(OR('Input - Capacity Factors'!$C$3="Wind"),IF(Z187*'AVOID NEW'!$E$67<6.5,Z187*(1-'AVOID NEW'!$E$67),Z187-6.5),"NA") -> NA
B188: 8 | C188: ='AVOID NEW'!AS16 -> 67.08878289 | D188: 68.75878289 | E188: 63.75878289 | G188: 72.46 | H188: =IF(OR('Input - Capacity Factors'!$C$3="Wind"),IF(G188*'AVOID NEW'!$E$67<6.5,G188*(1-'AVOID NEW'!$E$67),G188-6.5),"NA") -> NA | I188: 74.26 | J188: =IF(OR('Input - Capacity Factors'!$C$3="Wind"),IF(I188*'AVOID NEW'!$E$67<6.5,I188*(1-'AVOID NEW'!$E$67),I188-6.5),"NA") -> NA | K188: 68.86 | L188: =IF(OR('Input - Capacity Factors'!$C$3="Wind"),IF(K188*'AVOID NEW'!$E$67<6.5,K188*(1-'AVOID NEW'!$E$67),K188-6.5),"NA") -> NA | N188: 56.35 | O188: =IF(OR('Input - Capacity Factors'!$C$3="Wind"),IF(N188*'AVOID NEW'!$E$67<6.5,N188*(1-'AVOID NEW'!$E$67),N188-6.5),"NA") -> NA | P188: 57.76 | Q188: =IF(OR('Input - Capacity Factors'!$C$3="Wind"),IF(P188*'AVOID NEW'!$E$67<6.5,P188*(1-'AVOID NEW'!$E$67),P188-6.5),"NA") -> NA | R188: 53.56 | S188: =IF(OR('Input - Capacity Factors'!$C$3="Wind"),IF(R188*'AVOID NEW'!$E$67<6.5,R188*(1-'AVOID NEW'!$E$67),R188-6.5),"NA") -> NA | V188: 67.09 | W188: =IF(OR('Input - Capacity Factors'!$C$3="Wind"),IF(V188*'AVOID NEW'!$E$67<6.5,V188*(1-'AVOID NEW'!$E$67),V188-6.5),"NA") -> NA | X188: 68.76 | Y188: =IF(OR('Input - Capacity Factors'!$C$3="Wind"),IF(X188*'AVOID NEW'!$E$67<6.5,X188*(1-'AVOID NEW'!$E$67),X188-6.5),"NA") -> NA | Z188: 63.76 | AA188: =IF(OR('Input - Capacity Factors'!$C$3="Wind"),IF(Z188*'AVOID NEW'!$E$67<6.5,Z188*(1-'AVOID NEW'!$E$67),Z188-6.5),"NA") -> NA
B189: 9 | C189: ='AVOID NEW'!AS17 -> 69.6640538 | D189: 71.3340538 | E189: 66.3340538 | G189: 75.24 | H189: =IF(OR('Input - Capacity Factors'!$C$3="Wind"),IF(G189*'AVOID NEW'!$E$67<6.5,G189*(1-'AVOID NEW'!$E$67),G189-6.5),"NA") -> NA | I189: 77.04 | J189: =IF(OR('Input - Capacity Factors'!$C$3="Wind"),IF(I189*'AVOID NEW'!$E$67<6.5,I189*(1-'AVOID NEW'!$E$67),I189-6.5),"NA") -> NA | K189: 71.64 | L189: =IF(OR('Input - Capacity Factors'!$C$3="Wind"),IF(K189*'AVOID NEW'!$E$67<6.5,K189*(1-'AVOID NEW'!$E$67),K189-6.5),"NA") -> NA | N189: 58.52 | O189: =IF(OR('Input - Capacity Factors'!$C$3="Wind"),IF(N189*'AVOID NEW'!$E$67<6.5,N189*(1-'AVOID NEW'!$E$67),N189-6.5),"NA") -> NA | P189: 59.92 | Q189: =IF(OR('Input - Capacity Factors'!$C$3="Wind"),IF(P189*'AVOID NEW'!$E$67<6.5,P189*(1-'AVOID NEW'!$E$67),P189-6.5),"NA") -> NA | R189: 55.72 | S189: =IF(OR('Input - Capacity Factors'!$C$3="Wind"),IF(R189*'AVOID NEW'!$E$67<6.5,R189*(1-'AVOID NEW'!$E$67),R189-6.5),"NA") -> NA | V189: 69.66 | W189: =IF(OR('Input - Capacity Factors'!$C$3="Wind"),IF(V189*'AVOID NEW'!$E$67<6.5,V189*(1-'AVOID NEW'!$E$67),V189-6.5),"NA") -> NA | X189: 71.33 | Y189: =IF(OR('Input - Capacity Factors'!$C$3="Wind"),IF(X189*'AVOID NEW'!$E$67<6.5,X189*(1-'AVOID NEW'!$E$67),X189-6.5),"NA") -> NA | Z189: 66.33 | AA189: =IF(OR('Input - Capacity Factors'!$C$3="Wind"),IF(Z189*'AVOID NEW'!$E$67<6.5,Z189*(1-'AVOID NEW'!$E$67),Z189-6.5),"NA") -> NA
B190: 10 | C190: ='AVOID NEW'!AS18 -> 71.84877856 | D190: 73.51877856 | E190: 68.51877856 | G190: 77.6 | H190: =IF(OR('Input - Capacity Factors'!$C$3="Wind"),IF(G190*'AVOID NEW'!$E$67<6.5,G190*(1-'AVOID NEW'!$E$67),G190-6.5),"NA") -> NA | I190: 79.4 | J190: =IF(OR('Input - Capacity Factors'!$C$3="Wind"),IF(I190*'AVOID NEW'!$E$67<6.5,I190*(1-'AVOID NEW'!$E$67),I190-6.5),"NA") -> NA | K190: 74 | L190: =IF(OR('Input - Capacity Factors'!$C$3="Wind"),IF(K190*'AVOID NEW'!$E$67<6.5,K190*(1-'AVOID NEW'!$E$67),K190-6.5),"NA") -> NA | N190: 60.35 | O190: =IF(OR('Input - Capacity Factors'!$C$3="Wind"),IF(N190*'AVOID NEW'!$E$67<6.5,N190*(1-'AVOID NEW'!$E$67),N190-6.5),"NA") -> NA | P190: 61.76 | Q190: =IF(OR('Input - Capacity Factors'!$C$3="Wind"),IF(P190*'AVOID NEW'!$E$67<6.5,P190*(1-'AVOID NEW'!$E$67),P190-6.5),"NA") -> NA | R190: 57.56 | S190: =IF(OR('Input - Capacity Factors'!$C$3="Wind"),IF(R190*'AVOID NEW'!$E$67<6.5,R190*(1-'AVOID NEW'!$E$67),R190-6.5),"NA") -> NA | V190: 71.85 | W190: =IF(OR('Input - Capacity Factors'!$C$3="Wind"),IF(V190*'AVOID NEW'!$E$67<6.5,V190*(1-'AVOID NEW'!$E$67),V190-6.5),"NA") -> NA | X190: 73.52 | Y190: =IF(OR('Input - Capacity Factors'!$C$3="Wind"),IF(X190*'AVOID NEW'!$E$67<6.5,X190*(1-'AVOID NEW'!$E$67),X190-6.5),"NA") -> NA | Z190: 68.52 | AA190: =IF(OR('Input - Capacity Factors'!$C$3="Wind"),IF(Z190*'AVOID NEW'!$E$67<6.5,Z190*(1-'AVOID NEW'!$E$67),Z190-6.5),"NA") -> NA
B191: 11 | C191: ='AVOID NEW'!AS19 -> 73.74693831 | D191: 75.41693831 | E191: 70.41693831 | G191: 79.65 | H191: =IF(OR('Input - Capacity Factors'!$C$3="Wind"),IF(G191*'AVOID NEW'!$E$67<6.5,G191*(1-'AVOID NEW'!$E$67),G191-6.5),"NA") -> NA | I191: 81.45 | J191: =IF(OR('Input - Capacity Factors'!$C$3="Wind"),IF(I191*'AVOID NEW'!$E$67<6.5,I191*(1-'AVOID NEW'!$E$67),I191-6.5),"NA") -> NA | K191: 76.05 | L191: =IF(OR('Input - Capacity Factors'!$C$3="Wind"),IF(K191*'AVOID NEW'!$E$67<6.5,K191*(1-'AVOID NEW'!$E$67),K191-6.5),"NA") -> NA | N191: 61.95 | O191: =IF(OR('Input - Capacity Factors'!$C$3="Wind"),IF(N191*'AVOID NEW'!$E$67<6.5,N191*(1-'AVOID NEW'!$E$67),N191-6.5),"NA") -> NA | P191: 63.35 | Q191: =IF(OR('Input - Capacity Factors'!$C$3="Wind"),IF(P191*'AVOID NEW'!$E$67<6.5,P191*(1-'AVOID NEW'!$E$67),P191-6.5),"NA") -> NA | R191: 59.15 | S191: =IF(OR('Input - Capacity Factors'!$C$3="Wind"),IF(R191*'AVOID NEW'!$E$67<6.5,R191*(1-'AVOID NEW'!$E$67),R191-6.5),"NA") -> NA | V191: 73.75 | W191: =IF(OR('Input - Capacity Factors'!$C$3="Wind"),IF(V191*'AVOID NEW'!$E$67<6.5,V191*(1-'AVOID NEW'!$E$67),V191-6.5),"NA") -> NA | X191: 75.42 | Y191: =IF(OR('Input - Capacity Factors'!$C$3="Wind"),IF(X191*'AVOID NEW'!$E$67<6.5,X191*(1-'AVOID NEW'!$E$67),X191-6.5),"NA") -> NA | Z191: 70.42 | AA191: =IF(OR('Input - Capacity Factors'!$C$3="Wind"),IF(Z191*'AVOID NEW'!$E$67<6.5,Z191*(1-'AVOID NEW'!$E$67),Z191-6.5),"NA") -> NA
B192: 12 | C192: ='AVOID NEW'!AS20 -> 75.46937847 | D192: 77.13937847 | E192: 72.13937847 | G192: 81.51 | H192: =IF(OR('Input - Capacity Factors'!$C$3="Wind"),IF(G192*'AVOID NEW'!$E$67<6.5,G192*(1-'AVOID NEW'!$E$67),G192-6.5),"NA") -> NA | I192: 83.31 | J192: =IF(OR('Input - Capacity Factors'!$C$3="Wind"),IF(I192*'AVOID NEW'!$E$67<6.5,I192*(1-'AVOID NEW'!$E$67),I192-6.5),"NA") -> NA | K192: 77.91 | L192: =IF(OR('Input - Capacity Factors'!$C$3="Wind"),IF(K192*'AVOID NEW'!$E$67<6.5,K192*(1-'AVOID NEW'!$E$67),K192-6.5),"NA") -> NA | N192: 63.39 | O192: =IF(OR('Input - Capacity Factors'!$C$3="Wind"),IF(N192*'AVOID NEW'!$E$67<6.5,N192*(1-'AVOID NEW'!$E$67),N192-6.5),"NA") -> NA | P192: 64.8 | Q192: =IF(OR('Input - Capacity Factors'!$C$3="Wind"),IF(P192*'AVOID NEW'!$E$67<6.5,P192*(1-'AVOID NEW'!$E$67),P192-6.5),"NA") -> NA | R192: 60.6 | S192: =IF(OR('Input - Capacity Factors'!$C$3="Wind"),IF(R192*'AVOID NEW'!$E$67<6.5,R192*(1-'AVOID NEW'!$E$67),R192-6.5),"NA") -> NA | V192: 75.47 | W192: =IF(OR('Input - Capacity Factors'!$C$3="Wind"),IF(V192*'AVOID NEW'!$E$67<6.5,V192*(1-'AVOID NEW'!$E$67),V192-6.5),"NA") -> NA | X192: 77.14 | Y192: =IF(OR('Input - Capacity Factors'!$C$3="Wind"),IF(X192*'AVOID NEW'!$E$67<6.5,X192*(1-'AVOID NEW'!$E$67),X192-6.5),"NA") -> NA | Z192: 72.14 | AA192: =IF(OR('Input - Capacity Factors'!$C$3="Wind"),IF(Z192*'AVOID NEW'!$E$67<6.5,Z192*(1-'AVOID NEW'!$E$67),Z192-6.5),"NA") -> NA
B193: 13 | C193: ='AVOID NEW'!AS21 -> 77.02998053 | D193: 78.69998053 | E193: 73.69998053 | G193: 83.19 | H193: =IF(OR('Input - Capacity Factors'!$C$3="Wind"),IF(G193*'AVOID NEW'!$E$67<6.5,G193*(1-'AVOID NEW'!$E$67),G193-6.5),"NA") -> NA | I193: 85 | J193: =IF(OR('Input - Capacity Factors'!$C$3="Wind"),IF(I193*'AVOID NEW'!$E$67<6.5,I193*(1-'AVOID NEW'!$E$67),I193-6.5),"NA") -> NA | K193: 79.6 | L193: =IF(OR('Input - Capacity Factors'!$C$3="Wind"),IF(K193*'AVOID NEW'!$E$67<6.5,K193*(1-'AVOID NEW'!$E$67),K193-6.5),"NA") -> NA | N193: 64.71 | O193: =IF(OR('Input - Capacity Factors'!$C$3="Wind"),IF(N193*'AVOID NEW'!$E$67<6.5,N193*(1-'AVOID NEW'!$E$67),N193-6.5),"NA") -> NA | P193: 66.11 | Q193: =IF(OR('Input - Capacity Factors'!$C$3="Wind"),IF(P193*'AVOID NEW'!$E$67<6.5,P193*(1-'AVOID NEW'!$E$67),P193-6.5),"NA") -> NA | R193: 61.91 | S193: =IF(OR('Input - Capacity Factors'!$C$3="Wind"),IF(R193*'AVOID NEW'!$E$67<6.5,R193*(1-'AVOID NEW'!$E$67),R193-6.5),"NA") -> NA | V193: 77.03 | W193: =IF(OR('Input - Capacity Factors'!$C$3="Wind"),IF(V193*'AVOID NEW'!$E$67<6.5,V193*(1-'AVOID NEW'!$E$67),V193-6.5),"NA") -> NA | X193: 78.7 | Y193: =IF(OR('Input - Capacity Factors'!$C$3="Wind"),IF(X193*'AVOID NEW'!$E$67<6.5,X193*(1-'AVOID NEW'!$E$67),X193-6.5),"NA") -> NA | Z193: 73.7 | AA193: =IF(OR('Input - Capacity Factors'!$C$3="Wind"),IF(Z193*'AVOID NEW'!$E$67<6.5,Z193*(1-'AVOID NEW'!$E$67),Z193-6.5),"NA") -> NA
B194: 14 | C194: ='AVOID NEW'!AS22 -> 78.44007682 | D194: 80.11007682 | E194: 75.11007682 | G194: 84.72 | H194: =IF(OR('Input - Capacity Factors'!$C$3="Wind"),IF(G194*'AVOID NEW'!$E$67<6.5,G194*(1-'AVOID NEW'!$E$67),G194-6.5),"NA") -> NA | I194: 86.52 | J194: =IF(OR('Input - Capacity Factors'!$C$3="Wind"),IF(I194*'AVOID NEW'!$E$67<6.5,I194*(1-'AVOID NEW'!$E$67),I194-6.5),"NA") -> NA | K194: 81.12 | L194: =IF(OR('Input - Capacity Factors'!$C$3="Wind"),IF(K194*'AVOID NEW'!$E$67<6.5,K194*(1-'AVOID NEW'!$E$67),K194-6.5),"NA") -> NA | N194: 65.89 | O194: =IF(OR('Input - Capacity Factors'!$C$3="Wind"),IF(N194*'AVOID NEW'!$E$67<6.5,N194*(1-'AVOID NEW'!$E$67),N194-6.5),"NA") -> NA | P194: 67.29 | Q194: =IF(OR('Input - Capacity Factors'!$C$3="Wind"),IF(P194*'AVOID NEW'!$E$67<6.5,P194*(1-'AVOID NEW'!$E$67),P194-6.5),"NA") -> NA | R194: 63.09 | S194: =IF(OR('Input - Capacity Factors'!$C$3="Wind"),IF(R194*'AVOID NEW'!$E$67<6.5,R194*(1-'AVOID NEW'!$E$67),R194-6.5),"NA") -> NA | V194: 78.44 | W194: =IF(OR('Input - Capacity Factors'!$C$3="Wind"),IF(V194*'AVOID NEW'!$E$67<6.5,V194*(1-'AVOID NEW'!$E$67),V194-6.5),"NA") -> NA | X194: 80.11 | Y194: =IF(OR('Input - Capacity Factors'!$C$3="Wind"),IF(X194*'AVOID NEW'!$E$67<6.5,X194*(1-'AVOID NEW'!$E$67),X194-6.5),"NA") -> NA | Z194: 75.11 | AA194: =IF(OR('Input - Capacity Factors'!$C$3="Wind"),IF(Z194*'AVOID NEW'!$E$67<6.5,Z194*(1-'AVOID NEW'!$E$67),Z194-6.5),"NA") -> NA
